Workbook

Sheet Chiller-Tool
C3: Chiller Calculator Tool
C5: ="Version: " & INDEX(CurrentVersion_List,MATCH("a",CurrentVersionSelected_List,0)) -> Version: 073124.1 | H5: Application Date
H6: Invoice/Install Date | O6: =TODAY() -> 2025-12-30
C7: Project Information | Q7: Instructions
C8: Project Name/Type | P8: User Input Fields | R8: 1 - Complete all yellow fields | BX8: TRUE
C9: Installation Address | P9: Completed Fields | R9: 2 - Save a copy of this HVAC tool | BX9: FALSE
C10: City/State/Zip | P10: Calculated Fields | BX10: TRUE
C11: Contractor/Dealer Name | R11: 4 - Follow the instructions on the incentive application
C12: Participant Information | N12: =IF(AND(InstallState="",InstallDate=""),"",IF(OR(InstallState="",InstallDate=""),"Please enter an install date and select a state in the Project Information section.","Calculator results are in accordance with " & INDEX(StateName_List,MATCH(InstallState,StateAbrev_List,0)) &" Tariff " & INDEX(Incentives[Tariff Number],MATCH(CONCATENATE(InstallState," - Active"),Incentives[Active],0)) & ", effective "& INDEX(Incentives[Text Date],MATCH(CONCATENATE(InstallState," - Active"),Incentives[Active],0)) & ", and are estimates only. Actual energy savings and incentives paid will be determined based on the results of a post-installation inspection and review of project invoices."&" Calculator results are valid only for equipment purchased and installed on or after the effective tariff date.")) -> 
C13: Business Name
C14: Address
C15: City/State/Zip
C16: Contact Person/Title
C17: Phone/Email | N17: Incentive Payee Information
C18: Business Type | N18: Select where the incentive will be paid in the drop down selector >>
C19: Participant is >> | N19: Business Name
C20: Account Information | G20: =IF(OR(InstallState="",RateSchedule=""),"","Rate Schedule " & RateSchedule & " effective " & TEXT(INDEX(Rates!I10:I14,MATCH(InstallState,Rates!H10:H14,0)),"mm/dd/yyyy")) ->  | N20: Contact Name/Phone
C21: Account Name | N21: Address
C22: Account/Meter/Rate | N22: City/State/Zip
C24: Equipment & Facility Information | I24: =IF(AND(InstallState="",OR(ChillerCapacity<>"",ChillerIPLV<>"",ChillerFullLoadEfficiency<>"",ChillerServiceType<>"",ChillerType<>"")),"Please select install state before proceeding.",IF(AND(RateSchedule="",V31="",L31<>""),"Please select a valid rate schedule.","")) ->  | R24: =IFERROR(IF(AND(InstallState<>"",L31="Enter Required Data",InstallDate=""),"Please enter an install date.",Baseline_Energy_Code),"") -> 
C25: Chiller Service Type | I25: Nearest Weather Location | R25: Energy Savings (Annual) | V25: =IF(AND(CheckBoxLink_PathA=FALSE,CheckBoxLink_PathB=FALSE),"",'Chiller Calculator'!C36) -> 
C26: Chiller Type | I26: Cooling Degree Days | R26: Demand Savings (Peak) | V26: =IF(AND(CheckBoxLink_PathA=FALSE,CheckBoxLink_PathB=FALSE),"",'Chiller Calculator'!C37) -> 
C27: Heat Rejection | I27: Facility Type | R27: Demand Savings (Monthly) | V27: =IF(AND(CheckBoxLink_PathA=FALSE,CheckBoxLink_PathB=FALSE),"",'Chiller Calculator'!C38) -> 
C28: AHRI Capacity | I28: Equivalent Full Load Hours | L28: =IF(FacilityType="","",'Chiller Calculator'!C32) ->  | R28: Cost Savings (Annual) | V28: =IF(AND(CheckBoxLink_PathA=FALSE,CheckBoxLink_PathB=FALSE),"",'Chiller Calculator'!C39) -> 
C29: AHRI Full-Load Efficiency | R29: =IF(AND(CheckBoxLink_PathA=FALSE,CheckBoxLink_PathB=FALSE),"",IF(ISNUMBER('Chiller Calculator'!C43)=FALSE,'Chiller Calculator'!C43,"")) -> Enter Incremental Cost
C30: AHRI IPLV | I30: Select Compliance Path >> | L30: TRUE | O30: FALSE | R30: Incentive | V30: =IF(AND(CheckBoxLink_PathA=FALSE,CheckBoxLink_PathB=FALSE),"",IF(ISNUMBER('Chiller Calculator'!C43)=TRUE,'Chiller Calculator'!C43,"")) -> 
C31: Total Cost | I31: Baseline Full Load | L31: =IF(OR(ChillerServiceType="",ChillerType="",HeatRejection="",ChillerCapacity=""),"",'Chiller Calculator'!C27) ->  | O31: =IF(OR(ChillerServiceType="",ChillerType="",HeatRejection="",ChillerCapacity=""),"",'Chiller Calculator'!E27) ->  | R31: Simple Payback (Before Incentives) | V31: =IF(V30="","",IF(ISNUMBER('Chiller Calculator'!C40)=TRUE,'Chiller Calculator'!C40,"")) -> 
C32: Incremental Cost | I32: Baseline IPLV | L32: =IF(OR(ChillerServiceType="",ChillerType="",HeatRejection="",ChillerCapacity=""),"",'Chiller Calculator'!C28) ->  | O32: =IF(OR(ChillerServiceType="",ChillerType="",HeatRejection="",ChillerCapacity=""),"",'Chiller Calculator'!E28) ->  | R32: Simple Payback (After Incentives) | V32: =IF(V30="","",IF(ISNUMBER('Chiller Calculator'!C44)=TRUE,'Chiller Calculator'!C44,"")) -> 

Sheet Chiller Calculator (hidden)
A1: =IF(C7="","VERSION: " & Version,CONCATENATE("VERSION: " & Version," - Tariff Effective: ",VLOOKUP(C7,TariffDates,2,FALSE))) -> 
B2: Please Fill in All Yellow Shaded Cells
B3: Participant Name | C3: =CustomerBusinessName -> 0
B4: *Invoice Date (MM/DD/YYYY) | C4: 2022-02-02
B5: Facility Address | C5: =InstallAddress -> 0
B6: Facility City, State, Zip | C6: =InstallCity & ", " & InstallState & " " & InstallZip -> ,
B7: *Service Territory | C7: =InstallState -> 0
B8: =IF(ISERROR(C29),CONCATENATE("Rate Schedule ",C8," is not a valid schedule in ",C7),IF(C8="","*Rate Schedule",CONCATENATE("*Rate ",C8," effective as of: ",VLOOKUP(C7,Rates!H10:I14,2,FALSE)))) ->  | C8: =RateSchedule -> 0
B9: *Select Nearest Representative Location | C9: =NearestWeatherCity -> 0
B10: *Facility Type | C10: =FacilityType -> 0 | I10: Chiller Function
B11: *Is the Chiller the Primary or Backup Service Unit? | C11: =ChillerServiceType -> 0
B12: *Proposed Chiller Heat Rejection | C12: =HeatRejection -> 0 | I12: Primary
B13: *Proposed Chiller Type | C13: =ChillerType -> 0 | I13: Backup
B14: *Proposed Chiller Heat Rejection
B15: *Proposed Chiller Type
B16: *Proposed Chiller AHRI Capacity | C16: =IF(ChillerCapacity="","",ChillerCapacity) -> 
B17: *Proposed Chiller AHRI Full Load Efficiency(Enter kW/ton) | C17: =IF(ChillerFullLoadEfficiency="","",ChillerFullLoadEfficiency) ->  | I17: Size Code | J17: =SUM(K17:P17) -> 6 | K17: =IF($C$16<75,1,0) -> 0 | L17: =IF(AND($C$16>=75,$C$16<150),2,0) -> 0 | M17: =IF(AND($C$16>=150,$C$16<300),3,0) -> 0 | N17: =IF(AND($C$16>=300,$C$16<400),4,0) -> 0 | O17: =IF(AND($C$16>=400,$C$16<600),4,0) -> 0 | P17: =IF($C$16>=600,6,0) -> 6 | Q17: Size Code | R17: =SUM(S17:W17) -> 5 | S17: =IF($C$16<75,1,0) -> 0 | T17: =IF(AND($C$16>=75,$C$16<150),2,0) -> 0 | U17: =IF(AND($C$16>=150,$C$16<300),3,0) -> 0 | V17: =IF(AND($C$16>=300,$C$16<600),4,0) -> 0 | W17: =IF($C$16>600,5,0) -> 5
B18: *Proposed Chiller AHRI IPLV (Enter kW/ton) | C18: =IF(ChillerIPLV="","",ChillerIPLV) ->  | K18: Centrifugal Water-Cooled Size (Tons) | S18: Positvie Displacement, Water-Cooled Size (Tons)
B19: *Proposed Chiller Cost | C19: =ChillerCost -> 0 | I19: State | J19: Effective Date | K19: <75 | L19: ≥75 and <150 | M19: ≥150 and <300 | N19: ≥300 and <400 | O19: ≥400 and <600 | P19: ≥600 | Q19: State | R19: Effective Date | S19: <75 | T19: ≥75 and <150 | U19: ≥150 and <300 | V19: ≥300 and <600 | W19: ≥600
B20: *Incremental Cost above Code Baseline Cost | C20: =ChillerIncrementalCost -> 0 | I20: CA | J20: 2014-07-01 | K20: =IF($C$4<$J20,1,"A") -> A | L20: =IF($C$4<$J20,1,"B") -> B | M20: =IF($C$4<$J20,2,"C") -> C | N20: =IF($C$4<$J20,3,"D") -> D | O20: =IF($C$4<$J20,3,"E") -> E | P20: =IF($C$4<$J20,3,"F") -> F | Q20: CA | R20: 2014-07-01 | S20: =IF($C$4<$J20,1,"A") -> A | T20: =IF($C$4<$J20,1,"B") -> B | U20: =IF($C$4<$J20,2,"C") -> C | V20: =IF($C$4<$J20,3,"D") -> D | W20: =IF($C$4<$J20,3,"D") -> D
B21: * indicates required field | I21: ID | J21: 2021-01-01 | K21: =IF($C$4<$J21,1,"A") -> A | L21: =IF($C$4<$J21,2,"B") -> B | M21: =IF($C$4<$J21,3,"C") -> C | N21: =IF($C$4<$J21,4,"D") -> D | O21: =IF($C$4<$J21,5,"E") -> E | P21: =IF($C$4<$J21,6,"F") -> F | Q21: ID | R21: 2011-01-01 | S21: =IF($C$4<$J21,1,"A") -> A | T21: =IF($C$4<$J21,2,"B") -> B | U21: =IF($C$4<$J21,3,"C") -> C | V21: =IF($C$4<$J21,4,"D") -> D | W21: =IF($C$4<$J21,5,"E") -> E
B22: Lookup Values | C22: =IF(OR(C7="",C4=""),"",CONCATENATE("Baseline Energy Code: ",VLOOKUP(C7,EnergyCodes,3,FALSE))) ->  | I22: UT | J22: 2023-07-01 | K22: =IF($C$4<$J22,1,"A") -> 1 | L22: =IF($C$4<$J22,2,"B") -> 2 | M22: =IF($C$4<$J22,3,"C") -> 3 | N22: =IF($C$4<$J22,4,"D") -> 4 | O22: =IF($C$4<$J22,5,"E") -> 5 | P22: =IF($C$4<$J22,6,"F") -> 6 | Q22: UT | R22: 2016-07-01 | S22: =IF($C$4<$J22,1,"A") -> 1 | T22: =IF($C$4<$J22,2,"B") -> 2 | U22: =IF($C$4<$J22,3,"C") -> 3 | V22: =IF($C$4<$J22,4,"D") -> 4 | W22: =IF($C$4<$J22,5,"F") -> 5
B23: Size ID | C23: =IF(C7="","Enter Required Data",IF(C12="Water Cooled",IF(C13="Centrifugal",VLOOKUP(C7,I20:P24,J17+2,FALSE),VLOOKUP(C7,Q20:W24,R17+2,FALSE)),VLOOKUP(C7,I28:M32,J25+2))) ->  | G23: hidden field | I23: WA | J23: 2016-07-01 | K23: =IF($C$4<$J23,1,"A") -> A | L23: =IF($C$4<$J23,1,"B") -> B | M23: =IF($C$4<$J23,2,"C") -> C | N23: =IF($C$4<$J23,3,"D") -> D | O23: =IF($C$4<$J23,3,"E") -> E | P23: =IF($C$4<$J23,3,"F") -> F | Q23: WA | R23: 2016-07-01 | S23: =IF($C$4<$J23,1,"A") -> A | T23: =IF($C$4<$J23,1,"B") -> B | U23: =IF($C$4<$J23,2,"C") -> C | V23: =IF($C$4<$J23,3,"D") -> D | W23: =IF($C$4<$J23,3,"E") -> E
B24: Baseline ID | C24: =IF(OR(C7="",C12="",C13="",C23="",C4="",C16="",C17="",C18="",C19="",C20=""),"Enter Required Data",CONCATENATE(C7,"-",C12,"-",C13,"-",C23)) ->  | G24: hidden field | I24: WY | J24: 2014-12-01 | K24: A | L24: B | M24: C | N24: D | O24: E | P24: F | Q24: WY | R24: 2009-01-01 | S24: =IF($C$4<$J24,1,"A") -> A | T24: =IF($C$4<$J24,1,"B") -> B | U24: =IF($C$4<$J24,2,"C") -> C | V24: =IF($C$4<$J24,3,"D") -> D | W24: =IF($C$4<$J24,3,"D") -> D
B25: Proposed ID | C25: =IF(OR(C7="",C14=0,C15=0,C23="",C4=""),"Enter Required Data",CONCATENATE(C7,"-",C14,"-",C15,"-",C23)) ->  | G25: hidden field | I25: Size Code | J25: =SUM(K25:O25) -> 3 | K25: =IF($C$16<150,1,0) -> 0 | L25: =IF(AND($C$16>=150,$C$16<300),2,0) -> 0 | M25: =IF($C$16>=300,3,0) -> 3
C26: Path A | D26: Units | E26: Path B | F26: Units | K26: Air-Cooled Size (Tons)
B27: Baseline Full Load | C27: =IF(ISERROR(IF(C24="Enter Required Data",C24,VLOOKUP(C24,ChillerData,7,FALSE))),"Not a Valid Chiller Type",IF(C24="Enter Required Data",C24,ROUND(VLOOKUP(C24,ChillerData,7,FALSE),2))) -> Not a Valid Chiller Type | D27: =IF(C24="Enter Required Data","",VLOOKUP(C24,ChillerData,11,FALSE)) ->  | E27: =IF(C24="Enter Required Data",C24,VLOOKUP(C24,ChillerData,9,FALSE)) ->  | F27: =IF(C24="Enter Required Data","",VLOOKUP(C24,ChillerData,11,FALSE)) ->  | I27: State | J27: Effective Date | K27: <150 | L27: ≥150 and < 300 | M27: ≥300 | T27: Positive Displacement Chillers include:
B28: Baseline IPLV | C28: =IF(ISERROR(IF(C24="Enter Required Data",C24,ROUND(VLOOKUP(C24,ChillerData,8,FALSE),2))),"Not a Valid Chiller Type",IF(C24="Enter Required Data",C24,ROUND(VLOOKUP(C24,ChillerData,8,FALSE),2))) -> Not a Valid Chiller Type | D28: =IF(C24="Enter Required Data","",VLOOKUP(C24,ChillerData,11,FALSE)) ->  | E28: =IF(C24="Enter Required Data",C24,VLOOKUP(C24,ChillerData,10,FALSE)) ->  | F28: =IF(C24="Enter Required Data","",VLOOKUP(C24,ChillerData,11,FALSE)) ->  | I28: CA | J28: 2014-07-01 | K28: =IF($C$4<$J28,1,"A") -> A | L28: =IF($C$4<$J28,2,"B") -> B | M28: =IF($C$4<$J28,3,"B") -> B | T28: Screw, Reciprocating, Rotary, Scroll
B29: Average Energy Cost | C29: =Rates!E8 -> Enter State and Rate Schedule Into Yellow Cells Above | I29: ID | J29: 2021-01-01 | K29: =IF($C$4<$J29,1,"A") -> A | L29: =IF($C$4<$J29,2,"B") -> B | M29: =IF($C$4<$J29,2,"B") -> B
B30: Average Demand Cost | C30: =Rates!F8 -> Enter State and Rate Schedule Into Yellow Cells Above | I30: UT | J30: 2023-07-01 | K30: 1 | L30: 2 | M30: =IF($C$4<$J30,2,"B") -> 2
B31: Cooling Degree Days | C31: =IF(ISERROR(IF(C9="","Enter Representative Location Into Yellow Cell Above",VLOOKUP(C9,CDD,4,FALSE))),"",IF(C9="","Enter Representative Location Into Yellow Cell Above",VLOOKUP(C9,CDD,4,FALSE))) ->  | I31: WA | J31: 2016-07-01 | K31: A | L31: B | M31: =IF($C$4<$J31,2,"B") -> B
B32: Equivalent Full Load Hours | C32: =IF(ISERROR(IF(C10="","Enter Facility Type Into Yellow Cell Above",VLOOKUP(C10,EFLH,6,FALSE))),"",IF(C10="","Enter Facility Type Into Yellow Cell Above",VLOOKUP(C10,EFLH,6,FALSE))) ->  | I32: WY | J32: 2014-12-01 | K32: A | L32: B | M32: =IF($C$4<$J32,3,"B") -> B
B34: Savings Calculations1
B35: *Chosen Path of Compliance | C35: =IF(CheckBoxLink_PathA=TRUE,"Path A",IF(CheckBoxLink_PathB=TRUE,"Path B","")) -> Path A
B36: Estimated Annual Energy Savings | C36: =IF(ISERROR(IF(C28="Enter Missing Data Into Yellow Cells Above","Enter Missing Data Into Yellow Cells Above",IF(OR(C35="Path A",C35="Path B"),((IF(C35="Path A",C28,E28)-C18))*C16*C32,"Select Path of Compliance"))),"",IF(C28="Enter Missing Data Into Yellow Cells Above","Enter Missing Data Into Yellow Cells Above",IF(OR(C35="Path A",C35="Path B"),((IF(C35="Path A",C28,E28)-C18))*C16*C32,"Select Path of Compliance"))) ->  | I36: Tariff Effective Dates | J36: Applicable Tariff Date | K36: Code Effective Dates | L36: Applicable Tariff
B37: Estimated Peak Demand Savings | C37: =IF(ISERROR(IF(C28="Enter Missing Data Into Yellow Cells Above","Enter Missing Data Into Yellow Cells Above",IF(OR(C35="Path A",C35="Path B"),((IF(C35="Path A",C27,E27)-C17))*C16,"Select Path of Compliance"))),"",IF(C28="Enter Missing Data Into Yellow Cells Above","Enter Missing Data Into Yellow Cells Above",IF(OR(C35="Path A",C35="Path B"),((IF(C35="Path A",C27,E27)-C17))*C16,"Select Path of Compliance"))) ->  | I37: CA | J37: =IF($C$4>=J44,K44,L44) -> May 1, 2015 | K37: =IF(C4<J28,"Title 24 - 2008, Table 112-D","Title 24 - 2013, Table 110.2-D") -> Title 24 - 2013, Table 110.2-D | L37: =IF($C$4>=J44,M44,N44) -> 140
B38: Estimated Average Monthly Demand Savings | C38: =IF(ISERROR(IF(C28="Enter Missing Data Into Yellow Cells Above","Enter Missing Data Into Yellow Cells Above",IF(C37="Select Path of Compliance",C37,0.37*C37))),"",IF(C28="Enter Missing Data Into Yellow Cells Above","Enter Missing Data Into Yellow Cells Above",IF(C37="Select Path of Compliance",C37,0.37*C37))) ->  | I38: ID | J38: =IF($C$4>=J45,K45,L45) -> November 13, 2014 | K38: =IF(C4<J29,"IECC 2015","IECC 2018") -> IECC 2018 | L38: =IF($C$4>=J45,M45,N45) -> 140
B39: Estimated Annual Cost Savings | C39: =IF(ISERROR(IF(C28="Enter Missing Data Into Yellow Cells Above","Enter Missing Data Into Yellow Cells Above",IF(C38="Select Path of Compliance",C38,C29*C36+12*C38*C30))),"",IF(C28="Enter Missing Data Into Yellow Cells Above","Enter Missing Data Into Yellow Cells Above",IF(C38="Select Path of Compliance",C38,C29*C36+12*C38*C30))) ->  | I39: UT | J39: =IF($C$4>=J46,K46,L46) -> July 1, 2014 | K39: =IF(C4<J30,"IECC 2018","IECC 2021") -> IECC 2018 | L39: =IF($C$4>=J46,M46,N46) -> 140
B40: Simple Payback Before Incentives | C40: =IF(ISERROR(IF(C20>0,C20/C39,"Enter Incremental Cost")),"",IF(C20>0,C20/C39,"Enter Incremental Cost")) -> Enter Incremental Cost | I40: WA | J40: =IF($C$4>=J47,K47,L47) -> August 1, 2020 | K40: =IF(C4<J31,"WSEC 2012, Table 503.2.3(7)","WSEC 2015, Table 503.2.3(7)") -> WSEC 2015, Table 503.2.3(7) | L40: =IF($C$4>=J47,M47,N47) -> 140
I41: WY | J41: =IF($C$4>=J48,K48,L48) -> January 1, 2018 | K41: IECC 2009 | L41: =IF($C$4>=J48,M48,N48) -> 140
B42: Incentive Calculations
B43: Available Incentive | C43: =IF(C11="Backup","Back-up chillers are not eligibile for incentives",IF(ISERROR(IF(OR(C36<0,C37<0),"Does not Meet Efficiency Requirements",IF(C20<>0,Incentive_Value,"Enter Incremental Cost"))),"",IF(OR(C36<0,C37<0),"Does not Meet Efficiency Requirements",IF(C20<>0,Incentive_Value,"Enter Incremental Cost")))) -> Enter Incremental Cost | I43: State | J43: Current Tariff Date | K43: Current Text | L43: Previous Text | M43: Current Tariff Number | N43: Previous | O43: Current Date Text
B44: Simple Payback After Incentives | C44: =IF(ISERROR(IF(C20>0,(C20-C43)/C39,"Enter Incremental Cost")),"",IF(C20>0,(C20-C43)/C39,"Enter Incremental Cost")) -> Enter Incremental Cost | I44: CA | J44: 2015-05-01 | K44: May 1, 2015 | L44: January 19, 2012 | M44: 140 | N44: A-115 | O44: 5/1/2015
B45: 1. Energy Savings Calculations use Base 65 Cooling Degree Days | I45: ID | J45: 2014-11-13 | K45: November 13, 2014 | L45: July 14, 2012 | M45: 140 | N45: 115 | O45: 7/14/2012
I46: UT | J46: 2023-07-01 | K46: March 10, 2016 | L46: July 1, 2014 | M46: 140 | N46: 140 | O46: 3/10/2016
I47: WA | J47: 2020-08-01 | K47: August 1, 2020 | L47: January 1, 2020 | M47: 140 | N47: 140 | O47: 8/1/2020
I48: WY | J48: 2018-01-01 | K48: January 1, 2018 | L48: October 1, 2011 | M48: 140 | N48: 115 | O48: 12/1/2014
I50: Incentive Value | J50: Incentive Per Unit
I51: =IF(AND(InstallState="WY",$C$4>=VLOOKUP(InstallState,$I$44:$J$48,2)),(0.15*ROUND(Annual_Energy_Savings,0)+(50*ROUND(Average_Monthly_Demand_Savings,0))),ROUND(Annual_Energy_Savings*Incentive_Per_Unit,0)) ->  | J51: =IFERROR(INDEX(Incentives[Incentive Per Unit],MATCH(CONCATENATE(InstallState," - Active"),Incentives[Active],0)),"check install date") -> check install date
I53: State | J53: Tariff Number | K53: Text Date | L53: Start Date | M53: End Date | N53: Active | O53: Incentive Per Unit
I54: WA | J54: 115 | K54: =TEXT(Incentives[[#This Row],[Start Date]],"mmmm d, yyyy") -> January 1, 2014 | L54: 2014-01-01 | M54: 2018-01-01 | N54: =CONCATENATE(Incentives[[#This Row],[State]]," - ",IF(AND(InstallDate>=Incentives[[#This Row],[Start Date]],OR(InstallDate<Incentives[[#This Row],[End Date]],Incentives[[#This Row],[End Date]]="")),"Active","Inactive")) -> WA - Inactive | O54: 0.12
I55: WA | J55: 140 | K55: =TEXT(Incentives[[#This Row],[Start Date]],"mmmm d, yyyy") -> January 1, 2018 | L55: 2018-01-01 | M55: 2020-08-01 | N55: =CONCATENATE(Incentives[[#This Row],[State]]," - ",IF(AND(InstallDate>=Incentives[[#This Row],[Start Date]],OR(InstallDate<Incentives[[#This Row],[End Date]],Incentives[[#This Row],[End Date]]="")),"Active","Inactive")) -> WA - Inactive | O55: 0.15
I56: WA | J56: 140 | K56: =TEXT(Incentives[[#This Row],[Start Date]],"mmmm d, yyyy") -> August 1, 2020 | L56: 2020-08-01 | N56: =CONCATENATE(Incentives[[#This Row],[State]]," - ",IF(AND(InstallDate>=Incentives[[#This Row],[Start Date]],OR(InstallDate<Incentives[[#This Row],[End Date]],Incentives[[#This Row],[End Date]]="")),"Active","Inactive")) -> WA - Inactive | O56: 0.18
I57: CA | J57: A-115 | K57: =TEXT(Incentives[[#This Row],[Start Date]],"mmmm d, yyyy") -> January 19, 2012 | L57: 2012-01-19 | M57: 2015-05-01 | N57: =CONCATENATE(Incentives[[#This Row],[State]]," - ",IF(AND(InstallDate>=Incentives[[#This Row],[Start Date]],OR(InstallDate<Incentives[[#This Row],[End Date]],Incentives[[#This Row],[End Date]]="")),"Active","Inactive")) -> CA - Inactive | O57: 0.12
I58: CA | J58: 140 | K58: =TEXT(Incentives[[#This Row],[Start Date]],"mmmm d, yyyy") -> May 1, 2015 | L58: 2015-05-01 | N58: =CONCATENATE(Incentives[[#This Row],[State]]," - ",IF(AND(InstallDate>=Incentives[[#This Row],[Start Date]],OR(InstallDate<Incentives[[#This Row],[End Date]],Incentives[[#This Row],[End Date]]="")),"Active","Inactive")) -> CA - Inactive | O58: 0.15
I59: UT | J59: 140 | K59: =TEXT(Incentives[[#This Row],[Start Date]],"mmmm d, yyyy") -> July 1, 2014 | L59: 2014-07-01 | M59: 2016-03-10 | N59: =CONCATENATE(Incentives[[#This Row],[State]]," - ",IF(AND(InstallDate>=Incentives[[#This Row],[Start Date]],OR(InstallDate<Incentives[[#This Row],[End Date]],Incentives[[#This Row],[End Date]]="")),"Active","Inactive")) -> UT - Inactive | O59: 0.12
I60: UT | J60: 140 | K60: =TEXT(Incentives[[#This Row],[Start Date]],"mmmm d, yyyy") -> March 10, 2016 | L60: 2016-03-10 | N60: =CONCATENATE(Incentives[[#This Row],[State]]," - ",IF(AND(InstallDate>=Incentives[[#This Row],[Start Date]],OR(InstallDate<Incentives[[#This Row],[End Date]],Incentives[[#This Row],[End Date]]="")),"Active","Inactive")) -> UT - Inactive | O60: 0.3
I61: ID | J61: 115 | K61: =TEXT(Incentives[[#This Row],[Start Date]],"mmmm d, yyyy") -> July 14, 2012 | L61: 2012-07-14 | M61: 2014-11-13 | N61: =CONCATENATE(Incentives[[#This Row],[State]]," - ",IF(AND(InstallDate>=Incentives[[#This Row],[Start Date]],OR(InstallDate<Incentives[[#This Row],[End Date]],Incentives[[#This Row],[End Date]]="")),"Active","Inactive")) -> ID - Inactive | O61: 0.12
I62: ID | J62: 140 | K62: =TEXT(Incentives[[#This Row],[Start Date]],"mmmm d, yyyy") -> November 13, 2014 | L62: 2014-11-13 | N62: =CONCATENATE(Incentives[[#This Row],[State]]," - ",IF(AND(InstallDate>=Incentives[[#This Row],[Start Date]],OR(InstallDate<Incentives[[#This Row],[End Date]],Incentives[[#This Row],[End Date]]="")),"Active","Inactive")) -> ID - Inactive | O62: 0.15
I63: WY | J63: 115 | K63: =TEXT(Incentives[[#This Row],[Start Date]],"mmmm d, yyyy") -> October 1, 2011 | L63: 2011-10-01 | M63: 2018-01-01 | N63: =CONCATENATE(Incentives[[#This Row],[State]]," - ",IF(AND(InstallDate>=Incentives[[#This Row],[Start Date]],OR(InstallDate<Incentives[[#This Row],[End Date]],Incentives[[#This Row],[End Date]]="")),"Active","Inactive")) -> WY - Inactive | O63: 0.12
I64: WY | J64: 140 | K64: =TEXT(Incentives[[#This Row],[Start Date]],"mmmm d, yyyy") -> January 1, 2018 | L64: 2018-01-01 | N64: =CONCATENATE(Incentives[[#This Row],[State]]," - ",IF(AND(InstallDate>=Incentives[[#This Row],[Start Date]],OR(InstallDate<Incentives[[#This Row],[End Date]],Incentives[[#This Row],[End Date]]="")),"Active","Inactive")) -> WY - Inactive | O64: 0.15

Sheet HELP
B2: Chiller Calculator Tool Help
C5: ="Note: This chiller calculator is provided for the express use of "&IF(InstallState="","Rocky Mountain Power/Pacific Power approved EEA participants only. ",IF(OR(InstallState="ID",InstallState="UT",InstallState="WA"),INDEX(Program_Name,MATCH(InstallState,StateAbrev_List,0))&" approved wattsmart Business vendors only. ",INDEX(Program_Name,MATCH(InstallState,StateAbrev_List,0))&" approved EEA participants only. "))&"Any other use of this chiller calculator tool is unauthorized unless specifically approved otherwise by "&IF(InstallState="","","the "&INDEX(Program_Name,MATCH(InstallState,StateAbrev_List,0))&" Program Administrator or ")&IF(InstallState="","Rocky Mountain Power/Pacific Power",INDEX(UtilityName_List,MATCH(InstallState,StateAbrev_List,0)))&"." -> Note: This chiller calculator is provided for the express use of Rocky Mountain Power/Pacific Power approved EEA participants only. Any other use of this chiller calculator tool is unauthorized unless specifically approved otherwise by Rocky Mountain Power/Pacific Power.
C8: When to Use this Chiller Calculator
C10: This chiller calculator is designed to be used when a detailed energy analysis is not desired or time does not permit to complete one prior to the chiller installation. There are a number of assumptions made by the chiller calculator that may or may not be correct for the specific chiller at hand. When in doubt as to whether or not it is appropriate to use this chiller calculator, please contact your EEA Coordinator at 1-801-300-0150. Please note: Prescriptive incentives are only available for chillers used for HVAC loads and must meet all program requirements.
C12: How to Help Customers Obtain Incentives for a Chiller
D14: 1. | E14: ="Verify that the facility for the proposed chiller is served by " & IF(InstallState="","Rocky Mountain Power/Pacific Power",INDEX(Lookups!$E$2:$E$6,MATCH(InstallState,Lookups!$D$2:$D$6,0))) & " under one of the rate schedules eligible as listed in the applicable tariff. " & IF(InstallState="","",InstallState &"-"& VLOOKUP(InstallState,ApplicableTariff,4)) -> Verify that the facility for the proposed chiller is served by Rocky Mountain Power/Pacific Power under one of the rate schedules eligible as listed in the applicable tariff.
D15: 2. | E15: Determine the heat rejection (air or water cooled) for the proposed chiller.
D16: 3. | E16: Determine the type of the proposed chiller (Rotary, Screw, Scroll, Reciprocating, Centrifugal)
D17: 4. | E17: ="Obtain performance specifications at AHRI rated conditions for the chiller manufacturer. View the current version of the test procedure (AHRI Standard 550/590) at: " -> Obtain performance specifications at AHRI rated conditions for the chiller manufacturer. View the current version of the test procedure (AHRI Standard 550/590) at:
D18: 5. | E18: http://www.ahrinet.org/hvacr+industry+standards.aspx
D19: 6. | E19: Fill out the yellow cells in the chiller calculator with all the requested information.
D20: 7. | E20: If the chiller qualifies for incentives, present and explain the estimate to the customer for review/acceptance/installation.
D21: 8. | E21: Retain a copy of the chiller calculator for your files.
D22: 9. | E22: Install the qualifying chiller for the customer.
D23: 10. | E23: Create an application by clicking the 'Create Incentive Application' button.
D24: 11. | E24: Submitt application by following the instructions found in the application.
C26: Helpful Conversion Formulas
C28: KW/ton = 12 / EER | K28: Conversion Calculator
C29: KW/ton = 12 / (COP x 3.412) | M29: kW/ton
C30: COP = EER / 3.412 | K30: Enter COP: | M30: =IF(L30="","",12/(L30*3.412)) -> 
C31: COP = [12 / (KW/ton)] / 3.412 | K31: Enter EER: | L31: 19.4 | M31: =IF(L31="","",12/L31) -> 0.618556701
C32: EER = 12 / KW/ton
C33: EER = COP x 3.412
C34: IPLV = .01A + .42B + .45C + .12D where:
C35: A = kW/ton [EER or COP] at 100% load
C36: B = kW/ton [EER or COP] at 75% load
C37: C = kW/ton [EER or COP] at 50% load
C38: D = kW/ton [EER or COP] at 25% load
C40: Incremental Cost above code baseline for proposed chiller ($)
D42: Incremental cost is the difference in cost between the proposed chiller and a similar code-level chiller. For example, if the proposed chiller costs $170,000 and a similar code-level chiller costs $150,000, the incremental cost would be $20,000 ($170,000-$150,000). The incremental cost is required to calculate payback results in the estimate. This can help customers see how long it will take them to recuperate the extra investment required to buy an energy-efficient chiller. If you are having trouble calculating the incremental cost, please contact your EEA Coordinator for help by calling 1-801-300-0150.
C44: Rate Schedule
D46: ="The rate schedule is required to estimate paybacks. The correct rate schedule found on the customer's current " & IF(InstallState="","Rocky Mountain Power/Pacific Power",INDEX(Lookups!$E$2:$E$6,MATCH(InstallState,Lookups!$D$2:$D$6,0))) & " bill or call your EEA Coordinator at 1-866-415-9800 and request it." -> The rate schedule is required to estimate paybacks. The correct rate schedule found on the customer's current Rocky Mountain Power/Pacific Power bill or call your EEA Coordinator at 1-866-415-9800 and request it.
C48: Select Nearest Weather Station
D50: The closer the weather station to your project location, the more accurate your estimates will be. A map of the weather stations is available at the link below. Click the state where the chiller is to be installed and hover over the weather station name on the left hand pane to see it's location on the map. The location is highlighted.
E51: http://www.wrcc.dri.edu/summary/
D53: CAUTION: | F53: ="A nearby weather station does not guarantee customer is served by " & IF(InstallState="","Rocky Mountain Power/Pacific Power",INDEX(Lookups!$E$2:$E$6,MATCH(InstallState,Lookups!$D$2:$D$6,0))) & "." -> A nearby weather station does not guarantee customer is served by Rocky Mountain Power/Pacific Power.
C55: Compliance Path A vs. Path B
D57: Some energy codes have two paths of compliance for certain chiller types and sizes. In these cases, Path A or B may be selected for the savings calculations. If Path B is not applicable, Path A must be selected.
C59: Multiple Chiller Systems
D61: This calculator can be used on both single and multi-chiller systems. Backup chillers are not eligible for incentives. On multi-chiller systems, run the chiller calculator for each chiller in the system. The project economics based on the results of the individual chiller calculators are calculated as follows:
E62: Project Incentive: add up the Incentive for each chiller in the system
E63: Project Estimated Annual Cost Savings ($/year): add up the Estimated Annual Cost Savings ($/year) for each chiller in the system
E64: Project Estimated Annual Energy Savings (Kwh/year): Add up the Estimated Annual Energy Savings (Kwh/year) for each chiller in the system
E65: Project Cost adder ($): add up the Cost adder for proposed chiller ($) for each chiller in the system
E66: Project Simple Payback After Incentives (years): Subtract the Project Incentive from the Project Cost adder and divide that by the Project Estimated Annual Cost Savings
F68: Simple Payback after Incentives | I68: = | J68: Incremental Cost - Incentive
J69: Annual Energy Cost Savings
C71: Additional Help
C73: Contact your EEA Coordinator for the wattsmart Business Program at 1-801-300-0150 with any questions you may have.

Sheet Application NEW (hidden)
F6: General Application
F10: PARTICIPANT INFORMATION
F11: (Check will be issued to the business name and address listed below unless the payment release section below has been filled out)
F12: Participant is (check all that apply) | S12: =IF(CheckBoxLink_AccountHolder=TRUE,"X","") ->  | T12: Customer | Z12: =IF(CheckBoxLink_FacilityOwner=TRUE,"X","") ->  | AA12: Facility Owner | AG12: =IF(CheckBoxLink_ElectricityUser=TRUE,"X","") ->  | AH12: Tenant/Electricity user
S13: FALSE | Z13: FALSE | AG13: FALSE
F14: Participant business name (As shown on income tax return):
F15: =CustomerBusinessName -> 0
F16: Mailing address: | AD16: City: | AN16: State: | AS16: Zip:
F17: =CustomerAddress -> 0 | AD17: =CustomerCity -> 0 | AN17: =CustomerState -> 0 | AS17: =CustomerZip -> 0
F18: Contact name: | AD18: Contact title:
F19: =CustomerContactName -> 0 | AD19: =CustomerContactTitle -> 0
F20: Contact telephone number: | R20: Cell number: | AC20: FALSE | AD20: Contact email address:
F21: =IF(CheckboxLink_CellPhone=FALSE,CustomerContactPhone,0) -> 0 | R21: =IF(CheckboxLink_CellPhone=TRUE,CustomerContactPhone,0) -> 0 | AD21: =CustomerContactEmail -> 0
F23: TAXPAYER IDENTIFICATION (Must be complete in order to receive an incentive)
F24: Participant Federal taxpayer ID number (EIN) or SS#: | AF24: ____ ____ ____ ____ ____ ____ ____ ____ ____
F25: Please check the appropriate box:
H26: Individual or Sole Proprietor | R26: LLC, LLP, or Partnership | AA26: C Corporation | AG26: S Corporation | AM26: Trust/Estate | AS26: Exempt Payee
F29: PROJECT SITE INFORMATION
F30: Facility/Project name:
F31: =ProjectName -> 0
F32: Facility address: | AD32: City: | AN32: State: | AS32: Zip:
F33: =InstallAddress -> 0 | AD33: =InstallCity -> 0 | AN33: =InstallState -> 0 | AS33: =InstallZip -> 0
F34: Commercial/Industrial electric account #: | Q34: =AccountNumber -> 0 | AN34: Rate Schedule: | AS34: =RateSchedule -> 0
F36: Electric meter number – seven or eight digits: (If multiple meters at site only enter one) | Q36: =MeterNumber -> 0 | AD36: Customer name: (As shown on bill)
AD37: =AccountName -> 0
F38: Please provide a description of your project so we may better help you:
H40: Lighting Retrofit | U40: Additional project information: (scope and schedule)
G42: X | H42: Listed Equipment Incentives
G44: =IF(OR(ProjectType="New Construction",ProjectType="Major Renovation"),"X","") ->  | H44: New Construction
H46: Custom or Energy Management Incentives
H48: Other:________________________________
F51: INCENTIVE ASSIGNMENT (Complete only if incentive is to be assigned to someone other than participant above)
F52: Check should be made out to:
F53: =IF(OR(IncentivePayeeSelector="Participant Business Address",IncentivePayeeSelector="Project Address"),"n/a",PayeeBusinessName) -> 0
F54: Mailing address: | AD54: City: | AN54: State: | AS54: Zip:
F55: =IF(OR(IncentivePayeeSelector="Participant Business Address",IncentivePayeeSelector="Project Address"),"n/a",PayeeAddress) -> 0 | AD55: =IF(OR(IncentivePayeeSelector="Participant Business Address",IncentivePayeeSelector="Project Address"),"n/a",PayeeCity) -> 0 | AN55: =IF(OR(IncentivePayeeSelector="Participant Business Address",IncentivePayeeSelector="Project Address"),"n/a",PayeeState) -> 0 | AS55: =IF(OR(IncentivePayeeSelector="Participant Business Address",IncentivePayeeSelector="Project Address"),"n/a",PayeeZip) -> 0
F56: Contact name: | AD56: Contact telephone:
F57: =IF(OR(IncentivePayeeSelector="Participant Business Address",IncentivePayeeSelector="Project Address"),"n/a",PayeeContactName) -> 0 | AD57: =IF(OR(IncentivePayeeSelector="Participant Business Address",IncentivePayeeSelector="Project Address"),"n/a",PayeeContactPhone) -> 0
F59: APPLICATION ACKNOWLEDGEMENT
F60: ="By my signature below, I certify that all information provided for participation will be accurate including but not limited to supplemental material and claims of " & "participant and equipment information. I confirm I have read, understand and agree with the TERMS AND CONDITIONS and agree to be bound by them. I authorize " & INDEX(UtilityName_List,MATCH(InstallState,StateAbrev_List,0)) & " to provide my electric account information to consultants associated with the wattsmart Business program." -> 
F61: Under penalties of perjury, I certify that: 1) The taxpayer identification number is correct, and 2) I am not subject to backup withholding due to failure to report interest and dividend income, and 3) I am a U.S. citizen, resident alien or other U.S. person. The Internal Revenue Service does not require your consent to any provision of this document other than the certifications required to avoid backup withholding.
G63: Signatory name & title (please print) | W63: Participant signature | AM63: Date
G64: ="Effective " & VLOOKUP(InstallState,'Chiller Calculator'!$I$44:$O$48,7,FALSE) & " v12/23/2013" ->  | AV64: wattsmart is registered in U.S. Patent and Trademark Office.
F66: TERMS & CONDITIONS
F68: How to participate: | AC68: =INDEX(UtilityName_List,MATCH(InstallState,StateAbrev_List,0)) & " does not warrant the performance of qualifying installed equipment/energy management measures and does not warrant that the qualifying installed equipment/energy management measures will deliver any specified amount of energy or cost savings. " & "Participant shall independently evaluate any advice or direction given by " & INDEX(UtilityName_List,MATCH(InstallState,StateAbrev_List,0)) & " or its consultants related to the estimates of electricity savings or the cost, selection or installation of qualifying equipment/energy management measures. " & "In no event will " & INDEX(UtilityName_List,MATCH(InstallState,StateAbrev_List,0)) & " or its consultants be liable for the failure of the participant to achieve its expected amount of energy savings, for any personal injury or harm to participant’s facilities of any kind, " & "or for any incidental or consequential damages of any kind including hazardous material identification in connection with installation or inspection of qualifying equipment and energy management measures. " & INDEX(UtilityName_List,MATCH(InstallState,StateAbrev_List,0)) & " is not responsible if a third party provides inaccurate information about the amount and/or conditions of the actual incentive and " & INDEX(UtilityName_List,MATCH(InstallState,StateAbrev_List,0)) & " will not pay incentives for equipment that is mislabeled or misrepresented by third parties regarding incentive qualifications." -> 
F69: Typical incentives:
G70: 1. | H70: Pre-qualification is recommended but not required.
G71: 2. | H71: Purchase and install qualifying equipment.
G72: 3. | H72: Complete general application and technology-specific supplemental equipment form(s).
G73: 4. | H73: Submit application and all required supplemental forms as directed on supplemental form(s).
F75: Lighting retrofit incentives:
G76: 1. | H76: Pre-qualification is required prior to equipment purchase. Submit general application to your assigned Project Manager or one of our wattsmart Business vendors.
G77: 2. | H77: Participate in inspections prior to the installation or removal of any equipment.
G78: 3. | H78: Incentive offer will be provided to eligible participants. Return signed incentive offer.
G79: 4. | H79: Complete project and notify your assigned Project Manager or wattsmart Vendor.
AC80: =" " & "The incentive offer is an estimate. The final incentive will be based on actual electric savings and approved actual project costs incurred by the participant for implemented approved energy efficiency measures. " & "Participant agrees to provide any reasonable documentation to allow " & INDEX(UtilityName_List,MATCH(InstallState,StateAbrev_List,0)) & " to determine electric savings and actual costs incurred. To the extent that " & INDEX(UtilityName_List,MATCH(InstallState,StateAbrev_List,0)) & " determines (at its sole discretion) that any of the recommended measures have not been installed and commissioned in a satisfactory manner, " & "participant shall receive a reduced incentive, if any, based on the inspection and verification of installed and commissioned measures." -> 
G81: 5. | H81: Provide all required documentation and participate in any required inspections.
F82: Custom and energy management incentives:
G83: 1. | H83: Pre-qualification is required prior to equipment purchase/project implementation. Submit general application.
G84: 2. | H84: Participate in project scoping meeting(s), inspections and engineering analysis(s) prior to installation or removal of equipment. Provide additional supplemental applications or information as needed.
AC85: =" " & "Participant hereby transfers to " & INDEX(UtilityName_List,MATCH(InstallState,StateAbrev_List,0)) & " all ""Environmental Attributes"" attributable to the installation of the qualifying equipment or its operation. " & "Environmental Attributes include any and all credits, benefits, emissions reductions, offsets and allowances, howsoever entitled, resulting from the avoidance of the emission of any substance to the air, " & "soil or water at or by the company’s generating facilities, through reduced generation of energy or other savings or offsets on account of the qualifying equipment. " & "Participant will not claim ownership of any Environmental Attributes. " & "As long as participant at the same time states the installation of the qualifying equipment was made possible with funding from " & INDEX(UtilityName_List,MATCH(InstallState,StateAbrev_List,0)) & ", participant may claim that it is facilitating the production of the Environmental Attributes attributable to the qualifying equipment." -> 
G86: 3. | H86: Incentive offer(s) will be provided to eligible participants. Return signed incentive offer.
G87: 4. | H87: Complete project and provide completion notification to your assigned Project Manager.
G88: 5. | H88: Provide all required documentation and participate in any required inspections.
F89: =" " & "In the event that " & INDEX(UtilityName_List,MATCH(InstallState,StateAbrev_List,0)) & " does not pay the incentive as a result of the participant’s failure to comply with the terms and conditions, the assignee’s sole recourse shall be against participant." -> 
F90: =" " & "Participant agrees to cooperate with " & INDEX(UtilityName_List,MATCH(InstallState,StateAbrev_List,0)) & " and its consultants to conduct energy analysis and inspections at the participant's site. " & INDEX(UtilityName_List,MATCH(InstallState,StateAbrev_List,0)) & " reserves the right to inspect qualifying equipment/energy management measures, which may include a telephone survey, site visit, " & "and/or the installation of temporary monitoring equipment at any time up to 36 months after installation for quality control or program performance evaluations." -> 
AC91: =" " & "Incentive qualifications and amounts are subject to change and termination. " & "Visit the program’s website or contact a wattsmart Business vendor or " & INDEX(UtilityName_List,MATCH(InstallState,StateAbrev_List,0)) & " for current program information." -> 
AC92: =" " & "Confidential information provided to " & INDEX(UtilityName_List,MATCH(InstallState,StateAbrev_List,0)) & " or consultants shall not be disclosed to any third party. Confidential information shall mean data disclosed during the course of the energy analysis, " & "and identified by the participant in writing as confidential. The obligation to protect confidential information will remain in force for two (2) years from the date the energy analysis is performed." -> 
F93: =" " & "Neither " & INDEX(UtilityName_List,MATCH(InstallState,StateAbrev_List,0)) & " nor its Program Administrator is providing tax advice or responsible for any tax liability which may be imposed on the participant as a result of any incentive payment. " & "Participant may be responsible for the tax reporting to the IRS of any incentive payments directed to third parties." -> 
F94: =" " & "Participants may not receive custom incentives in lieu of typical (listed) incentives. " & "Participants are responsible for ensuring that equipment installed for this program meets all applicable codes, standards, environmental regulations and regulatory requirements." -> Participants may not receive custom incentives in lieu of typical (listed) incentives. Participants are responsible for ensuring that equipment installed for this program meets all applicable codes, standards, environmental regulations and regulatory requirements.
F96: Application Supplemental
F97: HVAC - Chiller
F99: To apply for wattsmart Business incentives, complete this application supplement and send it with the general incentive application to the address to the right. Please review and confirm each of the qualifying criteria below, as applicable. | AH99: Send completed application by email, mail, or fax to:
AH100: =INDEX(HVACEmail_List,MATCH(InstallState,StateAbrev_List,0)) -> 
AH101: ="wattsmart Business " & INDEX(MailAddress1_List,MATCH(InstallState,StateAbrev_List,0)) & " " & INDEX(MailCity_List,MATCH(InstallState,StateAbrev_List,0)) & ", " & INDEX(MailState,MATCH(InstallState,StateAbrev_List,0)) & " " & INDEX(MailZip_List,MATCH(InstallState,StateAbrev_List,0)) -> 
H103: Equipment is installed and operating at the site listed on the general application.
H105: The dated sales receipt or invoice is included with labor and material costs itemized.
AH106: =INDEX(ApplyToFaxNL_List,MATCH(InstallState,StateAbrev_List,0)) & " - fax" -> 
H107: Manufacturer’s specification sheet for each installed equipment model is included.
H109: Completed application is submitted within six months of project completion. | AH109: For additional information or assistance, please call 1-866-415-9800

Sheet Lookups (hidden)
A1: Year | B1: YearPlusOne | C1: StateName | D1: StateAbrev | E1: UtilityName | F1: UtilityWebsite | G1: AllianceWebsite | H1: UtilityHotline | I1: FXHotline | J1: UtilityEmail | K1: UtilityFax | L1: VersionNmbr | M1: ApplicationVersionNmber | N1: EffectiveDate | O1: CustInct | P1: CustCap | Q1: HVACEmail | R1: MotorsEmail | S1: FoodServiceEmail | T1: IrrigationEmail | U1: BldgEnvEmail | V1: LightingEmail | W1: CompAirEmail | X1: FarmDairyEmail | Y1: OtherEmail | Z1: NLApplicationEmail | AA1: RateSchedule | AB1: MailAddress1 | AC1: MailAddress2 | AD1: MailCity | AE1: MailState | AF1: MailZip | AG1: States | AH1: OtherUtilityName | AI1: State1 | AJ1: State2 | AK1: State3 | AL1: State1Abb | AM1: State2Abb | AN1: State3Abb | AO1: ST1_RT_Schedule | AP1: ST2_RT_Schedule | AQ1: ST3_RT_Schedule | AR1: ST1_CRD Name | AS1: ST1_CRD Info | AT1: ST1_CRD Number | AU1: ST1_CRD Email | AV1: ST2_CRD Name | AW1: ST2_CRD Number | AX1: ST2_CRD Info | AY1: ST2_CRD Email | AZ1: ST3_CRD Name | BA1: ST3_CRD Number | BB1: ST3_CRD Info | BC1: ST3_CRD Email | BD1: Costpercentage | BE1: Purchase Directions | BF1: Purchase Directions | BG1: NC/MR Pre Purchase Directions | BH1: Letter of intent Note | BI1: Retrofit Directions | BJ1: IA Retrofit Directions | BK1: Other Utility Directions | BL1: St1RetroLightingProcess | BM1: St1NCMRLightingProcess | BN1: St1NonlightProcess | BO1: St1CustomProcess | BP1: St2RetroLightingProcess | BQ1: St2NCMRLightingProcess | BR1: St2NonlightProcess | BS1: St2CustomProcess | BT1: St3RetroLightingProcess | BU1: St3NCMRLightingProcess | BV1: St3NonlightProcess | BW1: St3CustomProcess | BX1: HESWebsite | BY1: ST1FinAnswerWebsite | BZ1: ST2FinAnswerWebsite | CA1: ST3FinAnswerWebsite | CB1: BSTWebsite | CC1: EmailSuffix | CD1: EnergyCodeBaseline | CE1: CodeEffDate | CF1: AbbreviatedCode | CG1: Tariff # | CH1: ApplyToFaxNL | CI1: ApplyToFaxLtg | CJ1: Program name
A2: 2014 | B2: =A2+1 -> 2015 | C2: Utah | D2: UT | E2: Rocky Mountain Power | F2: wattsmart.com | G2: rockymountainpower.net/alliance | H2: 1-800-222-4335 | I2: 1-866-415-9800 | J2: energy.expert@rockymountainpower.net | K2: 801-233-0883 | L2: V 11/14/12 | M2: V 07/01/13 | N2: 2013-07-01 | O2: 0.1 | P2: 50 | Q2: ut.hvacr@rockymountainpower.net | R2: ut.motors@rockymountainpower.net | S2: ut.foodservice@rockymountainpower.net | T2: ut.irrigation@rockymountainpower.net | U2: ut.bldgenvelope@rockymountainpower.net | V2: ut.lighting@rockymountainpower.net | W2: ut.compair@rockymountainpower.net | X2: ut.farmdairy@rockymountainpower.net | Y2: ut.othertech@rockymountainpower.net | Z2: ut.finanswerexpress@rockymountainpower.net | AA2: 6, 6A, 6B, 8, 9, 9A, 10, 12, 15, 21, 23, Supplementary service under Schedule 31 | AB2: 2223 S Highland Drive #E6-333 | AD2: Salt Lake City | AE2: UT | AF2: 84106 | AG2: Utah, Wyoming and Idaho | AH2: Pacific Power | AI2: Utah | AJ2: Wyoming | AK2: Idaho | AL2: UT | AM2: WY | AN2: ID | AO2: 6, 6A, 6B, 8, 9, 9A, 10, 12, 15, 21, 23, Supplementary service under Schedule 31 | AP2: 25, 28, 33, 40, 46, 48, 54, 58, 210, 212, 213 | AQ2: 6, 6A, 8, 9, 12, 19, 23, 23A, 24, 35, 35A | AR2: Mark Clary | AT2: 801.233.0882 | AU2: ut.lighting@rockymountainpower.net | AV2: Jim Soukup | AW2: 307.235.0438 | AY2: wy.lighting@rockymountainpower.net | AZ2: William Gatchel | BA2: 541.727.5386 | BC2: id.lighting@rockymountainpower.net | BD2: 50 | BE2: Lighting retrofits must have a signed incentive agreement prior to purchase of equipment | BL2: Pre-purchase Agreement | BM2: Post-purchase Application | BN2: Post-purchase Application | BO2: Pre-purchase Agreement | BP2: Pre-purchase Agreement | BQ2: Post-purchase Application | BR2: Post-purchase Application | BS2: Pre-purchase Agreement | BT2: Pre-purchase Agreement | BU2: Post-purchase Application | BV2: Post-purchase Application | BW2: Pre-purchase Agreement | BX2: www.homeenergysavings.net | BY2: www.rockymountainpower.net/bus/se/epi/utah/ilc/ef.html | BZ2: www.rockymountainpower.net/bus/se/epi/wyoming/ilc/ef.html | CA2: www.rockymountainpower.net/bus/se/epi/idaho/ilc/ef.html | CB2: www.rockymountainpower.net/bus/bst.html | CC2: @rockymountainpower.net | CD2: International Energy Conservation Code 2009 | CE2: 2010-07-01 | CF2: IECC 2009 | CG2: 140 | CH2: 1-801-266-4786 | CI2: 1-801-233-0883 | CJ2: wattsmart Business
A3: 2014 | B3: =A3+1 -> 2015 | C3: Wyoming | D3: WY | E3: Rocky Mountain Power | F3: rockymountainpower.net/wattsmart | G3: rockymountainpower.net/alliance | H3: 1-800-222-4335 | I3: 1-866-415-9800 | J3: energy.expert@rockymountainpower.net | K3: 307-333-4952 | L3: V 10/01/11 | M3: V 01/01/13 | N3: 2011-10-01 | O3: 0.1 | P3: 70 | Q3: wy.hvacr@rockymountainpower.net | R3: wy.motors@rockymountainpower.net | S3: wy.foodservice@rockymountainpower.net | T3: wy.irrigation@rockymountainpower.net | U3: wy.bldgenvelope@rockymountainpower.net | V3: wy.lighting@rockymountainpower.net | W3: wy.compair@rockymountainpower.net | X3: wy.farmdairy@rockymountainpower.net | Y3: wy.othertech@rockymountainpower.net | Z3: wy.finanswerexpress@rockymountainpower.net | AA3: 25, 28, 33, 40, 46, 48T, 54, 58, 210, 212, 213 | AB3: 2223 S Highland Drive #E6-333 | AD3: Salt Lake City | AE3: UT | AF3: 84106 | AG3: Utah, Wyoming and Idaho | AH3: Pacific Power | AI3: Utah | AJ3: Wyoming | AK3: Idaho | AL3: UT | AM3: WY | AN3: ID | AO3: 6, 6A, 6B, 8, 9, 9A, 10, 12, 15, 21, 23, Supplementary service under Schedule 31 | AP3: 25, 28, 33, 40, 46, 48, 54, 58, 210, 212, 213 | AQ3: 6, 6A, 8, 9, 12, 19, 23, 23A, 24, 35, 35A | AR3: Mark Clary | AT3: 801.233.0882 | AU3: ut.lighting@rockymountainpower.net | AV3: Jim Soukup | AW3: 307.235.0438 | AY3: wy.lighting@rockymountainpower.net | AZ3: William Gatchel | BA3: 541.727.5386 | BC3: id.lighting@rockymountainpower.net | BD3: 50 | BL3: Pre-purchase Agreement | BM3: Post-purchase Application | BN3: Post-purchase Application | BO3: Pre-purchase Agreement | BP3: Pre-purchase Agreement | BQ3: Post-purchase Application | BR3: Post-purchase Application | BS3: Pre-purchase Agreement | BT3: Pre-purchase Agreement | BU3: Post-purchase Application | BV3: Post-purchase Application | BW3: Pre-purchase Agreement | BX3: www.homeenergysavings.net | BY3: www.rockymountainpower.net/bus/se/epi/utah/ilc/ef.html | BZ3: www.rockymountainpower.net/bus/se/epi/wyoming/ilc/ef.html | CA3: www.rockymountainpower.net/bus/se/epi/idaho/ilc/ef.html | CB3: www.rockymountainpower.net/bus/bst.html | CC3: @rockymountainpower.net | CD3: International Energy Conservation Code 2009 | CE3: December 1, 2014 (as determined by Rocky Mountain Power) | CF3: IECC 2009 | CG3: 140 | CH3: 1-801-266-4787 | CI3: 1-541-376-8446 | CJ3: wattsmart Business
A4: 2014 | B4: 2015 | C4: Idaho | D4: ID | E4: Rocky Mountain Power | F4: rockymountainpower.net/wattsmart | G4: rockymountainpower.net/alliance | H4: 1-800-222-4335 | I4: 1-866-415-9800 | J4: energy.expert@rockymountainpower.net | K4: 541-376-8446 | L4: V 07/14/12 | M4: V 01/01/13 | N4: 2012-07-14 | O4: 0.1 | P4: 50 | Q4: id.hvacr@rockymountainpower.net | R4: id.motors@rockymountainpower.net | S4: id.foodservice@rockymountainpower.net | T4: id.irrigation@rockymountainpower.net | U4: id.bldgenvelope@rockymountainpower.net | V4: id.lighting@rockymountainpower.net | W4: id.compair@rockymountainpower.net | X4: id.farmdairy@rockymountainpower.net | Y4: id.othertech@rockymountainpower.net | Z4: id.finanswerexpress@rockymountainpower.net | AA4: 6, 6A, 7, 7A, 9, 12, 19, 23, 23A, 24, 35, 35A | AB4: 2223 S Highland Drive #E6-333 | AD4: Salt Lake City | AE4: UT | AF4: 84106 | AG4: Utah, Wyoming and Idaho | AH4: Pacific Power | AI4: Utah | AJ4: Wyoming | AK4: Idaho | AL4: UT | AM4: WY | AN4: ID | AO4: 6, 6A, 6B, 8, 9, 9A, 10, 12, 15, 21, 23, Supplementary service under Schedule 31 | AP4: 25, 28, 33, 40, 46, 48, 54, 58, 210, 212, 213 | AQ4: 6, 6A, 7, 7A, 9, 12, 19, 23, 23A, 24, 35, 35A | AR4: Mark Clary | AT4: 801.233.0882 | AU4: ut.lighting@rockymountainpower.net | AV4: Jim Soukup | AW4: 307.235.0438 | AY4: wy.lighting@rockymountainpower.net | AZ4: William Gatchel | BA4: 541.727.5386 | BC4: id.lighting@rockymountainpower.net | BD4: 50 | BL4: Pre-purchase Agreement | BM4: Post-purchase Application | BN4: Post-purchase Application | BO4: Pre-purchase Agreement | BP4: Pre-purchase Agreement | BQ4: Post-purchase Application | BR4: Post-purchase Application | BS4: Pre-purchase Agreement | BT4: Pre-purchase Agreement | BU4: Post-purchase Application | BV4: Post-purchase Application | BW4: Pre-purchase Agreement | BX4: www.homeenergysavings.net | BY4: www.rockymountainpower.net/bus/se/epi/utah/ilc/ef.html | BZ4: www.rockymountainpower.net/bus/se/epi/wyoming/ilc/ef.html | CA4: www.rockymountainpower.net/bus/se/epi/idaho/ilc/ef.html | CB4: www.rockymountainpower.net/bus/bst.html | CC4: @rockymountainpower.net | CD4: International Energy Conservation Code 2009 | CE4: 2011-01-01 | CF4: IECC 2009 | CG4: 140 | CH4: 1-801-266-4788 | CI4: 1-503-482-7447 | CJ4: wattsmart Business
A5: 2014 | B5: =A5+1 -> 2015 | C5: California | D5: CA | E5: Pacific Power | F5: pacificpower.net/wattsmart | G5: pacificpower.net/alliance | H5: 1-800-222-4335 | I5: 1-866-415-9800 | J5: energy.expert@pacificpower.net | K5: (541) 770-2731 | L5: V 01/19/12 | M5: V 01/01/13 | N5: 2012-01-19 | O5: 0.1 | P5: 70 | Q5: ca.hvacr@pacificpower.net | R5: ca.motors@pacificpower.net | S5: ca.foodservice@pacificpower.net | T5: ca.irrigation@pacificpower.net | U5: ca.bldgenvelope@pacificpower.net | V5: ca.lighting@pacificpower.net | W5: ca.compair@pacificpower.net | X5: ca.farmdairy@pacificpower.net | Y5: ca.othertech@pacificpower.net | Z5: ca.finanswerexpress@pacificpower.net | AA5: A-25, A-32, A-33, A-36, AT-47, AT-48, LS-53, LS-58, OL-42, PA-20 | AB5: 6312 SW Capitol Way #1023 | AD5: Portland | AE5: OR | AF5: 97239 | AG5: California and Washington | AH5: Rocky Mountain Power | AI5: California | AJ5: Washington | AL5: CA | AM5: WA | AO5: A-25, A-32, A-33, A-36, AT-47, AT-48, AWH-31, LS-53, LS-58, OL-42, PA-20, PA-40 | AP5: 24, 33, 36, 40, 47T, 48T, 54 | AR5: Bob Greeley | AT5: 541.601.8088 | AU5: ca.lighting@pacificpower.net | AV5: Lori Sanders | AW5: 509.727.0394 | AX5: - Yakima | AY5: wa.lighting@pacificpower.net | AZ5: William Gatchel | BA5: 541.377.7943 | BB5: - Walla Walla | BC5: wa.lighting@pacificpower.net | BD5: 60 | BE5: Lighting retrofits in Washington must have a signed incentive agreement prior to purchase of equipment. Lighting retrofits in California may be done post-purchase, but pre-approval is recommended. | BG5: Note that pre-purchase incentive agreements are only required in Washington for retrofit projects. Incentive Agreements and Letters of Intent are NOT required for any projects in California or for any New Construction/Major Renovation projects | BH5: Note: Letter of Intent is only required for retrofit projects in California. | BI5: For Washington retrofit projects, instruct customer not to purchase equipment until an incentive agreement is executed. | BJ5: For retrofit projects (except in California), the incentive agreement must be signed BEFORE the customer signs purchase orders or installation contracts for the project. | BK5: For information on Rocky Mountain Power customer incentives in Oregon, contact the Energy Trust of Oregon at www.energytrust.org. | BL5: Post-purchase Application | BM5: Post-purchase Application | BN5: Post-purchase Application | BO5: Pre-purchase Agreement | BP5: Pre-purchase Agreement | BQ5: Post-purchase Application | BR5: Post-purchase Application | BS5: Pre-purchase Agreement | BX5: www.homeenergysavings.net | BY5: www.pacificpower.net/bus/se/epi/california/ilc/ef.html | BZ5: www.pacificpower.net/bus/se/epi/washington/ilc/ef.html | CB5: www.pacificpower.net/bus/bst/index.html | CC5: @pacificpower.net | CD5: 2008 Building Efficiency Standards | CE5: 2010-01-01 | CF5: Title 24 2008 | CG5: 140 | CH5: 1-503-482-7447 | CI5: 1-503-482-7447 | CJ5: wattsmart Business
A6: 2014 | B6: =A6+1 -> 2015 | C6: Washington | D6: WA | E6: Pacific Power | F6: bewattsmart.com | G6: pacificpower.net/alliance | H6: 1-800-222-4335 | I6: 1-866-415-9800 | J6: energy.expert@pacificpower.net | K6: (541) 376-8446 | L6: V 01/01/14 | M6: V 01/01/14 | N6: 2014-01-01 | O6: 0.1 | P6: 70 | Q6: wa.hvacr@pacificpower.net | R6: wa.motors@pacificpower.net | S6: wa.foodservice@pacificpower.net | U6: wa.bldgenvelope@pacificpower.net | V6: wa.lighting@pacificpower.net | W6: wa.compair@pacificpower.net | X6: wa.farmdairy@pacificpower.net | Y6: wa.othertech@pacificpower.net | Z6: wa.finanswerexpress@pacificpower.net | AA6: 24, 33, 36, 40, 47T, 48T, 53, 54 | AB6: 6312 SW Capitol Way #1023 | AD6: Portland | AE6: OR | AF6: 97239 | AG6: California and Washington | AH6: Rocky Mountain Power | AI6: California | AJ6: Washington | AL6: CA | AM6: WA | AO6: A-25, A-32, A-33, A-36, AT-47, AT-48, AWH-31, LS-53, LS-58, OL-42, PA-20, PA-40 | AP6: 24, 33, 36, 40, 47T, 48T, 54 | AR6: Bob Greeley | AT6: 541.601.8088 | AU6: ca.lighting@pacificpower.net | AV6: Lori Sanders | AW6: 509.727.0394 | AX6: - Yakima | AY6: wa.lighting@pacificpower.net | AZ6: William Gatchel | BA6: 541.377.7943 | BB6: - Walla Walla | BC6: wa.lighting@pacificpower.net | BD6: 60 | BL6: Post-purchase Application | BM6: Post-purchase Application | BN6: Post-purchase Application | BO6: Pre-purchase Agreement | BP6: Pre-purchase Agreement | BQ6: Post-purchase Application | BR6: Post-purchase Application | BS6: Pre-purchase Agreement | BX6: www.homeenergysavings.net | BY6: www.pacificpower.net/bus/se/epi/california/ilc/ef.html | BZ6: www.pacificpower.net/bus/se/epi/washington/ilc/ef.html | CB6: www.pacificpower.net/bus/bst/index.html | CC6: @pacificpower.net | CD6: Washington State Energy Code 2012 | CE6: 2013-07-01 | CF6: WSEC 2012 | CG6: 140 | CH6: 1-503-482-7447 | CI6: 1-503-482-7447 | CJ6: wattsmart Business
A12: Business Type List | C12: Install States | E12: Rate Schedules | F12: Rate Schedules(truncated) | H12: Incentive Recipient List
A13: Agriculture - Dairy | C13: ID | E13: =IF(Rates!D10="","",Rates!D10) -> WY 212 | F13: =RIGHT(E13,LEN(E13)-3) -> 212
A14: Agriculture - Livestock | C14: UT | E14: =IF(Rates!D11="","",Rates!D11) -> WY 210 | F14: =RIGHT(E14,LEN(E14)-3) -> 210 | H14: Project Address
A15: Agriculture - Poultry | C15: WY | E15: =IF(Rates!D12="","",Rates!D12) -> WY 58 | F15: 58 | H15: Participant Business Address
A16: Agriculture - Sod | E16: =IF(Rates!D13="","",Rates!D13) -> WY 54 | F16: 54 | H16: Other 3rd Party (enter below)
A17: Apartment | E17: =IF(Rates!D14="","",Rates!D14) -> WY 48T | F17: 48T
A18: Auditorium | E18: =IF(Rates!D15="","",Rates!D15) -> WY 46 | F18: 46
A19: Auto Repair | E19: =IF(Rates!D16="","",Rates!D16) -> WY 40 | F19: 40
A20: Automotive facility | E20: =IF(Rates!D17="","",Rates!D17) -> WY 33 | F20: 33
A21: Common areas, corridors, restrooms, elevators, lobbies | E21: =IF(Rates!D18="","",Rates!D18) -> WY 28 | F21: 28
A22: Condominium | E22: =IF(Rates!D19="","",Rates!D19) -> WY 25 | F22: 25
A23: Convenience store | E23: =IF(Rates!D20="","",Rates!D20) -> WA 48T | F23: 48T
A24: Convention Center | E24: =IF(Rates!D21="","",Rates!D21) -> WA 40 | F24: 40
A25: Courthouse | E25: =IF(Rates!D22="","",Rates!D22) -> WA 36 | F25: 36
A26: Data Center | E26: =IF(Rates!D23="","",Rates!D23) -> WA 24 | F26: 24
A27: Dining - Bar Lounge / Leisure | E27: =IF(Rates!D24="","",Rates!D24) -> UT 23 | F27: 23
A28: Dining - Cafeteria / Fast Food | E28: =IF(Rates!D25="","",Rates!D25) -> UT 10 | F28: 10
A29: Dining - Restaurant | E29: =IF(Rates!D26="","",Rates!D26) -> UT 9 | F29: 9
A30: Dormitory | E30: =IF(Rates!D27="","",Rates!D27) -> UT 9A | F30: 9A
A31: Duplex | E31: =IF(Rates!D28="","",Rates!D28) -> UT 8 | F31: 8
A32: Exercise Center/Gymnasium | E32: =IF(Rates!D29="","",Rates!D29) -> UT 6 | F32: 6
A33: Financial Institution | E33: =IF(Rates!D30="","",Rates!D30) -> ID 35 | F33: 35
A34: General commercial/industrial work buildings | E34: =IF(Rates!D31="","",Rates!D31) -> ID 23 | F34: 23
A35: Grocery Stores | E35: =IF(Rates!D32="","",Rates!D32) -> ID 10 | F35: 10
A36: Healthcare - Hospital | E36: =IF(Rates!D33="","",Rates!D33) -> ID 9 | F36: 9
A37: Healthcare - Medical buildings and clinics | E37: =IF(Rates!D34="","",Rates!D34) -> ID 6 | F37: 6
A38: Healthcare - Nursing homes | E38: =IF(Rates!D35="","",Rates!D35) -> ID 6A | F38: 6A
A39: Healthcare - other | E39: =IF(Rates!D36="","",Rates!D36) -> CA 48 | F39: 48
A40: Hotel banquet/conference/exhibition hall | E40: =IF(Rates!D37="","",Rates!D37) -> CA 36 | F40: 36
A41: Hotel/motel | E41: =IF(Rates!D38="","",Rates!D38) -> CA 32 | F41: 32
A42: Industrial | E42: =Rates!D40 -> CA PA20
A43: Irrigation
A44: Laboratory spaces
A45: Laboratory/Scientific
A46: Laundries
A47: Library
A48: Mall
A49: Manufactured Home
A50: Manufacturing Facility
A51: Mixed use
A52: Mobile Home
A53: Multi-Family
A54: Museum/exhibit
A55: Office building, office/administrative areas
A56: Other
A57: Parking Garage
A58: Penitentiary
A59: Police/Fire Station
A60: Post Office
A61: Recreation
A62: Religious Building
A63: Retail/wholesale store
A64: School
A65: School - University
A66: School preK-12 - buildings/classrooms/daycare centers
A67: Service
A68: Single Dwelling
A69: Sports Arena
A70: Theater - motion picture
A71: Theater - performing arts
A72: Town Hall
A73: Transportation
A74: Tree fruit storage
A75: Warehouse - storage areas

Sheet Weather Data (hidden)
B1: Complete List | J1: ='Chiller Calculator'!C7 -> 0 | K1: Selected Service Territory | R1: State | S1: # of Weather Locations
B2: State | C2: Ref | D2: State-Ref | E2: City | F2: Weather COOP Site Name | G2: ID | H2: CDD (65°F) | K2: State | L2: Ref | M2: State-Ref | N2: City | O2: Weather COOP Site Name | P2: ID | Q2: CDD (65°F) | S2: California | T2: =COUNTIF($B$3:$B$461,"CA") -> 64
B3: CA | C3: 1 | D3: =CONCATENATE(B3,"-",C3) -> CA-1 | E3: Adin Ranger Stn | F3: Adin Ranger Stn | G3: 40029 | H3: 246 | K3: =IF(L3<>"",$J$1,"") -> 0 | L3: 1 | M3: =IF(ISERROR(VLOOKUP(CONCATENATE(K3,"-",L3),DegreeDays,1,FALSE)),"",VLOOKUP(CONCATENATE(K3,"-",L3),DegreeDays,1,FALSE)) ->  | N3: =IF(M3<>"",VLOOKUP(M3,DegreeDays,3,FALSE),"") ->  | O3: =N3 ->  | P3: =IF(M3<>"",VLOOKUP(M3,DegreeDays,2,FALSE),"") ->  | Q3: =IF(M3<>"",VLOOKUP(M3,DegreeDays,12,FALSE),"") ->  | S3: Idaho | T3: =COUNTIF($B$3:$B$461,"ID") -> 84
B4: CA | C4: 2 | D4: =CONCATENATE(B4,"-",C4) -> CA-2 | E4: Adlerpoint | F4: Adlerpoint | G4: 40088 | H4: 630 | K4: =IF(L4<>"",$J$1,"") -> 0 | L4: 2 | O4: =N4 ->  | S4: Utah | T4: =COUNTIF($B$3:$B$461,"UT") -> 246
B5: CA | C5: 3 | D5: CA-3 | E5: Alturas Ranger Station | F5: Alturas Ranger Station | G5: 40161 | H5: 175 | K5: 0 | L5: 3 | S5: Washington | T5: =COUNTIF($B$3:$B$461,"WA") -> 65
B6: CA | C6: 4 | D6: CA-4 | E6: Big Bar Ranger Station | F6: Big Bar Ranger Station | G6: 40738 | H6: 932 | K6: 0 | L6: 4 | S6: Wyoming | T6: =COUNTIF($B$3:$B$590,"WY") -> 129
B7: CA | C7: 5 | D7: CA-5 | E7: Burney | F7: Burney | G7: 41214 | H7: 181 | K7: 0 | L7: 5
B8: CA | C8: 6 | D8: CA-6 | E8: Callahan | F8: Callahan | G8: 41316 | H8: 323 | K8: 0 | L8: 6
B9: CA | C9: 7 | D9: CA-7 | E9: Canby Ranger Station | F9: Canby Ranger Station | G9: 41476 | H9: 212 | K9: 0 | L9: 7
B10: CA | C10: 8 | D10: CA-8 | E10: Canyon Dam | F10: Canyon Dam | G10: 41497 | H10: 177 | K10: 0 | L10: 8
B11: CA | C11: 9 | D11: CA-9 | E11: Cecilville 1 SE | F11: Cecilville 1 SE | G11: 41606 | H11: 485 | K11: 0 | L11: 9
B12: CA | C12: 10 | D12: CA-10 | E12: Cedarville | F12: Cedarville | G12: 41614 | H12: 484 | K12: 0 | L12: 10
B13: CA | C13: 11 | D13: CA-11 | E13: Chester | F13: Chester | G13: 41700 | H13: 123 | K13: 0 | L13: 11
B14: CA | C14: 12 | D14: CA-12 | E14: China Flat | F14: China Flat | G14: 41731 | H14: 621 | K14: 0 | L14: 12
B15: CA | C15: 13 | D15: CA-13 | E15: Crescent City 1 N | F15: Crescent City 1 N | G15: 42147 | H15: 8 | K15: 0 | L15: 13
B16: CA | C16: 14 | D16: CA-14 | E16: Dunsmuir Treatment Plant | F16: Dunsmuir Treatment Plant | G16: 42574 | H16: 590 | K16: 0 | L16: 14
B17: CA | C17: 15 | D17: CA-15 | E17: Elk Valley | F17: Elk Valley | G17: 42749 | H17: 201 | K17: 0 | L17: 15
B18: CA | C18: 16 | D18: CA-16 | E18: Eureka WSO City | F18: Eureka WSO City | G18: 42910 | H18: 2 | K18: 0 | L18: 16
B19: CA | C19: 17 | D19: CA-17 | E19: Fall River Mills Intake | F19: Fall River Mills Intake | G19: 42964 | H19: 276 | K19: 0 | L19: 17
B20: CA | C20: 18 | D20: CA-18 | E20: Ferndale 2 NW | F20: Ferndale 2 NW | G20: 43030 | H20: 3 | K20: 0 | L20: 18
B21: CA | C21: 19 | D21: CA-19 | E21: Fleming Fish & Game | F21: Fleming Fish & Game | G21: 43087 | H21: 337 | K21: 0 | L21: 19
B22: CA | C22: 20 | D22: CA-20 | E22: Forest Glen | F22: Forest Glen | G22: 43130 | H22: 379 | K22: 0 | L22: 20
B23: CA | C23: 21 | D23: CA-21 | E23: Fort Bidwell | F23: Fort Bidwell | G23: 43157 | H23: 243 | K23: 0 | L23: 21
B24: CA | C24: 22 | D24: CA-22 | E24: Fort Jones Ranger Stn | F24: Fort Jones Ranger Stn | G24: 43182 | H24: 374 | K24: 0 | L24: 22
B25: CA | C25: 23 | D25: CA-23 | E25: Grizzly Creek State Park | F25: Grizzly Creek State Park | G25: 43647 | H25: 37 | K25: 0 | L25: 23
B26: CA | C26: 24 | D26: CA-24 | E26: Happy Camp Ranger Stn | F26: Happy Camp Ranger Stn | G26: 43761 | H26: 735 | K26: 0 | L26: 24
B27: CA | C27: 25 | D27: CA-25 | E27: Hat Creek PH 1 | F27: Hat Creek PH 1 | G27: 43824 | H27: 333 | K27: 0 | L27: 25
B28: CA | C28: 26 | D28: CA-26 | E28: Hayfork Ranger Station | F28: Hayfork Ranger Station | G28: 43859 | H28: 391 | K28: 0 | L28: 26
B29: CA | C29: 27 | D29: CA-27 | E29: Hilts Slash Disposal | F29: Hilts Slash Disposal | G29: 43987 | H29: 394 | K29: 0 | L29: 27
B30: CA | C30: 28 | D30: CA-28 | E30: Hoopa | F30: Hoopa | G30: 44082 | H30: 683 | K30: 0 | L30: 28
B31: CA | C31: 29 | D31: CA-29 | E31: Jess Valley | F31: Jess Valley | G31: 44374 | H31: 132 | K31: 0 | L31: 29
B32: CA | C32: 30 | D32: CA-30 | E32: Klamath | F32: Klamath | G32: 44577 | H32: 9 | K32: 0 | L32: 30
B33: CA | C33: 31 | D33: CA-31 | E33: Lake City | F33: Lake City | G33: 44675 | H33: 404 | K33: 0 | L33: 31
B34: CA | C34: 32 | D34: CA-32 | E34: Lakeshore 2 | F34: Lakeshore 2 | G34: 44709 | H34: 1179 | K34: 0 | L34: 32
B35: CA | C35: 33 | D35: CA-33 | E35: Lava Beds Nat Monument | F35: Lava Beds Nat Monument | G35: 44838 | H35: 338 | K35: 0 | L35: 33
B36: CA | C36: 34 | D36: CA-34 | E36: Manzanita Lake | F36: Manzanita Lake | G36: 45311 | H36: 75 | K36: 0 | L36: 34
B37: CA | C37: 35 | D37: CA-35 | E37: Mc Cloud | F37: Mc Cloud | G37: 45449 | H37: 303 | K37: 0 | L37: 35
B38: CA | C38: 36 | D38: CA-36 | E38: Mineral | F38: Mineral | G38: 45679 | H38: 64 | K38: 0 | L38: 36
B39: CA | C39: 37 | D39: CA-37 | E39: Mount Hebron Rng Stn | F39: Mount Hebron Rng Stn | G39: 45941 | H39: 88 | K39: 0 | L39: 37
B40: CA | C40: 38 | D40: CA-38 | E40: Mount Shasta | F40: Mount Shasta | G40: 45983 | H40: 273 | K40: 0 | L40: 38
B41: CA | C41: 39 | D41: CA-39 | E41: Orick Prairie Creek Pk | F41: Orick Prairie Creek Pk | G41: 46498 | H41: 9 | K41: 0 | L41: 39
B42: CA | C42: 40 | D42: CA-40 | E42: Orleans | F42: Orleans | G42: 46508 | H42: 793 | K42: 0 | L42: 40
B43: CA | C43: 41 | D43: CA-41 | E43: Platina | F43: Platina | G43: 46975 | H43: 813 | K43: 0 | L43: 41
B44: CA | C44: 42 | D44: CA-42 | E44: Red Bluff FSS | F44: Red Bluff FSS | G44: 47292 | H44: 1850 | K44: 0 | L44: 42
B45: CA | C45: 43 | D45: CA-43 | E45: Redding | F45: Redding | G45: 47296 | H45: 2076 | K45: 0 | L45: 43
B46: CA | C46: 44 | D46: CA-44 | E46: Redding Fire Stn 4 | F46: Redding Fire Stn 4 | G46: 47300 | H46: 1552 | K46: 0 | L46: 44
B47: CA | C47: 45 | D47: CA-45 | E47: Redding WSO | F47: Redding WSO | G47: 47304 | H47: 1850 | K47: 0 | L47: 45
B48: CA | C48: 46 | D48: CA-46 | E48: Richardson Grove St Pk | F48: Richardson Grove St Pk | G48: 47404 | H48: 484 | K48: 0 | L48: 46
B49: CA | C49: 47 | D49: CA-47 | E49: Salyer Ranger Stn | F49: Salyer Ranger Stn | G49: 47698 | H49: 778 | K49: 0 | L49: 47
B50: CA | C50: 48 | D50: CA-48 | E50: Sawyers Bar Rngr Stn | F50: Sawyers Bar Rngr Stn | G50: 48025 | H50: 635 | K50: 0 | L50: 48
B51: CA | C51: 49 | D51: CA-49 | E51: Scotia | F51: Scotia | G51: 48045 | H51: 34 | K51: 0 | L51: 49
B52: CA | C52: 50 | D52: CA-50 | E52: Shasta Dam | F52: Shasta Dam | G52: 48135 | H52: 1832 | K52: 0 | L52: 50
B53: CA | C53: 51 | D53: CA-51 | E53: Shelter Cove | F53: Shelter Cove | G53: 48162 | H53: 45 | K53: 0 | L53: 51
B54: CA | C54: 52 | D54: CA-52 | E54: Shelter Cove Aviation | F54: Shelter Cove Aviation | G54: 48463 | H54: 122 | K54: 0 | L54: 52
B55: CA | C55: 53 | D55: CA-53 | E55: Susanville Airport | F55: Susanville Airport | G55: 48702 | H55: 389 | K55: 0 | L55: 53
B56: CA | C56: 54 | D56: CA-54 | E56: Termo 1 E | F56: Termo 1 E | G56: 48873 | H56: 105 | K56: 0 | L56: 54
B57: CA | C57: 55 | D57: CA-55 | E57: Trinity Dam Vista Point | F57: Trinity Dam Vista Point | G57: 49024 | H57: 633 | K57: 0 | L57: 55
B58: CA | C58: 56 | D58: CA-56 | E58: Trinity River Hatchery | F58: Trinity River Hatchery | G58: 49026 | H58: 659 | K58: 0 | L58: 56
B59: CA | C59: 57 | D59: CA-57 | E59: Tulelake | F59: Tulelake | G59: 49053 | H59: 139 | K59: 0 | L59: 57
B60: CA | C60: 58 | D60: CA-58 | E60: Turntable Creek | F60: Turntable Creek | G60: 49083 | H60: 1627 | K60: 0 | L60: 58
B61: CA | C61: 59 | D61: CA-59 | E61: Volta Power House | F61: Volta Power House | G61: 49390 | H61: 1272 | K61: 0 | L61: 59
B62: CA | C62: 60 | D62: CA-60 | E62: Weaverville Ranger Stn | F62: Weaverville Ranger Stn | G62: 49490 | H62: 592 | K62: 0 | L62: 60
B63: CA | C63: 61 | D63: CA-61 | E63: Weed Fire Dept | F63: Weed Fire Dept | G63: 49499 | H63: 244 | K63: 0 | L63: 61
B64: CA | C64: 62 | D64: CA-62 | E64: Whiskeytown Reservoir | F64: Whiskeytown Reservoir | G64: 49621 | H64: 1599 | K64: 0 | L64: 62
B65: CA | C65: 63 | D65: CA-63 | E65: Willow Creek 1 NW | F65: Willow Creek 1 NW | G65: 49694 | H65: 826 | K65: 0 | L65: 63
B66: CA | C66: 64 | D66: CA-64 | E66: Yreka | F66: Yreka | G66: 49866 | H66: 575 | K66: 0 | L66: 64
B67: ID | C67: 1 | D67: ID-1 | E67: Aberdeen Experiment Stn | F67: Aberdeen Experiment Stn | G67: 100010 | H67: 285 | K67: 0 | L67: 65 | M67: =IF(ISERROR(VLOOKUP(CONCATENATE(K67,"-",L67),DegreeDays,1,FALSE)),"",VLOOKUP(CONCATENATE(K67,"-",L67),DegreeDays,1,FALSE)) ->  | N67: =IF(M67<>"",VLOOKUP(M67,DegreeDays,3,FALSE),"") ->  | P67: =IF(M67<>"",VLOOKUP(M67,DegreeDays,2,FALSE),"") ->  | Q67: =IF(M67<>"",VLOOKUP(M67,DegreeDays,12,FALSE),"") -> 
B68: ID | C68: 2 | D68: =CONCATENATE(B68,"-",C68) -> ID-2 | E68: American Falls 1 SW | F68: American Falls 1 SW | G68: 100227 | H68: 449 | K68: =IF(L68<>"",$J$1,"") -> 0 | L68: 66 | O68: =N68 -> 
B69: ID | C69: 3 | D69: ID-3 | E69: Arbon 2 NW | F69: Arbon 2 NW | G69: 100347 | H69: 262 | K69: 0 | L69: 67
B70: ID | C70: 4 | D70: ID-4 | E70: Arco 3 SW | F70: Arco 3 SW | G70: 100375 | H70: 218 | K70: 0 | L70: 68
B71: ID | C71: 5 | D71: ID-5 | E71: Ashton | F71: Ashton | G71: 100470 | H71: 94 | K71: 0 | L71: 69
B72: ID | C72: 6 | D72: ID-6 | E72: Bern | F72: Bern | G72: 100803 | H72: 112 | K72: 0 | L72: 70
B73: ID | C73: 7 | D73: ID-7 | E73: Blackfoot 2 SSW | F73: Blackfoot 2 SSW | G73: 100915 | H73: 366 | K73: 0 | L73: 71
B74: ID | C74: 8 | D74: ID-8 | E74: Burley | F74: Burley | G74: 101288 | H74: 690 | K74: 0 | L74: 72
B75: ID | C75: 9 | D75: ID-9 | E75: Burley FAA Airport | F75: Burley FAA Airport | G75: 101303 | H75: 442 | K75: 0 | L75: 73
B76: ID | C76: 10 | D76: ID-10 | E76: Burley Factory | F76: Burley Factory | G76: 101298 | H76: 398 | K76: 0 | L76: 74
B77: ID | C77: 11 | D77: ID-11 | E77: Challis | F77: Challis | G77: 101663 | H77: 273 | K77: 0 | L77: 75
B78: ID | C78: 12 | D78: ID-12 | E78: Chilly Barton Flat | F78: Chilly Barton Flat | G78: 101671 | H78: 52 | K78: 0 | L78: 76
B79: ID | C79: 13 | D79: ID-13 | E79: Cobalt | F79: Cobalt | G79: 101932 | H79: 61 | K79: 0 | L79: 77
B80: ID | C80: 14 | D80: ID-14 | E80: Cobalt Blackbird Mine | F80: Cobalt Blackbird Mine | G80: 101938 | H80: 10 | K80: 0 | L80: 78
B81: ID | C81: 15 | D81: ID-15 | E81: Conda | F81: Conda | G81: 102071 | H81: 89 | K81: 0 | L81: 79
B82: ID | C82: 16 | D82: ID-16 | E82: Craters of the Moon NM | F82: Craters of the Moon NM | G82: 102260 | H82: 295 | K82: 0 | L82: 80
B83: ID | C83: 17 | D83: ID-17 | E83: Driggs | F83: Driggs | G83: 102676 | H83: 74 | K83: 0 | L83: 81
B84: ID | C84: 18 | D84: ID-18 | E84: Dubois Experiment Stn | F84: Dubois Experiment Stn | G84: 102707 | H84: 304 | K84: 0 | L84: 82
B85: ID | C85: 19 | D85: ID-19 | E85: Dubois FAA Airport | F85: Dubois FAA Airport | G85: 102717 | H85: 325 | K85: 0 | L85: 83
B86: ID | C86: 20 | D86: ID-20 | E86: Fort Hall Indian Agency | F86: Fort Hall Indian Agency | G86: 103297 | H86: 336 | K86: 0 | L86: 84
B87: ID | C87: 21 | D87: ID-21 | E87: Galena | F87: Galena | G87: 103417 | H87: 1 | K87: 0 | L87: 85
B88: ID | C88: 22 | D88: ID-22 | E88: Gibbonsville | F88: Gibbonsville | G88: 103554 | H88: 129 | K88: 0 | L88: 86
B89: ID | C89: 23 | D89: ID-23 | E89: Grace | F89: Grace | G89: 103732 | H89: 165 | K89: 0 | L89: 87
B90: ID | C90: 24 | D90: ID-24 | E90: Gray | F90: Gray | G90: 103825 | H90: 73 | K90: 0 | L90: 88
B91: ID | C91: 25 | D91: ID-25 | E91: Grouse | F91: Grouse | G91: 103882 | H91: 15 | K91: 0 | L91: 89
B92: ID | C92: 26 | D92: ID-26 | E92: Hailey 3 NNW | F92: Hailey 3 NNW | G92: 103942 | H92: 214 | K92: 0 | L92: 90
B93: ID | C93: 27 | D93: ID-27 | E93: Hazelton | F93: Hazelton | G93: 104140 | H93: 510 | K93: 0 | L93: 91
B94: ID | C94: 28 | D94: ID-28 | E94: Henry | F94: Henry | G94: 104230 | H94: 41 | K94: 0 | L94: 92
B95: ID | C95: 29 | D95: ID-29 | E95: Hollister | F95: Hollister | G95: 104295 | H95: 435 | K95: 0 | L95: 93
B96: ID | C96: 30 | D96: ID-30 | E96: Howe | F96: Howe | G96: 104384 | H96: 289 | K96: 0 | L96: 94
B97: ID | C97: 31 | D97: ID-31 | E97: Idaho Falls 16 SE | F97: Idaho Falls 16 SE | G97: 104456 | H97: 79 | K97: 0 | L97: 95
B98: ID | C98: 32 | D98: ID-32 | E98: Idaho Falls 2 ESE | F98: Idaho Falls 2 ESE | G98: 104455 | H98: 354 | K98: 0 | L98: 96
B99: ID | C99: 33 | D99: ID-33 | E99: Idaho Falls 43 NW WB | F99: Idaho Falls 43 NW WB | G99: 104459 | H99: 271 | K99: 0 | L99: 97
B100: ID | C100: 34 | D100: ID-34 | E100: Idaho Falls 46 W | F100: Idaho Falls 46 W | G100: 104460 | H100: 273 | K100: 0 | L100: 98
B101: ID | C101: 35 | D101: ID-35 | E101: Idaho Falls FAA Airport | F101: Idaho Falls FAA Airport | G101: 104457 | H101: 269 | K101: 0 | L101: 99
B102: ID | C102: 36 | D102: ID-36 | E102: Irwin 2 SE | F102: Irwin 2 SE | G102: 104588 | H102: 147 | K102: 0 | L102: 100
B103: ID | C103: 37 | D103: ID-37 | E103: Island Park | F103: Island Park | G103: 104598 | H103: 25 | K103: 0 | L103: 101
B104: ID | C104: 38 | D104: ID-38 | E104: Jerome | F104: Jerome | G104: 104670 | H104: 665 | K104: 0 | L104: 102
B105: ID | C105: 39 | D105: ID-39 | E105: Ketchum Ranger Stn | F105: Ketchum Ranger Stn | G105: 104845 | H105: 44 | K105: 0 | L105: 103
B106: ID | C106: 40 | D106: ID-40 | E106: Kilgore | F106: Kilgore | G106: 104908 | H106: 5 | K106: 0 | L106: 104
B107: ID | C107: 41 | D107: ID-41 | E107: Leadore 2 | F107: Leadore 2 | G107: 105177 | H107: 53 | K107: 0 | L107: 105
B108: ID | C108: 42 | D108: ID-42 | E108: Lifton Pumping Stn | F108: Lifton Pumping Stn | G108: 105275 | H108: 138 | K108: 0 | L108: 106
B109: ID | C109: 43 | D109: ID-43 | E109: Mackay 4 NW | F109: Mackay 4 NW | G109: 105466 | H109: 142 | K109: 0 | L109: 107
B110: ID | C110: 44 | D110: ID-44 | E110: Mackay Ranger Stn | F110: Mackay Ranger Stn | G110: 105462 | H110: 164 | K110: 0 | L110: 108
B111: ID | C111: 45 | D111: ID-45 | E111: Magic Lake Resort | F111: Magic Lake Resort | G111: 105510 | H111: 450 | K111: 0 | L111: 109
B112: ID | C112: 46 | D112: ID-46 | E112: Malad | F112: Malad | G112: 105544 | H112: 400 | K112: 0 | L112: 110
B113: ID | C113: 47 | D113: ID-47 | E113: Malad City | F113: Malad City | G113: 105559 | H113: 334 | K113: 0 | L113: 111
B114: ID | C114: 48 | D114: ID-48 | E114: Malta 2 E | F114: Malta 2 E | G114: 105563 | H114: 351 | K114: 0 | L114: 112
B115: ID | C115: 49 | D115: ID-49 | E115: Malta Aviation | F115: Malta Aviation | G115: 105567 | H115: 382 | K115: 0 | L115: 113
B116: ID | C116: 50 | D116: ID-50 | E116: Massacre Rocks ST PK | F116: Massacre Rocks ST PK | G116: 105678 | H116: 592 | K116: 0 | L116: 114
B117: ID | C117: 51 | D117: ID-51 | E117: May | F117: May | G117: 105685 | H117: 146 | K117: 0 | L117: 115
B118: ID | C118: 52 | D118: ID-52 | E118: Mccammon | F118: Mccammon | G118: 105716 | H118: 315 | K118: 0 | L118: 116
B119: ID | C119: 53 | D119: ID-53 | E119: Minidoka 10 WNW | F119: Minidoka 10 WNW | G119: 105972 | H119: 264 | K119: 0 | L119: 117
B120: ID | C120: 54 | D120: ID-54 | E120: Minidoka Dam | F120: Minidoka Dam | G120: 105980 | H120: 531 | K120: 0 | L120: 118
B121: ID | C121: 55 | D121: ID-55 | E121: Montpelier Ranger Stn | F121: Montpelier Ranger Stn | G121: 106053 | H121: 151 | K121: 0 | L121: 119
B122: ID | C122: 56 | D122: ID-56 | E122: Oakley | F122: Oakley | G122: 106542 | H122: 443 | K122: 0 | L122: 120
B123: ID | C123: 57 | D123: ID-57 | E123: Palisades | F123: Palisades | G123: 106764 | H123: 212 | K123: 0 | L123: 121
B124: ID | C124: 58 | D124: ID-58 | E124: Paul 1 ENE | F124: Paul 1 ENE | G124: 106877 | H124: 423 | K124: 0 | L124: 122
B125: ID | C125: 59 | D125: ID-59 | E125: Picabo | F125: Picabo | G125: 107040 | H125: 214 | K125: 0 | L125: 123
B126: ID | C126: 60 | D126: ID-60 | E126: Pocatello 2 | F126: Pocatello 2 | G126: 107208 | H126: 597 | K126: 0 | L126: 124
B127: ID | C127: 61 | D127: ID-61 | E127: Pocatello WSO Airport | F127: Pocatello WSO Airport | G127: 107211 | H127: 429 | K127: 0 | L127: 125
B128: ID | C128: 62 | D128: ID-62 | E128: Preston | F128: Preston | G128: 107346 | H128: 353 | K128: 0 | L128: 126
B129: ID | C129: 63 | D129: ID-63 | E129: Preston Sugar Factory 2 | F129: Preston Sugar Factory 2 | G129: 104353 | H129: 356 | K129: 0 | L129: 127
B130: ID | C130: 64 | D130: ID-64 | E130: Rexburg Ricks College | F130: Rexburg Ricks College | G130: 107644 | H130: 205 | K130: 0 | L130: 128
B131: ID | C131: 65 | D131: ID-65 | E131: Richfield | F131: Richfield | G131: 107673 | H131: 381 | K131: 0 | L131: 129 | M131: =IF(ISERROR(VLOOKUP(CONCATENATE(K131,"-",L131),DegreeDays,1,FALSE)),"",VLOOKUP(CONCATENATE(K131,"-",L131),DegreeDays,1,FALSE)) ->  | N131: =IF(M131<>"",VLOOKUP(M131,DegreeDays,3,FALSE),"") ->  | P131: =IF(M131<>"",VLOOKUP(M131,DegreeDays,2,FALSE),"") ->  | Q131: =IF(M131<>"",VLOOKUP(M131,DegreeDays,12,FALSE),"") -> 
B132: ID | C132: 66 | D132: =CONCATENATE(B132,"-",C132) -> ID-66 | E132: Rupert 3 WSW | F132: Rupert 3 WSW | G132: 107968 | H132: 452 | K132: =IF(L132<>"",$J$1,"") -> 0 | L132: 130 | O132: =N132 -> 
B133: ID | C133: 67 | D133: ID-67 | E133: Salmon Airport | F133: Salmon Airport | G133: 108076 | H133: 228 | K133: =IF(L133<>"",$J$1,"") -> 0 | L133: 131
B134: ID | C134: 68 | D134: ID-68 | E134: Salmon KSRA | F134: Salmon KSRA | G134: 108080 | H134: 352 | K134: 0 | L134: 132
B135: ID | C135: 69 | D135: ID-69 | E135: Shoshone 1 WNW | F135: Shoshone 1 WNW | G135: 108380 | H135: 675 | K135: 0 | L135: 133
B136: ID | C136: 70 | D136: ID-70 | E136: Shoup | F136: Shoup | G136: 108395 | H136: 433 | K136: 0 | L136: 134
B137: ID | C137: 71 | D137: ID-71 | E137: Soda Springs Airport | F137: Soda Springs Airport | G137: 108535 | H137: 116 | K137: 0 | L137: 135
B138: ID | C138: 72 | D138: ID-72 | E138: Spencer Ranger Stn | F138: Spencer Ranger Stn | G138: 108604 | H138: 45 | K138: 0 | L138: 136
B139: ID | C139: 73 | D139: ID-73 | E139: Springfield | F139: Springfield | G139: 108626 | H139: 269 | K139: 0 | L139: 137
B140: ID | C140: 74 | D140: ID-74 | E140: St Anthony 1 WNW | F140: St Anthony 1 WNW | G140: 108022 | H140: 120 | K140: 0 | L140: 138
B141: ID | C141: 75 | D141: ID-75 | E141: Strevell | F141: Strevell | G141: 108786 | H141: 370 | K141: 0 | L141: 139
B142: ID | C142: 76 | D142: ID-76 | E142: Sugar | F142: Sugar | G142: 108818 | H142: 126 | K142: 0 | L142: 140
B143: ID | C143: 77 | D143: ID-77 | E143: Sun Valley | F143: Sun Valley | G143: 108906 | H143: 26 | K143: 0 | L143: 141
B144: ID | C144: 78 | D144: ID-78 | E144: Swan Valley 2 E | F144: Swan Valley 2 E | G144: 108937 | H144: 116 | K144: 0 | L144: 142
B145: ID | C145: 79 | D145: ID-79 | E145: Tetonia Experiment Stn | F145: Tetonia Experiment Stn | G145: 109065 | H145: 55 | K145: 0 | L145: 143
B146: ID | C146: 80 | D146: ID-80 | E146: Twin Falls 2 NNE | F146: Twin Falls 2 NNE | G146: 109294 | H146: 499 | K146: 0 | L146: 144
B147: ID | C147: 81 | D147: ID-81 | E147: Twin Falls 3 SE | F147: Twin Falls 3 SE | G147: 109299 | H147: 513 | K147: 0 | L147: 145
B148: ID | C148: 82 | D148: ID-82 | E148: Twin Falls Kmvt | F148: Twin Falls Kmvt | G148: 109293 | H148: 604 | K148: 0 | L148: 146
B149: ID | C149: 83 | D149: ID-83 | E149: Twin Falls WSO | F149: Twin Falls WSO | G149: 109303 | H149: 372 | K149: 0 | L149: 147
B150: ID | C150: 84 | D150: ID-84 | E150: Wayan 1 N | F150: Wayan 1 N | G150: 109601 | H150: 42 | K150: 0 | L150: 148
B151: UT | C151: 1 | D151: UT-1 | E151: Allen's Ranch | F151: Allen's Ranch | G151: 420050 | H151: 389 | K151: 0 | L151: 149
B152: UT | C152: 2 | D152: UT-2 | E152: Alpine | F152: Alpine | G152: 420061 | H152: 637 | K152: 0 | L152: 150
B153: UT | C153: 3 | D153: UT-3 | E153: Alta | F153: Alta | G153: 420072 | H153: 17 | K153: 0 | L153: 151
B154: UT | C154: 4 | D154: UT-4 | E154: Altamont | F154: Altamont | G154: 420074 | H154: 220 | K154: 0 | L154: 152
B155: UT | C155: 5 | D155: UT-5 | E155: Alton | F155: Alton | G155: 420086 | H155: 133 | K155: 0 | L155: 153
B156: UT | C156: 6 | D156: UT-6 | E156: Aneth Plant | F156: Aneth Plant | G156: 420157 | H156: 1391 | K156: 0 | L156: 154
B157: UT | C157: 7 | D157: UT-7 | E157: Angle | F157: Angle | G157: 420168 | H157: 127 | K157: 0 | L157: 155
B158: UT | C158: 8 | D158: UT-8 | E158: Antelope Island | F158: Antelope Island | G158: 420194 | H158: 1063 | K158: 0 | L158: 156
B159: UT | C159: 9 | D159: UT-9 | E159: Antimony | F159: Antimony | G159: 420201 | H159: 136 | K159: 0 | L159: 157
B160: UT | C160: 10 | D160: UT-10 | E160: Arches Natl Park HQ | F160: Arches Natl Park HQ | G160: 420336 | H160: 1782 | K160: 0 | L160: 158
B161: UT | C161: 11 | D161: UT-11 | E161: ASR Research Lab | F161: ASR Research Lab | G161: 420302 | H161: 650 | K161: 0 | L161: 159
B162: UT | C162: 12 | D162: UT-12 | E162: ASTR Research Lab | F162: ASTR Research Lab | G162: 427608 | H162: 919 | K162: 0 | L162: 160
B163: UT | C163: 13 | D163: UT-13 | E163: Bauer | F163: Bauer | G163: 420478 | H163: 751 | K163: 0 | L163: 161
B164: UT | C164: 14 | D164: UT-14 | E164: Bear Lake State Park | F164: Bear Lake State Park | G164: 420487 | H164: 235 | K164: 0 | L164: 162
B165: UT | C165: 15 | D165: UT-15 | E165: Bear River Bay | F165: Bear River Bay | G165: 420490 | H165: 1041 | K165: 0 | L165: 163
B166: UT | C166: 16 | D166: UT-16 | E166: Bear River Refuge | F166: Bear River Refuge | G166: 420506 | H166: 824 | K166: 0 | L166: 164
B167: UT | C167: 17 | D167: UT-17 | E167: Beaver | F167: Beaver | G167: 420519 | H167: 290 | K167: 0 | L167: 165
B168: UT | C168: 18 | D168: UT-18 | E168: Beaver Canyon PH | F168: Beaver Canyon PH | G168: 420527 | H168: 200 | K168: 0 | L168: 166
B169: UT | C169: 19 | D169: UT-19 | E169: Big Water | F169: Big Water | G169: 420688 | H169: 1787 | K169: 0 | L169: 167
B170: UT | C170: 20 | D170: UT-20 | E170: Bingham Canyon | F170: Bingham Canyon | G170: 420699 | H170: 532 | K170: 0 | L170: 168
B171: UT | C171: 21 | D171: UT-21 | E171: Bingham Canyon 2 NE | F171: Bingham Canyon 2 NE | G171: 420700 | H171: 775 | K171: 0 | L171: 169
B172: UT | C172: 22 | D172: UT-22 | E172: Birdseye | F172: Birdseye | G172: 420716 | H172: 110 | K172: 0 | L172: 170
B173: UT | C173: 23 | D173: UT-23 | E173: Black Rock | F173: Black Rock | G173: 420730 | H173: 588 | K173: 0 | L173: 171
B174: UT | C174: 24 | D174: UT-24 | E174: Blanding | F174: Blanding | G174: 420738 | H174: 632 | K174: 0 | L174: 172
B175: UT | C175: 25 | D175: UT-25 | E175: Blowhard Mtn Radar | F175: Blowhard Mtn Radar | G175: 420757 | H175: 4 | K175: 0 | L175: 173
B176: UT | C176: 26 | D176: UT-26 | E176: Bluff | F176: Bluff | G176: 420788 | H176: 1231 | K176: 0 | L176: 174
B177: UT | C177: 27 | D177: UT-27 | E177: Bonanza | F177: Bonanza | G177: 420802 | H177: 746 | K177: 0 | L177: 175
B178: UT | C178: 28 | D178: UT-28 | E178: Bonanza Pumping Stn | F178: Bonanza Pumping Stn | G178: 420810 | H178: 818 | K178: 0 | L178: 176
B179: UT | C179: 29 | D179: UT-29 | E179: Boulder | F179: Boulder | G179: 420849 | H179: 482 | K179: 0 | L179: 177
B180: UT | C180: 30 | D180: UT-30 | E180: Bountiful-Val Verda | F180: Bountiful-Val Verda | G180: 420820 | H180: 966 | K180: 0 | L180: 178
B181: UT | C181: 31 | D181: UT-31 | E181: Brian Head | F181: Brian Head | G181: 420900 | H181: 0 | K181: 0 | L181: 179
B182: UT | C182: 32 | D182: UT-32 | E182: Brigham City | F182: Brigham City | G182: 420924 | H182: 968 | K182: 0 | L182: 180
B183: UT | C183: 33 | D183: UT-33 | E183: Brigham City Waste Plt | F183: Brigham City Waste Plt | G183: 420928 | H183: 675 | K183: 0 | L183: 181
B184: UT | C184: 34 | D184: UT-34 | E184: Bryce Canyon FAA Airport | F184: Bryce Canyon FAA Airport | G184: 421002 | H184: 17 | K184: 0 | L184: 182
B185: UT | C185: 35 | D185: UT-35 | E185: Bryce Canyon Natl Pk HQ | F185: Bryce Canyon Natl Pk HQ | G185: 421008 | H185: 42 | K185: 0 | L185: 183
B186: UT | C186: 36 | D186: UT-36 | E186: Bryce Canyon Nat'l Prk | F186: Bryce Canyon Nat'l Prk | G186: 421006 | H186: 9 | K186: 0 | L186: 184
B187: UT | C187: 37 | D187: UT-37 | E187: Bryce Canyon Nat'l Prk | F187: Bryce Canyon Nat'l Prk | G187: 421007 | H187: 34 | K187: 0 | L187: 185
B188: UT | C188: 38 | D188: UT-38 | E188: Bullfrog Basin | F188: Bullfrog Basin | G188: 421020 | H188: 2030 | K188: 0 | L188: 186
B189: UT | C189: 39 | D189: UT-39 | E189: Callao | F189: Callao | G189: 421144 | H189: 692 | K189: 0 | L189: 187
B190: UT | C190: 40 | D190: UT-40 | E190: Callister Ranch | F190: Callister Ranch | G190: 421149 | H190: 836 | K190: 0 | L190: 188
B191: UT | C191: 41 | D191: UT-41 | E191: Canyonlands The Neck | F191: Canyonlands The Neck | G191: 421163 | H191: 1158 | K191: 0 | L191: 189
B192: UT | C192: 42 | D192: UT-42 | E192: Canyonlands The Needle | F192: Canyonlands The Needle | G192: 421168 | H192: 1189 | K192: 0 | L192: 190
B193: UT | C193: 43 | D193: UT-43 | E193: Capitol Reef Natl Park | F193: Capitol Reef Natl Park | G193: 421171 | H193: 1144 | K193: 0 | L193: 191
B194: UT | C194: 44 | D194: UT-44 | E194: Castle Dale | F194: Castle Dale | G194: 421214 | H194: 430 | K194: 0 | L194: 192
B195: UT | C195: 45 | D195: UT-45 | E195: Castle Valley Inst | F195: Castle Valley Inst | G195: 421241 | H195: 1262 | K195: 0 | L195: 193 | M195: =IF(ISERROR(VLOOKUP(CONCATENATE(K195,"-",L195),DegreeDays,1,FALSE)),"",VLOOKUP(CONCATENATE(K195,"-",L195),DegreeDays,1,FALSE)) ->  | N195: =IF(M195<>"",VLOOKUP(M195,DegreeDays,3,FALSE),"") ->  | P195: =IF(M195<>"",VLOOKUP(M195,DegreeDays,2,FALSE),"") ->  | Q195: =IF(M195<>"",VLOOKUP(M195,DegreeDays,12,FALSE),"") -> 
B196: UT | C196: 46 | D196: =CONCATENATE(B196,"-",C196) -> UT-46 | E196: Castleton | F196: Castleton | G196: 421230 | H196: 823 | K196: =IF(L196<>"",$J$1,"") -> 0 | L196: 194 | O196: =N196 -> 
B197: UT | C197: 47 | D197: UT-47 | E197: Cedar City 5 E | F197: Cedar City 5 E | G197: 421260 | H197: 426 | K197: 0 | L197: 195
B198: UT | C198: 48 | D198: UT-48 | E198: Cedar City FAA Airport | F198: Cedar City FAA Airport | G198: 421267 | H198: 671 | K198: 0 | L198: 196
B199: UT | C199: 49 | D199: UT-49 | E199: Cedar City Powerhouse | F199: Cedar City Powerhouse | G199: 421272 | H199: 664 | K199: 0 | L199: 197
B200: UT | C200: 50 | D200: UT-50 | E200: Cedar City Steam Plant | F200: Cedar City Steam Plant | G200: 421273 | H200: 717 | K200: 0 | L200: 198
... 390 more rows

Sheet Degree Days (hidden)
C1: Degree Days | F1: Heating Base° | M1: Cooling Base°
A2: State | B2: Ref | C2: State-Ref | D2: COOP ID | E2: Station Name | F2: 65 | G2: 60 | H2: 57 | I2: 55 | J2: 50 | K2: 45 | L2: 40 | M2: 70 | N2: 65 | O2: 60 | P2: 57 | Q2: 55 | R2: 50 | S2: 45
A3: CA | B3: 1 | C3: =CONCATENATE(A3,"-",B3) -> CA-1 | D3: 40029 | E3: ADIN RS | F3: 5988 | G3: 4577 | H3: 3821 | I3: 3356 | J3: 2340 | K3: 1518 | L3: 901 | M3: 85 | N3: 300 | O3: 715 | P3: 1055 | Q3: 1320 | R3: 2103 | S3: 3048
A4: CA | B4: =IF(A3=A4,B3+1,1) -> 2 | C4: =CONCATENATE(A4,"-",B4) -> CA-2 | D4: 40136 | E4: ALPINE | F4: 1926 | G4: 1064 | H4: 683 | I4: 485 | J4: 156 | K4: 37 | L4: 0 | M4: 726 | N4: 1382 | O4: 2320 | P4: 3029 | Q4: 3564 | R4: 5061 | S4: 6765
A5: CA | B5: 3 | C5: CA-3 | D5: 40161 | E5: ALTURAS | F5: 6808 | G5: 5291 | H5: 4474 | I5: 3968 | J5: 2857 | K5: 1939 | L5: 1235 | M5: 59 | N5: 212 | O5: 519 | P5: 798 | Q5: 1019 | R5: 1701 | S5: 2549
A6: CA | B6: 4 | C6: CA-4 | D6: 40192 | E6: ANAHEIM FUL | F6: 1286 | G6: 556 | H6: 287 | I6: 165 | J6: 27 | K6: 0 | L6: 0 | M6: 561 | N6: 1294 | O6: 2391 | P6: 3219 | Q6: 3824 | R6: 5514 | S6: 7311
A7: CA | B7: 5 | C7: CA-5 | D7: 40212 | E7: ANGWIN PAC UNIO | F7: 3426 | G7: 2273 | H7: 1699 | I7: 1362 | J7: 697 | K7: 282 | L7: 76 | M7: 243 | N7: 659 | O7: 1333 | P7: 1853 | Q7: 2247 | R7: 3407 | S7: 4817
A8: CA | B8: 6 | C8: CA-6 | D8: 40232 | E8: ANTIOCH PUMP PL | F8: 2714 | G8: 1752 | H8: 1281 | I8: 1011 | J8: 493 | K8: 205 | L8: 63 | M8: 544 | N8: 1179 | O8: 2039 | P8: 2667 | Q8: 3125 | R8: 4437 | S8: 5971
A9: CA | B9: 7 | C9: CA-7 | D9: 40343 | E9: ASH MOUNTAIN | F9: 2741 | G9: 1807 | H9: 1334 | I9: 1060 | J9: 530 | K9: 210 | L9: 59 | M9: 1247 | N9: 1976 | O9: 2868 | P9: 3491 | Q9: 3946 | R9: 5242 | S9: 6746
A10: CA | B10: 8 | C10: CA-8 | D10: 40379 | E10: AUBERRY 2 NW | F10: 2868 | G10: 1916 | H10: 1429 | I10: 1142 | J10: 587 | K10: 240 | L10: 72 | M10: 1206 | N10: 1922 | O10: 2796 | P10: 3404 | Q10: 3845 | R10: 5116 | S10: 6594
A11: CA | B11: 9 | C11: CA-9 | D11: 40383 | E11: AUBURN | F11: 2992 | G11: 1976 | H11: 1458 | I11: 1157 | J11: 565 | K11: 212 | L11: 52 | M11: 744 | N11: 1366 | O11: 2174 | P11: 2752 | Q11: 3181 | R11: 4414 | S11: 5887
A12: CA | B12: 10 | C12: CA-10 | D12: 40395 | E12: AVALON PLEASURE | F12: 1589 | G12: 694 | H12: 362 | I12: 210 | J12: 37 | K12: 0 | L12: 0 | M12: 251 | N12: 749 | O12: 1682 | P12: 2445 | Q12: 3027 | R12: 4674 | S12: 6465
A13: CA | B13: 11 | C13: CA-11 | D13: 40436 | E13: BAKER | F13: 2011 | G13: 1272 | H13: 911 | I13: 703 | J13: 322 | K13: 116 | L13: 27 | M13: 2659 | N13: 3607 | O13: 4694 | P13: 5427 | Q13: 5950 | R13: 7395 | S13: 9012
A14: CA | B14: 12 | C14: CA-12 | D14: 40442 | E14: BAKERSFIELD KER BFL | F14: 2120 | G14: 1277 | H14: 881 | I14: 664 | J14: 276 | K14: 82 | L14: 16 | M14: 1479 | N14: 2286 | O14: 3290 | P14: 3991 | Q14: 4503 | R14: 5939 | S14: 7571
A15: CA | B15: 13 | C15: CA-13 | D15: 40449 | E15: BALCH POWER HOU | F15: 3045 | G15: 2058 | H15: 1544 | I15: 1239 | J15: 625 | K15: 244 | L15: 62 | M15: 1109 | N15: 1794 | O15: 2633 | P15: 3217 | Q15: 3640 | R15: 4850 | S15: 6298
A16: CA | B16: 14 | C16: CA-14 | D16: 40521 | E16: BARSTOW FIRE ST | F16: 2294 | G16: 1472 | H16: 1067 | I16: 834 | J16: 396 | K16: 147 | L16: 36 | M16: 1715 | N16: 2566 | O16: 3573 | P16: 4263 | Q16: 4758 | R16: 6146 | S16: 7721
A17: CA | B17: 15 | C17: CA-15 | D17: 40609 | E17: BEAUMONT 1 E | F17: 2146 | G17: 1288 | H17: 871 | I17: 653 | J17: 259 | K17: 70 | L17: 11 | M17: 861 | N17: 1572 | O17: 2507 | P17: 3186 | Q17: 3696 | R17: 5130 | S17: 6766
A18: CA | B18: 16 | C18: CA-16 | D18: 40673 | E18: BEN LOMOND NO 4 | F18: 2871 | G18: 1702 | H18: 1160 | I18: 863 | J18: 338 | K18: 82 | L18: 11 | M18: 79 | N18: 400 | O18: 1058 | P18: 1611 | Q18: 2042 | R18: 3342 | S18: 4914
A19: CA | B19: 17 | C19: CA-17 | D19: 40693 | E19: BERKELEY | F19: 2857 | G19: 1525 | H19: 959 | I19: 673 | J19: 214 | K19: 38 | L19: 1 | M19: 9 | N19: 142 | O19: 627 | P19: 1158 | Q19: 1603 | R19: 2967 | S19: 4615
A20: CA | B20: 18 | C20: CA-18 | D20: 40738 | E20: BIG BAR 4 E | F20: 3831 | G20: 2698 | H20: 2108 | I20: 1752 | J20: 1007 | K20: 479 | L20: 176 | M20: 446 | N20: 939 | O20: 1629 | P20: 2135 | Q20: 2511 | R20: 3590 | S20: 4886
A21: CA | B21: 19 | C21: CA-19 | D21: 40741 | E21: BIG BEAR LAKE | F21: 6548 | G21: 5045 | H21: 4216 | I21: 3712 | J21: 2585 | K21: 1657 | L21: 943 | M21: 8 | N21: 89 | O21: 346 | P21: 612 | Q21: 836 | R21: 1519 | S21: 2362
A22: CA | B22: =IF(A21=A22,B21+1,1) -> 20 | C22: CA-20 | D22: 40822 | E22: BISHOP AP BIH | F22: 4314 | G22: 3165 | H22: 2555 | I22: 2182 | J22: 1371 | K22: 745 | L22: 331 | M22: 480 | N22: 1003 | O22: 1692 | P22: 2178 | Q22: 2535 | R22: 3550 | S22: 4747
A23: CA | B23: 21 | C23: CA-21 | D23: 40897 | E23: BLUE CANYON BLU | F23: 5545 | G23: 4236 | H23: 3507 | I23: 3058 | J23: 2064 | K23: 1268 | L23: 703 | M23: 157 | N23: 423 | O23: 871 | P23: 1232 | Q23: 1503 | R23: 2296 | S23: 3228
A24: CA | B24: 22 | C24: CA-22 | D24: 40924 | E24: BLYTHE | F24: 1295 | G24: 690 | H24: 425 | I24: 294 | J24: 90 | K24: 17 | L24: 0 | M24: 2935 | N24: 3977 | O24: 5201 | P24: 6032 | Q24: 6631 | R24: 8252 | S24: 10004
A25: CA | B25: 23 | C25: CA-23 | D25: 40927 | E25: BLYTHE AP BLH | F25: 1226 | G25: 654 | H25: 414 | I25: 294 | J25: 100 | K25: 25 | L25: 3 | M25: 3102 | N25: 4166 | O25: 5419 | P25: 6274 | Q25: 6884 | R25: 8516 | S25: 10266
A26: CA | B26: 24 | C26: CA-24 | D26: 40931 | E26: BOCA | F26: 8107 | G26: 6419 | H26: 5485 | I26: 4907 | J26: 3614 | K26: 2559 | L26: 1706 | M26: 3 | N26: 35 | O26: 172 | P26: 332 | Q26: 485 | R26: 1009 | S26: 1720
A27: CA | B27: 25 | C27: CA-25 | D27: 40943 | E27: BODIE | F27: 9770 | G27: 8068 | H27: 7046 | I27: 6395 | J27: 4910 | K27: 3647 | L27: 2582 | M27: 0 | N27: 4 | O27: 39 | P27: 113 | Q27: 191 | R27: 518 | S27: 1044
A28: CA | B28: 26 | C28: CA-26 | D28: 40983 | E28: BORREGO DESERT | F28: 1130 | G28: 582 | H28: 356 | I28: 241 | J28: 70 | K28: 11 | L28: 0 | M28: 2851 | N28: 3928 | O28: 5204 | P28: 6074 | Q28: 6688 | R28: 8343 | S28: 10108
A29: CA | B29: 27 | C29: CA-27 | D29: 41018 | E29: BOWMAN DAM | F29: 6193 | G29: 4806 | H29: 4029 | I29: 3551 | J29: 2477 | K29: 1594 | L29: 913 | M29: 102 | N29: 311 | O29: 679 | P29: 995 | Q29: 1241 | R29: 1966 | S29: 2834
A30: CA | B30: 28 | C30: CA-28 | D30: 41048 | E30: BRAWLEY 2 SW | F30: 1155 | G30: 583 | H30: 347 | I30: 233 | J30: 62 | K30: 11 | L30: 0 | M30: 2682 | N30: 3733 | O30: 4985 | P30: 5845 | Q30: 6463 | R30: 8115 | S30: 9891
A31: CA | B31: 29 | C31: CA-29 | D31: 41072 | E31: BRIDGEPORT | F31: 8439 | G31: 6755 | H31: 5824 | I31: 5246 | J31: 3949 | K31: 2876 | L31: 1996 | M31: 3 | N31: 37 | O31: 179 | P31: 343 | Q31: 495 | R31: 1009 | S31: 1699
A32: CA | B32: 30 | C32: CA-30 | D32: 41112 | E32: BROOKS FARNHAM | F32: 2815 | G32: 1837 | H32: 1336 | I32: 1044 | J32: 478 | K32: 160 | L32: 30 | M32: 725 | N32: 1393 | O32: 2240 | P32: 2835 | Q32: 3275 | R32: 4533 | S32: 6039
A33: CA | B33: 31 | C33: CA-31 | D33: 41194 | E33: BURBANK VALLEY BUR | F33: 1575 | G33: 776 | H33: 456 | I33: 298 | J33: 71 | K33: 8 | L33: 0 | M33: 734 | N33: 1455 | O33: 2482 | P33: 3257 | Q33: 3831 | R33: 5428 | S33: 7191
A34: CA | B34: 32 | C34: CA-32 | D34: 41214 | E34: BURNEY | F34: 6495 | G34: 4970 | H34: 4156 | I34: 3652 | J34: 2534 | K34: 1630 | L34: 953 | M34: 51 | N34: 196 | O34: 497 | P34: 778 | Q34: 1003 | R34: 1701 | S34: 2581
A35: CA | B35: 33 | C35: CA-33 | D35: 41244 | E35: BUTTONWILLOW | F35: 2668 | G35: 1775 | H35: 1323 | I35: 1063 | J35: 551 | K35: 251 | L35: 86 | M35: 1097 | N35: 1857 | O35: 2787 | P35: 3431 | Q35: 3902 | R35: 5217 | S35: 6739
A36: CA | B36: 34 | C36: CA-34 | D36: 41253 | E36: CACHUMA LAKE | F36: 1994 | G36: 1085 | H36: 684 | I36: 483 | J36: 148 | K36: 29 | L36: 0 | M36: 374 | N36: 970 | O36: 1885 | P36: 2583 | Q36: 3111 | R36: 4599 | S36: 6306
A37: CA | B37: 35 | C37: CA-35 | D37: 41277 | E37: CALAVERAS BIG T | F37: 5924 | G37: 4569 | H37: 3812 | I37: 3341 | J37: 2290 | K37: 1425 | L37: 777 | M37: 88 | N37: 308 | O37: 714 | P37: 1051 | Q37: 1313 | R37: 2066 | S37: 2960
A38: CA | B38: 36 | C38: CA-36 | D38: 41312 | E38: CALISTOGA | F38: 2811 | G38: 1783 | H38: 1276 | I38: 988 | J38: 438 | K38: 138 | L38: 22 | M38: 285 | N38: 819 | O38: 1613 | P38: 2205 | Q38: 2647 | R38: 3920 | S38: 5445
A39: CA | B39: 37 | C39: CA-37 | D39: 41316 | E39: CALLAHAN | F39: 5493 | G39: 4096 | H39: 3356 | I39: 2902 | J39: 1905 | K39: 1122 | L39: 566 | M39: 90 | N39: 315 | O39: 742 | P39: 1096 | Q39: 1371 | R39: 2198 | S39: 3206
A40: CA | B40: 38 | C40: CA-38 | D40: 41424 | E40: CAMPO CZZ | F40: 3133 | G40: 1987 | H40: 1422 | I40: 1096 | J40: 490 | K40: 152 | L40: 30 | M40: 370 | N40: 821 | O40: 1502 | P40: 2033 | Q40: 2436 | R40: 3655 | S40: 5140
A41: CA | B41: 39 | C41: CA-39 | D41: 41428 | E41: CAMP PARDEE | F41: 2758 | G41: 1802 | H41: 1326 | I41: 1050 | J41: 520 | K41: 212 | L41: 61 | M41: 845 | N41: 1534 | O41: 2403 | P41: 3023 | Q41: 3476 | R41: 4771 | S41: 6290
A42: CA | B42: 40 | C42: CA-40 | D42: 803154 | E42: CAMP PENDLETON | F42: 1783 | G42: 909 | H42: 548 | I42: 365 | J42: 92 | K42: 13 | L42: 0 | M42: 327 | N42: 904 | O42: 1830 | P42: 2565 | Q42: 3113 | R42: 4664 | S42: 6410
A43: CA | B43: 41 | C43: CA-41 | D43: 41476 | E43: CANBY 3 SW | F43: 6842 | G43: 5320 | H43: 4500 | I43: 3993 | J43: 2875 | K43: 1960 | L43: 1247 | M43: 51 | N43: 199 | O43: 503 | P43: 780 | Q43: 1002 | R43: 1685 | S43: 2536
A44: CA | B44: 42 | C44: CA-42 | D44: 41484 | E44: CANOGA PARK PIE | F44: 1822 | G44: 978 | H44: 609 | I44: 423 | J44: 121 | K44: 20 | L44: 0 | M44: 772 | N44: 1485 | O44: 2465 | P44: 3191 | Q44: 3739 | R44: 5262 | S44: 6986
A45: CA | B45: 43 | C45: CA-43 | D45: 41497 | E45: CANYON DAM | F45: 6609 | G45: 5119 | H45: 4321 | I45: 3825 | J45: 2712 | K45: 1776 | L45: 1038 | M45: 70 | N45: 247 | O45: 584 | P45: 881 | Q45: 1114 | R45: 1821 | S45: 2681
A46: CA | B46: 44 | C46: CA-44 | D46: 41606 | E46: CECILVILLE | F46: 5116 | G46: 3804 | H46: 3111 | I46: 2681 | J46: 1744 | K46: 1002 | L46: 484 | M46: 285 | N46: 615 | O46: 1129 | P46: 1526 | Q46: 1829 | R46: 2711 | S46: 3765
A47: CA | B47: 45 | C47: CA-45 | D47: 41614 | E47: CEDARVILLE | F47: 6589 | G47: 5182 | H47: 4416 | I47: 3939 | J47: 2879 | K47: 1988 | L47: 1284 | M47: 169 | N47: 420 | O47: 839 | P47: 1168 | Q47: 1418 | R47: 2155 | S47: 3027
A48: CA | B48: 46 | C48: CA-46 | D48: 41697 | E48: CHERRY VALLEY D | F48: 4942 | G48: 3737 | H48: 3069 | I48: 2656 | J48: 1745 | K48: 1030 | L48: 534 | M48: 277 | N48: 656 | O48: 1221 | P48: 1648 | Q48: 1961 | R48: 2857 | S48: 3913
A49: CA | B49: 47 | C49: CA-47 | D49: 41700 | E49: CHESTER | F49: 6743 | G49: 5233 | H49: 4426 | I49: 3925 | J49: 2806 | K49: 1864 | L49: 1115 | M49: 39 | N49: 184 | O49: 496 | P49: 785 | Q49: 1013 | R49: 1712 | S49: 2560
A50: CA | B50: 48 | C50: CA-48 | D50: 41715 | E50: CHICO UNIVERSIT | F50: 2945 | G50: 1964 | H50: 1458 | I50: 1166 | J50: 581 | K50: 232 | L50: 63 | M50: 681 | N50: 1334 | O50: 2177 | P50: 2769 | Q50: 3206 | R50: 4446 | S50: 5921
A51: CA | B51: 49 | C51: CA-49 | D51: 41758 | E51: CHULA VISTA | F51: 1321 | G51: 517 | H51: 244 | I51: 127 | J51: 15 | K51: 0 | L51: 0 | M51: 282 | N51: 862 | O51: 1882 | P51: 2706 | Q51: 3318 | R51: 5031 | S51: 6841
A52: CA | B52: 50 | C52: CA-50 | D52: 41806 | E52: CLEARLAKE 4 SE | F52: 3804 | G52: 2627 | H52: 2019 | I52: 1655 | J52: 894 | K52: 384 | L52: 111 | M52: 315 | N52: 753 | O52: 1403 | P52: 1890 | Q52: 2254 | R52: 3317 | S52: 4632
A53: CA | B53: 51 | C53: CA-51 | D53: 41838 | E53: CLOVERDALE | F53: 2639 | G53: 1676 | H53: 1197 | I53: 924 | J53: 400 | K53: 116 | L53: 16 | M53: 494 | N53: 1127 | O53: 1987 | P53: 2604 | Q53: 3061 | R53: 4361 | S53: 5903
A54: CA | B54: 52 | C54: CA-52 | D54: 41864 | E54: COALINGA | F54: 2234 | G54: 1399 | H54: 987 | I54: 755 | J54: 339 | K54: 122 | L54: 31 | M54: 1384 | N54: 2204 | O54: 3194 | P54: 3880 | Q54: 4376 | R54: 5786 | S54: 7394
A55: CA | B55: 53 | C55: CA-53 | D55: 41912 | E55: COLFAX | F55: 3512 | G55: 2396 | H55: 1822 | I55: 1480 | J55: 789 | K55: 340 | L55: 102 | M55: 591 | N55: 1116 | O55: 1827 | P55: 2347 | Q55: 2734 | R55: 3867 | S55: 5244
A56: CA | B56: 54 | C56: CA-54 | D56: 41948 | E56: COLUSA 2 SSW | F56: 2702 | G56: 1762 | H56: 1290 | I56: 1018 | J56: 483 | K56: 182 | L56: 42 | M56: 705 | N56: 1401 | O56: 2288 | P56: 2910 | Q56: 3369 | R56: 4660 | S56: 6182
A57: CA | B57: 55 | C57: CA-55 | D57: 42012 | E57: CORCORAN IRRIG | F57: 2507 | G57: 1633 | H57: 1199 | I57: 946 | J57: 471 | K57: 203 | L57: 66 | M57: 1122 | N57: 1909 | O57: 2860 | P57: 3520 | Q57: 3999 | R57: 5346 | S57: 6905
A58: CA | B58: 56 | C58: CA-56 | D58: 42031 | E58: CORONA | F58: 1599 | G58: 807 | H58: 480 | I58: 317 | J58: 75 | K58: 8 | L58: 0 | M58: 788 | N58: 1534 | O58: 2565 | P58: 3334 | Q58: 3902 | R58: 5487 | S58: 7242
A59: CA | B59: 57 | C59: CA-57 | D59: 42081 | E59: COVELO | F59: 3925 | G59: 2730 | H59: 2108 | I59: 1737 | J59: 965 | K59: 433 | L59: 144 | M59: 277 | N59: 684 | O59: 1316 | P59: 1790 | Q59: 2147 | R59: 3198 | S59: 4492
A60: CA | B60: 58 | C60: CA-58 | D60: 42147 | E60: CRESCENT CITY 3 CEC | F60: 4687 | G60: 2980 | H60: 2078 | I60: 1565 | J60: 682 | K60: 230 | L60: 49 | M60: 0 | N60: 6 | O60: 81 | P60: 274 | Q60: 490 | R60: 1434 | S60: 2807
A61: CA | B61: 59 | C61: CA-59 | D61: 42214 | E61: CULVER CITY | F61: 1344 | G61: 548 | H61: 266 | I61: 142 | J61: 18 | K61: 0 | L61: 0 | M61: 350 | N61: 959 | O61: 1989 | P61: 2802 | Q61: 3408 | R61: 5108 | S61: 6916
A62: CA | B62: 60 | C62: CA-60 | D62: 42239 | E62: CUYAMACA | F62: 4988 | G62: 3707 | H62: 2999 | I62: 2564 | J62: 1616 | K62: 886 | L62: 405 | M62: 168 | N62: 457 | O62: 948 | P62: 1332 | Q62: 1627 | R62: 2494 | S62: 3559
A63: CA | B63: 61 | C63: CA-61 | D63: 42257 | E63: DAGGETT BARSTOW DAG | F63: 2228 | G63: 1437 | H63: 1044 | I63: 816 | J63: 397 | K63: 153 | L63: 40 | M63: 2035 | N63: 2915 | O63: 3946 | P63: 4648 | Q63: 5152 | R63: 6555 | S63: 8139
A64: CA | B64: 62 | C64: CA-62 | D64: 42294 | E64: DAVIS 2 WSW EXP | F64: 2853 | G64: 1870 | H64: 1375 | I64: 1091 | J64: 534 | K64: 212 | L64: 57 | M64: 502 | N64: 1127 | O64: 1968 | P64: 2569 | Q64: 3017 | R64: 4281 | S64: 5784
A65: CA | B65: 63 | C65: CA-63 | D65: 42319 | E65: DEATH VALLEY | F65: 1257 | G65: 713 | H65: 465 | I65: 336 | J65: 125 | K65: 29 | L65: 5 | M65: 4169 | N65: 5296 | O65: 6575 | P65: 7423 | Q65: 8025 | R65: 9637 | S65: 11368
A66: CA | B66: 64 | C66: CA-64 | D66: 42331 | E66: DEEP SPRINGS CO | F66: 5293 | G66: 4097 | H66: 3451 | I66: 3046 | J66: 2133 | K66: 1378 | L66: 794 | M66: 384 | N66: 843 | O66: 1472 | P66: 1921 | Q66: 2246 | R66: 3154 | S66: 4186
A67: CA | B67: 65 | C67: CA-65 | D67: 42338 | E67: DEER CREEK FORE | F67: 4739 | G67: 3549 | H67: 2893 | I67: 2494 | J67: 1623 | K67: 963 | L67: 501 | M67: 317 | N67: 692 | O67: 1274 | P67: 1713 | Q67: 2045 | R67: 2998 | S67: 4164
A68: CA | B68: 66 | C68: =CONCATENATE(A68,"-",B68) -> CA-66 | D68: 42402 | E68: DE SABLA | F68: 4040 | G68: 2868 | H68: 2258 | I68: 1891 | J68: 1115 | K68: 564 | L68: 219 | M68: 358 | N68: 806 | O68: 1459 | P68: 1945 | Q68: 2307 | R68: 3355 | S68: 4630
A69: CA | B69: 67 | C69: CA-67 | D69: 42456 | E69: DOBBINS 1 S | F69: 3418 | G69: 2308 | H69: 1730 | I69: 1384 | J69: 690 | K69: 263 | L69: 62 | M69: 444 | N69: 969 | O69: 1683 | P69: 2200 | Q69: 2586 | R69: 3716 | S69: 5113
A70: CA | B70: 68 | C70: CA-68 | D70: 42467 | E70: DONNER MEMORIAL | F70: 8284 | G70: 6608 | H70: 5680 | I70: 5102 | J70: 3805 | K70: 2705 | L70: 1805 | M70: 5 | N70: 44 | O70: 194 | P70: 360 | Q70: 511 | R70: 1024 | S70: 1709
A71: CA | B71: 69 | C71: CA-69 | D71: 42500 | E71: DOWNIEVILLE | F71: 4782 | G71: 3483 | H71: 2806 | I71: 2394 | J71: 1496 | K71: 808 | L71: 361 | M71: 139 | N71: 438 | O71: 967 | P71: 1383 | Q71: 1700 | R71: 2620 | S71: 3728
A72: CA | B72: 70 | C72: CA-70 | D72: 42506 | E72: DOYLE 4 SSE | F72: 6013 | G72: 4599 | H72: 3842 | I72: 3379 | J72: 2368 | K72: 1554 | L72: 948 | M72: 95 | N72: 314 | O72: 724 | P72: 1064 | Q72: 1330 | R72: 2113 | S72: 3071
A73: CA | B73: 71 | C73: CA-71 | D73: 42516 | E73: DRY CANYON RESE | F73: 2502 | G73: 1521 | H73: 1051 | I73: 792 | J73: 331 | K73: 89 | L73: 15 | M73: 550 | N73: 1139 | O73: 1984 | P73: 2609 | Q73: 3078 | R73: 4441 | S73: 6025
A74: CA | B74: 72 | C74: CA-72 | D74: 42574 | E74: DUNSMUIR TREATM | F74: 4711 | G74: 3426 | H74: 2754 | I74: 2346 | J74: 1458 | K74: 785 | L74: 345 | M74: 177 | N74: 503 | O74: 1044 | P74: 1466 | Q74: 1788 | R74: 2722 | S74: 3848
A75: CA | B75: 73 | C75: CA-73 | D75: 42598 | E75: EAGLE MOUNTAIN | F75: 1131 | G75: 594 | H75: 370 | I75: 257 | J75: 80 | K75: 17 | L75: 0 | M75: 3171 | N75: 4277 | O75: 5563 | P75: 6432 | Q75: 7052 | R75: 8699 | S75: 10459
A76: CA | B76: 74 | C76: CA-74 | D76: 42640 | E76: EAST PARK RESER | F76: 3498 | G76: 2410 | H76: 1841 | I76: 1498 | J76: 797 | K76: 336 | L76: 95 | M76: 533 | N76: 1082 | O76: 1817 | P76: 2342 | Q76: 2728 | R76: 3854 | S76: 5220
A77: CA | B77: 75 | C77: CA-75 | D77: 42706 | E77: EL CAJON | F77: 1560 | G77: 760 | H77: 440 | I77: 286 | J77: 66 | K77: 7 | L77: 0 | M77: 652 | N77: 1371 | O77: 2397 | P77: 3173 | Q77: 3748 | R77: 5352 | S77: 7120
A78: CA | B78: 76 | C78: CA-76 | D78: 42709 | E78: EL CAPITAN DAM | F78: 1419 | G78: 691 | H78: 405 | I78: 261 | J78: 60 | K78: 4 | L78: 0 | M78: 904 | N78: 1712 | O78: 2808 | P78: 3615 | Q78: 4202 | R78: 5829 | S78: 7595
A79: CA | B79: 77 | C79: CA-77 | D79: 42713 | E79: EL CENTRO 2 SSW | F79: 1080 | G79: 531 | H79: 308 | I79: 203 | J79: 48 | K79: 7 | L79: 0 | M79: 2874 | N79: 3952 | O79: 5228 | P79: 6103 | Q79: 6727 | R79: 8397 | S79: 10181
A80: CA | B80: 78 | C80: CA-78 | D80: 42728 | E80: ELECTRA P H | F80: 2854 | G80: 1842 | H80: 1333 | I80: 1041 | J80: 481 | K80: 172 | L80: 37 | M80: 602 | N80: 1218 | O80: 2031 | P80: 2619 | Q80: 3054 | R80: 4321 | S80: 5836
A81: CA | B81: 79 | C81: CA-79 | D81: 42771 | E81: EL MIRAGE | F81: 3616 | G81: 2564 | H81: 2007 | I81: 1679 | J81: 972 | K81: 485 | L81: 200 | M81: 767 | N81: 1370 | O81: 2142 | P81: 2681 | Q81: 3082 | R81: 4201 | S81: 5539
A82: CA | B82: 80 | C82: CA-80 | D82: 42805 | E82: ELSINORE | F82: 1924 | G82: 1092 | H82: 714 | I82: 517 | J82: 183 | K82: 42 | L82: 5 | M82: 1102 | N82: 1874 | O82: 2867 | P82: 3583 | Q82: 4116 | R82: 5608 | S82: 7292
A83: CA | B83: 81 | C83: CA-81 | D83: 893101 | E83: EL TORO MCAS | F83: 1461 | G83: 692 | H83: 390 | I83: 244 | J83: 56 | K83: 5 | L83: 0 | M83: 524 | N83: 1183 | O83: 2227 | P83: 3022 | Q83: 3605 | R83: 5242 | S83: 7017
A84: CA | B84: 82 | C84: CA-82 | D84: 42863 | E84: ESCONDIDO NO 2 | F84: 1464 | G84: 690 | H84: 381 | I84: 235 | J84: 44 | K84: 2 | L84: 0 | M84: 696 | N84: 1436 | O84: 2485 | P84: 3275 | Q84: 3858 | R84: 5493 | S84: 7276
A85: CA | B85: 83 | C85: CA-83 | D85: 42910 | E85: EUREKA WFO WOOD | F85: 4403 | G85: 2713 | H85: 1838 | I85: 1352 | J85: 555 | K85: 167 | L85: 35 | M85: 0 | N85: 7 | O85: 98 | P85: 320 | Q85: 562 | R85: 1592 | S85: 3029
A86: CA | B86: =IF(A85=A86,B85+1,1) -> 84 | C86: CA-84 | D86: 42934 | E86: FAIRFIELD | F86: 2649 | G86: 1674 | H86: 1210 | I86: 945 | J86: 450 | K86: 180 | L86: 52 | M86: 381 | N86: 975 | O86: 1826 | P86: 2455 | Q86: 2920 | R86: 4250 | S86: 5805
A87: CA | B87: 85 | C87: CA-85 | D87: 42941 | E87: FAIRMONT | F87: 3199 | G87: 2205 | H87: 1698 | I87: 1394 | J87: 785 | K87: 377 | L87: 140 | M87: 953 | N87: 1608 | O87: 2439 | P87: 3027 | Q87: 3454 | R87: 4671 | S87: 6088
A88: CA | B88: 86 | C88: CA-86 | D88: 43083 | E88: FIVE POINTS 5 S | F88: 2446 | G88: 1577 | H88: 1145 | I88: 894 | J88: 428 | K88: 171 | L88: 48 | M88: 1016 | N88: 1784 | O88: 2739 | P88: 3405 | Q88: 3883 | R88: 5241 | S88: 6810
A89: CA | B89: 87 | C89: CA-87 | D89: 43113 | E89: FOLSOM DAM | F89: 2532 | G89: 1612 | H89: 1166 | I89: 907 | J89: 424 | K89: 158 | L89: 39 | M89: 817 | N89: 1528 | O89: 2433 | P89: 3082 | Q89: 3552 | R89: 4896 | S89: 6455
A90: CA | B90: 88 | C90: CA-88 | D90: 43120 | E90: FONTANA KAISER ONT | F90: 1351 | G90: 687 | H90: 404 | I90: 259 | J90: 65 | K90: 6 | L90: 0 | M90: 1066 | N90: 1905 | O90: 3034 | P90: 3847 | Q90: 4433 | R90: 6064 | S90: 7831
A91: CA | B91: 89 | C91: CA-89 | D91: 43157 | E91: FORT BIDWELL | F91: 6653 | G91: 5193 | H91: 4407 | I91: 3919 | J91: 2851 | K91: 1964 | L91: 1270 | M91: 87 | N91: 281 | O91: 648 | P91: 957 | Q91: 1199 | R91: 1924 | S91: 2809
A92: CA | B92: 90 | C92: CA-90 | D92: 43161 | E92: FORT BRAGG 5 N | F92: 4266 | G92: 2576 | H92: 1715 | I92: 1240 | J92: 483 | K92: 135 | L92: 25 | M92: 0 | N92: 6 | O92: 108 | P92: 342 | Q92: 597 | R92: 1666 | S92: 3145
A93: CA | B93: 91 | C93: CA-91 | D93: 43191 | E93: FORT ROSS | F93: 4234 | G93: 2536 | H93: 1665 | I93: 1183 | J93: 431 | K93: 102 | L93: 13 | M93: 0 | N93: 6 | O93: 99 | P93: 325 | Q93: 574 | R93: 1645 | S93: 3140
A94: CA | B94: 92 | C94: CA-92 | D94: 43257 | E94: FRESNO YOSEMITE FAT | F94: 2447 | G94: 1538 | H94: 1102 | I94: 853 | J94: 381 | K94: 119 | L94: 21 | M94: 1226 | N94: 1963 | O94: 2932 | P94: 3590 | Q94: 4069 | R94: 5423 | S94: 6985
A95: CA | B95: 93 | C95: CA-93 | D95: 43261 | E95: FRIANT GOVERNME | F95: 2672 | G95: 1743 | H95: 1279 | I95: 1010 | J95: 498 | K95: 206 | L95: 61 | M95: 992 | N95: 1708 | O95: 2604 | P95: 3235 | Q95: 3697 | R95: 5010 | S95: 6543
A96: CA | B96: 94 | C96: CA-94 | D96: 43417 | E96: GILROY | F96: 2278 | G96: 1328 | H96: 891 | I96: 655 | J96: 253 | K96: 66 | L96: 11 | M96: 325 | N96: 913 | O96: 1794 | P96: 2450 | Q96: 2944 | R96: 4366 | S96: 6005
A97: CA | B97: 95 | C97: CA-95 | D97: 43463 | E97: GLENNVILLE | F97: 4466 | G97: 3202 | H97: 2519 | I97: 2103 | J97: 1228 | K97: 604 | L97: 230 | M97: 140 | N97: 427 | O97: 940 | P97: 1350 | Q97: 1664 | R97: 2615 | S97: 3819
A98: CA | B98: 96 | C98: CA-96 | D98: 43551 | E98: GRANT GROVE | F98: 6844 | G98: 5373 | H98: 4539 | I98: 4027 | J98: 2876 | K98: 1914 | L98: 1159 | M98: 32 | N98: 155 | O98: 431 | P98: 691 | Q98: 900 | R98: 1540 | S98: 2313
A99: CA | B99: 97 | C99: CA-97 | D99: 43573 | E99: GRASS VALLEY NO | F99: 4287 | G99: 3038 | H99: 2387 | I99: 1994 | J99: 1156 | K99: 565 | L99: 205 | M99: 247 | N99: 612 | O99: 1187 | P99: 1630 | Q99: 1968 | R99: 2956 | S99: 4188
A100: CA | B100: 98 | C100: CA-98 | D100: 43578 | E100: GRATON | F100: 3179 | G100: 1946 | H100: 1370 | I100: 1051 | J100: 468 | K100: 157 | L100: 32 | M100: 39 | N100: 288 | O100: 879 | P100: 1400 | Q100: 1811 | R100: 3053 | S100: 4568
A101: CA | B101: 99 | C101: CA-99 | D101: 43647 | E101: GRIZZLY CREEK S | F101: 4610 | G101: 3063 | H101: 2306 | I101: 1867 | J101: 998 | K101: 442 | L101: 141 | M101: 0 | N101: 38 | O101: 315 | P101: 651 | Q101: 946 | R101: 1899 | S101: 3171
A102: CA | B102: 100 | C102: CA-100 | D102: 43710 | E102: HAIWEE | F102: 3784 | G102: 2740 | H102: 2183 | I102: 1843 | J102: 1126 | K102: 600 | L102: 274 | M102: 814 | N102: 1441 | O102: 2221 | P102: 2758 | Q102: 3151 | R102: 4245 | S102: 5517
A103: CA | B103: 101 | C103: CA-101 | D103: 43714 | E103: HALF MOON BAY | F103: 3737 | G103: 2107 | H103: 1309 | I103: 898 | J103: 277 | K103: 48 | L103: 1 | M103: 0 | N103: 11 | O103: 172 | P103: 468 | Q103: 788 | R103: 1991 | S103: 3588
A104: CA | B104: 102 | C104: CA-102 | D104: 43747 | E104: HANFORD 1 S | F104: 2749 | G104: 1841 | H104: 1384 | I104: 1114 | J104: 580 | K104: 262 | L104: 90 | M104: 978 | N104: 1724 | O104: 2641 | P104: 3278 | Q104: 3739 | R104: 5028 | S104: 6534
A105: CA | B105: 103 | C105: CA-103 | D105: 43761 | E105: HAPPY CAMP RANG | F105: 4255 | G105: 3027 | H105: 2388 | I105: 2001 | J105: 1186 | K105: 595 | L105: 241 | M105: 281 | N105: 671 | O105: 1267 | P105: 1723 | Q105: 2069 | R105: 3076 | S105: 4295
A106: CA | B106: 104 | C106: CA-104 | D106: 43824 | E106: HAT CREEK | F106: 5685 | G106: 4278 | H106: 3535 | I106: 3079 | J106: 2072 | K106: 1270 | L106: 678 | M106: 96 | N106: 314 | O106: 733 | P106: 1080 | Q106: 1354 | R106: 2169 | S106: 3156
A107: CA | B107: 105 | C107: CA-105 | D107: 43855 | E107: HAYFIELD PUMPIN | F107: 1588 | G107: 905 | H107: 592 | I107: 428 | J107: 155 | K107: 35 | L107: 5 | M107: 2241 | N107: 3196 | O107: 4336 | P107: 5119 | Q107: 5684 | R107: 7238 | S107: 8942
A108: CA | B108: 106 | C108: CA-106 | D108: 43875 | E108: HEALDSBURG | F108: 2501 | G108: 1508 | H108: 1039 | I108: 778 | J108: 315 | K108: 85 | L108: 13 | M108: 296 | N108: 853 | O108: 1680 | P108: 2305 | Q108: 2776 | R108: 4135 | S108: 5733
A109: CA | B109: 107 | C109: CA-107 | D109: 43914 | E109: HENSHAW DAM | F109: 3651 | G109: 2450 | H109: 1837 | I109: 1471 | J109: 740 | K109: 289 | L109: 70 | M109: 368 | N109: 786 | O109: 1410 | P109: 1891 | Q109: 2258 | R109: 3350 | S109: 4724
A110: CA | B110: 108 | C110: CA-108 | D110: 43939 | E110: HETCH HETCHY | F110: 4740 | G110: 3492 | H110: 2836 | I110: 2437 | J110: 1566 | K110: 892 | L110: 434 | M110: 254 | N110: 619 | O110: 1196 | P110: 1636 | Q110: 1965 | R110: 2908 | S110: 4030
A111: CA | B111: 109 | C111: CA-109 | D111: 44025 | E111: HOLLISTER 2 | F111: 2724 | G111: 1589 | H111: 1075 | I111: 798 | J111: 320 | K111: 86 | L111: 13 | M111: 81 | N111: 405 | O111: 1091 | P111: 1676 | Q111: 2128 | R111: 3476 | S111: 5065
A112: CA | B112: 110 | C112: CA-110 | D112: 44176 | E112: HUNTINGTON LAKE | F112: 6992 | G112: 5451 | H112: 4557 | I112: 4004 | J112: 2783 | K112: 1788 | L112: 1045 | M112: 19 | N112: 93 | O112: 301 | P112: 503 | Q112: 675 | R112: 1236 | S112: 1970
A113: CA | B113: 111 | C113: CA-111 | D113: 44211 | E113: IDYLLWILD FIRE | F113: 5071 | G113: 3751 | H113: 3033 | I113: 2595 | J113: 1653 | K113: 938 | L113: 456 | M113: 97 | N113: 333 | O113: 776 | P113: 1153 | Q113: 1446 | R113: 2330 | S113: 3439
A114: CA | B114: 112 | C114: CA-112 | D114: 44223 | E114: IMPERIAL IPL | F114: 1115 | G114: 550 | H114: 321 | I114: 213 | J114: 51 | K114: 8 | L114: 0 | M114: 2707 | N114: 3764 | O114: 5021 | P114: 5886 | Q114: 6510 | R114: 8173 | S114: 9956
A115: CA | B115: 113 | C115: CA-113 | D115: 44232 | E115: INDEPENDENCE | F115: 3579 | G115: 2588 | H115: 2061 | I115: 1750 | J115: 1071 | K115: 584 | L115: 271 | M115: 1111 | N115: 1804 | O115: 2638 | P115: 3209 | Q115: 3628 | R115: 4772 | S115: 6109
A116: CA | B116: 114 | C116: CA-114 | D116: 44259 | E116: INDIO FIRE STAT | F116: 903 | G116: 434 | H116: 253 | I116: 166 | J116: 40 | K116: 7 | L116: 0 | M116: 3229 | N116: 4388 | O116: 5743 | P116: 6657 | Q116: 7299 | R116: 8999 | S116: 10791
A117: CA | B117: 115 | C117: CA-115 | D117: 44278 | E117: INYOKERN | F117: 2633 | G117: 1762 | H117: 1323 | I117: 1060 | J117: 546 | K117: 234 | L117: 71 | M117: 1533 | N117: 2340 | O117: 3294 | P117: 3951 | Q117: 4418 | R117: 5730 | S117: 7242
A118: CA | B118: 116 | C118: CA-116 | D118: 44297 | E118: IRON MOUNTAIN | F118: 1156 | G118: 620 | H118: 393 | I118: 280 | J118: 95 | K118: 23 | L118: 2 | M118: 3366 | N118: 4476 | O118: 5764 | P118: 6634 | Q118: 7251 | R118: 8892 | S118: 10644
A119: CA | B119: 117 | C119: CA-117 | D119: 44374 | E119: JESS VALLEY | F119: 7575 | G119: 6000 | H119: 5136 | I119: 4600 | J119: 3386 | K119: 2373 | L119: 1552 | M119: 43 | N119: 158 | O119: 408 | P119: 640 | Q119: 828 | R119: 1414 | S119: 2150
A120: CA | B120: 118 | C120: CA-118 | D120: 44500 | E120: KENTFIELD | F120: 2567 | G120: 1508 | H120: 1026 | I120: 760 | J120: 302 | K120: 86 | L120: 14 | M120: 136 | N120: 557 | O120: 1320 | P120: 1933 | Q120: 2396 | R120: 3763 | S120: 5371
A121: CA | B121: 119 | C121: CA-119 | D121: 44520 | E121: KERN RIVER PH 1 | F121: 1645 | G121: 965 | H121: 646 | I121: 476 | J121: 196 | K121: 52 | L121: 12 | M121: 2268 | N121: 3236 | O121: 4380 | P121: 5155 | Q121: 5716 | R121: 7259 | S121: 8942
A122: CA | B122: 120 | C122: CA-120 | D122: 44523 | E122: KERN RIVER PH 3 | F122: 3103 | G122: 2100 | H122: 1586 | I122: 1279 | J122: 663 | K122: 277 | L122: 81 | M122: 936 | N122: 1593 | O122: 2415 | P122: 2996 | Q122: 3420 | R122: 4629 | S122: 6068
A123: CA | B123: 121 | C123: CA-121 | D123: 44555 | E123: KING CITY | F123: 2384 | G123: 1368 | H123: 906 | I123: 659 | J123: 246 | K123: 58 | L123: 9 | M123: 145 | N123: 598 | O123: 1409 | P123: 2040 | Q123: 2525 | R123: 3936 | S123: 5575
A124: CA | B124: 122 | C124: CA-122 | D124: 44577 | E124: KLAMATH | F124: 4514 | G124: 2816 | H124: 1955 | I124: 1482 | J124: 656 | K124: 220 | L124: 45 | M124: 0 | N124: 5 | O124: 92 | P124: 327 | Q124: 584 | R124: 1586 | S124: 2973
A125: CA | B125: 123 | C125: CA-123 | D125: 44647 | E125: LAGUNA BEACH | F125: 1756 | G125: 800 | H125: 428 | I125: 259 | J125: 44 | K125: 0 | L125: 0 | M125: 214 | N125: 666 | O125: 1526 | P125: 2253 | Q125: 2813 | R125: 4422 | S125: 6205
A126: CA | B126: 124 | C126: CA-124 | D126: 44671 | E126: LAKE ARROWHEAD | F126: 5450 | G126: 4104 | H126: 3392 | I126: 2952 | J126: 1977 | K126: 1190 | L126: 619 | M126: 177 | N126: 462 | O126: 941 | P126: 1321 | Q126: 1613 | R126: 2453 | S126: 3442
A127: CA | B127: 125 | C127: CA-125 | D127: 44701 | E127: LAKEPORT | F127: 3698 | G127: 2545 | H127: 1949 | I127: 1593 | J127: 854 | K127: 358 | L127: 98 | M127: 334 | N127: 793 | O127: 1465 | P127: 1964 | Q127: 2338 | R127: 3424 | S127: 4753
A128: CA | B128: 126 | C128: CA-126 | D128: 44712 | E128: LAKE SOLANO | F128: 2716 | G128: 1775 | H128: 1303 | I128: 1032 | J128: 500 | K128: 195 | L128: 50 | M128: 732 | N128: 1420 | O128: 2305 | P128: 2924 | Q128: 3387 | R128: 4678 | S128: 6198
A129: CA | B129: 127 | C129: CA-127 | D129: 44713 | E129: LAKE SPAULDING | F129: 6321 | G129: 4881 | H129: 4077 | I129: 3579 | J129: 2469 | K129: 1545 | L129: 845 | M129: 35 | N129: 179 | O129: 498 | P129: 792 | Q129: 1023 | R129: 1721 | S129: 2570
A130: CA | B130: 128 | C130: CA-128 | D130: 44735 | E130: LA MESA | F130: 1313 | G130: 559 | H130: 285 | I130: 160 | J130: 24 | K130: 0 | L130: 0 | M130: 559 | N130: 1261 | O130: 2332 | P130: 3153 | Q130: 3758 | R130: 5449 | S130: 7249
A131: CA | B131: 129 | C131: CA-129 | D131: 44749 | E131: LANCASTER ATC WJF | F131: 3241 | G131: 2244 | H131: 1725 | I131: 1414 | J131: 774 | K131: 358 | L131: 134 | M131: 1048 | N131: 1733 | O131: 2560 | P131: 3137 | Q131: 3556 | R131: 4739 | S131: 6151
A132: CA | B132: 130 | C132: =CONCATENATE(A132,"-",B132) -> CA-130 | D132: 44838 | E132: LAVA BEDS NAT M | F132: 6395 | G132: 4978 | H132: 4212 | I132: 3733 | J132: 2664 | K132: 1777 | L132: 1081 | M132: 148 | N132: 387 | O132: 798 | P132: 1125 | Q132: 1376 | R132: 2116 | S132: 2996
A133: CA | B133: 131 | C133: CA-131 | D133: 44881 | E133: LEE VINING | F133: 6513 | G133: 5087 | H133: 4321 | I133: 3848 | J133: 2783 | K133: 1889 | L133: 1178 | M133: 75 | N133: 281 | O133: 680 | P133: 1009 | Q133: 1265 | R133: 2018 | S133: 2914
A134: CA | B134: 132 | C134: CA-132 | D134: 44890 | E134: LEMON COVE | F134: 2336 | G134: 1480 | H134: 1060 | I134: 823 | J134: 387 | K134: 154 | L134: 45 | M134: 1149 | N134: 1939 | O134: 2908 | P134: 3584 | Q134: 4074 | R134: 5465 | S134: 7056
A135: CA | B135: 133 | C135: CA-133 | D135: 823110 | E135: LEMOORE REEVES | F135: 2660 | G135: 1750 | H135: 1300 | I135: 1035 | J135: 524 | K135: 227 | L135: 71 | M135: 947 | N135: 1680 | O135: 2597 | P135: 3241 | Q135: 3706 | R135: 5020 | S135: 6546
A136: CA | B136: 134 | C136: CA-134 | D136: 44957 | E136: LINDSAY | F136: 2505 | G136: 1601 | H136: 1156 | I136: 898 | J136: 424 | K136: 166 | L136: 45 | M136: 966 | N136: 1707 | O136: 2626 | P136: 3275 | Q136: 3749 | R136: 5099 | S136: 6666
A137: CA | B137: 135 | C137: CA-135 | D137: 44997 | E137: LIVERMORE | F137: 2755 | G137: 1720 | H137: 1223 | I137: 938 | J137: 416 | K137: 142 | L137: 31 | M137: 332 | N137: 858 | O137: 1652 | P137: 2248 | Q137: 2693 | R137: 3997 | S137: 5548
A138: CA | B138: 136 | C138: CA-136 | D138: 45026 | E138: LODGEPOLE | F138: 8399 | G138: 6781 | H138: 5844 | I138: 5261 | J138: 3946 | K138: 2824 | L138: 1881 | M138: 0 | N138: 31 | O138: 164 | P138: 323 | Q138: 466 | R138: 965 | S138: 1624
A139: CA | B139: 137 | C139: CA-137 | D139: 45032 | E139: LODI | F139: 2710 | G139: 1717 | H139: 1245 | I139: 975 | J139: 476 | K139: 201 | L139: 64 | M139: 464 | N139: 1057 | O139: 1890 | P139: 2512 | Q139: 2972 | R139: 4296 | S139: 5846
A140: CA | B140: 138 | C140: CA-138 | D140: 45064 | E140: LOMPOC | F140: 2241 | G140: 1104 | H140: 647 | I140: 423 | J140: 104 | K140: 10 | L140: 0 | M140: 55 | N140: 322 | O140: 987 | P140: 1622 | Q140: 2133 | R140: 3636 | S140: 5368
A141: CA | B141: 139 | C141: CA-139 | D141: 45085 | E141: LONG BEACH AP LGB | F141: 1211 | G141: 472 | H141: 213 | I141: 108 | J141: 14 | K141: 1 | L141: 0 | M141: 473 | N141: 1186 | O141: 2270 | P141: 3106 | Q141: 3731 | R141: 5461 | S141: 7274
A142: CA | B142: 140 | C142: CA-140 | D142: 45114 | E142: LOS ANGELES INT LAX | F142: 1274 | G142: 458 | H142: 187 | I142: 88 | J142: 8 | K142: 0 | L142: 0 | M142: 169 | N142: 679 | O142: 1677 | P142: 2499 | Q142: 3130 | R142: 4877 | S142: 6695
A143: CA | B143: 141 | C143: CA-141 | D143: 45115 | E143: LOS ANGELES DOW CQT | F143: 928 | G143: 332 | H143: 146 | I143: 76 | J143: 10 | K143: 0 | L143: 0 | M143: 654 | N143: 1506 | O143: 2723 | P143: 3630 | Q143: 4290 | R143: 6050 | S143: 7865
A144: CA | B144: 142 | C144: CA-142 | D144: 45118 | E144: LOS BANOS | F144: 2570 | G144: 1662 | H144: 1216 | I144: 959 | J144: 468 | K144: 195 | L144: 60 | M144: 823 | N144: 1547 | O144: 2466 | P144: 3116 | Q144: 3589 | R144: 4923 | S144: 6476
A145: CA | B145: 143 | C145: CA-143 | D145: 45120 | E145: LOS BANOS DET R | F145: 2490 | G145: 1589 | H145: 1150 | I145: 894 | J145: 425 | K145: 170 | L145: 50 | M145: 981 | N145: 1726 | O145: 2653 | P145: 3307 | Q145: 3781 | R145: 5136 | S145: 6708
A146: CA | B146: 144 | C146: CA-144 | D146: 45123 | E146: LOS GATOS | F146: 2641 | G146: 1570 | H146: 1068 | I146: 790 | J146: 314 | K146: 88 | L146: 16 | M146: 169 | N146: 613 | O146: 1368 | P146: 1961 | Q146: 2413 | R146: 3763 | S146: 5359
A147: CA | B147: 145 | C147: CA-145 | D147: 45233 | E147: MADERA | F147: 2670 | G147: 1748 | H147: 1286 | I147: 1020 | J147: 504 | K147: 213 | L147: 68 | M147: 977 | N147: 1706 | O147: 2610 | P147: 3243 | Q147: 3706 | R147: 5016 | S147: 6551
A148: CA | B148: 146 | C148: CA-146 | D148: 45311 | E148: MANZANITA LAKE | F148: 7486 | G148: 5943 | H148: 5054 | I148: 4504 | J148: 3272 | K148: 2241 | L148: 1400 | M148: 17 | N148: 90 | O148: 301 | P148: 507 | Q148: 683 | R148: 1255 | S148: 1990
A149: CA | B149: 147 | C149: CA-147 | D149: 45338 | E149: MARICOPA | F149: 2190 | G149: 1376 | H149: 977 | I149: 755 | J149: 356 | K149: 141 | L149: 41 | M149: 1502 | N149: 2334 | O149: 3343 | P149: 4041 | Q149: 4549 | R149: 5974 | S149: 7582
A150: CA | B150: =IF(A149=A150,B149+1,1) -> 148 | C150: CA-148 | D150: 45356 | E150: MARKLEEVILLE | F150: 7091 | G150: 5501 | H150: 4647 | I150: 4120 | J150: 2945 | K150: 1977 | L150: 1208 | M150: 13 | N150: 97 | O150: 331 | P150: 573 | Q150: 774 | R150: 1415 | S150: 2222
A151: CA | B151: 149 | C151: CA-149 | D151: 45360 | E151: MARKLEY COVE | F151: 2996 | G151: 1975 | H151: 1456 | I151: 1157 | J151: 564 | K151: 212 | L151: 51 | M151: 518 | N151: 1111 | O151: 1915 | P151: 2493 | Q151: 2924 | R151: 4156 | S151: 5628
A152: CA | B152: 150 | C152: CA-150 | D152: 45378 | E152: MARTINEZ WATER | F152: 2757 | G152: 1724 | H152: 1233 | I152: 952 | J152: 442 | K152: 166 | L152: 44 | M152: 279 | N152: 786 | O152: 1578 | P152: 2182 | Q152: 2632 | R152: 3946 | S152: 5497
A153: CA | B153: 151 | C153: CA-151 | D153: 45385 | E153: MARYSVILLE | F153: 2488 | G153: 1595 | H153: 1158 | I153: 905 | J153: 430 | K153: 167 | L153: 44 | M153: 952 | N153: 1687 | O153: 2620 | P153: 3277 | Q153: 3755 | R153: 5106 | S153: 6668
A154: CA | B154: 152 | C154: CA-152 | D154: 45449 | E154: MC CLOUD | F154: 5641 | G154: 4259 | H154: 3523 | I154: 3070 | J154: 2067 | K154: 1260 | L154: 668 | M154: 124 | N154: 368 | O154: 811 | P154: 1170 | Q154: 1446 | R154: 2259 | S154: 3226
A155: CA | B155: 153 | C155: CA-153 | D155: 45502 | E155: MECCA FIRE STAT | F155: 1118 | G155: 576 | H155: 351 | I155: 242 | J155: 69 | K155: 13 | L155: 0 | M155: 2866 | N155: 3958 | O155: 5243 | P155: 6113 | Q155: 6732 | R155: 8385 | S155: 10154
A156: CA | B156: 154 | C156: CA-154 | D156: 45532 | E156: MERCED | F156: 2602 | G156: 1675 | H156: 1223 | I156: 958 | J156: 465 | K156: 194 | L156: 60 | M156: 862 | N156: 1578 | O156: 2476 | P156: 3118 | Q156: 3582 | R156: 4913 | S156: 6470
A157: CA | B157: 155 | C157: CA-155 | D157: 45679 | E157: MINERAL | F157: 7384 | G157: 5817 | H157: 4911 | I157: 4349 | J157: 3093 | K157: 2049 | L157: 1218 | M157: 16 | N157: 81 | O157: 271 | P157: 461 | Q157: 629 | R157: 1189 | S157: 1926
A158: CA | B158: 156 | C158: CA-156 | D158: 45721 | E158: MITCHELL CAVERN | F158: 2902 | G158: 1993 | H158: 1529 | I158: 1252 | J158: 708 | K158: 343 | L158: 130 | M158: 1307 | N158: 2066 | O158: 2981 | P158: 3612 | Q158: 4067 | R158: 5347 | S158: 6806
A159: CA | B159: 157 | C159: CA-157 | D159: 45738 | E159: MODESTO CITY-CO MOD | F159: 2358 | G159: 1481 | H159: 1062 | I159: 821 | J159: 384 | K159: 150 | L159: 41 | M159: 834 | N159: 1570 | O159: 2516 | P159: 3190 | Q159: 3681 | R159: 5069 | S159: 6660
A160: CA | B160: 158 | C160: CA-158 | D160: 45756 | E160: MOJAVE | F160: 2835 | G160: 1902 | H160: 1427 | I160: 1144 | J160: 591 | K160: 252 | L160: 79 | M160: 1238 | N160: 1976 | O160: 2870 | P160: 3489 | Q160: 3936 | R160: 5208 | S160: 6694
A161: CA | B161: 159 | C161: CA-159 | D161: 45790 | E161: MONTEBELLO | F161: 949 | G161: 370 | H161: 168 | I161: 86 | J161: 9 | K161: 0 | L161: 0 | M161: 931 | N161: 1837 | O161: 3082 | P161: 3976 | Q161: 4624 | R161: 6373 | S161: 8189
A162: CA | B162: 160 | C162: CA-160 | D162: 45795 | E162: MONTEREY MRY | F162: 3080 | G162: 1632 | H162: 976 | I162: 664 | J162: 189 | K162: 31 | L162: 1 | M162: 6 | N162: 74 | O162: 420 | P162: 864 | Q162: 1277 | R162: 2630 | S162: 4296
A163: CA | B163: 161 | C163: CA-161 | D163: 45866 | E163: MORRO BAY FIRE 87Q | F163: 3344 | G163: 1805 | H163: 1074 | I163: 715 | J163: 189 | K163: 27 | L163: 0 | M163: 8 | N163: 50 | O163: 307 | P163: 671 | Q163: 1044 | R163: 2343 | S163: 4008
A164: CA | B164: 162 | C164: CA-162 | D164: 45890 | E164: MOUNTAIN PASS | F164: 4105 | G164: 3060 | H164: 2500 | I164: 2162 | J164: 1410 | K164: 832 | L164: 435 | M164: 856 | N164: 1494 | O164: 2274 | P164: 2808 | Q164: 3192 | R164: 4250 | S164: 5452
A165: CA | B165: 163 | C165: CA-163 | D165: 45915 | E165: MOUNT DIABLO JU | F165: 3245 | G165: 2160 | H165: 1597 | I165: 1267 | J165: 642 | K165: 253 | L165: 70 | M165: 501 | N165: 983 | O165: 1682 | P165: 2215 | Q165: 2619 | R165: 3817 | S165: 5253
A166: CA | B166: 164 | C166: CA-164 | D166: 45933 | E166: MOUNT HAMILTON | F166: 4521 | G166: 3341 | H166: 2688 | I166: 2290 | J166: 1447 | K166: 840 | L166: 405 | M166: 364 | N166: 747 | O166: 1333 | P166: 1773 | Q166: 2106 | R166: 3089 | S166: 4304
A167: CA | B167: 165 | C167: CA-165 | D167: 45983 | E167: MOUNT SHASTA MHS | F167: 5991 | G167: 4524 | H167: 3742 | I167: 3262 | J167: 2195 | K167: 1337 | L167: 703 | M167: 59 | N167: 235 | O167: 592 | P167: 906 | Q167: 1155 | R167: 1908 | S167: 2830
A168: CA | B168: 166 | C168: CA-166 | D168: 46006 | E168: MT WILSON NO 2 | F168: 3995 | G168: 2933 | H168: 2351 | I168: 2002 | J168: 1268 | K168: 734 | L168: 358 | M168: 463 | N168: 969 | O168: 1669 | P168: 2182 | Q168: 2564 | R168: 3655 | S168: 4945
A169: CA | B169: 167 | C169: CA-167 | D169: 46074 | E169: NAPA STATE HOSP | F169: 2689 | G169: 1612 | H169: 1117 | I169: 846 | J169: 364 | K169: 120 | L169: 26 | M169: 128 | N169: 529 | O169: 1276 | P169: 1880 | Q169: 2337 | R169: 3680 | S169: 5261
A170: CA | B170: 168 | C170: CA-168 | D170: 46118 | E170: NEEDLES AP EED | F170: 1227 | G170: 660 | H170: 416 | I170: 292 | J170: 95 | K170: 19 | L170: 0 | M170: 3451 | N170: 4545 | O170: 5803 | P170: 6654 | Q170: 7260 | R170: 8888 | S170: 10636
A171: CA | B171: 169 | C171: CA-169 | D171: 46136 | E171: NEVADA CITY | F171: 4565 | G171: 3321 | H171: 2667 | I171: 2270 | J171: 1421 | K171: 789 | L171: 367 | M171: 312 | N171: 689 | O171: 1271 | P171: 1713 | Q171: 2046 | R171: 3024 | S171: 4216
A172: CA | B172: 170 | C172: CA-170 | D172: 46144 | E172: NEWARK (OAKLAND OAK | F172: 2367 | G172: 1332 | H172: 878 | I172: 642 | J172: 251 | K172: 66 | L172: 12 | M172: 126 | N172: 530 | O172: 1320 | P172: 1962 | Q172: 2458 | R172: 3889 | S172: 5530
A173: CA | B173: 171 | C173: CA-171 | D173: 46154 | E173: NEW CUYAMA FIRE | F173: 3321 | G173: 2221 | H173: 1662 | I173: 1330 | J173: 671 | K173: 263 | L173: 68 | M173: 471 | N173: 996 | O173: 1720 | P173: 2258 | Q173: 2654 | R173: 3820 | S173: 5237
A174: CA | B174: 172 | C174: CA-172 | D174: 46168 | E174: NEWMAN | F174: 2680 | G174: 1749 | H174: 1289 | I174: 1022 | J174: 505 | K174: 212 | L174: 64 | M174: 747 | N174: 1449 | O174: 2345 | P174: 2977 | Q174: 3439 | R174: 4748 | S174: 6280
A175: CA | B175: 173 | C175: CA-173 | D175: 46175 | E175: NEWPORT BEACH H | F175: 1715 | G175: 729 | H175: 368 | I175: 211 | J175: 32 | K175: 0 | L175: 0 | M175: 155 | N175: 543 | O175: 1366 | P175: 2101 | Q175: 2673 | R175: 4320 | S175: 6112
A176: CA | B176: 174 | C176: CA-174 | D176: 46336 | E176: OAKLAND MUSEUM | F176: 2400 | G176: 1250 | H176: 780 | I176: 545 | J176: 180 | K176: 38 | L176: 4 | M176: 83 | N176: 377 | O176: 1052 | P176: 1677 | Q176: 2172 | R176: 3634 | S176: 5316
A177: CA | B177: 175 | C177: CA-175 | D177: 46377 | E177: OCEANSIDE MARIN | F177: 2009 | G177: 902 | H177: 470 | I177: 277 | J177: 42 | K177: 0 | L177: 0 | M177: 161 | N177: 505 | O177: 1222 | P177: 1887 | Q177: 2425 | R177: 4012 | S177: 5796
A178: CA | B178: 176 | C178: CA-176 | D178: 46399 | E178: OJAI | F178: 2092 | G178: 1137 | H178: 715 | I178: 499 | J178: 154 | K178: 30 | L178: 0 | M178: 426 | N178: 989 | O178: 1858 | P178: 2531 | Q178: 3047 | R178: 4526 | S178: 6227
A179: CA | B179: 177 | C179: CA-177 | D179: 46476 | E179: ORANGE COVE | F179: 2538 | G179: 1643 | H179: 1204 | I179: 947 | J179: 463 | K179: 192 | L179: 57 | M179: 1098 | N179: 1857 | O179: 2788 | P179: 3444 | Q179: 3920 | R179: 5261 | S179: 6814
A180: CA | B180: 178 | C180: CA-178 | D180: 46498 | E180: ORICK PRAIRIE C | F180: 5005 | G180: 3308 | H180: 2416 | I180: 1908 | J180: 951 | K180: 396 | L180: 114 | M180: 0 | N180: 3 | O180: 94 | P180: 298 | Q180: 518 | R180: 1390 | S180: 2658
A181: CA | B181: 179 | C181: CA-179 | D181: 46506 | E181: ORLAND | F181: 2630 | G181: 1699 | H181: 1232 | I181: 961 | J181: 434 | K181: 141 | L181: 23 | M181: 871 | N181: 1581 | O181: 2477 | P181: 3102 | Q181: 3560 | R181: 4859 | S181: 6392
A182: CA | B182: 180 | C182: CA-180 | D182: 46508 | E182: ORLEANS | F182: 3389 | G182: 2280 | H182: 1722 | I182: 1397 | J182: 743 | K182: 327 | L182: 104 | M182: 350 | N182: 831 | O182: 1549 | P182: 2087 | Q182: 2492 | R182: 3662 | S182: 5071
A183: CA | B183: 181 | C183: CA-181 | D183: 46521 | E183: OROVILLE | F183: 2818 | G183: 1837 | H183: 1342 | I183: 1059 | J183: 505 | K183: 193 | L183: 49 | M183: 770 | N183: 1422 | O183: 2264 | P183: 2866 | Q183: 3313 | R183: 4581 | S183: 6099
A184: CA | B184: 182 | C184: CA-182 | D184: 46569 | E184: OXNARD (CAMARIL CMA | F184: 1935 | G184: 881 | H184: 481 | I184: 294 | J184: 56 | K184: 0 | L184: 0 | M184: 82 | N184: 404 | O184: 1154 | P184: 1852 | Q184: 2393 | R184: 3981 | S184: 5750
A185: CA | B185: 183 | C185: CA-183 | D185: 46599 | E185: PACIFICA 4 SSE | F185: 3247 | G185: 1806 | H185: 1143 | I185: 813 | J185: 277 | K185: 54 | L185: 0 | M185: 3 | N185: 72 | O185: 419 | P185: 853 | Q185: 1251 | R185: 2538 | S185: 4143
A186: CA | B186: 184 | C186: CA-184 | D186: 46624 | E186: PALMDALE (LANCA | F186: 2704 | G186: 1795 | H186: 1336 | I186: 1065 | J186: 540 | K186: 226 | L186: 69 | M186: 1242 | N186: 1998 | O186: 2916 | P186: 3551 | Q186: 4010 | R186: 5311 | S186: 6821
A187: CA | B187: 185 | C187: CA-185 | D187: 46635 | E187: PALM SPRINGS PSP | F187: 951 | G187: 472 | H187: 281 | I187: 189 | J187: 53 | K187: 11 | L187: 0 | M187: 3084 | N187: 4224 | O187: 5569 | P187: 6475 | Q187: 7112 | R187: 8800 | S187: 10583
A188: CA | B188: 186 | C188: CA-186 | D188: 46646 | E188: PALO ALTO | F188: 2584 | G188: 1479 | H188: 988 | I188: 725 | J188: 291 | K188: 84 | L188: 15 | M188: 93 | N188: 452 | O188: 1172 | P188: 1776 | Q188: 2244 | R188: 3636 | S188: 5252
A189: CA | B189: 187 | C189: CA-187 | D189: 46657 | E189: PALOMAR MOUNTAI | F189: 4060 | G189: 2960 | H189: 2362 | I189: 2002 | J189: 1238 | K189: 696 | L189: 324 | M189: 478 | N189: 963 | O189: 1638 | P189: 2133 | Q189: 2504 | R189: 3568 | S189: 4850
A190: CA | B190: 188 | C190: CA-188 | D190: 46685 | E190: PARADISE | F190: 3145 | G190: 2138 | H190: 1615 | I190: 1307 | J190: 689 | K190: 289 | L190: 84 | M190: 828 | N190: 1464 | O190: 2279 | P190: 2854 | Q190: 3277 | R190: 4483 | S190: 5908
A191: CA | B191: 189 | C191: CA-189 | D191: 46699 | E191: PARKER RESERVOI | F191: 1230 | G191: 671 | H191: 431 | I191: 308 | J191: 109 | K191: 25 | L191: 3 | M191: 3424 | N191: 4523 | O191: 5790 | P191: 6644 | Q191: 7251 | R191: 8877 | S191: 10619
A192: CA | B192: 190 | C192: CA-190 | D192: 46719 | E192: PASADENA | F192: 1398 | G192: 660 | H192: 371 | I192: 229 | J192: 48 | K192: 0 | L192: 0 | M192: 779 | N192: 1558 | O192: 2644 | P192: 3450 | Q192: 4042 | R192: 5683 | S192: 7461
A193: CA | B193: 191 | C193: CA-191 | D193: 46730 | E193: PASO ROBLES | F193: 2932 | G193: 1839 | H193: 1315 | I193: 1012 | J193: 450 | K193: 154 | L193: 33 | M193: 307 | N193: 785 | O193: 1519 | P193: 2087 | Q193: 2517 | R193: 3779 | S193: 5307
A194: CA | B194: 192 | C194: CA-192 | D194: 46742 | E194: PASO ROBLES MUN PRB | F194: 2789 | G194: 1754 | H194: 1247 | I194: 958 | J194: 422 | K194: 139 | L194: 28 | M194: 469 | N194: 1038 | O194: 1829 | P194: 2418 | Q194: 2857 | R194: 4150 | S194: 5691
A195: CA | B195: 193 | C195: CA-193 | D195: 46773 | E195: PEARBLOSSOM | F195: 2908 | G195: 1960 | H195: 1480 | I195: 1196 | J195: 636 | K195: 281 | L195: 93 | M195: 1086 | N195: 1801 | O195: 2679 | P195: 3295 | Q195: 3739 | R195: 5004 | S195: 6474
A196: CA | B196: 194 | C196: =CONCATENATE(A196,"-",B196) -> CA-194 | D196: 46826 | E196: PETALUMA FIRE S | F196: 2741 | G196: 1611 | H196: 1098 | I196: 818 | J196: 331 | K196: 94 | L196: 15 | M196: 65 | N196: 385 | O196: 1082 | P196: 1662 | Q196: 2114 | R196: 3452 | S196: 5039
A197: CA | B197: 195 | C197: CA-195 | D197: 46926 | E197: PINNACLES NATL | F197: 2907 | G197: 1837 | H197: 1315 | I197: 1015 | J197: 461 | K197: 147 | L197: 32 | M197: 377 | N197: 882 | O197: 1637 | P197: 2209 | Q197: 2641 | R197: 3911 | S197: 5422
A198: CA | B198: 196 | C198: CA-196 | D198: 46943 | E198: PISMO BEACH | F198: 2524 | G198: 1263 | H198: 746 | I198: 504 | J198: 136 | K198: 25 | L198: 0 | M198: 21 | N198: 151 | O198: 708 | P198: 1286 | Q198: 1773 | R198: 3232 | S198: 4945
A199: CA | B199: 197 | C199: CA-197 | D199: 46960 | E199: PLACERVILLE | F199: 3324 | G199: 2241 | H199: 1685 | I199: 1357 | J199: 692 | K199: 275 | L199: 70 | M199: 610 | N199: 1164 | O199: 1907 | P199: 2445 | Q199: 2846 | R199: 4007 | S199: 5414
A200: CA | B200: 198 | C200: CA-198 | D200: 46962 | E200: PLACERVILLE IFG | F200: 3235 | G200: 2245 | H200: 1715 | I200: 1400 | J200: 772 | K200: 354 | L200: 123 | M200: 846 | N200: 1470 | O200: 2270 | P200: 2835 | Q200: 3251 | R200: 4449 | S200: 5857
... 657 more rows

Sheet Chiller Data (hidden)
B3: Equipment ID | C3: State | D3: Heat Rejection | E3: Type | F3: Size | G3: Size ID | H3: Minimum COP (kW/ton) | I3: Minimum IPLV (kW/ton) | L3: Unit | M3: DEER Baseline Efficiency | N3: DEER New Efficiency (kW/ton) | O3: DEER Baseline cost | P3: DEER Incremental Cost ($/ton) | Q3: ($/ton/(0.1 kW/ton) increase) | T3: Minimum Full Load (COP) | U3: Minimum IPLV (COP) | X3: Unit
C4: Wyoming Chiller Data (IECC 2003)
B5: =CONCATENATE(C5,"-",D5,"-",E5,"-",G5) -> WY-Air Cooled-Reciprocating-1 | C5: WY | D5: Air Cooled | E5: Reciprocating | F5: <150 tons | G5: 1 | H5: =12/(T5*3.412) -> 1.25607101 | I5: =12/(U5*3.412) -> 1.25607101 | J5: Does Not Apply | K5: Does Not Apply | L5: kW/ton | M5: 1.26 | N5: 1.008 | O5: 448.9536364 | P5: 39.93525253 | Q5: =P5/((M5-N5)/0.1) -> 15.84732243 | T5: 2.8 | U5: 2.8 | V5: Does Not Apply | W5: Does Not Apply | X5: COP
B6: WY-Air Cooled-Reciprocating-2 | C6: WY | D6: Air Cooled | E6: Reciprocating | F6: ≥150 tons and <300 tons | G6: 2 | H6: 1.406799531 | I6: 1.406799531 | J6: Does Not Apply | K6: Does Not Apply | L6: kW/ton | M6: 1.26 | N6: 1.008 | O6: 448.9536364 | P6: 39.93525253 | Q6: 15.84732243 | T6: 2.5 | U6: 2.5 | V6: Does Not Apply | W6: Does Not Apply | X6: COP
B7: WY-Air Cooled-Reciprocating-3 | C7: WY | D7: Air Cooled | E7: Reciprocating | F7: ≥300 tons | G7: 3 | H7: 1.406799531 | I7: 1.406799531 | J7: Does Not Apply | K7: Does Not Apply | L7: kW/ton | M7: 1.26 | N7: 1.008 | O7: 448.9536364 | P7: 39.93525253 | Q7: 15.84732243 | T7: 2.5 | U7: 2.5 | V7: Does Not Apply | W7: Does Not Apply | X7: COP
B8: WY-Air Cooled-Screw-1 | C8: WY | D8: Air Cooled | E8: Screw | F8: <150 tons | G8: 1 | H8: 1.25607101 | I8: 1.25607101 | J8: Does Not Apply | K8: Does Not Apply | L8: kW/ton | M8: 1.26 | N8: 1.008 | O8: 445.8967398 | P8: 42.33958709 | Q8: 16.80142345 | T8: 2.8 | U8: 2.8 | V8: Does Not Apply | W8: Does Not Apply | X8: COP
B9: WY-Air Cooled-Screw-2 | C9: WY | D9: Air Cooled | E9: Screw | F9: ≥150 tons and <300 tons | G9: 2 | H9: 1.406799531 | I9: 1.406799531 | J9: Does Not Apply | K9: Does Not Apply | L9: kW/ton | M9: 1.26 | N9: 1.008 | O9: 445.8967398 | P9: 42.33958709 | Q9: 16.80142345 | T9: 2.5 | U9: 2.5 | V9: Does Not Apply | W9: Does Not Apply | X9: COP
B10: WY-Air Cooled-Screw-3 | C10: WY | D10: Air Cooled | E10: Screw | F10: ≥300 tons | G10: 3 | H10: 1.406799531 | I10: 1.406799531 | J10: Does Not Apply | K10: Does Not Apply | L10: kW/ton | M10: 1.26 | N10: 1.008 | O10: 445.8967398 | P10: 42.33958709 | Q10: 16.80142345 | T10: 2.5 | U10: 2.5 | V10: Does Not Apply | W10: Does Not Apply | X10: COP
B11: WY-Air Cooled-Scroll-1 | C11: WY | D11: Air Cooled | E11: Scroll | F11: <150 tons | G11: 1 | H11: 1.25607101 | I11: 1.25607101 | J11: Does Not Apply | K11: Does Not Apply | L11: kW/ton | M11: 1.26 | N11: 1.008 | O11: 445.8967398 | P11: 42.33958709 | Q11: 16.80142345 | T11: 2.8 | U11: 2.8 | V11: Does Not Apply | W11: Does Not Apply | X11: COP
B12: WY-Air Cooled-Scroll-2 | C12: WY | D12: Air Cooled | E12: Scroll | F12: ≥150 tons and <300 tons | G12: 2 | H12: 1.406799531 | I12: 1.406799531 | J12: Does Not Apply | K12: Does Not Apply | L12: kW/ton | M12: 1.26 | N12: 1.008 | O12: 445.8967398 | P12: 42.33958709 | Q12: 16.80142345 | T12: 2.5 | U12: 2.5 | V12: Does Not Apply | W12: Does Not Apply | X12: COP
B13: WY-Air Cooled-Scroll-3 | C13: WY | D13: Air Cooled | E13: Scroll | F13: ≥300 tons | G13: 3 | H13: 1.406799531 | I13: 1.406799531 | J13: Does Not Apply | K13: Does Not Apply | L13: kW/ton | M13: 1.26 | N13: 1.008 | O13: 445.8967398 | P13: 42.33958709 | Q13: 16.80142345 | T13: 2.5 | U13: 2.5 | V13: Does Not Apply | W13: Does Not Apply | X13: COP
B14: WY-Air Cooled-Rotary-1 | C14: WY | D14: Air Cooled | E14: Rotary | F14: <150 tons | G14: 1 | H14: 1.25607101 | I14: 1.25607101 | J14: Does Not Apply | K14: Does Not Apply | L14: kW/ton | M14: 1.26 | N14: 1.008 | O14: 445.8967398 | P14: 42.33958709 | Q14: 16.80142345 | T14: 2.8 | U14: 2.8 | V14: Does Not Apply | W14: Does Not Apply | X14: COP
B15: WY-Air Cooled-Rotary-2 | C15: WY | D15: Air Cooled | E15: Rotary | F15: ≥150 tons and <300 tons | G15: 2 | H15: 1.406799531 | I15: 1.406799531 | J15: Does Not Apply | K15: Does Not Apply | L15: kW/ton | M15: 1.26 | N15: 1.008 | O15: 445.8967398 | P15: 42.33958709 | Q15: 16.80142345 | T15: 2.5 | U15: 2.5 | V15: Does Not Apply | W15: Does Not Apply | X15: COP
B16: WY-Air Cooled-Rotary-3 | C16: WY | D16: Air Cooled | E16: Rotary | F16: ≥300 tons | G16: 3 | H16: 1.406799531 | I16: 1.406799531 | J16: Does Not Apply | K16: Does Not Apply | L16: kW/ton | M16: 1.26 | N16: 1.008 | O16: 445.8967398 | P16: 42.33958709 | Q16: 16.80142345 | T16: 2.5 | U16: 2.5 | V16: Does Not Apply | W16: Does Not Apply | X16: COP
B17: WY-Water Cooled-Reciprocating-1 | C17: WY | D17: Water Cooled | E17: Reciprocating | F17: <150 tons | G17: 1 | H17: 0.8373806733 | I17: 0.7563438339 | J17: Does Not Apply | K17: Does Not Apply | L17: kW/ton | M17: 0.837 | N17: 0.672 | O17: 462.5882424 | P17: 16.27434124 | Q17: 9.863237114 | T17: 4.2 | U17: 4.65 | V17: Does Not Apply | W17: Does Not Apply | X17: COP
B18: WY-Water Cooled-Reciprocating-2 | C18: WY | D18: Water Cooled | E18: Reciprocating | F18: ≥150 tons and <300 tons | G18: 2 | H18: 0.8373806733 | I18: 0.7563438339 | J18: Does Not Apply | K18: Does Not Apply | L18: kW/ton | M18: 0.837 | N18: 0.672 | O18: 462.5882424 | P18: 16.27434124 | Q18: 9.863237114 | T18: 4.2 | U18: 4.65 | V18: Does Not Apply | W18: Does Not Apply | X18: COP
B19: WY-Water Cooled-Reciprocating-3 | C19: WY | D19: Water Cooled | E19: Reciprocating | F19: ≥300 tons | G19: 3 | H19: 0.8373806733 | I19: 0.7563438339 | J19: Does Not Apply | K19: Does Not Apply | L19: kW/ton | M19: 0.837 | N19: 0.672 | O19: 462.5882424 | P19: 16.27434124 | Q19: 9.863237114 | T19: 4.2 | U19: 4.65 | V19: Does Not Apply | W19: Does Not Apply | X19: COP
B20: WY-Water Cooled-Screw-1 | C20: WY | D20: Water Cooled | E20: Screw | F20: <150 tons | G20: 1 | H20: 0.7903368152 | I20: 0.781555295 | J20: Does Not Apply | K20: Does Not Apply | L20: kW/ton | M20: 0.79 | N20: 0.632 | O20: 443.3892493 | P20: 49.05387812 | Q20: 31.04675831 | T20: 4.45 | U20: 4.5 | V20: Does Not Apply | W20: Does Not Apply | X20: COP
B21: WY-Water Cooled-Screw-2 | C21: WY | D21: Water Cooled | E21: Screw | F21: ≥150 tons and <300 tons | G21: 2 | H21: 0.7177548628 | I21: 0.7105048137 | J21: Does Not Apply | K21: Does Not Apply | L21: kW/ton | M21: 0.718 | N21: 0.574 | O21: 346.9411963 | P21: 25.47414437 | Q21: 17.69037803 | T21: 4.9 | U21: 4.95 | V21: Does Not Apply | W21: Does Not Apply | X21: COP
B22: WY-Water Cooled-Screw-3 | C22: WY | D22: Water Cooled | E22: Screw | F22: ≥300 tons | G22: 3 | H22: 0.6394543323 | I22: 0.6280355049 | J22: Does Not Apply | K22: Does Not Apply | L22: kW/ton | M22: 0.639 | N22: 0.511 | O22: 275.8363082 | P22: 11.39892069 | Q22: 8.905406786 | T22: 5.5 | U22: 5.6 | V22: Does Not Apply | W22: Does Not Apply | X22: COP
B23: WY-Water Cooled-Scroll-1 | C23: WY | D23: Water Cooled | E23: Scroll | F23: <150 tons | G23: 1 | H23: 0.7903368152 | I23: 0.781555295 | J23: Does Not Apply | K23: Does Not Apply | L23: kW/ton | M23: 0.79 | N23: 0.632 | O23: 443.3892493 | P23: 49.05387812 | Q23: 31.04675831 | T23: 4.45 | U23: 4.5 | V23: Does Not Apply | W23: Does Not Apply | X23: COP
B24: WY-Water Cooled-Scroll-2 | C24: WY | D24: Water Cooled | E24: Scroll | F24: ≥150 tons and <300 tons | G24: 2 | H24: 0.7177548628 | I24: 0.7105048137 | J24: Does Not Apply | K24: Does Not Apply | L24: kW/ton | M24: 0.718 | N24: 0.574 | O24: 346.9411963 | P24: 25.47414437 | Q24: 17.69037803 | T24: 4.9 | U24: 4.95 | V24: Does Not Apply | W24: Does Not Apply | X24: COP
B25: WY-Water Cooled-Scroll-3 | C25: WY | D25: Water Cooled | E25: Scroll | F25: ≥300 tons | G25: 3 | H25: 0.6394543323 | I25: 0.6280355049 | J25: Does Not Apply | K25: Does Not Apply | L25: kW/ton | M25: 0.639 | N25: 0.511 | O25: 275.8363082 | P25: 11.39892069 | Q25: 8.905406786 | T25: 5.5 | U25: 5.6 | V25: Does Not Apply | W25: Does Not Apply | X25: COP
B26: WY-Water Cooled-Rotary-1 | C26: WY | D26: Water Cooled | E26: Rotary | F26: <150 tons | G26: 1 | H26: 0.7903368152 | I26: 0.781555295 | J26: Does Not Apply | K26: Does Not Apply | L26: kW/ton | M26: 0.79 | N26: 0.632 | O26: 443.3892493 | P26: 49.05387812 | Q26: 31.04675831 | T26: 4.45 | U26: 4.5 | V26: Does Not Apply | W26: Does Not Apply | X26: COP
B27: WY-Water Cooled-Rotary-2 | C27: WY | D27: Water Cooled | E27: Rotary | F27: ≥150 tons and <300 tons | G27: 2 | H27: 0.7177548628 | I27: 0.7105048137 | J27: Does Not Apply | K27: Does Not Apply | L27: kW/ton | M27: 0.718 | N27: 0.574 | O27: 346.9411963 | P27: 25.47414437 | Q27: 17.69037803 | T27: 4.9 | U27: 4.95 | V27: Does Not Apply | W27: Does Not Apply | X27: COP
B28: WY-Water Cooled-Rotary-3 | C28: WY | D28: Water Cooled | E28: Rotary | F28: ≥300 tons | G28: 3 | H28: 0.6394543323 | I28: 0.6280355049 | J28: Does Not Apply | K28: Does Not Apply | L28: kW/ton | M28: 0.639 | N28: 0.511 | O28: 275.8363082 | P28: 11.39892069 | Q28: 8.905406786 | T28: 5.5 | U28: 5.6 | V28: Does Not Apply | W28: Does Not Apply | X28: COP
B29: WY-Water Cooled-Centrifugal-1 | C29: WY | D29: Water Cooled | E29: Centrifugal | F29: <150 tons | G29: 1 | H29: 0.7033997655 | I29: 0.7033997655 | J29: Does Not Apply | K29: Does Not Apply | L29: kW/ton | M29: 0.634 | N29: 0.56 | O29: 468.6879276 | P29: 145.5191392 | Q29: 196.6474853 | T29: 5 | U29: 5 | V29: Does Not Apply | W29: Does Not Apply | X29: COP
B30: WY-Water Cooled-Centrifugal-2 | C30: WY | D30: Water Cooled | E30: Centrifugal | F30: ≥150 tons and <300 tons | G30: 2 | H30: 0.6336934825 | I30: 0.6336934825 | J30: Does Not Apply | K30: Does Not Apply | L30: kW/ton | M30: 0.634 | N30: 0.507 | O30: 338.7655378 | P30: 93.84177406 | Q30: 73.89116068 | T30: 5.55 | U30: 5.55 | V30: Does Not Apply | W30: Does Not Apply | X30: COP
B31: WY-Water Cooled-Centrifugal-3 | C31: WY | D31: Water Cooled | E31: Centrifugal | F31: ≥300 tons | G31: 3 | H31: 0.5765571849 | I31: =12/(U31*3.412) -> 0.5765571849 | J31: Does Not Apply | K31: Does Not Apply | L31: kW/ton | M31: 0.576 | N31: 0.461 | O31: 267.7142309 | P31: 65.58071502 | Q31: 57.02670872 | T31: 6.1 | U31: 6.1 | V31: Does Not Apply | W31: Does Not Apply | X31: COP
B33: Equipment ID | C33: State | D33: Heat Rejection | E33: Type | F33: Size | G33: Size ID | H33: Minimum COP (kW/ton) | I33: Minimum IPLV (kW/ton) | L33: Unit | M33: DEER Baseline Efficiency | N33: DEER New Efficiency (kW/ton) | O33: DEER Baseline cost | P33: DEER Incremental Cost ($/ton) | Q33: ($/ton/(0.1 kW/ton) increase) | T33: Minimum Full Load (COP) | U33: Minimum IPLV (COP) | X33: Unit
C34: California Chiller Data (Title 24 - 2008)
B35: CA-Air Cooled-Reciprocating-1 | C35: CA | D35: Air Cooled | E35: Reciprocating | F35: <150 tons | G35: 1 | H35: =12/(T35*3.412) -> 1.25607101 | I35: =12/(U35*3.412) -> 1.15311437 | J35: Does Not Apply | K35: Does Not Apply | L35: kW/ton | M35: 1.26 | N35: 1.008 | O35: 448.9536364 | P35: 39.93525253 | Q35: =P35/((M35-N35)/0.1) -> 15.84732243 | T35: 2.8 | U35: 3.05 | V35: Does Not Apply | W35: Does Not Apply | X35: COP
B36: CA-Air Cooled-Reciprocating-2 | C36: CA | D36: Air Cooled | E36: Reciprocating | F36: ≥150 tons and <300 tons | G36: 2 | H36: =12/(T36*3.412) -> 1.25607101 | I36: =12/(U36*3.412) -> 1.15311437 | J36: Does Not Apply | K36: Does Not Apply | L36: kW/ton | M36: 1.26 | N36: 1.008 | O36: 448.9536364 | P36: 39.93525253 | Q36: 15.84732243 | T36: 2.8 | U36: 3.05 | V36: Does Not Apply | W36: Does Not Apply | X36: COP
B37: CA-Air Cooled-Reciprocating-3 | C37: CA | D37: Air Cooled | E37: Reciprocating | F37: ≥300 tons | G37: 3 | H37: 1.25607101 | I37: 1.15311437 | J37: Does Not Apply | K37: Does Not Apply | L37: kW/ton | M37: 1.26 | N37: 1.008 | O37: 448.9536364 | P37: 39.93525253 | Q37: 15.84732243 | T37: 2.8 | U37: 3.05 | V37: Does Not Apply | W37: Does Not Apply | X37: COP
B38: CA-Air Cooled-Screw-1 | C38: CA | D38: Air Cooled | E38: Screw | F38: <150 tons | G38: 1 | H38: 1.25607101 | I38: 1.15311437 | J38: Does Not Apply | K38: Does Not Apply | L38: kW/ton | M38: 1.26 | N38: 1.008 | O38: 445.8967398 | P38: 42.33958709 | Q38: 16.80142345 | T38: 2.8 | U38: 3.05 | V38: Does Not Apply | W38: Does Not Apply | X38: COP
B39: CA-Air Cooled-Screw-2 | C39: CA | D39: Air Cooled | E39: Screw | F39: ≥150 tons and <300 tons | G39: 2 | H39: 1.25607101 | I39: 1.15311437 | J39: Does Not Apply | K39: Does Not Apply | L39: kW/ton | M39: 1.26 | N39: 1.008 | O39: 445.8967398 | P39: 42.33958709 | Q39: 16.80142345 | T39: 2.8 | U39: 3.05 | V39: Does Not Apply | W39: Does Not Apply | X39: COP
B40: CA-Air Cooled-Screw-3 | C40: CA | D40: Air Cooled | E40: Screw | F40: ≥300 tons | G40: 3 | H40: 1.25607101 | I40: 1.15311437 | J40: Does Not Apply | K40: Does Not Apply | L40: kW/ton | M40: 1.26 | N40: 1.008 | O40: 445.8967398 | P40: 42.33958709 | Q40: 16.80142345 | T40: 2.8 | U40: 3.05 | V40: Does Not Apply | W40: Does Not Apply | X40: COP
B41: CA-Air Cooled-Scroll-1 | C41: CA | D41: Air Cooled | E41: Scroll | F41: <150 tons | G41: 1 | H41: 1.25607101 | I41: 1.15311437 | J41: Does Not Apply | K41: Does Not Apply | L41: kW/ton | M41: 1.26 | N41: 1.008 | O41: 445.8967398 | P41: 42.33958709 | Q41: 16.80142345 | T41: 2.8 | U41: 3.05 | V41: Does Not Apply | W41: Does Not Apply | X41: COP
B42: CA-Air Cooled-Scroll-2 | C42: CA | D42: Air Cooled | E42: Scroll | F42: ≥150 tons and <300 tons | G42: 2 | H42: 1.25607101 | I42: 1.15311437 | J42: Does Not Apply | K42: Does Not Apply | L42: kW/ton | M42: 1.26 | N42: 1.008 | O42: 445.8967398 | P42: 42.33958709 | Q42: 16.80142345 | T42: 2.8 | U42: 3.05 | V42: Does Not Apply | W42: Does Not Apply | X42: COP
B43: CA-Air Cooled-Scroll-3 | C43: CA | D43: Air Cooled | E43: Scroll | F43: ≥300 tons | G43: 3 | H43: 1.25607101 | I43: 1.15311437 | J43: Does Not Apply | K43: Does Not Apply | L43: kW/ton | M43: 1.26 | N43: 1.008 | O43: 445.8967398 | P43: 42.33958709 | Q43: 16.80142345 | T43: 2.8 | U43: 3.05 | V43: Does Not Apply | W43: Does Not Apply | X43: COP
B44: CA-Air Cooled-Rotary-1 | C44: CA | D44: Air Cooled | E44: Rotary | F44: <150 tons | G44: 1 | H44: 1.25607101 | I44: 1.15311437 | J44: Does Not Apply | K44: Does Not Apply | L44: kW/ton | M44: 1.26 | N44: 1.008 | O44: 445.8967398 | P44: 42.33958709 | Q44: 16.80142345 | T44: 2.8 | U44: 3.05 | V44: Does Not Apply | W44: Does Not Apply | X44: COP
B45: =CONCATENATE(C45,"-",D45,"-",E45,"-",G45) -> CA-Air Cooled-Rotary-2 | C45: CA | D45: Air Cooled | E45: Rotary | F45: ≥150 tons and <300 tons | G45: 2 | H45: 1.25607101 | I45: 1.15311437 | J45: Does Not Apply | K45: Does Not Apply | L45: kW/ton | M45: 1.26 | N45: 1.008 | O45: 445.8967398 | P45: 42.33958709 | Q45: 16.80142345 | T45: 2.8 | U45: 3.05 | V45: Does Not Apply | W45: Does Not Apply | X45: COP
B46: CA-Air Cooled-Rotary-3 | C46: CA | D46: Air Cooled | E46: Rotary | F46: ≥300 tons | G46: 3 | H46: 1.25607101 | I46: 1.15311437 | J46: Does Not Apply | K46: Does Not Apply | L46: kW/ton | M46: 1.26 | N46: 1.008 | O46: 445.8967398 | P46: 42.33958709 | Q46: 16.80142345 | T46: 2.8 | U46: 3.05 | V46: Does Not Apply | W46: Does Not Apply | X46: COP
B47: CA-Water Cooled-Reciprocating-1 | C47: CA | D47: Water Cooled | E47: Reciprocating | F47: <150 tons | G47: 1 | H47: 0.8373806733 | I47: 0.6964354114 | J47: Does Not Apply | K47: Does Not Apply | L47: kW/ton | M47: 0.837 | N47: 0.672 | O47: 462.5882424 | P47: 16.27434124 | Q47: 9.863237114 | T47: 4.2 | U47: 5.05 | V47: Does Not Apply | W47: Does Not Apply | X47: COP
B48: CA-Water Cooled-Reciprocating-2 | C48: CA | D48: Water Cooled | E48: Reciprocating | F48: ≥150 tons and <300 tons | G48: 2 | H48: 0.8373806733 | I48: 0.6964354114 | J48: Does Not Apply | K48: Does Not Apply | L48: kW/ton | M48: 0.837 | N48: 0.672 | O48: 462.5882424 | P48: 16.27434124 | Q48: 9.863237114 | T48: 4.2 | U48: 5.05 | V48: Does Not Apply | W48: Does Not Apply | X48: COP
B49: CA-Water Cooled-Reciprocating-3 | C49: CA | D49: Water Cooled | E49: Reciprocating | F49: ≥300 tons | G49: 3 | H49: 0.8373806733 | I49: 0.6964354114 | J49: Does Not Apply | K49: Does Not Apply | L49: kW/ton | M49: 0.837 | N49: 0.672 | O49: 462.5882424 | P49: 16.27434124 | Q49: 9.863237114 | T49: 4.2 | U49: 5.05 | V49: Does Not Apply | W49: Does Not Apply | X49: COP
B50: CA-Water Cooled-Screw-1 | C50: CA | D50: Water Cooled | E50: Screw | F50: <150 tons | G50: 1 | H50: 0.7903368152 | I50: 0.6763459284 | J50: Does Not Apply | K50: Does Not Apply | L50: kW/ton | M50: 0.79 | N50: 0.632 | O50: 443.3892493 | P50: 49.05387812 | Q50: 31.04675831 | T50: 4.45 | U50: 5.2 | V50: Does Not Apply | W50: Does Not Apply | X50: COP
B51: CA-Water Cooled-Screw-2 | C51: CA | D51: Water Cooled | E51: Screw | F51: ≥150 tons and <300 tons | G51: 2 | H51: 0.7177548628 | I51: 0.6280355049 | J51: Does Not Apply | K51: Does Not Apply | L51: kW/ton | M51: 0.718 | N51: 0.574 | O51: 346.9411963 | P51: 25.47414437 | Q51: 17.69037803 | T51: 4.9 | U51: 5.6 | V51: Does Not Apply | W51: Does Not Apply | X51: COP
B52: CA-Water Cooled-Screw-3 | C52: CA | D52: Water Cooled | E52: Screw | F52: ≥300 tons | G52: 3 | H52: 0.6394543323 | I52: 0.5718697281 | J52: Does Not Apply | K52: Does Not Apply | L52: kW/ton | M52: 0.639 | N52: 0.511 | O52: 275.8363082 | P52: 11.39892069 | Q52: 8.905406786 | T52: 5.5 | U52: 6.15 | V52: Does Not Apply | W52: Does Not Apply | X52: COP
B53: CA-Water Cooled-Scroll-1 | C53: CA | D53: Water Cooled | E53: Scroll | F53: <150 tons | G53: 1 | H53: 0.7903368152 | I53: 0.6763459284 | J53: Does Not Apply | K53: Does Not Apply | L53: kW/ton | M53: 0.79 | N53: 0.632 | O53: 443.3892493 | P53: 49.05387812 | Q53: 31.04675831 | T53: 4.45 | U53: 5.2 | V53: Does Not Apply | W53: Does Not Apply | X53: COP
B54: CA-Water Cooled-Scroll-2 | C54: CA | D54: Water Cooled | E54: Scroll | F54: ≥150 tons and <300 tons | G54: 2 | H54: 0.7177548628 | I54: 0.6280355049 | J54: Does Not Apply | K54: Does Not Apply | L54: kW/ton | M54: 0.718 | N54: 0.574 | O54: 346.9411963 | P54: 25.47414437 | Q54: 17.69037803 | T54: 4.9 | U54: 5.6 | V54: Does Not Apply | W54: Does Not Apply | X54: COP
B55: CA-Water Cooled-Scroll-3 | C55: CA | D55: Water Cooled | E55: Scroll | F55: ≥300 tons | G55: 3 | H55: 0.6394543323 | I55: 0.5718697281 | J55: Does Not Apply | K55: Does Not Apply | L55: kW/ton | M55: 0.639 | N55: 0.511 | O55: 275.8363082 | P55: 11.39892069 | Q55: 8.905406786 | T55: 5.5 | U55: 6.15 | V55: Does Not Apply | W55: Does Not Apply | X55: COP
B56: CA-Water Cooled-Rotary-1 | C56: CA | D56: Water Cooled | E56: Rotary | F56: <150 tons | G56: 1 | H56: 0.7903368152 | I56: 0.6763459284 | J56: Does Not Apply | K56: Does Not Apply | L56: kW/ton | M56: 0.79 | N56: 0.632 | O56: 443.3892493 | P56: 49.05387812 | Q56: 31.04675831 | T56: 4.45 | U56: 5.2 | V56: Does Not Apply | W56: Does Not Apply | X56: COP
B57: CA-Water Cooled-Rotary-2 | C57: CA | D57: Water Cooled | E57: Rotary | F57: ≥150 tons and <300 tons | G57: 2 | H57: 0.7177548628 | I57: 0.6280355049 | J57: Does Not Apply | K57: Does Not Apply | L57: kW/ton | M57: 0.718 | N57: 0.574 | O57: 346.9411963 | P57: 25.47414437 | Q57: 17.69037803 | T57: 4.9 | U57: 5.6 | V57: Does Not Apply | W57: Does Not Apply | X57: COP
B58: CA-Water Cooled-Rotary-3 | C58: CA | D58: Water Cooled | E58: Rotary | F58: ≥300 tons | G58: 3 | H58: 0.6394543323 | I58: 0.5718697281 | J58: Does Not Apply | K58: Does Not Apply | L58: kW/ton | M58: 0.639 | N58: 0.511 | O58: 275.8363082 | P58: 11.39892069 | Q58: 8.905406786 | T58: 5.5 | U58: 6.15 | V58: Does Not Apply | W58: Does Not Apply | X58: COP
B59: CA-Water Cooled-Centrifugal-1 | C59: CA | D59: Water Cooled | E59: Centrifugal | F59: <150 tons | G59: 1 | H59: 0.7033997655 | I59: 0.6699045386 | J59: Does Not Apply | K59: Does Not Apply | L59: kW/ton | M59: 0.634 | N59: 0.56 | O59: 468.6879276 | P59: 145.5191392 | Q59: 196.6474853 | T59: 5 | U59: 5.25 | V59: Does Not Apply | W59: Does Not Apply | X59: COP
B60: CA-Water Cooled-Centrifugal-2 | C60: CA | D60: Water Cooled | E60: Centrifugal | F60: ≥150 tons and <300 tons | G60: 2 | H60: 0.6336934825 | I60: 0.5961014962 | J60: Does Not Apply | K60: Does Not Apply | L60: kW/ton | M60: 0.634 | N60: 0.507 | O60: 338.7655378 | P60: 93.84177406 | Q60: 73.89116068 | T60: 5.55 | U60: 5.9 | V60: Does Not Apply | W60: Does Not Apply | X60: COP
B61: CA-Water Cooled-Centrifugal-3 | C61: CA | D61: Water Cooled | E61: Centrifugal | F61: ≥300 tons | G61: 3 | H61: 0.5765571849 | I61: 0.5495310668 | J61: Does Not Apply | K61: Does Not Apply | L61: kW/ton | M61: 0.576 | N61: 0.461 | O61: 267.7142309 | P61: 65.58071502 | Q61: 57.02670872 | T61: 6.1 | U61: 6.4 | V61: Does Not Apply | W61: Does Not Apply | X61: COP
B63: Equipment ID | C63: State | D63: Heat Rejection | E63: Type | F63: Size | G63: Size ID | H63: Path A Minimum Full Load (kW/ton) | I63: Path A Minimum Part Load (kW/ton) | J63: Path B Minimum Full Load (kW/ton) | K63: Path B Minimum Part Load (kW/ton) | L63: Unit | M63: DEER Baseline Efficiency | N63: DEER New Efficiency (kW/ton) | O63: DEER Baseline cost | P63: DEER Incremental Cost ($/ton) | Q63: ($/ton/(0.1 kW/ton) increase) | T63: Path A Minimum Full Load (In Code) | U63: Path A Minimum (In Code) | V63: Path A Minimum Full Load (In Code) | W63: Path A Minimum IPLV (In Code) | X63: Unit
C64: UTAH Chiller Data (IECC 2018)
B65: =CONCATENATE(C65,"-",D65,"-",E65,"-",F65) -> UT-Air Cooled-Reciprocating-1 | C65: UT | D65: Air Cooled | E65: Reciprocating | F65: 1 | G65: < 150 tons | H65: =12/T65 -> 1.188118812 | I65: =12/U65 -> 0.8759124088 | J65: =12/V65 -> 1.237113402 | K65: =12/W65 -> 0.7594936709 | L65: kW/ton | M65: 1.26 | N65: 1.008 | O65: 448.9536364 | P65: 39.93525253 | Q65: =P65/((M65-N65)/0.1) -> 15.84732243 | T65: 10.1 | U65: 13.7 | V65: 9.7 | W65: 15.8 | X65: EER | Z65: =IF(H65=H102,"Same","Diff") -> Same | AA65: =IF(I65=I102,"Same","Diff") -> Same | AB65: Same | AC65: Same
B66: =CONCATENATE(C66,"-",D66,"-",E66,"-",F66) -> UT-Air Cooled-Reciprocating-2 | C66: UT | D66: Air Cooled | E66: Reciprocating | F66: 2 | G66: ≥ 150 tons | H66: =12/T66 -> 1.188118812 | I66: 0.8571428571 | J66: 1.237113402 | K66: 0.7453416149 | L66: kW/ton | M66: 1.26 | N66: 1.008 | O66: 448.9536364 | P66: 39.93525253 | Q66: 15.84732243 | T66: 10.1 | U66: 14 | V66: 9.7 | W66: 16.1 | X66: EER | Z66: =IF(H66=H103,"Same","Diff") -> Same | AA66: =IF(I66=I103,"Same","Diff") -> Same | AB66: =IF(J66=J103,"Same","Diff") -> Same | AC66: =IF(K66=K103,"Same","Diff") -> Same
B67: UT-Air Cooled-Rotary-1 | C67: UT | D67: Air Cooled | E67: Rotary | F67: 1 | G67: < 150 tons | H67: 1.188118812 | I67: 0.8759124088 | J67: 1.237113402 | K67: 0.7594936709 | L67: kW/ton | M67: 1.26 | N67: 1.008 | O67: 448.9536364 | P67: 39.93525253 | Q67: 15.84732243 | T67: 10.1 | U67: 13.7 | V67: 9.7 | W67: 15.8 | X67: EER | Z67: Same | AA67: Same | AB67: Same | AC67: Same
B68: UT-Air Cooled-Rotary-2 | C68: UT | D68: Air Cooled | E68: Rotary | F68: 2 | G68: ≥ 150 tons | H68: 1.188118812 | I68: 0.8571428571 | J68: 1.237113402 | K68: 0.7453416149 | L68: kW/ton | M68: 1.26 | N68: 1.008 | O68: 448.9536364 | P68: 39.93525253 | Q68: 15.84732243 | T68: 10.1 | U68: 14 | V68: 9.7 | W68: 16.1 | X68: EER | Z68: Same | AA68: Same | AB68: Same | AC68: Same
B69: UT-Air Cooled-Screw-1 | C69: UT | D69: Air Cooled | E69: Screw | F69: 1 | G69: < 150 tons | H69: 1.188118812 | I69: 0.8759124088 | J69: 1.237113402 | K69: 0.7594936709 | L69: kW/ton | M69: 1.26 | N69: 1.008 | O69: 448.9536364 | P69: 39.93525253 | Q69: 15.84732243 | T69: 10.1 | U69: 13.7 | V69: 9.7 | W69: 15.8 | X69: EER | Z69: Same | AA69: Same | AB69: Same | AC69: Same
B70: UT-Air Cooled-Screw-2 | C70: UT | D70: Air Cooled | E70: Screw | F70: 2 | G70: ≥ 150 tons | H70: 1.188118812 | I70: 0.8571428571 | J70: 1.237113402 | K70: 0.7453416149 | L70: kW/ton | M70: 1.26 | N70: 1.008 | O70: 448.9536364 | P70: 39.93525253 | Q70: 15.84732243 | T70: 10.1 | U70: 14 | V70: 9.7 | W70: 16.1 | X70: EER | Z70: Same | AA70: Same | AB70: Same | AC70: Same
B71: UT-Air Cooled-Scroll-1 | C71: UT | D71: Air Cooled | E71: Scroll | F71: 1 | G71: < 150 tons | H71: 1.188118812 | I71: 0.8759124088 | J71: 1.237113402 | K71: 0.7594936709 | L71: kW/ton | M71: 1.26 | N71: 1.008 | O71: 448.9536364 | P71: 39.93525253 | Q71: 15.84732243 | T71: 10.1 | U71: 13.7 | V71: 9.7 | W71: 15.8 | X71: EER | Z71: Same | AA71: Same | AB71: Same | AC71: Same
B72: UT-Air Cooled-Scroll-2 | C72: UT | D72: Air Cooled | E72: Scroll | F72: 2 | G72: ≥ 150 tons | H72: 1.188118812 | I72: 0.8571428571 | J72: 1.237113402 | K72: 0.7453416149 | L72: kW/ton | M72: 1.26 | N72: 1.008 | O72: 448.9536364 | P72: 39.93525253 | Q72: 15.84732243 | T72: 10.1 | U72: 14 | V72: 9.7 | W72: 16.1 | X72: EER | Z72: Same | AA72: Same | AB72: Same | AC72: Same
B73: UT-Water Cooled-Reciprocating-1 | C73: UT | D73: Water Cooled | E73: Reciprocating | F73: 1 | G73: < 75 tons | H73: =T73 -> 0.75 | I73: =U73 -> 0.6 | J73: =V73 -> 0.78 | K73: =W73 -> 0.5 | L73: kW/ton | M73: 0.837 | N73: 0.672 | O73: 462.5882424 | P73: 16.27434124 | Q73: 9.863237114 | T73: 0.75 | U73: 0.6 | V73: 0.78 | W73: 0.5 | X73: kW/ton | Z73: Same | AA73: Same | AB73: Same | AC73: Same
B74: UT-Water Cooled-Reciprocating-2 | C74: UT | D74: Water Cooled | E74: Reciprocating | F74: 2 | G74: ≥ 75 tons and < 150 tons | H74: =T74 -> 0.72 | I74: 0.56 | J74: 0.75 | K74: 0.49 | L74: kW/ton | M74: 0.837 | N74: 0.672 | O74: 462.5882424 | P74: 16.27434124 | Q74: 9.863237114 | T74: 0.72 | U74: 0.56 | V74: 0.75 | W74: 0.49 | X74: kW/ton | Z74: Same | AA74: Same | AB74: Same | AC74: Same
B75: UT-Water Cooled-Reciprocating-3 | C75: UT | D75: Water Cooled | E75: Reciprocating | F75: 3 | G75: ≥ 150 tons and < 300 tons | H75: 0.66 | I75: 0.54 | J75: 0.68 | K75: 0.44 | L75: kW/ton | M75: 0.837 | N75: 0.672 | O75: 462.5882424 | P75: 16.27434124 | Q75: 9.863237114 | T75: 0.66 | U75: 0.54 | V75: 0.68 | W75: 0.44 | X75: kW/ton | Z75: Same | AA75: Same | AB75: Same | AC75: Same
B76: UT-Water Cooled-Reciprocating-4 | C76: UT | D76: Water Cooled | E76: Reciprocating | F76: 4 | G76: ≥ 300 tons and < 600 tons | H76: 0.61 | I76: 0.52 | J76: 0.625 | K76: 0.41 | L76: kW/ton | M76: 0.837 | N76: 0.672 | O76: 462.5882424 | P76: 16.27434124 | Q76: =P76/((M76-N76)/0.1) -> 9.863237114 | T76: 0.61 | U76: 0.52 | V76: 0.625 | W76: 0.41 | X76: kW/ton | Z76: Same | AA76: Same | AB76: Same | AC76: Same
B77: UT-Water Cooled-Reciprocating-5 | C77: UT | D77: Water Cooled | E77: Reciprocating | F77: 5 | G77: ≥ 600 tons | H77: 0.56 | I77: 0.5 | J77: 0.585 | K77: 0.38 | L77: kW/ton | T77: 0.56 | U77: 0.5 | V77: 0.585 | W77: 0.38 | X77: kW/ton | Z77: Same | AA77: Same | AB77: Same | AC77: Same
B78: UT-Water Cooled-Rotary-1 | C78: UT | D78: Water Cooled | E78: Rotary | F78: 1 | G78: < 75 tons | H78: 0.75 | I78: 0.6 | J78: 0.78 | K78: 0.5 | L78: kW/ton | M78: 0.79 | N78: 0.632 | O78: 443.3892493 | P78: 49.05387812 | Q78: =P78/((M78-N78)/0.1) -> 31.04675831 | T78: 0.75 | U78: 0.6 | V78: 0.78 | W78: 0.5 | X78: kW/ton | Z78: Same | AA78: Same | AB78: Same | AC78: Same
B79: UT-Water Cooled-Rotary-2 | C79: UT | D79: Water Cooled | E79: Rotary | F79: 2 | G79: ≥ 75 tons and < 150 tons | H79: 0.72 | I79: 0.56 | J79: 0.75 | K79: 0.49 | L79: kW/ton | M79: 0.79 | N79: 0.632 | O79: 443.3892493 | P79: 49.05387812 | Q79: =P79/((M79-N79)/0.1) -> 31.04675831 | T79: 0.72 | U79: 0.56 | V79: 0.75 | W79: 0.49 | X79: kW/ton | Z79: Same | AA79: Same | AB79: Same | AC79: Same
B80: UT-Water Cooled-Rotary-3 | C80: UT | D80: Water Cooled | E80: Rotary | F80: 3 | G80: ≥ 150 tons and < 300 tons | H80: 0.66 | I80: 0.54 | J80: 0.68 | K80: 0.44 | L80: kW/ton | M80: 0.718 | N80: 0.574 | O80: 346.9411963 | P80: 25.47414437 | Q80: =P80/((M80-N80)/0.1) -> 17.69037803 | T80: 0.66 | U80: 0.54 | V80: 0.68 | W80: 0.44 | X80: kW/ton | Z80: Same | AA80: Same | AB80: Same | AC80: Same
B81: UT-Water Cooled-Rotary-4 | C81: UT | D81: Water Cooled | E81: Rotary | F81: 4 | G81: ≥ 300 tons and < 600 tons | H81: 0.61 | I81: 0.52 | J81: 0.625 | K81: 0.41 | L81: kW/ton | M81: 0.639 | N81: 0.511 | O81: 275.8363082 | P81: 11.39892069 | Q81: =P81/((M81-N81)/0.1) -> 8.905406786 | T81: 0.61 | U81: 0.52 | V81: 0.625 | W81: 0.41 | X81: kW/ton | Z81: Same | AA81: Same | AB81: Same | AC81: Same
B82: UT-Water Cooled-Rotary-5 | C82: UT | D82: Water Cooled | E82: Rotary | F82: 5 | G82: ≥ 600 tons | H82: 0.56 | I82: 0.5 | J82: 0.585 | K82: 0.38 | L82: kW/ton | T82: 0.56 | U82: 0.5 | V82: 0.585 | W82: 0.38 | Z82: Same | AA82: Same | AB82: Same | AC82: Same
B83: UT-Water Cooled-Screw-1 | C83: UT | D83: Water Cooled | E83: Screw | F83: 1 | G83: < 75 tons | H83: 0.75 | I83: 0.6 | J83: 0.78 | K83: 0.5 | L83: kW/ton | M83: 0.79 | N83: 0.632 | O83: 443.3892493 | P83: 49.05387812 | Q83: =P83/((M83-N83)/0.1) -> 31.04675831 | T83: 0.75 | U83: 0.6 | V83: 0.78 | W83: 0.5 | X83: kW/ton | Z83: Same | AA83: Same | AB83: Same | AC83: Same
B84: UT-Water Cooled-Screw-2 | C84: UT | D84: Water Cooled | E84: Screw | F84: 2 | G84: ≥ 75 tons and < 150 tons | H84: 0.72 | I84: 0.56 | J84: 0.75 | K84: 0.49 | L84: kW/ton | M84: 0.79 | N84: 0.632 | O84: 443.3892493 | P84: 49.05387812 | Q84: 31.04675831 | T84: 0.72 | U84: 0.56 | V84: 0.75 | W84: 0.49 | X84: kW/ton | Z84: Same | AA84: Same | AB84: Same | AC84: Same
B85: UT-Water Cooled-Screw-3 | C85: UT | D85: Water Cooled | E85: Screw | F85: 3 | G85: ≥ 150 tons and < 300 tons | H85: 0.66 | I85: 0.54 | J85: 0.68 | K85: 0.44 | L85: kW/ton | M85: 0.718 | N85: 0.574 | O85: 346.9411963 | P85: 25.47414437 | Q85: 17.69037803 | T85: 0.66 | U85: 0.54 | V85: 0.68 | W85: 0.44 | X85: kW/ton | Z85: Same | AA85: Same | AB85: Same | AC85: Same
B86: UT-Water Cooled-Screw-4 | C86: UT | D86: Water Cooled | E86: Screw | F86: 4 | G86: ≥ 300 tons and < 600 tons | H86: 0.61 | I86: 0.52 | J86: 0.625 | K86: 0.41 | L86: kW/ton | M86: 0.639 | N86: 0.511 | O86: 275.8363082 | P86: 11.39892069 | Q86: 8.905406786 | T86: 0.61 | U86: 0.52 | V86: 0.625 | W86: 0.41 | X86: kW/ton | Z86: Same | AA86: Same | AB86: Same | AC86: Same
B87: UT-Water Cooled-Screw-5 | C87: UT | D87: Water Cooled | E87: Screw | F87: 5 | G87: ≥ 600 tons | H87: 0.56 | I87: 0.5 | J87: 0.585 | K87: 0.38 | L87: kW/ton | T87: 0.56 | U87: 0.5 | V87: 0.585 | W87: 0.38 | Z87: Same | AA87: Same | AB87: Same | AC87: Same
B88: UT-Water Cooled-Scroll-1 | C88: UT | D88: Water Cooled | E88: Scroll | F88: 1 | G88: < 75 tons | H88: 0.75 | I88: 0.6 | J88: 0.78 | K88: 0.5 | L88: kW/ton | M88: 0.79 | N88: 0.632 | O88: 443.3892493 | P88: 49.05387812 | Q88: =P88/((M88-N88)/0.1) -> 31.04675831 | T88: 0.75 | U88: 0.6 | V88: 0.78 | W88: 0.5 | X88: kW/ton | Z88: Same | AA88: Same | AB88: Same | AC88: Same
B89: UT-Water Cooled-Scroll-2 | C89: UT | D89: Water Cooled | E89: Scroll | F89: 2 | G89: ≥ 75 tons and < 150 tons | H89: 0.72 | I89: 0.56 | J89: 0.75 | K89: 0.49 | L89: kW/ton | M89: 0.79 | N89: 0.632 | O89: 443.3892493 | P89: 49.05387812 | Q89: 31.04675831 | T89: 0.72 | U89: 0.56 | V89: 0.75 | W89: 0.49 | X89: kW/ton | Z89: Same | AA89: Same | AB89: Same | AC89: Same
B90: UT-Water Cooled-Scroll-3 | C90: UT | D90: Water Cooled | E90: Scroll | F90: 3 | G90: ≥ 150 tons and < 300 tons | H90: 0.66 | I90: 0.54 | J90: 0.68 | K90: 0.44 | L90: kW/ton | M90: 0.718 | N90: 0.574 | O90: 346.9411963 | P90: 25.47414437 | Q90: 17.69037803 | T90: 0.66 | U90: 0.54 | V90: 0.68 | W90: 0.44 | X90: kW/ton | Z90: Same | AA90: Same | AB90: Same | AC90: Same
B91: UT-Water Cooled-Scroll-4 | C91: UT | D91: Water Cooled | E91: Scroll | F91: 4 | G91: ≥ 300 tons and < 600 tons | H91: 0.61 | I91: 0.52 | J91: 0.625 | K91: 0.41 | L91: kW/ton | M91: 0.639 | N91: 0.511 | O91: 275.8363082 | P91: 11.39892069 | Q91: 8.905406786 | T91: 0.61 | U91: 0.52 | V91: 0.625 | W91: 0.41 | X91: kW/ton | Z91: Same | AA91: Same | AB91: Same | AC91: Same
B92: UT-Water Cooled-Scroll-5 | C92: UT | D92: Water Cooled | E92: Scroll | F92: 5 | G92: ≥ 600 tons | H92: 0.56 | I92: 0.5 | J92: 0.585 | K92: 0.38 | L92: kW/ton | T92: 0.56 | U92: 0.5 | V92: 0.585 | W92: 0.38 | Z92: Same | AA92: Same | AB92: Same | AC92: Same
B93: UT-Water Cooled-Centrifugal-1 | C93: UT | D93: Water Cooled | E93: Centrifugal | F93: 1 | G93: < 75 tons | H93: 0.61 | I93: 0.55 | J93: 0.695 | K93: 0.44 | L93: kW/ton | M93: 0.634 | N93: 0.56 | O93: 468.6879276 | P93: 145.5191392 | Q93: =P93/((M93-N93)/0.1) -> 196.6474853 | T93: 0.61 | U93: 0.55 | V93: 0.695 | W93: 0.44 | X93: kW/ton | Z93: Same | AA93: Same | AB93: Same | AC93: Same
B94: UT-Water Cooled-Centrifugal-2 | C94: UT | D94: Water Cooled | E94: Centrifugal | F94: 2 | G94: < 150 tons | H94: 0.61 | I94: 0.55 | J94: 0.695 | K94: 0.44 | L94: kW/ton | M94: 0.634 | N94: 0.56 | O94: 468.6879276 | P94: 145.5191392 | Q94: 196.6474853 | T94: 0.61 | U94: 0.55 | V94: 0.695 | W94: 0.44 | X94: kW/ton | Z94: Same | AA94: Same | AB94: Same | AC94: Same
B95: UT-Water Cooled-Centrifugal-3 | C95: UT | D95: Water Cooled | E95: Centrifugal | F95: 3 | G95: ≥ 150 tons and < 300 tons | H95: 0.61 | I95: 0.55 | J95: 0.635 | K95: 0.4 | L95: kW/ton | M95: 0.634 | N95: 0.507 | O95: 338.7655378 | P95: 93.84177406 | Q95: 73.89116068 | T95: 0.61 | U95: 0.55 | V95: 0.635 | W95: 0.4 | X95: kW/ton | Z95: Same | AA95: Same | AB95: Same | AC95: Same
B96: UT-Water Cooled-Centrifugal-4 | C96: UT | D96: Water Cooled | E96: Centrifugal | F96: 4 | G96: ≥ 300 tons and < 400 tons | H96: 0.56 | I96: 0.52 | J96: 0.595 | K96: 0.39 | L96: kW/ton | M96: 0.576 | N96: 0.461 | O96: 267.7142309 | P96: 65.58071502 | Q96: 57.02670872 | T96: 0.56 | U96: 0.52 | V96: 0.595 | W96: 0.39 | X96: kW/ton | Z96: Same | AA96: Same | AB96: Same | AC96: Same
B97: UT-Water Cooled-Centrifugal-5 | C97: UT | D97: Water Cooled | E97: Centrifugal | F97: 5 | G97: ≥ 400 tons and < 600 tons | H97: =T97 -> 0.56 | I97: 0.5 | J97: 0.585 | K97: 0.38 | L97: kW/ton | M97: 0.576 | N97: 0.461 | O97: 267.7142309 | P97: 65.58071502 | Q97: 57.02670872 | T97: 0.56 | U97: 0.5 | V97: 0.585 | W97: 0.38 | X97: kW/ton | Z97: Same | AA97: Same | AB97: Same | AC97: Same
B98: UT-Water Cooled-Centrifugal-6 | C98: UT | D98: Water Cooled | E98: Centrifugal | F98: 6 | G98: ≥ 600 tons | H98: =T98 -> 0.56 | I98: 0.5 | J98: 0.585 | K98: 0.38 | L98: kW/ton | M98: 0.576 | N98: 0.461 | O98: 267.7142309 | P98: 65.58071502 | Q98: 57.02670872 | T98: 0.56 | U98: 0.5 | V98: 0.585 | W98: 0.38 | X98: kW/ton
B100: Equipment ID | C100: State | D100: Heat Rejection | E100: Type | F100: Size | G100: Size ID | H100: Minimum COP (kW/ton) | I100: Minimum IPLV (kW/ton) | L100: Unit | M100: DEER Baseline Efficiency | N100: DEER New Efficiency (kW/ton) | O100: DEER Baseline cost | P100: DEER Incremental Cost ($/ton) | Q100: ($/ton/(0.1 kW/ton) increase) | T100: Path A Minimum Full Load | U100: Path A Minimum IPLV | V100: Path B Minimum Full Load | W100: Path B Minimum IPLV | X100: Unit
C101: IDAHO Chiller Data (IECC 2015)
B102: =CONCATENATE(C102,"-",D102,"-",E102,"-",F102) -> ID-Air Cooled-Reciprocating-1 | C102: ID | D102: Air Cooled | E102: Reciprocating | F102: 1 | G102: < 150 tons | H102: =12/T102 -> 1.188118812 | I102: =12/U102 -> 0.8759124088 | J102: 1.237113402 | K102: 0.7594936709 | L102: kW/ton | M102: 1.26 | N102: 1.008 | O102: 448.9536364 | P102: 39.93525253 | Q102: =P102/((M102-N102)/0.1) -> 15.84732243 | T102: 10.1 | U102: 13.7 | V102: 9.7 | W102: 15.8 | X102: EER | Z102: =12/10.1 -> 1.188118812
B103: =CONCATENATE(C103,"-",D103,"-",E103,"-",F103) -> ID-Air Cooled-Reciprocating-2 | C103: ID | D103: Air Cooled | E103: Reciprocating | F103: 2 | G103: ≥ 150 tons | H103: =12/T103 -> 1.188118812 | I103: =12/U103 -> 0.8571428571 | J103: =12/V103 -> 1.237113402 | K103: =12/W103 -> 0.7453416149 | L103: kW/ton | M103: 1.26 | N103: 1.008 | O103: 448.9536364 | P103: 39.93525253 | Q103: 15.84732243 | T103: 10.1 | U103: 14 | V103: 9.7 | W103: 16.1 | X103: EER
B104: ID-Air Cooled-Rotary-1 | C104: ID | D104: Air Cooled | E104: Rotary | F104: 1 | G104: < 150 tons | H104: 1.188118812 | I104: 0.8759124088 | J104: 1.237113402 | K104: 0.7594936709 | L104: kW/ton | M104: 1.26 | N104: 1.008 | O104: 448.9536364 | P104: 39.93525253 | Q104: 15.84732243 | T104: 10.1 | U104: 13.7 | V104: 9.7 | W104: 15.8 | X104: EER
B105: ID-Air Cooled-Rotary-2 | C105: ID | D105: Air Cooled | E105: Rotary | F105: 2 | G105: ≥ 150 tons | H105: 1.188118812 | I105: 0.8571428571 | J105: 1.237113402 | K105: 0.7453416149 | L105: kW/ton | M105: 1.26 | N105: 1.008 | O105: 448.9536364 | P105: 39.93525253 | Q105: 15.84732243 | T105: 10.1 | U105: 14 | V105: 9.7 | W105: 16.1 | X105: EER
B106: ID-Air Cooled-Screw-1 | C106: ID | D106: Air Cooled | E106: Screw | F106: 1 | G106: < 150 tons | H106: 1.188118812 | I106: 0.8759124088 | J106: 1.237113402 | K106: 0.7594936709 | L106: kW/ton | M106: 1.26 | N106: 1.008 | O106: 448.9536364 | P106: 39.93525253 | Q106: 15.84732243 | T106: 10.1 | U106: 13.7 | V106: 9.7 | W106: 15.8 | X106: EER
B107: ID-Air Cooled-Screw-2 | C107: ID | D107: Air Cooled | E107: Screw | F107: 2 | G107: ≥ 150 tons | H107: 1.188118812 | I107: 0.8571428571 | J107: 1.237113402 | K107: 0.7453416149 | L107: kW/ton | M107: 1.26 | N107: 1.008 | O107: 448.9536364 | P107: 39.93525253 | Q107: 15.84732243 | T107: 10.1 | U107: 14 | V107: 9.7 | W107: 16.1 | X107: EER
B108: ID-Air Cooled-Scroll-1 | C108: ID | D108: Air Cooled | E108: Scroll | F108: 1 | G108: < 150 tons | H108: 1.188118812 | I108: 0.8759124088 | J108: 1.237113402 | K108: 0.7594936709 | L108: kW/ton | M108: 1.26 | N108: 1.008 | O108: 448.9536364 | P108: 39.93525253 | Q108: 15.84732243 | T108: 10.1 | U108: 13.7 | V108: 9.7 | W108: 15.8 | X108: EER
B109: ID-Air Cooled-Scroll-2 | C109: ID | D109: Air Cooled | E109: Scroll | F109: 2 | G109: ≥ 150 tons | H109: 1.188118812 | I109: 0.8571428571 | J109: 1.237113402 | K109: 0.7453416149 | L109: kW/ton | M109: 1.26 | N109: 1.008 | O109: 448.9536364 | P109: 39.93525253 | Q109: 15.84732243 | T109: 10.1 | U109: 14 | V109: 9.7 | W109: 16.1 | X109: EER
B110: ID-Water Cooled-Reciprocating-1 | C110: ID | D110: Water Cooled | E110: Reciprocating | F110: 1 | G110: < 75 tons | H110: =T110 -> 0.75 | I110: =U110 -> 0.6 | J110: 0.78 | K110: 0.5 | L110: kW/ton | M110: 0.837 | N110: 0.672 | O110: 462.5882424 | P110: 16.27434124 | Q110: 9.863237114 | T110: 0.75 | U110: 0.6 | V110: 0.78 | W110: 0.5 | X110: kW/ton
B111: ID-Water Cooled-Reciprocating-2 | C111: ID | D111: Water Cooled | E111: Reciprocating | F111: 2 | G111: ≥ 75 tons and < 150 tons | H111: =T111 -> 0.72 | I111: =U111 -> 0.56 | J111: =V111 -> 0.75 | K111: =W111 -> 0.49 | L111: kW/ton | M111: 0.837 | N111: 0.672 | O111: 462.5882424 | P111: 16.27434124 | Q111: 9.863237114 | T111: 0.72 | U111: 0.56 | V111: 0.75 | W111: 0.49 | X111: kW/ton
B112: ID-Water Cooled-Reciprocating-3 | C112: ID | D112: Water Cooled | E112: Reciprocating | F112: 3 | G112: ≥ 150 tons and < 300 tons | H112: 0.66 | I112: 0.54 | J112: 0.68 | K112: 0.44 | L112: kW/ton | M112: 0.837 | N112: 0.672 | O112: 462.5882424 | P112: 16.27434124 | Q112: 9.863237114 | T112: 0.66 | U112: 0.54 | V112: 0.68 | W112: 0.44 | X112: kW/ton
B113: ID-Water Cooled-Reciprocating-4 | C113: ID | D113: Water Cooled | E113: Reciprocating | F113: 4 | G113: ≥ 300 tons and < 600 tons | H113: 0.61 | I113: 0.52 | J113: 0.625 | K113: 0.41 | L113: kW/ton | M113: 0.837 | N113: 0.672 | O113: 462.5882424 | P113: 16.27434124 | Q113: =P113/((M113-N113)/0.1) -> 9.863237114 | T113: 0.61 | U113: 0.52 | V113: 0.625 | W113: 0.41 | X113: kW/ton
B114: ID-Water Cooled-Reciprocating-5 | C114: ID | D114: Water Cooled | E114: Reciprocating | F114: 5 | G114: ≥ 600 tons | H114: 0.56 | I114: 0.5 | J114: 0.585 | K114: 0.38 | L114: kW/ton | T114: 0.56 | U114: 0.5 | V114: 0.585 | W114: 0.38 | X114: kW/ton
B115: ID-Water Cooled-Rotary-1 | C115: ID | D115: Water Cooled | E115: Rotary | F115: 1 | G115: < 75 tons | H115: 0.75 | I115: 0.6 | J115: 0.78 | K115: 0.5 | L115: kW/ton | M115: 0.79 | N115: 0.632 | O115: 443.3892493 | P115: 49.05387812 | Q115: =P115/((M115-N115)/0.1) -> 31.04675831 | T115: 0.75 | U115: 0.6 | V115: 0.78 | W115: 0.5 | X115: kW/ton
B116: ID-Water Cooled-Rotary-2 | C116: ID | D116: Water Cooled | E116: Rotary | F116: 2 | G116: ≥ 75 tons and < 150 tons | H116: 0.72 | I116: 0.56 | J116: 0.75 | K116: 0.49 | L116: kW/ton | M116: 0.79 | N116: 0.632 | O116: 443.3892493 | P116: 49.05387812 | Q116: =P116/((M116-N116)/0.1) -> 31.04675831 | T116: 0.72 | U116: 0.56 | V116: 0.75 | W116: 0.49 | X116: kW/ton
B117: ID-Water Cooled-Rotary-3 | C117: ID | D117: Water Cooled | E117: Rotary | F117: 3 | G117: ≥ 150 tons and < 300 tons | H117: 0.66 | I117: 0.54 | J117: 0.68 | K117: 0.44 | L117: kW/ton | M117: 0.718 | N117: 0.574 | O117: 346.9411963 | P117: 25.47414437 | Q117: =P117/((M117-N117)/0.1) -> 17.69037803 | T117: 0.66 | U117: 0.54 | V117: 0.68 | W117: 0.44 | X117: kW/ton
B118: ID-Water Cooled-Rotary-4 | C118: ID | D118: Water Cooled | E118: Rotary | F118: 4 | G118: ≥ 300 tons and < 600 tons | H118: 0.61 | I118: 0.52 | J118: 0.625 | K118: 0.41 | L118: kW/ton | M118: 0.639 | N118: 0.511 | O118: 275.8363082 | P118: 11.39892069 | Q118: =P118/((M118-N118)/0.1) -> 8.905406786 | T118: 0.61 | U118: 0.52 | V118: 0.625 | W118: 0.41 | X118: kW/ton
B119: =CONCATENATE(C119,"-",D119,"-",E119,"-",F119) -> ID-Water Cooled-Rotary-5 | C119: ID | D119: Water Cooled | E119: Rotary | F119: 5 | G119: ≥ 600 tons | H119: 0.56 | I119: 0.5 | J119: 0.585 | K119: 0.38 | L119: kW/ton | T119: 0.56 | U119: 0.5 | V119: 0.585 | W119: 0.38 | X119: kW/ton
B120: ID-Water Cooled-Screw-1 | C120: ID | D120: Water Cooled | E120: Screw | F120: 1 | G120: < 75 tons | H120: 0.75 | I120: 0.6 | J120: 0.78 | K120: 0.5 | L120: kW/ton | M120: 0.79 | N120: 0.632 | O120: 443.3892493 | P120: 49.05387812 | Q120: =P120/((M120-N120)/0.1) -> 31.04675831 | T120: 0.75 | U120: 0.6 | V120: 0.78 | W120: 0.5 | X120: kW/ton
B121: ID-Water Cooled-Screw-2 | C121: ID | D121: Water Cooled | E121: Screw | F121: 2 | G121: ≥ 75 tons and < 150 tons | H121: 0.72 | I121: 0.56 | J121: 0.75 | K121: 0.49 | L121: kW/ton | M121: 0.79 | N121: 0.632 | O121: 443.3892493 | P121: 49.05387812 | Q121: 31.04675831 | T121: 0.72 | U121: 0.56 | V121: 0.75 | W121: 0.49 | X121: kW/ton
B122: ID-Water Cooled-Screw-3 | C122: ID | D122: Water Cooled | E122: Screw | F122: 3 | G122: ≥ 150 tons and < 300 tons | H122: 0.66 | I122: 0.54 | J122: 0.68 | K122: 0.44 | L122: kW/ton | M122: 0.718 | N122: 0.574 | O122: 346.9411963 | P122: 25.47414437 | Q122: 17.69037803 | T122: 0.66 | U122: 0.54 | V122: 0.68 | W122: 0.44 | X122: kW/ton
B123: ID-Water Cooled-Screw-4 | C123: ID | D123: Water Cooled | E123: Screw | F123: 4 | G123: ≥ 300 tons and < 600 tons | H123: 0.61 | I123: 0.52 | J123: 0.625 | K123: 0.41 | L123: kW/ton | M123: 0.639 | N123: 0.511 | O123: 275.8363082 | P123: 11.39892069 | Q123: 8.905406786 | T123: 0.61 | U123: 0.52 | V123: 0.625 | W123: 0.41 | X123: kW/ton
B124: =CONCATENATE(C124,"-",D124,"-",E124,"-",F124) -> ID-Water Cooled-Screw-5 | C124: ID | D124: Water Cooled | E124: Screw | F124: 5 | G124: ≥ 600 tons | H124: 0.56 | I124: 0.5 | J124: 0.585 | K124: 0.38 | L124: kW/ton | T124: 0.56 | U124: 0.5 | V124: 0.585 | W124: 0.38 | X124: kW/ton
B125: ID-Water Cooled-Scroll-1 | C125: ID | D125: Water Cooled | E125: Scroll | F125: 1 | G125: < 75 tons | H125: 0.75 | I125: 0.6 | J125: 0.78 | K125: 0.5 | L125: kW/ton | M125: 0.79 | N125: 0.632 | O125: 443.3892493 | P125: 49.05387812 | Q125: 31.04675831 | T125: 0.75 | U125: 0.6 | V125: 0.78 | W125: 0.5 | X125: kW/ton
B126: ID-Water Cooled-Scroll-2 | C126: ID | D126: Water Cooled | E126: Scroll | F126: 2 | G126: ≥ 75 tons and < 150 tons | H126: 0.72 | I126: 0.56 | J126: 0.75 | K126: 0.49 | L126: kW/ton | M126: 0.79 | N126: 0.632 | O126: 443.3892493 | P126: 49.05387812 | Q126: 31.04675831 | T126: 0.72 | U126: 0.56 | V126: 0.75 | W126: 0.49 | X126: kW/ton
B127: ID-Water Cooled-Scroll-3 | C127: ID | D127: Water Cooled | E127: Scroll | F127: 3 | G127: ≥ 150 tons and < 300 tons | H127: 0.66 | I127: 0.54 | J127: 0.68 | K127: 0.44 | L127: kW/ton | M127: 0.718 | N127: 0.574 | O127: 346.9411963 | P127: 25.47414437 | Q127: 17.69037803 | T127: 0.66 | U127: 0.54 | V127: 0.68 | W127: 0.44 | X127: kW/ton
B128: ID-Water Cooled-Scroll-4 | C128: ID | D128: Water Cooled | E128: Scroll | F128: 4 | G128: ≥ 300 tons and < 600 tons | H128: 0.61 | I128: 0.52 | J128: 0.625 | K128: 0.41 | L128: kW/ton | M128: 0.639 | N128: 0.511 | O128: 275.8363082 | P128: 11.39892069 | Q128: 8.905406786 | T128: 0.61 | U128: 0.52 | V128: 0.625 | W128: 0.41 | X128: kW/ton
B129: =CONCATENATE(C129,"-",D129,"-",E129,"-",F129) -> ID-Water Cooled-Scroll-5 | C129: ID | D129: Water Cooled | E129: Scroll | F129: 5 | G129: ≥ 600 tons | H129: 0.56 | I129: 0.5 | J129: 0.585 | K129: 0.38 | L129: kW/ton | T129: 0.56 | U129: 0.5 | V129: 0.585 | W129: 0.38 | X129: kW/ton
B130: ID-Water Cooled-Centrifugal-1 | C130: ID | D130: Water Cooled | E130: Centrifugal | F130: 1 | G130: < 75 tons | H130: 0.61 | I130: 0.55 | J130: 0.695 | K130: 0.44 | L130: kW/ton | M130: 0.634 | N130: 0.56 | O130: 468.6879276 | P130: 145.5191392 | Q130: 196.6474853 | T130: 0.61 | U130: 0.55 | V130: 0.695 | W130: 0.44 | X130: kW/ton
B131: =CONCATENATE(C131,"-",D131,"-",E131,"-",F131) -> ID-Water Cooled-Centrifugal-2 | C131: ID | D131: Water Cooled | E131: Centrifugal | F131: 2 | G131: < 150 tons | H131: 0.61 | I131: 0.55 | J131: 0.695 | K131: 0.44 | L131: kW/ton | M131: 0.634 | N131: 0.56 | O131: 468.6879276 | P131: 145.5191392 | Q131: 196.6474853 | T131: 0.61 | U131: 0.55 | V131: 0.695 | W131: 0.44 | X131: kW/ton
B132: ID-Water Cooled-Centrifugal-3 | C132: ID | D132: Water Cooled | E132: Centrifugal | F132: 3 | G132: ≥ 150 tons and < 300 tons | H132: 0.61 | I132: 0.55 | J132: 0.635 | K132: 0.4 | L132: kW/ton | M132: 0.634 | N132: 0.507 | O132: 338.7655378 | P132: 93.84177406 | Q132: 73.89116068 | T132: 0.61 | U132: 0.55 | V132: 0.635 | W132: 0.4 | X132: kW/ton
B133: ID-Water Cooled-Centrifugal-4 | C133: ID | D133: Water Cooled | E133: Centrifugal | F133: 4 | G133: ≥ 300 tons and < 400 tons | H133: 0.56 | I133: 0.52 | J133: 0.595 | K133: 0.39 | L133: kW/ton | M133: 0.576 | N133: 0.461 | O133: 267.7142309 | P133: 65.58071502 | Q133: 57.02670872 | T133: 0.56 | U133: 0.52 | V133: 0.595 | W133: 0.39 | X133: kW/ton
B134: =CONCATENATE(C134,"-",D134,"-",E134,"-",F134) -> ID-Water Cooled-Centrifugal-5 | C134: ID | D134: Water Cooled | E134: Centrifugal | F134: 5 | G134: ≥ 400 tons and < 600 tons | H134: =T134 -> 0.56 | I134: =U134 -> 0.5 | J134: =V134 -> 0.585 | K134: =W134 -> 0.38 | L134: kW/ton | M134: 0.576 | N134: 0.461 | O134: 267.7142309 | P134: 65.58071502 | Q134: =P134/((M134-N134)/0.1) -> 57.02670872 | T134: 0.56 | U134: 0.5 | V134: 0.585 | W134: 0.38 | X134: kW/ton
B135: ID-Water Cooled-Centrifugal-6 | C135: ID | D135: Water Cooled | E135: Centrifugal | F135: 6 | G135: ≥ 600 tons | H135: =T135 -> 0.56 | I135: 0.5 | J135: 0.585 | K135: 0.38 | L135: kW/ton | M135: 0.576 | N135: 0.461 | O135: 267.7142309 | P135: 65.58071502 | Q135: 57.02670872 | T135: 0.56 | U135: 0.5 | V135: 0.585 | W135: 0.38 | X135: kW/ton
B137: Equipment ID | C137: State | D137: Heat Rejection | E137: Type | F137: Size | G137: Size ID | H137: Minimum COP (kW/ton) | I137: Minimum IPLV (kW/ton) | L137: Unit | M137: DEER Baseline Efficiency | N137: DEER New Efficiency (kW/ton) | O137: DEER Baseline cost | P137: DEER Incremental Cost ($/ton) | Q137: ($/ton/(0.1 kW/ton) increase) | T137: Path A Minimum Full Load (In Code) | U137: Path A Minimum (In Code) | V137: Path A Minimum Full Load (In Code) | W137: Path A Minimum IPLV (In Code) | X137: Unit
C138: Washington Chiller Data (WSEC 2021) -eff March 15, 2024
B139: WA-Air Cooled-Reciprocating-A | C139: WA | D139: Air Cooled | E139: Reciprocating | F139: A | G139: < 150 tons | H139: =12/T139 -> 1.188118812 | I139: =12/U139 -> 0.8759124088 | J139: =12/V139 -> 1.237113402 | K139: =12/W139 -> 0.7594936709 | L139: kW/ton | T139: 10.1 | U139: 13.7 | V139: 9.7 | W139: 15.8 | X139: EER
B140: WA-Air Cooled-Reciprocating-B | C140: WA | D140: Air Cooled | E140: Reciprocating | F140: B | G140: ≥ 150 tons | H140: =12/T140 -> 1.188118812 | I140: 0.8571428571 | J140: 1.237113402 | K140: 0.7453416149 | L140: kW/ton | T140: 10.1 | U140: 14 | V140: 9.7 | W140: 16.1 | X140: EER
B141: WA-Air Cooled-Rotary-A | C141: WA | D141: Air Cooled | E141: Rotary | F141: A | G141: < 150 tons | H141: 1.188118812 | I141: 0.8759124088 | J141: 1.237113402 | K141: 0.7594936709 | L141: kW/ton | T141: 10.1 | U141: 13.7 | V141: 9.7 | W141: 15.8 | X141: EER
B142: WA-Air Cooled-Rotary-B | C142: WA | D142: Air Cooled | E142: Rotary | F142: B | G142: ≥ 150 tons | H142: 1.188118812 | I142: 0.8571428571 | J142: 1.237113402 | K142: 0.7453416149 | L142: kW/ton | T142: 10.1 | U142: 14 | V142: 9.7 | W142: 16.1 | X142: EER
B143: WA-Air Cooled-Screw-A | C143: WA | D143: Air Cooled | E143: Screw | F143: A | G143: < 150 tons | H143: 1.188118812 | I143: 0.8759124088 | J143: 1.237113402 | K143: 0.7594936709 | L143: kW/ton | T143: 10.1 | U143: 13.7 | V143: 9.7 | W143: 15.8 | X143: EER
B144: WA-Air Cooled-Screw-B | C144: WA | D144: Air Cooled | E144: Screw | F144: B | G144: ≥ 150 tons | H144: 1.188118812 | I144: 0.8571428571 | J144: 1.237113402 | K144: 0.7453416149 | L144: kW/ton | T144: 10.1 | U144: 14 | V144: 9.7 | W144: 16.1 | X144: EER
B145: WA-Air Cooled-Scroll-A | C145: WA | D145: Air Cooled | E145: Scroll | F145: A | G145: < 150 tons | H145: 1.188118812 | I145: 0.8759124088 | J145: 1.237113402 | K145: 0.7594936709 | L145: kW/ton | T145: 10.1 | U145: 13.7 | V145: 9.7 | W145: 15.8 | X145: EER
B146: WA-Air Cooled-Scroll-B | C146: WA | D146: Air Cooled | E146: Scroll | F146: B | G146: ≥ 150 tons | H146: 1.188118812 | I146: 0.8571428571 | J146: 1.237113402 | K146: 0.7453416149 | L146: kW/ton | T146: 10.1 | U146: 14 | V146: 9.7 | W146: 16.1 | X146: EER
B147: WA-Water Cooled-Reciprocating-A | C147: WA | D147: Water Cooled | E147: Reciprocating | F147: A | G147: < 75 tons | H147: =T147 -> 0.75 | I147: =U147 -> 0.6 | J147: =V147 -> 0.78 | K147: =W147 -> 0.5 | L147: kW/ton | T147: 0.75 | U147: 0.6 | V147: 0.78 | W147: 0.5 | X147: kW/ton
B148: WA-Water Cooled-Reciprocating-B | C148: WA | D148: Water Cooled | E148: Reciprocating | F148: B | G148: ≥ 75 tons and < 150 tons | H148: =T148 -> 0.72 | I148: =U148 -> 0.56 | J148: =V148 -> 0.75 | K148: =W148 -> 0.49 | L148: kW/ton | T148: 0.72 | U148: 0.56 | V148: 0.75 | W148: 0.49 | X148: kW/ton
B149: WA-Water Cooled-Reciprocating-C | C149: WA | D149: Water Cooled | E149: Reciprocating | F149: C | G149: ≥ 150 tons and < 300 tons | H149: 0.66 | I149: 0.54 | J149: 0.68 | K149: 0.44 | L149: kW/ton | T149: 0.66 | U149: 0.54 | V149: 0.68 | W149: 0.44 | X149: kW/ton
B150: WA-Water Cooled-Reciprocating-D | C150: WA | D150: Water Cooled | E150: Reciprocating | F150: D | G150: ≥ 300 tons and < 600 tons | H150: 0.61 | I150: 0.52 | J150: 0.625 | K150: 0.41 | L150: kW/ton | T150: 0.61 | U150: 0.52 | V150: 0.625 | W150: 0.41 | X150: kW/ton
B151: =CONCATENATE(C151,"-",D151,"-",E151,"-",F151) -> WA-Water Cooled-Reciprocating-E | C151: WA | D151: Water Cooled | E151: Reciprocating | F151: E | G151: ≥ 600 tons | H151: 0.56 | I151: 0.5 | J151: 0.585 | K151: 0.38 | L151: kW/ton | T151: 0.56 | U151: 0.5 | V151: 0.585 | W151: 0.38 | X151: kW/ton
B152: WA-Water Cooled-Rotary-A | C152: WA | D152: Water Cooled | E152: Rotary | F152: A | G152: < 75 tons | H152: 0.75 | I152: 0.6 | J152: 0.78 | K152: 0.5 | L152: kW/ton | T152: 0.75 | U152: 0.6 | V152: 0.78 | W152: 0.5
B153: WA-Water Cooled-Rotary-B | C153: WA | D153: Water Cooled | E153: Rotary | F153: B | G153: ≥ 75 tons and < 150 tons | H153: 0.72 | I153: 0.56 | J153: 0.75 | K153: 0.49 | L153: kW/ton | T153: 0.72 | U153: 0.56 | V153: 0.75 | W153: 0.49
B154: WA-Water Cooled-Rotary-C | C154: WA | D154: Water Cooled | E154: Rotary | F154: C | G154: ≥ 150 tons and < 300 tons | H154: 0.66 | I154: 0.54 | J154: 0.68 | K154: 0.44 | L154: kW/ton | T154: 0.66 | U154: 0.54 | V154: 0.68 | W154: 0.44
B155: WA-Water Cooled-Rotary-D | C155: WA | D155: Water Cooled | E155: Rotary | F155: D | G155: ≥ 300 tons and < 600 tons | H155: 0.61 | I155: 0.52 | J155: 0.625 | K155: 0.41 | L155: kW/ton | T155: 0.61 | U155: 0.52 | V155: 0.625 | W155: 0.41
B156: WA-Water Cooled-Rotary-E | C156: WA | D156: Water Cooled | E156: Rotary | F156: E | G156: ≥ 600 tons | H156: 0.56 | I156: 0.5 | J156: 0.585 | K156: 0.38 | L156: kW/ton | T156: 0.56 | U156: 0.5 | V156: 0.585 | W156: 0.38
B157: WA-Water Cooled-Screw-A | C157: WA | D157: Water Cooled | E157: Screw | F157: A | G157: < 75 tons | H157: 0.75 | I157: 0.6 | J157: 0.78 | K157: 0.5 | L157: kW/ton | T157: 0.75 | U157: 0.6 | V157: 0.78 | W157: 0.5 | X157: kW/ton
B158: WA-Water Cooled-Screw-B | C158: WA | D158: Water Cooled | E158: Screw | F158: B | G158: ≥ 75 tons and < 150 tons | H158: 0.72 | I158: 0.56 | J158: 0.75 | K158: 0.49 | L158: kW/ton | T158: 0.72 | U158: 0.56 | V158: 0.75 | W158: 0.49 | X158: kW/ton
B159: WA-Water Cooled-Screw-C | C159: WA | D159: Water Cooled | E159: Screw | F159: C | G159: ≥ 150 tons and < 300 tons | H159: 0.66 | I159: 0.54 | J159: 0.68 | K159: 0.44 | L159: kW/ton | T159: 0.66 | U159: 0.54 | V159: 0.68 | W159: 0.44 | X159: kW/ton
B160: WA-Water Cooled-Screw-D | C160: WA | D160: Water Cooled | E160: Screw | F160: D | G160: ≥ 300 tons and < 600 tons | H160: 0.61 | I160: 0.52 | J160: 0.625 | K160: 0.41 | L160: kW/ton | T160: 0.61 | U160: 0.52 | V160: 0.625 | W160: 0.41 | X160: kW/ton
B161: WA-Water Cooled-Screw-E | C161: WA | D161: Water Cooled | E161: Screw | F161: E | G161: ≥ 600 tons | H161: 0.56 | I161: 0.5 | J161: 0.585 | K161: 0.38 | L161: kW/ton | T161: 0.56 | U161: 0.5 | V161: 0.585 | W161: 0.38 | X161: kW/ton
B162: WA-Water Cooled-Scroll-A | C162: WA | D162: Water Cooled | E162: Scroll | F162: A | G162: < 75 tons | H162: 0.75 | I162: 0.6 | J162: 0.78 | K162: 0.5 | L162: kW/ton | T162: 0.75 | U162: 0.6 | V162: 0.78 | W162: 0.5 | X162: kW/ton
B163: WA-Water Cooled-Scroll-B | C163: WA | D163: Water Cooled | E163: Scroll | F163: B | G163: ≥ 75 tons and < 150 tons | H163: 0.72 | I163: 0.56 | J163: 0.75 | K163: 0.49 | L163: kW/ton | T163: 0.72 | U163: 0.56 | V163: 0.75 | W163: 0.49 | X163: kW/ton
B164: WA-Water Cooled-Scroll-C | C164: WA | D164: Water Cooled | E164: Scroll | F164: C | G164: ≥ 150 tons and < 300 tons | H164: 0.66 | I164: 0.54 | J164: 0.68 | K164: 0.44 | L164: kW/ton | T164: 0.66 | U164: 0.54 | V164: 0.68 | W164: 0.44 | X164: kW/ton
B165: WA-Water Cooled-Scroll-D | C165: WA | D165: Water Cooled | E165: Scroll | F165: D | G165: ≥ 300 tons and < 600 tons | H165: 0.61 | I165: 0.52 | J165: 0.625 | K165: 0.41 | L165: kW/ton | T165: 0.61 | U165: 0.52 | V165: 0.625 | W165: 0.41 | X165: kW/ton
B166: WA-Water Cooled-Scroll-E | C166: WA | D166: Water Cooled | E166: Scroll | F166: E | G166: ≥ 600 tons | H166: 0.56 | I166: 0.5 | J166: 0.585 | K166: 0.38 | L166: kW/ton | T166: 0.56 | U166: 0.5 | V166: 0.585 | W166: 0.38 | X166: kW/ton
B167: WA-Water Cooled-Centrifugal-A | C167: WA | D167: Water Cooled | E167: Centrifugal | F167: A | G167: < 75 tons | H167: 0.61 | I167: 0.55 | J167: 0.695 | K167: 0.4 | L167: kW/ton | T167: 0.61 | U167: 0.55 | V167: 0.695 | W167: 0.4 | X167: kW/ton
B168: WA-Water Cooled-Centrifugal-B | C168: WA | D168: Water Cooled | E168: Centrifugal | F168: B | G168: < 150 tons | H168: 0.61 | I168: 0.55 | J168: 0.695 | K168: 0.4 | L168: kW/ton | T168: 0.61 | U168: 0.55 | V168: 0.695 | W168: 0.4 | X168: kW/ton
B169: WA-Water Cooled-Centrifugal-C | C169: WA | D169: Water Cooled | E169: Centrifugal | F169: C | G169: ≥ 150 tons and < 300 tons | H169: 0.61 | I169: 0.55 | J169: 0.695 | K169: 0.4 | L169: kW/ton | T169: 0.61 | U169: 0.55 | V169: 0.695 | W169: 0.4 | X169: kW/ton
B170: WA-Water Cooled-Centrifugal-D | C170: WA | D170: Water Cooled | E170: Centrifugal | F170: D | G170: ≥ 300 tons and < 400 tons | H170: 0.56 | I170: 0.52 | J170: 0.595 | K170: 0.39 | L170: kW/ton | T170: 0.56 | U170: 0.52 | V170: 0.595 | W170: 0.39 | X170: kW/ton
B171: WA-Water Cooled-Centrifugal-E | C171: WA | D171: Water Cooled | E171: Centrifugal | F171: E | G171: ≥ 400 tons and < 600 tons | H171: 0.56 | I171: 0.5 | J171: 0.585 | K171: 0.38 | L171: kW/ton | T171: 0.56 | U171: 0.5 | V171: 0.585 | W171: 0.38 | X171: kW/ton
B172: WA-Water Cooled-Centrifugal-F | C172: WA | D172: Water Cooled | E172: Centrifugal | F172: F | G172: ≥ 600 tons | H172: 0.56 | I172: 0.5 | J172: 0.585 | K172: 0.38 | L172: kW/ton | T172: 0.56 | U172: 0.5 | V172: 0.585 | W172: 0.38 | X172: kW/ton
B174: Equipment ID | C174: State | D174: Heat Rejection | E174: Type | F174: Size | G174: Size ID | H174: Minimum COP (kW/ton) | I174: Minimum IPLV (kW/ton) | L174: Unit | M174: DEER Baseline Efficiency | N174: DEER New Efficiency (kW/ton) | O174: DEER Baseline cost | P174: DEER Incremental Cost ($/ton) | Q174: ($/ton/(0.1 kW/ton) increase) | T174: Minimum Full Load (COP) | U174: Minimum IPLV (COP) | X174: Unit
C175: UTAH Chiller Data (IECC 2021) - Effective July 1, 2023
B176: =CONCATENATE(C176,"-",D176,"-",E176,"-",F176) -> UT-Air Cooled-Reciprocating-A | C176: UT | D176: Air Cooled | E176: Reciprocating | F176: A | G176: < 150 tons | H176: =12/T176 -> 1.188118812 | I176: =12/U176 -> 0.8759124088 | J176: =12/V176 -> 1.237113402 | K176: =12/W176 -> 0.7594936709 | L176: kW/ton | M176: 1.26 | N176: 1.008 | O176: 448.9536364 | P176: 39.93525253 | Q176: =P176/((M176-N176)/0.1) -> 15.84732243 | T176: 10.1 | U176: 13.7 | V176: 9.7 | W176: 15.8 | X176: EER | Z176: =IF(H176=H65,"Same","Diff") -> Same | AA176: =IF(I176=I65,"Same","Diff") -> Same | AB176: Same | AC176: Same
B177: =CONCATENATE(C177,"-",D177,"-",E177,"-",F177) -> UT-Air Cooled-Reciprocating-B | C177: UT | D177: Air Cooled | E177: Reciprocating | F177: B | G177: ≥ 150 tons | H177: =12/T177 -> 1.188118812 | I177: 0.8571428571 | J177: 1.237113402 | K177: 0.7453416149 | L177: kW/ton | M177: 1.26 | N177: 1.008 | O177: 448.9536364 | P177: 39.93525253 | Q177: 15.84732243 | T177: 10.1 | U177: 14 | V177: 9.7 | W177: 16.1 | X177: EER | Z177: Same | AA177: =IF(I177=I66,"Same","Diff") -> Same | AB177: =IF(J177=J66,"Same","Diff") -> Same | AC177: =IF(K177=K66,"Same","Diff") -> Same
B178: UT-Air Cooled-Rotary-A | C178: UT | D178: Air Cooled | E178: Rotary | F178: A | G178: < 150 tons | H178: 1.188118812 | I178: 0.8759124088 | J178: 1.237113402 | K178: 0.7594936709 | L178: kW/ton | M178: 1.26 | N178: 1.008 | O178: 448.9536364 | P178: 39.93525253 | Q178: 15.84732243 | T178: 10.1 | U178: 13.7 | V178: 9.7 | W178: 15.8 | X178: EER | Z178: Same | AA178: Same | AB178: Same | AC178: Same
B179: UT-Air Cooled-Rotary-B | C179: UT | D179: Air Cooled | E179: Rotary | F179: B | G179: ≥ 150 tons | H179: 1.188118812 | I179: 0.8571428571 | J179: 1.237113402 | K179: 0.7453416149 | L179: kW/ton | M179: 1.26 | N179: 1.008 | O179: 448.9536364 | P179: 39.93525253 | Q179: 15.84732243 | T179: 10.1 | U179: 14 | V179: 9.7 | W179: 16.1 | X179: EER | Z179: Same | AA179: Same | AB179: Same | AC179: Same
B180: UT-Air Cooled-Screw-A | C180: UT | D180: Air Cooled | E180: Screw | F180: A | G180: < 150 tons | H180: 1.188118812 | I180: 0.8759124088 | J180: 1.237113402 | K180: 0.7594936709 | L180: kW/ton | M180: 1.26 | N180: 1.008 | O180: 448.9536364 | P180: 39.93525253 | Q180: 15.84732243 | T180: 10.1 | U180: 13.7 | V180: 9.7 | W180: 15.8 | X180: EER | Z180: Same | AA180: Same | AB180: Same | AC180: Same
B181: UT-Air Cooled-Screw-B | C181: UT | D181: Air Cooled | E181: Screw | F181: B | G181: ≥ 150 tons | H181: 1.188118812 | I181: 0.8571428571 | J181: 1.237113402 | K181: 0.7453416149 | L181: kW/ton | M181: 1.26 | N181: 1.008 | O181: 448.9536364 | P181: 39.93525253 | Q181: 15.84732243 | T181: 10.1 | U181: 14 | V181: 9.7 | W181: 16.1 | X181: EER | Z181: Same | AA181: Same | AB181: Same | AC181: Same
B182: UT-Air Cooled-Scroll-A | C182: UT | D182: Air Cooled | E182: Scroll | F182: A | G182: < 150 tons | H182: 1.188118812 | I182: 0.8759124088 | J182: 1.237113402 | K182: 0.7594936709 | L182: kW/ton | M182: 1.26 | N182: 1.008 | O182: 448.9536364 | P182: 39.93525253 | Q182: 15.84732243 | T182: 10.1 | U182: 13.7 | V182: 9.7 | W182: 15.8 | X182: EER | Z182: Same | AA182: Same | AB182: Same | AC182: Same
B183: UT-Air Cooled-Scroll-B | C183: UT | D183: Air Cooled | E183: Scroll | F183: B | G183: ≥ 150 tons | H183: 1.188118812 | I183: 0.8571428571 | J183: 1.237113402 | K183: 0.7453416149 | L183: kW/ton | M183: 1.26 | N183: 1.008 | O183: 448.9536364 | P183: 39.93525253 | Q183: 15.84732243 | T183: 10.1 | U183: 14 | V183: 9.7 | W183: 16.1 | X183: EER | Z183: Same | AA183: Same | AB183: Same | AC183: Same
B184: UT-Water Cooled-Reciprocating-A | C184: UT | D184: Water Cooled | E184: Reciprocating | F184: A | G184: < 75 tons | H184: =T184 -> 0.75 | I184: =U184 -> 0.6 | J184: =V184 -> 0.78 | K184: =W184 -> 0.5 | L184: kW/ton | M184: 0.837 | N184: 0.672 | O184: 462.5882424 | P184: 16.27434124 | Q184: 9.863237114 | T184: 0.75 | U184: 0.6 | V184: 0.78 | W184: 0.5 | X184: kW/ton | Z184: Same | AA184: Same | AB184: Same | AC184: Same
B185: UT-Water Cooled-Reciprocating-B | C185: UT | D185: Water Cooled | E185: Reciprocating | F185: B | G185: ≥ 75 tons and < 150 tons | H185: =T185 -> 0.72 | I185: 0.56 | J185: 0.75 | K185: 0.49 | L185: kW/ton | M185: 0.837 | N185: 0.672 | O185: 462.5882424 | P185: 16.27434124 | Q185: 9.863237114 | T185: 0.72 | U185: 0.56 | V185: 0.75 | W185: 0.49 | X185: kW/ton | Z185: Same | AA185: Same | AB185: Same | AC185: Same
B186: UT-Water Cooled-Reciprocating-C | C186: UT | D186: Water Cooled | E186: Reciprocating | F186: C | G186: ≥ 150 tons and < 300 tons | H186: 0.66 | I186: 0.54 | J186: 0.68 | K186: 0.44 | L186: kW/ton | M186: 0.837 | N186: 0.672 | O186: 462.5882424 | P186: 16.27434124 | Q186: 9.863237114 | T186: 0.66 | U186: 0.54 | V186: 0.68 | W186: 0.44 | X186: kW/ton | Z186: Same | AA186: Same | AB186: Same | AC186: Same
B187: UT-Water Cooled-Reciprocating-D | C187: UT | D187: Water Cooled | E187: Reciprocating | F187: D | G187: ≥ 300 tons and < 600 tons | H187: 0.61 | I187: 0.52 | J187: 0.625 | K187: 0.41 | L187: kW/ton | M187: 0.837 | N187: 0.672 | O187: 462.5882424 | P187: 16.27434124 | Q187: =P187/((M187-N187)/0.1) -> 9.863237114 | T187: 0.61 | U187: 0.52 | V187: 0.625 | W187: 0.41 | X187: kW/ton | Z187: Same | AA187: Same | AB187: Same | AC187: Same
B188: UT-Water Cooled-Reciprocating-E | C188: UT | D188: Water Cooled | E188: Reciprocating | F188: E | G188: ≥ 600 tons | H188: 0.56 | I188: 0.5 | J188: 0.585 | K188: 0.38 | L188: kW/ton | T188: 0.56 | U188: 0.5 | V188: 0.585 | W188: 0.38 | X188: kW/ton | Z188: Same | AA188: Same | AB188: Same | AC188: Same
B189: UT-Water Cooled-Rotary-A | C189: UT | D189: Water Cooled | E189: Rotary | F189: A | G189: < 75 tons | H189: 0.75 | I189: 0.6 | J189: 0.78 | K189: 0.5 | L189: kW/ton | M189: 0.79 | N189: 0.632 | O189: 443.3892493 | P189: 49.05387812 | Q189: =P189/((M189-N189)/0.1) -> 31.04675831 | T189: 0.75 | U189: 0.6 | V189: 0.78 | W189: 0.5 | X189: kW/ton | Z189: Same | AA189: Same | AB189: Same | AC189: Same
B190: UT-Water Cooled-Rotary-B | C190: UT | D190: Water Cooled | E190: Rotary | F190: B | G190: ≥ 75 tons and < 150 tons | H190: 0.72 | I190: 0.56 | J190: 0.75 | K190: 0.49 | L190: kW/ton | M190: 0.79 | N190: 0.632 | O190: 443.3892493 | P190: 49.05387812 | Q190: =P190/((M190-N190)/0.1) -> 31.04675831 | T190: 0.72 | U190: 0.56 | V190: 0.75 | W190: 0.49 | X190: kW/ton | Z190: Same | AA190: Same | AB190: Same | AC190: Same
B191: UT-Water Cooled-Rotary-C | C191: UT | D191: Water Cooled | E191: Rotary | F191: C | G191: ≥ 150 tons and < 300 tons | H191: 0.66 | I191: 0.54 | J191: 0.68 | K191: 0.44 | L191: kW/ton | M191: 0.718 | N191: 0.574 | O191: 346.9411963 | P191: 25.47414437 | Q191: =P191/((M191-N191)/0.1) -> 17.69037803 | T191: 0.66 | U191: 0.54 | V191: 0.68 | W191: 0.44 | X191: kW/ton | Z191: Same | AA191: Same | AB191: Same | AC191: Same
B192: UT-Water Cooled-Rotary-D | C192: UT | D192: Water Cooled | E192: Rotary | F192: D | G192: ≥ 300 tons and < 600 tons | H192: 0.61 | I192: 0.52 | J192: 0.625 | K192: 0.41 | L192: kW/ton | M192: 0.639 | N192: 0.511 | O192: 275.8363082 | P192: 11.39892069 | Q192: =P192/((M192-N192)/0.1) -> 8.905406786 | T192: 0.61 | U192: 0.52 | V192: 0.625 | W192: 0.41 | X192: kW/ton | Z192: Same | AA192: Same | AB192: Same | AC192: Same
B193: UT-Water Cooled-Rotary-E | C193: UT | D193: Water Cooled | E193: Rotary | F193: E | G193: ≥ 600 tons | H193: 0.56 | I193: 0.5 | J193: 0.585 | K193: 0.38 | L193: kW/ton | T193: 0.56 | U193: 0.5 | V193: 0.585 | W193: 0.38 | Z193: Same | AA193: Same | AB193: Same | AC193: Same
B194: UT-Water Cooled-Screw-A | C194: UT | D194: Water Cooled | E194: Screw | F194: A | G194: < 75 tons | H194: 0.75 | I194: 0.6 | J194: 0.78 | K194: 0.5 | L194: kW/ton | M194: 0.79 | N194: 0.632 | O194: 443.3892493 | P194: 49.05387812 | Q194: =P194/((M194-N194)/0.1) -> 31.04675831 | T194: 0.75 | U194: 0.6 | V194: 0.78 | W194: 0.5 | X194: kW/ton | Z194: Same | AA194: Same | AB194: Same | AC194: Same
B195: UT-Water Cooled-Screw-B | C195: UT | D195: Water Cooled | E195: Screw | F195: B | G195: ≥ 75 tons and < 150 tons | H195: 0.72 | I195: 0.56 | J195: 0.75 | K195: 0.49 | L195: kW/ton | M195: 0.79 | N195: 0.632 | O195: 443.3892493 | P195: 49.05387812 | Q195: 31.04675831 | T195: 0.72 | U195: 0.56 | V195: 0.75 | W195: 0.49 | X195: kW/ton | Z195: Same | AA195: Same | AB195: Same | AC195: Same
B196: UT-Water Cooled-Screw-C | C196: UT | D196: Water Cooled | E196: Screw | F196: C | G196: ≥ 150 tons and < 300 tons | H196: 0.66 | I196: 0.54 | J196: 0.68 | K196: 0.44 | L196: kW/ton | M196: 0.718 | N196: 0.574 | O196: 346.9411963 | P196: 25.47414437 | Q196: 17.69037803 | T196: 0.66 | U196: 0.54 | V196: 0.68 | W196: 0.44 | X196: kW/ton | Z196: Same | AA196: Same | AB196: Same | AC196: Same
B197: UT-Water Cooled-Screw-D | C197: UT | D197: Water Cooled | E197: Screw | F197: D | G197: ≥ 300 tons and < 600 tons | H197: 0.61 | I197: 0.52 | J197: 0.625 | K197: 0.41 | L197: kW/ton | M197: 0.639 | N197: 0.511 | O197: 275.8363082 | P197: 11.39892069 | Q197: 8.905406786 | T197: 0.61 | U197: 0.52 | V197: 0.625 | W197: 0.41 | X197: kW/ton | Z197: Same | AA197: Same | AB197: Same | AC197: Same
B198: UT-Water Cooled-Screw-E | C198: UT | D198: Water Cooled | E198: Screw | F198: E | G198: ≥ 600 tons | H198: 0.56 | I198: 0.5 | J198: 0.585 | K198: 0.38 | L198: kW/ton | T198: 0.56 | U198: 0.5 | V198: 0.585 | W198: 0.38 | Z198: Same | AA198: Same | AB198: Same | AC198: Same
B199: UT-Water Cooled-Scroll-A | C199: UT | D199: Water Cooled | E199: Scroll | F199: A | G199: < 75 tons | H199: 0.75 | I199: 0.6 | J199: 0.78 | K199: 0.5 | L199: kW/ton | M199: 0.79 | N199: 0.632 | O199: 443.3892493 | P199: 49.05387812 | Q199: =P199/((M199-N199)/0.1) -> 31.04675831 | T199: 0.75 | U199: 0.6 | V199: 0.78 | W199: 0.5 | X199: kW/ton | Z199: Same | AA199: Same | AB199: Same | AC199: Same
B200: UT-Water Cooled-Scroll-B | C200: UT | D200: Water Cooled | E200: Scroll | F200: B | G200: ≥ 75 tons and < 150 tons | H200: 0.72 | I200: 0.56 | J200: 0.75 | K200: 0.49 | L200: kW/ton | M200: 0.79 | N200: 0.632 | O200: 443.3892493 | P200: 49.05387812 | Q200: 31.04675831 | T200: 0.72 | U200: 0.56 | V200: 0.75 | W200: 0.49 | X200: kW/ton | Z200: Same | AA200: Same | AB200: Same | AC200: Same
B201: UT-Water Cooled-Scroll-C | C201: UT | D201: Water Cooled | E201: Scroll | F201: C | G201: ≥ 150 tons and < 300 tons | H201: 0.66 | I201: 0.54 | J201: 0.68 | K201: 0.44 | L201: kW/ton | M201: 0.718 | N201: 0.574 | O201: 346.9411963 | P201: 25.47414437 | Q201: 17.69037803 | T201: 0.66 | U201: 0.54 | V201: 0.68 | W201: 0.44 | X201: kW/ton | Z201: Same | AA201: Same | AB201: Same | AC201: Same
B202: UT-Water Cooled-Scroll-D | C202: UT | D202: Water Cooled | E202: Scroll | F202: D | G202: ≥ 300 tons and < 600 tons | H202: 0.61 | I202: 0.52 | J202: 0.625 | K202: 0.41 | L202: kW/ton | M202: 0.639 | N202: 0.511 | O202: 275.8363082 | P202: 11.39892069 | Q202: 8.905406786 | T202: 0.61 | U202: 0.52 | V202: 0.625 | W202: 0.41 | X202: kW/ton | Z202: Same | AA202: Same | AB202: Same | AC202: Same
B203: UT-Water Cooled-Scroll-E | C203: UT | D203: Water Cooled | E203: Scroll | F203: E | G203: ≥ 600 tons | H203: 0.56 | I203: 0.5 | J203: 0.585 | K203: 0.38 | L203: kW/ton | T203: 0.56 | U203: 0.5 | V203: 0.585 | W203: 0.38 | Z203: Same | AA203: Same | AB203: Same | AC203: Same
B204: UT-Water Cooled-Centrifugal-A | C204: UT | D204: Water Cooled | E204: Centrifugal | F204: A | G204: < 75 tons | H204: 0.61 | I204: 0.55 | J204: 0.695 | K204: 0.44 | L204: kW/ton | M204: 0.634 | N204: 0.56 | O204: 468.6879276 | P204: 145.5191392 | Q204: =P204/((M204-N204)/0.1) -> 196.6474853 | T204: 0.61 | U204: 0.55 | V204: 0.695 | W204: 0.44 | X204: kW/ton | Z204: Same | AA204: Same | AB204: Same | AC204: Same
B205: UT-Water Cooled-Centrifugal-B | C205: UT | D205: Water Cooled | E205: Centrifugal | F205: B | G205: < 150 tons | H205: 0.61 | I205: 0.55 | J205: 0.695 | K205: 0.44 | L205: kW/ton | M205: 0.634 | N205: 0.56 | O205: 468.6879276 | P205: 145.5191392 | Q205: 196.6474853 | T205: 0.61 | U205: 0.55 | V205: 0.695 | W205: 0.44 | X205: kW/ton | Z205: Same | AA205: Same | AB205: Same | AC205: Same
B206: UT-Water Cooled-Centrifugal-C | C206: UT | D206: Water Cooled | E206: Centrifugal | F206: C | G206: ≥ 150 tons and < 300 tons | H206: 0.61 | I206: 0.55 | J206: 0.635 | K206: 0.4 | L206: kW/ton | M206: 0.634 | N206: 0.507 | O206: 338.7655378 | P206: 93.84177406 | Q206: 73.89116068 | T206: 0.61 | U206: 0.55 | V206: 0.635 | W206: 0.4 | X206: kW/ton | Z206: Same | AA206: Same | AB206: Same | AC206: Same
B207: UT-Water Cooled-Centrifugal-D | C207: UT | D207: Water Cooled | E207: Centrifugal | F207: D | G207: ≥ 300 tons and < 400 tons | H207: 0.56 | I207: 0.52 | J207: 0.595 | K207: 0.39 | L207: kW/ton | M207: 0.576 | N207: 0.461 | O207: 267.7142309 | P207: 65.58071502 | Q207: 57.02670872 | T207: 0.56 | U207: 0.52 | V207: 0.595 | W207: 0.39 | X207: kW/ton | Z207: Same | AA207: Same | AB207: Same | AC207: Same
... 137 more rows

Sheet Chiller Data (Original Copy) (hidden)
B3: Equipment ID | C3: State | D3: Heat Rejection | E3: Type | F3: Size | G3: Size ID | H3: Minimum COP (kW/ton) | I3: Minimum IPLV (kW/ton) | L3: Unit | M3: DEER Baseline Efficiency | N3: DEER New Efficiency (kW/ton) | O3: DEER Baseline cost | P3: DEER Incremental Cost ($/ton) | Q3: ($/ton/(0.1 kW/ton) increase) | T3: Minimum Full Load (COP) | U3: Minimum IPLV (COP) | X3: Unit
C4: Wyoming Chiller Data (IECC 2003)
B5: =CONCATENATE(C5,"-",D5,"-",E5,"-",G5) -> WY-Air Cooled-Reciprocating-1 | C5: WY | D5: Air Cooled | E5: Reciprocating | F5: <150 tons | G5: 1 | H5: =12/(T5*3.412) -> 1.25607101 | I5: 1.25607101 | J5: Does Not Apply | K5: Does Not Apply | L5: kW/ton | M5: 1.26 | N5: 1.008 | O5: 448.9536364 | P5: 39.93525253 | Q5: =P5/((M5-N5)/0.1) -> 15.84732243 | T5: 2.8 | U5: 2.8 | V5: Does Not Apply | W5: Does Not Apply | X5: COP
B6: WY-Air Cooled-Reciprocating-2 | C6: WY | D6: Air Cooled | E6: Reciprocating | F6: ≥150 tons and <300 tons | G6: 2 | H6: 1.406799531 | I6: 1.406799531 | J6: Does Not Apply | K6: Does Not Apply | L6: kW/ton | M6: 1.26 | N6: 1.008 | O6: 448.9536364 | P6: 39.93525253 | Q6: 15.84732243 | T6: 2.5 | U6: 2.5 | V6: Does Not Apply | W6: Does Not Apply | X6: COP
B7: WY-Air Cooled-Reciprocating-3 | C7: WY | D7: Air Cooled | E7: Reciprocating | F7: ≥300 tons | G7: 3 | H7: 1.406799531 | I7: 1.406799531 | J7: Does Not Apply | K7: Does Not Apply | L7: kW/ton | M7: 1.26 | N7: 1.008 | O7: 448.9536364 | P7: 39.93525253 | Q7: 15.84732243 | T7: 2.5 | U7: 2.5 | V7: Does Not Apply | W7: Does Not Apply | X7: COP
B8: WY-Air Cooled-Screw-1 | C8: WY | D8: Air Cooled | E8: Screw | F8: <150 tons | G8: 1 | H8: 1.25607101 | I8: 1.25607101 | J8: Does Not Apply | K8: Does Not Apply | L8: kW/ton | M8: 1.26 | N8: 1.008 | O8: 445.8967398 | P8: 42.33958709 | Q8: 16.80142345 | T8: 2.8 | U8: 2.8 | V8: Does Not Apply | W8: Does Not Apply | X8: COP
B9: WY-Air Cooled-Screw-2 | C9: WY | D9: Air Cooled | E9: Screw | F9: ≥150 tons and <300 tons | G9: 2 | H9: 1.406799531 | I9: 1.406799531 | J9: Does Not Apply | K9: Does Not Apply | L9: kW/ton | M9: 1.26 | N9: 1.008 | O9: 445.8967398 | P9: 42.33958709 | Q9: 16.80142345 | T9: 2.5 | U9: 2.5 | V9: Does Not Apply | W9: Does Not Apply | X9: COP
B10: WY-Air Cooled-Screw-3 | C10: WY | D10: Air Cooled | E10: Screw | F10: ≥300 tons | G10: 3 | H10: 1.406799531 | I10: 1.406799531 | J10: Does Not Apply | K10: Does Not Apply | L10: kW/ton | M10: 1.26 | N10: 1.008 | O10: 445.8967398 | P10: 42.33958709 | Q10: 16.80142345 | T10: 2.5 | U10: 2.5 | V10: Does Not Apply | W10: Does Not Apply | X10: COP
B11: WY-Air Cooled-Scroll-1 | C11: WY | D11: Air Cooled | E11: Scroll | F11: <150 tons | G11: 1 | H11: 1.25607101 | I11: 1.25607101 | J11: Does Not Apply | K11: Does Not Apply | L11: kW/ton | M11: 1.26 | N11: 1.008 | O11: 445.8967398 | P11: 42.33958709 | Q11: 16.80142345 | T11: 2.8 | U11: 2.8 | V11: Does Not Apply | W11: Does Not Apply | X11: COP
B12: WY-Air Cooled-Scroll-2 | C12: WY | D12: Air Cooled | E12: Scroll | F12: ≥150 tons and <300 tons | G12: 2 | H12: 1.406799531 | I12: 1.406799531 | J12: Does Not Apply | K12: Does Not Apply | L12: kW/ton | M12: 1.26 | N12: 1.008 | O12: 445.8967398 | P12: 42.33958709 | Q12: 16.80142345 | T12: 2.5 | U12: 2.5 | V12: Does Not Apply | W12: Does Not Apply | X12: COP
B13: WY-Air Cooled-Scroll-3 | C13: WY | D13: Air Cooled | E13: Scroll | F13: ≥300 tons | G13: 3 | H13: 1.406799531 | I13: 1.406799531 | J13: Does Not Apply | K13: Does Not Apply | L13: kW/ton | M13: 1.26 | N13: 1.008 | O13: 445.8967398 | P13: 42.33958709 | Q13: 16.80142345 | T13: 2.5 | U13: 2.5 | V13: Does Not Apply | W13: Does Not Apply | X13: COP
B14: WY-Air Cooled-Rotary-1 | C14: WY | D14: Air Cooled | E14: Rotary | F14: <150 tons | G14: 1 | H14: 1.25607101 | I14: 1.25607101 | J14: Does Not Apply | K14: Does Not Apply | L14: kW/ton | M14: 1.26 | N14: 1.008 | O14: 445.8967398 | P14: 42.33958709 | Q14: 16.80142345 | T14: 2.8 | U14: 2.8 | V14: Does Not Apply | W14: Does Not Apply | X14: COP
B15: WY-Air Cooled-Rotary-2 | C15: WY | D15: Air Cooled | E15: Rotary | F15: ≥150 tons and <300 tons | G15: 2 | H15: 1.406799531 | I15: 1.406799531 | J15: Does Not Apply | K15: Does Not Apply | L15: kW/ton | M15: 1.26 | N15: 1.008 | O15: 445.8967398 | P15: 42.33958709 | Q15: 16.80142345 | T15: 2.5 | U15: 2.5 | V15: Does Not Apply | W15: Does Not Apply | X15: COP
B16: WY-Air Cooled-Rotary-3 | C16: WY | D16: Air Cooled | E16: Rotary | F16: ≥300 tons | G16: 3 | H16: 1.406799531 | I16: 1.406799531 | J16: Does Not Apply | K16: Does Not Apply | L16: kW/ton | M16: 1.26 | N16: 1.008 | O16: 445.8967398 | P16: 42.33958709 | Q16: 16.80142345 | T16: 2.5 | U16: 2.5 | V16: Does Not Apply | W16: Does Not Apply | X16: COP
B17: WY-Water Cooled-Reciprocating-1 | C17: WY | D17: Water Cooled | E17: Reciprocating | F17: <150 tons | G17: 1 | H17: 0.8373806733 | I17: 0.7563438339 | J17: Does Not Apply | K17: Does Not Apply | L17: kW/ton | M17: 0.837 | N17: 0.672 | O17: 462.5882424 | P17: 16.27434124 | Q17: 9.863237114 | T17: 4.2 | U17: 4.65 | V17: Does Not Apply | W17: Does Not Apply | X17: COP
B18: WY-Water Cooled-Reciprocating-2 | C18: WY | D18: Water Cooled | E18: Reciprocating | F18: ≥150 tons and <300 tons | G18: 2 | H18: 0.8373806733 | I18: 0.7563438339 | J18: Does Not Apply | K18: Does Not Apply | L18: kW/ton | M18: 0.837 | N18: 0.672 | O18: 462.5882424 | P18: 16.27434124 | Q18: 9.863237114 | T18: 4.2 | U18: 4.65 | V18: Does Not Apply | W18: Does Not Apply | X18: COP
B19: WY-Water Cooled-Reciprocating-3 | C19: WY | D19: Water Cooled | E19: Reciprocating | F19: ≥300 tons | G19: 3 | H19: 0.8373806733 | I19: 0.7563438339 | J19: Does Not Apply | K19: Does Not Apply | L19: kW/ton | M19: 0.837 | N19: 0.672 | O19: 462.5882424 | P19: 16.27434124 | Q19: 9.863237114 | T19: 4.2 | U19: 4.65 | V19: Does Not Apply | W19: Does Not Apply | X19: COP
B20: WY-Water Cooled-Screw-1 | C20: WY | D20: Water Cooled | E20: Screw | F20: <150 tons | G20: 1 | H20: 0.7903368152 | I20: 0.781555295 | J20: Does Not Apply | K20: Does Not Apply | L20: kW/ton | M20: 0.79 | N20: 0.632 | O20: 443.3892493 | P20: 49.05387812 | Q20: 31.04675831 | T20: 4.45 | U20: 4.5 | V20: Does Not Apply | W20: Does Not Apply | X20: COP
B21: WY-Water Cooled-Screw-2 | C21: WY | D21: Water Cooled | E21: Screw | F21: ≥150 tons and <300 tons | G21: 2 | H21: 0.7177548628 | I21: 0.7105048137 | J21: Does Not Apply | K21: Does Not Apply | L21: kW/ton | M21: 0.718 | N21: 0.574 | O21: 346.9411963 | P21: 25.47414437 | Q21: 17.69037803 | T21: 4.9 | U21: 4.95 | V21: Does Not Apply | W21: Does Not Apply | X21: COP
B22: WY-Water Cooled-Screw-3 | C22: WY | D22: Water Cooled | E22: Screw | F22: ≥300 tons | G22: 3 | H22: 0.6394543323 | I22: 0.6280355049 | J22: Does Not Apply | K22: Does Not Apply | L22: kW/ton | M22: 0.639 | N22: 0.511 | O22: 275.8363082 | P22: 11.39892069 | Q22: 8.905406786 | T22: 5.5 | U22: 5.6 | V22: Does Not Apply | W22: Does Not Apply | X22: COP
B23: WY-Water Cooled-Scroll-1 | C23: WY | D23: Water Cooled | E23: Scroll | F23: <150 tons | G23: 1 | H23: 0.7903368152 | I23: 0.781555295 | J23: Does Not Apply | K23: Does Not Apply | L23: kW/ton | M23: 0.79 | N23: 0.632 | O23: 443.3892493 | P23: 49.05387812 | Q23: 31.04675831 | T23: 4.45 | U23: 4.5 | V23: Does Not Apply | W23: Does Not Apply | X23: COP
B24: WY-Water Cooled-Scroll-2 | C24: WY | D24: Water Cooled | E24: Scroll | F24: ≥150 tons and <300 tons | G24: 2 | H24: 0.7177548628 | I24: 0.7105048137 | J24: Does Not Apply | K24: Does Not Apply | L24: kW/ton | M24: 0.718 | N24: 0.574 | O24: 346.9411963 | P24: 25.47414437 | Q24: 17.69037803 | T24: 4.9 | U24: 4.95 | V24: Does Not Apply | W24: Does Not Apply | X24: COP
B25: WY-Water Cooled-Scroll-3 | C25: WY | D25: Water Cooled | E25: Scroll | F25: ≥300 tons | G25: 3 | H25: 0.6394543323 | I25: 0.6280355049 | J25: Does Not Apply | K25: Does Not Apply | L25: kW/ton | M25: 0.639 | N25: 0.511 | O25: 275.8363082 | P25: 11.39892069 | Q25: 8.905406786 | T25: 5.5 | U25: 5.6 | V25: Does Not Apply | W25: Does Not Apply | X25: COP
B26: WY-Water Cooled-Rotary-1 | C26: WY | D26: Water Cooled | E26: Rotary | F26: <150 tons | G26: 1 | H26: 0.7903368152 | I26: 0.781555295 | J26: Does Not Apply | K26: Does Not Apply | L26: kW/ton | M26: 0.79 | N26: 0.632 | O26: 443.3892493 | P26: 49.05387812 | Q26: 31.04675831 | T26: 4.45 | U26: 4.5 | V26: Does Not Apply | W26: Does Not Apply | X26: COP
B27: WY-Water Cooled-Rotary-2 | C27: WY | D27: Water Cooled | E27: Rotary | F27: ≥150 tons and <300 tons | G27: 2 | H27: 0.7177548628 | I27: 0.7105048137 | J27: Does Not Apply | K27: Does Not Apply | L27: kW/ton | M27: 0.718 | N27: 0.574 | O27: 346.9411963 | P27: 25.47414437 | Q27: 17.69037803 | T27: 4.9 | U27: 4.95 | V27: Does Not Apply | W27: Does Not Apply | X27: COP
B28: WY-Water Cooled-Rotary-3 | C28: WY | D28: Water Cooled | E28: Rotary | F28: ≥300 tons | G28: 3 | H28: 0.6394543323 | I28: 0.6280355049 | J28: Does Not Apply | K28: Does Not Apply | L28: kW/ton | M28: 0.639 | N28: 0.511 | O28: 275.8363082 | P28: 11.39892069 | Q28: 8.905406786 | T28: 5.5 | U28: 5.6 | V28: Does Not Apply | W28: Does Not Apply | X28: COP
B29: WY-Water Cooled-Centrifugal-1 | C29: WY | D29: Water Cooled | E29: Centrifugal | F29: <150 tons | G29: 1 | H29: 0.7033997655 | I29: 0.7033997655 | J29: Does Not Apply | K29: Does Not Apply | L29: kW/ton | M29: 0.634 | N29: 0.56 | O29: 468.6879276 | P29: 145.5191392 | Q29: 196.6474853 | T29: 5 | U29: 5 | V29: Does Not Apply | W29: Does Not Apply | X29: COP
B30: WY-Water Cooled-Centrifugal-2 | C30: WY | D30: Water Cooled | E30: Centrifugal | F30: ≥150 tons and <300 tons | G30: 2 | H30: 0.6336934825 | I30: 0.6336934825 | J30: Does Not Apply | K30: Does Not Apply | L30: kW/ton | M30: 0.634 | N30: 0.507 | O30: 338.7655378 | P30: 93.84177406 | Q30: 73.89116068 | T30: 5.55 | U30: 5.55 | V30: Does Not Apply | W30: Does Not Apply | X30: COP
B31: WY-Water Cooled-Centrifugal-3 | C31: WY | D31: Water Cooled | E31: Centrifugal | F31: ≥300 tons | G31: 3 | H31: 0.5765571849 | I31: =12/(U31*3.412) -> 0.5765571849 | J31: Does Not Apply | K31: Does Not Apply | L31: kW/ton | M31: 0.576 | N31: 0.461 | O31: 267.7142309 | P31: 65.58071502 | Q31: 57.02670872 | T31: 6.1 | U31: 6.1 | V31: Does Not Apply | W31: Does Not Apply | X31: COP
B33: Equipment ID | C33: State | D33: Heat Rejection | E33: Type | F33: Size | G33: Size ID | H33: Minimum COP (kW/ton) | I33: Minimum IPLV (kW/ton) | L33: Unit | M33: DEER Baseline Efficiency | N33: DEER New Efficiency (kW/ton) | O33: DEER Baseline cost | P33: DEER Incremental Cost ($/ton) | Q33: ($/ton/(0.1 kW/ton) increase) | T33: Minimum Full Load (COP) | U33: Minimum IPLV (COP) | X33: Unit
C34: California Chiller Data (Title 24 - 2008)
B35: CA-Air Cooled-Reciprocating-1 | C35: CA | D35: Air Cooled | E35: Reciprocating | F35: <150 tons | G35: 1 | H35: =12/(T35*3.412) -> 1.25607101 | I35: =12/(U35*3.412) -> 1.15311437 | J35: Does Not Apply | K35: Does Not Apply | L35: kW/ton | M35: 1.26 | N35: 1.008 | O35: 448.9536364 | P35: 39.93525253 | Q35: =P35/((M35-N35)/0.1) -> 15.84732243 | T35: 2.8 | U35: 3.05 | V35: Does Not Apply | W35: Does Not Apply | X35: COP
B36: CA-Air Cooled-Reciprocating-2 | C36: CA | D36: Air Cooled | E36: Reciprocating | F36: ≥150 tons and <300 tons | G36: 2 | H36: =12/(T36*3.412) -> 1.25607101 | I36: 1.15311437 | J36: Does Not Apply | K36: Does Not Apply | L36: kW/ton | M36: 1.26 | N36: 1.008 | O36: 448.9536364 | P36: 39.93525253 | Q36: 15.84732243 | T36: 2.8 | U36: 3.05 | V36: Does Not Apply | W36: Does Not Apply | X36: COP
B37: CA-Air Cooled-Reciprocating-3 | C37: CA | D37: Air Cooled | E37: Reciprocating | F37: ≥300 tons | G37: 3 | H37: 1.25607101 | I37: 1.15311437 | J37: Does Not Apply | K37: Does Not Apply | L37: kW/ton | M37: 1.26 | N37: 1.008 | O37: 448.9536364 | P37: 39.93525253 | Q37: 15.84732243 | T37: 2.8 | U37: 3.05 | V37: Does Not Apply | W37: Does Not Apply | X37: COP
B38: CA-Air Cooled-Screw-1 | C38: CA | D38: Air Cooled | E38: Screw | F38: <150 tons | G38: 1 | H38: 1.25607101 | I38: 1.15311437 | J38: Does Not Apply | K38: Does Not Apply | L38: kW/ton | M38: 1.26 | N38: 1.008 | O38: 445.8967398 | P38: 42.33958709 | Q38: 16.80142345 | T38: 2.8 | U38: 3.05 | V38: Does Not Apply | W38: Does Not Apply | X38: COP
B39: CA-Air Cooled-Screw-2 | C39: CA | D39: Air Cooled | E39: Screw | F39: ≥150 tons and <300 tons | G39: 2 | H39: 1.25607101 | I39: 1.15311437 | J39: Does Not Apply | K39: Does Not Apply | L39: kW/ton | M39: 1.26 | N39: 1.008 | O39: 445.8967398 | P39: 42.33958709 | Q39: 16.80142345 | T39: 2.8 | U39: 3.05 | V39: Does Not Apply | W39: Does Not Apply | X39: COP
B40: CA-Air Cooled-Screw-3 | C40: CA | D40: Air Cooled | E40: Screw | F40: ≥300 tons | G40: 3 | H40: 1.25607101 | I40: 1.15311437 | J40: Does Not Apply | K40: Does Not Apply | L40: kW/ton | M40: 1.26 | N40: 1.008 | O40: 445.8967398 | P40: 42.33958709 | Q40: 16.80142345 | T40: 2.8 | U40: 3.05 | V40: Does Not Apply | W40: Does Not Apply | X40: COP
B41: CA-Air Cooled-Scroll-1 | C41: CA | D41: Air Cooled | E41: Scroll | F41: <150 tons | G41: 1 | H41: 1.25607101 | I41: 1.15311437 | J41: Does Not Apply | K41: Does Not Apply | L41: kW/ton | M41: 1.26 | N41: 1.008 | O41: 445.8967398 | P41: 42.33958709 | Q41: 16.80142345 | T41: 2.8 | U41: 3.05 | V41: Does Not Apply | W41: Does Not Apply | X41: COP
B42: CA-Air Cooled-Scroll-2 | C42: CA | D42: Air Cooled | E42: Scroll | F42: ≥150 tons and <300 tons | G42: 2 | H42: 1.25607101 | I42: 1.15311437 | J42: Does Not Apply | K42: Does Not Apply | L42: kW/ton | M42: 1.26 | N42: 1.008 | O42: 445.8967398 | P42: 42.33958709 | Q42: 16.80142345 | T42: 2.8 | U42: 3.05 | V42: Does Not Apply | W42: Does Not Apply | X42: COP
B43: CA-Air Cooled-Scroll-3 | C43: CA | D43: Air Cooled | E43: Scroll | F43: ≥300 tons | G43: 3 | H43: 1.25607101 | I43: 1.15311437 | J43: Does Not Apply | K43: Does Not Apply | L43: kW/ton | M43: 1.26 | N43: 1.008 | O43: 445.8967398 | P43: 42.33958709 | Q43: 16.80142345 | T43: 2.8 | U43: 3.05 | V43: Does Not Apply | W43: Does Not Apply | X43: COP
B44: CA-Air Cooled-Rotary-1 | C44: CA | D44: Air Cooled | E44: Rotary | F44: <150 tons | G44: 1 | H44: 1.25607101 | I44: 1.15311437 | J44: Does Not Apply | K44: Does Not Apply | L44: kW/ton | M44: 1.26 | N44: 1.008 | O44: 445.8967398 | P44: 42.33958709 | Q44: 16.80142345 | T44: 2.8 | U44: 3.05 | V44: Does Not Apply | W44: Does Not Apply | X44: COP
B45: CA-Air Cooled-Rotary-2 | C45: CA | D45: Air Cooled | E45: Rotary | F45: ≥150 tons and <300 tons | G45: 2 | H45: 1.25607101 | I45: 1.15311437 | J45: Does Not Apply | K45: Does Not Apply | L45: kW/ton | M45: 1.26 | N45: 1.008 | O45: 445.8967398 | P45: 42.33958709 | Q45: 16.80142345 | T45: 2.8 | U45: 3.05 | V45: Does Not Apply | W45: Does Not Apply | X45: COP
B46: CA-Air Cooled-Rotary-3 | C46: CA | D46: Air Cooled | E46: Rotary | F46: ≥300 tons | G46: 3 | H46: 1.25607101 | I46: 1.15311437 | J46: Does Not Apply | K46: Does Not Apply | L46: kW/ton | M46: 1.26 | N46: 1.008 | O46: 445.8967398 | P46: 42.33958709 | Q46: 16.80142345 | T46: 2.8 | U46: 3.05 | V46: Does Not Apply | W46: Does Not Apply | X46: COP
B47: CA-Water Cooled-Reciprocating-1 | C47: CA | D47: Water Cooled | E47: Reciprocating | F47: <150 tons | G47: 1 | H47: 0.8373806733 | I47: 0.6964354114 | J47: Does Not Apply | K47: Does Not Apply | L47: kW/ton | M47: 0.837 | N47: 0.672 | O47: 462.5882424 | P47: 16.27434124 | Q47: 9.863237114 | T47: 4.2 | U47: 5.05 | V47: Does Not Apply | W47: Does Not Apply | X47: COP
B48: CA-Water Cooled-Reciprocating-2 | C48: CA | D48: Water Cooled | E48: Reciprocating | F48: ≥150 tons and <300 tons | G48: 2 | H48: 0.8373806733 | I48: 0.6964354114 | J48: Does Not Apply | K48: Does Not Apply | L48: kW/ton | M48: 0.837 | N48: 0.672 | O48: 462.5882424 | P48: 16.27434124 | Q48: 9.863237114 | T48: 4.2 | U48: 5.05 | V48: Does Not Apply | W48: Does Not Apply | X48: COP
B49: CA-Water Cooled-Reciprocating-3 | C49: CA | D49: Water Cooled | E49: Reciprocating | F49: ≥300 tons | G49: 3 | H49: 0.8373806733 | I49: 0.6964354114 | J49: Does Not Apply | K49: Does Not Apply | L49: kW/ton | M49: 0.837 | N49: 0.672 | O49: 462.5882424 | P49: 16.27434124 | Q49: 9.863237114 | T49: 4.2 | U49: 5.05 | V49: Does Not Apply | W49: Does Not Apply | X49: COP
B50: CA-Water Cooled-Screw-1 | C50: CA | D50: Water Cooled | E50: Screw | F50: <150 tons | G50: 1 | H50: 0.7903368152 | I50: 0.6763459284 | J50: Does Not Apply | K50: Does Not Apply | L50: kW/ton | M50: 0.79 | N50: 0.632 | O50: 443.3892493 | P50: 49.05387812 | Q50: 31.04675831 | T50: 4.45 | U50: 5.2 | V50: Does Not Apply | W50: Does Not Apply | X50: COP
B51: CA-Water Cooled-Screw-2 | C51: CA | D51: Water Cooled | E51: Screw | F51: ≥150 tons and <300 tons | G51: 2 | H51: 0.7177548628 | I51: 0.6280355049 | J51: Does Not Apply | K51: Does Not Apply | L51: kW/ton | M51: 0.718 | N51: 0.574 | O51: 346.9411963 | P51: 25.47414437 | Q51: 17.69037803 | T51: 4.9 | U51: 5.6 | V51: Does Not Apply | W51: Does Not Apply | X51: COP
B52: CA-Water Cooled-Screw-3 | C52: CA | D52: Water Cooled | E52: Screw | F52: ≥300 tons | G52: 3 | H52: 0.6394543323 | I52: 0.5718697281 | J52: Does Not Apply | K52: Does Not Apply | L52: kW/ton | M52: 0.639 | N52: 0.511 | O52: 275.8363082 | P52: 11.39892069 | Q52: 8.905406786 | T52: 5.5 | U52: 6.15 | V52: Does Not Apply | W52: Does Not Apply | X52: COP
B53: CA-Water Cooled-Scroll-1 | C53: CA | D53: Water Cooled | E53: Scroll | F53: <150 tons | G53: 1 | H53: 0.7903368152 | I53: 0.6763459284 | J53: Does Not Apply | K53: Does Not Apply | L53: kW/ton | M53: 0.79 | N53: 0.632 | O53: 443.3892493 | P53: 49.05387812 | Q53: 31.04675831 | T53: 4.45 | U53: 5.2 | V53: Does Not Apply | W53: Does Not Apply | X53: COP
B54: CA-Water Cooled-Scroll-2 | C54: CA | D54: Water Cooled | E54: Scroll | F54: ≥150 tons and <300 tons | G54: 2 | H54: 0.7177548628 | I54: 0.6280355049 | J54: Does Not Apply | K54: Does Not Apply | L54: kW/ton | M54: 0.718 | N54: 0.574 | O54: 346.9411963 | P54: 25.47414437 | Q54: 17.69037803 | T54: 4.9 | U54: 5.6 | V54: Does Not Apply | W54: Does Not Apply | X54: COP
B55: CA-Water Cooled-Scroll-3 | C55: CA | D55: Water Cooled | E55: Scroll | F55: ≥300 tons | G55: 3 | H55: 0.6394543323 | I55: 0.5718697281 | J55: Does Not Apply | K55: Does Not Apply | L55: kW/ton | M55: 0.639 | N55: 0.511 | O55: 275.8363082 | P55: 11.39892069 | Q55: 8.905406786 | T55: 5.5 | U55: 6.15 | V55: Does Not Apply | W55: Does Not Apply | X55: COP
B56: CA-Water Cooled-Rotary-1 | C56: CA | D56: Water Cooled | E56: Rotary | F56: <150 tons | G56: 1 | H56: 0.7903368152 | I56: 0.6763459284 | J56: Does Not Apply | K56: Does Not Apply | L56: kW/ton | M56: 0.79 | N56: 0.632 | O56: 443.3892493 | P56: 49.05387812 | Q56: 31.04675831 | T56: 4.45 | U56: 5.2 | V56: Does Not Apply | W56: Does Not Apply | X56: COP
B57: CA-Water Cooled-Rotary-2 | C57: CA | D57: Water Cooled | E57: Rotary | F57: ≥150 tons and <300 tons | G57: 2 | H57: 0.7177548628 | I57: 0.6280355049 | J57: Does Not Apply | K57: Does Not Apply | L57: kW/ton | M57: 0.718 | N57: 0.574 | O57: 346.9411963 | P57: 25.47414437 | Q57: 17.69037803 | T57: 4.9 | U57: 5.6 | V57: Does Not Apply | W57: Does Not Apply | X57: COP
B58: CA-Water Cooled-Rotary-3 | C58: CA | D58: Water Cooled | E58: Rotary | F58: ≥300 tons | G58: 3 | H58: 0.6394543323 | I58: 0.5718697281 | J58: Does Not Apply | K58: Does Not Apply | L58: kW/ton | M58: 0.639 | N58: 0.511 | O58: 275.8363082 | P58: 11.39892069 | Q58: 8.905406786 | T58: 5.5 | U58: 6.15 | V58: Does Not Apply | W58: Does Not Apply | X58: COP
B59: CA-Water Cooled-Centrifugal-1 | C59: CA | D59: Water Cooled | E59: Centrifugal | F59: <150 tons | G59: 1 | H59: 0.7033997655 | I59: 0.6699045386 | J59: Does Not Apply | K59: Does Not Apply | L59: kW/ton | M59: 0.634 | N59: 0.56 | O59: 468.6879276 | P59: 145.5191392 | Q59: 196.6474853 | T59: 5 | U59: 5.25 | V59: Does Not Apply | W59: Does Not Apply | X59: COP
B60: CA-Water Cooled-Centrifugal-2 | C60: CA | D60: Water Cooled | E60: Centrifugal | F60: ≥150 tons and <300 tons | G60: 2 | H60: 0.6336934825 | I60: 0.5961014962 | J60: Does Not Apply | K60: Does Not Apply | L60: kW/ton | M60: 0.634 | N60: 0.507 | O60: 338.7655378 | P60: 93.84177406 | Q60: 73.89116068 | T60: 5.55 | U60: 5.9 | V60: Does Not Apply | W60: Does Not Apply | X60: COP
B61: CA-Water Cooled-Centrifugal-3 | C61: CA | D61: Water Cooled | E61: Centrifugal | F61: ≥300 tons | G61: 3 | H61: 0.5765571849 | I61: 0.5495310668 | J61: Does Not Apply | K61: Does Not Apply | L61: kW/ton | M61: 0.576 | N61: 0.461 | O61: 267.7142309 | P61: 65.58071502 | Q61: 57.02670872 | T61: 6.1 | U61: 6.4 | V61: Does Not Apply | W61: Does Not Apply | X61: COP
B63: Equipment ID | C63: State | D63: Heat Rejection | E63: Type | F63: Size | G63: Size ID | H63: Minimum COP (kW/ton) | I63: Minimum IPLV (kW/ton) | L63: Unit | M63: DEER Baseline Efficiency | N63: DEER New Efficiency (kW/ton) | O63: DEER Baseline cost | P63: DEER Incremental Cost ($/ton) | Q63: ($/ton/(0.1 kW/ton) increase) | T63: Minimum Full Load (COP) | U63: Minimum IPLV (COP) | X63: Unit
C64: UTAH Chiller Data (IECC 2012) - Effective July 1, 2014
B65: =CONCATENATE(C65,"-",D65,"-",E65,"-",F65) -> UT-Air Cooled-Reciprocating-1 | C65: UT | D65: Air Cooled | E65: Reciprocating | F65: 1 | G65: < 150 tons | H65: =12/T65 -> 1.25496758 | I65: =12/U65 -> 0.96 | J65: NA | K65: NA | L65: kW/ton | M65: 1.26 | N65: 1.008 | O65: 448.9536364 | P65: 39.93525253 | Q65: =P65/((M65-N65)/0.1) -> 15.84732243 | T65: 9.562 | U65: 12.5 | V65: NA | W65: NA | X65: EER
B66: =CONCATENATE(C66,"-",D66,"-",E66,"-",F66) -> UT-Air Cooled-Reciprocating-2 | C66: UT | D66: Air Cooled | E66: Reciprocating | F66: 2 | G66: ≥ 150 tons | H66: =12/T66 -> 1.25496758 | I66: 0.9411764706 | J66: NA | K66: NA | L66: kW/ton | M66: 1.26 | N66: 1.008 | O66: 448.9536364 | P66: 39.93525253 | Q66: 15.84732243 | T66: 9.562 | U66: 12.75 | V66: NA | W66: NA | X66: EER
B67: UT-Air Cooled-Rotary-1 | C67: UT | D67: Air Cooled | E67: Rotary | F67: 1 | G67: < 150 tons | H67: 1.25496758 | I67: 0.96 | J67: NA | K67: NA | L67: kW/ton | M67: 1.26 | N67: 1.008 | O67: 448.9536364 | P67: 39.93525253 | Q67: 15.84732243 | T67: 9.562 | U67: 12.5 | V67: NA | W67: NA | X67: EER
B68: UT-Air Cooled-Rotary-2 | C68: UT | D68: Air Cooled | E68: Rotary | F68: 2 | G68: ≥ 150 tons | H68: 1.25496758 | I68: 0.9411764706 | J68: NA | K68: NA | L68: kW/ton | M68: 1.26 | N68: 1.008 | O68: 448.9536364 | P68: 39.93525253 | Q68: 15.84732243 | T68: 9.562 | U68: 12.75 | V68: NA | W68: NA | X68: EER
B69: UT-Air Cooled-Screw-1 | C69: UT | D69: Air Cooled | E69: Screw | F69: 1 | G69: < 150 tons | H69: 1.25496758 | I69: 0.96 | J69: NA | K69: NA | L69: kW/ton | M69: 1.26 | N69: 1.008 | O69: 448.9536364 | P69: 39.93525253 | Q69: 15.84732243 | T69: 9.562 | U69: 12.5 | V69: NA | W69: NA | X69: EER
B70: UT-Air Cooled-Screw-2 | C70: UT | D70: Air Cooled | E70: Screw | F70: 2 | G70: ≥ 150 tons | H70: 1.25496758 | I70: 0.9411764706 | J70: NA | K70: NA | L70: kW/ton | M70: 1.26 | N70: 1.008 | O70: 448.9536364 | P70: 39.93525253 | Q70: 15.84732243 | T70: 9.562 | U70: 12.75 | V70: NA | W70: NA | X70: EER
B71: UT-Air Cooled-Scroll-1 | C71: UT | D71: Air Cooled | E71: Scroll | F71: 1 | G71: < 150 tons | H71: 1.25496758 | I71: 0.96 | J71: NA | K71: NA | L71: kW/ton | M71: 1.26 | N71: 1.008 | O71: 448.9536364 | P71: 39.93525253 | Q71: 15.84732243 | T71: 9.562 | U71: 12.5 | V71: NA | W71: NA | X71: EER
B72: UT-Air Cooled-Scroll-2 | C72: UT | D72: Air Cooled | E72: Scroll | F72: 2 | G72: ≥ 150 tons | H72: 1.25496758 | I72: 0.9411764706 | J72: NA | K72: NA | L72: kW/ton | M72: 1.26 | N72: 1.008 | O72: 448.9536364 | P72: 39.93525253 | Q72: 15.84732243 | T72: 9.562 | U72: 12.75 | V72: NA | W72: NA | X72: EER
B73: UT-Water Cooled-Reciprocating-1 | C73: UT | D73: Water Cooled | E73: Reciprocating | F73: 1 | G73: < 75 tons | H73: 0.78 | I73: 0.63 | J73: 0.8 | K73: 0.6 | L73: kW/ton | M73: 0.837 | N73: 0.672 | O73: 462.5882424 | P73: 16.27434124 | Q73: 9.863237114 | T73: 0.78 | U73: 0.63 | V73: 0.8 | W73: 0.6 | X73: kW/ton
B74: UT-Water Cooled-Reciprocating-2 | C74: UT | D74: Water Cooled | E74: Reciprocating | F74: 2 | G74: ≥ 75 tons and < 150 tons | H74: 0.775 | I74: 0.615 | J74: 0.79 | K74: 0.586 | L74: kW/ton | M74: 0.837 | N74: 0.672 | O74: 462.5882424 | P74: 16.27434124 | Q74: 9.863237114 | T74: 0.775 | U74: 0.615 | V74: 0.79 | W74: 0.586 | X74: kW/ton
B75: UT-Water Cooled-Reciprocating-3 | C75: UT | D75: Water Cooled | E75: Reciprocating | F75: 3 | G75: ≥ 150 tons and < 300 tons | H75: 0.68 | I75: 0.58 | J75: 0.718 | K75: 0.54 | L75: kW/ton | M75: 0.837 | N75: 0.672 | O75: 462.5882424 | P75: 16.27434124 | Q75: 9.863237114 | T75: 0.68 | U75: 0.58 | V75: 0.718 | W75: 0.54 | X75: kW/ton
B76: UT-Water Cooled-Reciprocating-4 | C76: UT | D76: Water Cooled | E76: Reciprocating | F76: 4 | G76: ≥ 300 tons | H76: 0.62 | I76: 0.54 | J76: 0.639 | K76: 0.49 | L76: kW/ton | M76: 0.837 | N76: 0.672 | O76: 462.5882424 | P76: 16.27434124 | Q76: =P76/((M76-N76)/0.1) -> 9.863237114 | T76: 0.62 | U76: 0.54 | V76: 0.639 | W76: 0.49 | X76: kW/ton
B77: UT-Water Cooled-Rotary-1 | C77: UT | D77: Water Cooled | E77: Rotary | F77: 1 | G77: < 75 tons | H77: 0.78 | I77: 0.63 | J77: 0.8 | K77: 0.6 | L77: kW/ton | M77: 0.79 | N77: 0.632 | O77: 443.3892493 | P77: 49.05387812 | Q77: =P77/((M77-N77)/0.1) -> 31.04675831 | T77: 0.78 | U77: 0.63 | V77: 0.8 | W77: 0.6 | X77: kW/ton
B78: UT-Water Cooled-Rotary-2 | C78: UT | D78: Water Cooled | E78: Rotary | F78: 2 | G78: ≥ 75 tons and < 150 tons | H78: 0.775 | I78: 0.615 | J78: 0.79 | K78: 0.586 | L78: kW/ton | M78: 0.79 | N78: 0.632 | O78: 443.3892493 | P78: 49.05387812 | Q78: =P78/((M78-N78)/0.1) -> 31.04675831 | T78: 0.775 | U78: 0.615 | V78: 0.79 | W78: 0.586 | X78: kW/ton
B79: UT-Water Cooled-Rotary-3 | C79: UT | D79: Water Cooled | E79: Rotary | F79: 3 | G79: ≥ 150 tons and < 300 tons | H79: 0.68 | I79: 0.58 | J79: 0.718 | K79: 0.54 | L79: kW/ton | M79: 0.718 | N79: 0.574 | O79: 346.9411963 | P79: 25.47414437 | Q79: =P79/((M79-N79)/0.1) -> 17.69037803 | T79: 0.68 | U79: 0.58 | V79: 0.718 | W79: 0.54 | X79: kW/ton
B80: UT-Water Cooled-Rotary-4 | C80: UT | D80: Water Cooled | E80: Rotary | F80: 4 | G80: ≥ 300 tons | H80: 0.62 | I80: 0.54 | J80: 0.639 | K80: 0.49 | L80: kW/ton | M80: 0.639 | N80: 0.511 | O80: 275.8363082 | P80: 11.39892069 | Q80: =P80/((M80-N80)/0.1) -> 8.905406786 | T80: 0.62 | U80: 0.54 | V80: 0.639 | W80: 0.49 | X80: kW/ton
B81: UT-Water Cooled-Screw-1 | C81: UT | D81: Water Cooled | E81: Screw | F81: 1 | G81: < 75 tons | H81: 0.78 | I81: 0.63 | J81: 0.8 | K81: 0.6 | L81: kW/ton | M81: 0.79 | N81: 0.632 | O81: 443.3892493 | P81: 49.05387812 | Q81: =P81/((M81-N81)/0.1) -> 31.04675831 | T81: 0.78 | U81: 0.63 | V81: 0.8 | W81: 0.6 | X81: kW/ton
B82: UT-Water Cooled-Screw-2 | C82: UT | D82: Water Cooled | E82: Screw | F82: 2 | G82: ≥ 75 tons and < 150 tons | H82: 0.775 | I82: 0.615 | J82: 0.79 | K82: 0.586 | L82: kW/ton | M82: 0.79 | N82: 0.632 | O82: 443.3892493 | P82: 49.05387812 | Q82: 31.04675831 | T82: 0.775 | U82: 0.615 | V82: 0.79 | W82: 0.586 | X82: kW/ton
B83: UT-Water Cooled-Screw-3 | C83: UT | D83: Water Cooled | E83: Screw | F83: 3 | G83: ≥ 150 tons and < 300 tons | H83: 0.68 | I83: 0.58 | J83: 0.718 | K83: 0.54 | L83: kW/ton | M83: 0.718 | N83: 0.574 | O83: 346.9411963 | P83: 25.47414437 | Q83: 17.69037803 | T83: 0.68 | U83: 0.58 | V83: 0.718 | W83: 0.54 | X83: kW/ton
B84: UT-Water Cooled-Screw-4 | C84: UT | D84: Water Cooled | E84: Screw | F84: 4 | G84: ≥ 300 tons | H84: 0.62 | I84: 0.54 | J84: 0.639 | K84: 0.49 | L84: kW/ton | M84: 0.639 | N84: 0.511 | O84: 275.8363082 | P84: 11.39892069 | Q84: 8.905406786 | T84: 0.62 | U84: 0.54 | V84: 0.639 | W84: 0.49 | X84: kW/ton
B85: UT-Water Cooled-Scroll-1 | C85: UT | D85: Water Cooled | E85: Scroll | F85: 1 | G85: < 75 tons | H85: 0.78 | I85: 0.63 | J85: 0.8 | K85: 0.6 | L85: kW/ton | M85: 0.79 | N85: 0.632 | O85: 443.3892493 | P85: 49.05387812 | Q85: 31.04675831 | T85: 0.78 | U85: 0.63 | V85: 0.8 | W85: 0.6 | X85: kW/ton
B86: UT-Water Cooled-Scroll-2 | C86: UT | D86: Water Cooled | E86: Scroll | F86: 2 | G86: ≥ 75 tons and < 150 tons | H86: 0.775 | I86: 0.615 | J86: 0.79 | K86: 0.586 | L86: kW/ton | M86: 0.79 | N86: 0.632 | O86: 443.3892493 | P86: 49.05387812 | Q86: 31.04675831 | T86: 0.775 | U86: 0.615 | V86: 0.79 | W86: 0.586 | X86: kW/ton
B87: UT-Water Cooled-Scroll-3 | C87: UT | D87: Water Cooled | E87: Scroll | F87: 3 | G87: ≥ 150 tons and < 300 tons | H87: 0.68 | I87: 0.58 | J87: 0.718 | K87: 0.54 | L87: kW/ton | M87: 0.718 | N87: 0.574 | O87: 346.9411963 | P87: 25.47414437 | Q87: 17.69037803 | T87: 0.68 | U87: 0.58 | V87: 0.718 | W87: 0.54 | X87: kW/ton
B88: UT-Water Cooled-Scroll-4 | C88: UT | D88: Water Cooled | E88: Scroll | F88: 4 | G88: ≥ 300 tons | H88: 0.62 | I88: 0.54 | J88: 0.639 | K88: 0.49 | L88: kW/ton | M88: 0.639 | N88: 0.511 | O88: 275.8363082 | P88: 11.39892069 | Q88: 8.905406786 | T88: 0.62 | U88: 0.54 | V88: 0.639 | W88: 0.49 | X88: kW/ton
B89: UT-Water Cooled-Centrifugal-1 | C89: UT | D89: Water Cooled | E89: Centrifugal | F89: 1 | G89: < 75 tons | H89: 0.634 | I89: 0.596 | J89: 0.639 | K89: 0.45 | L89: kW/ton | M89: 0.634 | N89: 0.56 | O89: 468.6879276 | P89: 145.5191392 | Q89: 196.6474853 | T89: 0.634 | U89: 0.596 | V89: 0.639 | W89: 0.45 | X89: kW/ton
B90: =CONCATENATE(C90,"-",D90,"-",E90,"-",F90) -> UT-Water Cooled-Centrifugal-2 | C90: UT | D90: Water Cooled | E90: Centrifugal | F90: 2 | G90: < 150 tons | H90: 0.634 | I90: 0.596 | J90: 0.639 | K90: 0.45 | L90: kW/ton | M90: 0.634 | N90: 0.56 | O90: 468.6879276 | P90: 145.5191392 | Q90: 196.6474853 | T90: 0.634 | U90: 0.596 | V90: 0.639 | W90: 0.45 | X90: kW/ton
B91: =CONCATENATE(C91,"-",D91,"-",E91,"-",F91) -> UT-Water Cooled-Centrifugal-3 | C91: UT | D91: Water Cooled | E91: Centrifugal | F91: 3 | G91: ≥ 150 tons and < 300 tons | H91: 0.634 | I91: 0.596 | J91: 0.639 | K91: 0.45 | L91: kW/ton | M91: 0.634 | N91: 0.507 | O91: 338.7655378 | P91: 93.84177406 | Q91: 73.89116068 | T91: 0.634 | U91: 0.596 | V91: 0.639 | W91: 0.45 | X91: kW/ton
B92: UT-Water Cooled-Centrifugal-4 | C92: UT | D92: Water Cooled | E92: Centrifugal | F92: 4 | G92: ≥ 300 tons and < 600 tons | H92: 0.576 | I92: 0.549 | J92: 0.6 | K92: 0.4 | L92: kW/ton | M92: 0.576 | N92: 0.461 | O92: 267.7142309 | P92: 65.58071502 | Q92: 57.02670872 | T92: 0.576 | U92: 0.549 | V92: 0.6 | W92: 0.4 | X92: kW/ton
B93: UT-Water Cooled-Centrifugal-5 | C93: UT | D93: Water Cooled | E93: Centrifugal | F93: 5 | G93: ≥ 600 tons | H93: 0.57 | I93: 0.539 | J93: 0.59 | K93: 0.4 | L93: kW/ton | M93: 0.576 | N93: 0.461 | O93: 267.7142309 | P93: 65.58071502 | Q93: 57.02670872 | T93: 0.57 | U93: 0.539 | V93: 0.59 | W93: 0.4 | X93: kW/ton
B95: Equipment ID | C95: State | D95: Heat Rejection | E95: Type | F95: Size | G95: Size ID | H95: Minimum COP (kW/ton) | I95: Minimum IPLV (kW/ton) | L95: Unit | M95: DEER Baseline Efficiency | N95: DEER New Efficiency (kW/ton) | O95: DEER Baseline cost | P95: DEER Incremental Cost ($/ton) | Q95: ($/ton/(0.1 kW/ton) increase) | T95: Minimum Full Load (COP) | U95: Minimum IPLV (COP) | X95: Unit
C96: UTAH Chiller Data (IECC 2015) - Effective July 1, 2016
B97: =CONCATENATE(C97,"-",D97,"-",E97,"-",F97) -> UT-Air Cooled-Reciprocating-A | C97: UT | D97: Air Cooled | E97: Reciprocating | F97: A | G97: < 150 tons | H97: 1.188118812 | I97: 0.8759124088 | J97: 1.237113402 | K97: 0.7594936709 | L97: kW/ton | M97: 1.26 | N97: 1.008 | O97: 448.9536364 | P97: 39.93525253 | Q97: =P97/((M97-N97)/0.1) -> 15.84732243 | T97: 9.562 | U97: 12.5 | V97: NA | W97: NA | X97: EER | Z97: =IF(H97='Chiller Data'!H176,"2015 & 2021 Same","Not Same") -> 2015 & 2021 Same | AA97: =IF(I97='Chiller Data'!I176,"2015 & 2021 Same","Not Same") -> 2015 & 2021 Same | AB97: =IF(J97='Chiller Data'!J176,"2015 & 2021 Same","Not Same") -> 2015 & 2021 Same | AC97: =IF(K97='Chiller Data'!K176,"2015 & 2021 Same","Not Same") -> 2015 & 2021 Same
B98: =CONCATENATE(C98,"-",D98,"-",E98,"-",F98) -> UT-Air Cooled-Reciprocating-B | C98: UT | D98: Air Cooled | E98: Reciprocating | F98: B | G98: ≥ 150 tons | H98: 1.188118812 | I98: 0.8571428571 | J98: 1.237113402 | K98: 0.7453416149 | L98: kW/ton | M98: 1.26 | N98: 1.008 | O98: 448.9536364 | P98: 39.93525253 | Q98: 15.84732243 | T98: 9.562 | U98: 12.75 | V98: NA | W98: NA | X98: EER | Z98: =IF(H98='Chiller Data'!H177,"2015 & 2021 Same","Not Same") -> 2015 & 2021 Same | AA98: =IF(I98='Chiller Data'!I177,"2015 & 2021 Same","Not Same") -> 2015 & 2021 Same | AB98: =IF(J98='Chiller Data'!J177,"2015 & 2021 Same","Not Same") -> 2015 & 2021 Same | AC98: =IF(K98='Chiller Data'!K177,"2015 & 2021 Same","Not Same") -> 2015 & 2021 Same
B99: UT-Air Cooled-Rotary-A | C99: UT | D99: Air Cooled | E99: Rotary | F99: A | G99: < 150 tons | H99: 1.188118812 | I99: 0.8759124088 | J99: 1.237113402 | K99: 0.7594936709 | L99: kW/ton | M99: 1.26 | N99: 1.008 | O99: 448.9536364 | P99: 39.93525253 | Q99: 15.84732243 | T99: 9.562 | U99: 12.5 | V99: NA | W99: NA | X99: EER | Z99: =IF(H99='Chiller Data'!H178,"2015 & 2021 Same","Not Same") -> 2015 & 2021 Same | AA99: =IF(I99='Chiller Data'!I178,"2015 & 2021 Same","Not Same") -> 2015 & 2021 Same | AB99: =IF(J99='Chiller Data'!J178,"2015 & 2021 Same","Not Same") -> 2015 & 2021 Same | AC99: =IF(K99='Chiller Data'!K178,"2015 & 2021 Same","Not Same") -> 2015 & 2021 Same
B100: UT-Air Cooled-Rotary-B | C100: UT | D100: Air Cooled | E100: Rotary | F100: B | G100: ≥ 150 tons | H100: 1.188118812 | I100: 0.8571428571 | J100: 1.237113402 | K100: 0.7453416149 | L100: kW/ton | M100: 1.26 | N100: 1.008 | O100: 448.9536364 | P100: 39.93525253 | Q100: 15.84732243 | T100: 9.562 | U100: 12.75 | V100: NA | W100: NA | X100: EER | Z100: =IF(H100='Chiller Data'!H179,"2015 & 2021 Same","Not Same") -> 2015 & 2021 Same | AA100: =IF(I100='Chiller Data'!I179,"2015 & 2021 Same","Not Same") -> 2015 & 2021 Same | AB100: =IF(J100='Chiller Data'!J179,"2015 & 2021 Same","Not Same") -> 2015 & 2021 Same | AC100: =IF(K100='Chiller Data'!K179,"2015 & 2021 Same","Not Same") -> 2015 & 2021 Same
B101: UT-Air Cooled-Screw-A | C101: UT | D101: Air Cooled | E101: Screw | F101: A | G101: < 150 tons | H101: 1.188118812 | I101: 0.8759124088 | J101: 1.237113402 | K101: 0.7594936709 | L101: kW/ton | M101: 1.26 | N101: 1.008 | O101: 448.9536364 | P101: 39.93525253 | Q101: 15.84732243 | T101: 9.562 | U101: 12.5 | V101: NA | W101: NA | X101: EER | Z101: =IF(H101='Chiller Data'!H180,"2015 & 2021 Same","Not Same") -> 2015 & 2021 Same | AA101: =IF(I101='Chiller Data'!I180,"2015 & 2021 Same","Not Same") -> 2015 & 2021 Same | AB101: =IF(J101='Chiller Data'!J180,"2015 & 2021 Same","Not Same") -> 2015 & 2021 Same | AC101: =IF(K101='Chiller Data'!K180,"2015 & 2021 Same","Not Same") -> 2015 & 2021 Same
B102: UT-Air Cooled-Screw-B | C102: UT | D102: Air Cooled | E102: Screw | F102: B | G102: ≥ 150 tons | H102: 1.188118812 | I102: 0.8571428571 | J102: 1.237113402 | K102: 0.7453416149 | L102: kW/ton | M102: 1.26 | N102: 1.008 | O102: 448.9536364 | P102: 39.93525253 | Q102: 15.84732243 | T102: 9.562 | U102: 12.75 | V102: NA | W102: NA | X102: EER | Z102: =IF(H102='Chiller Data'!H181,"2015 & 2021 Same","Not Same") -> 2015 & 2021 Same | AA102: =IF(I102='Chiller Data'!I181,"2015 & 2021 Same","Not Same") -> 2015 & 2021 Same | AB102: =IF(J102='Chiller Data'!J181,"2015 & 2021 Same","Not Same") -> 2015 & 2021 Same | AC102: =IF(K102='Chiller Data'!K181,"2015 & 2021 Same","Not Same") -> 2015 & 2021 Same
B103: UT-Air Cooled-Scroll-A | C103: UT | D103: Air Cooled | E103: Scroll | F103: A | G103: < 150 tons | H103: 1.188118812 | I103: 0.8759124088 | J103: 1.237113402 | K103: 0.7594936709 | L103: kW/ton | M103: 1.26 | N103: 1.008 | O103: 448.9536364 | P103: 39.93525253 | Q103: 15.84732243 | T103: 9.562 | U103: 12.5 | V103: NA | W103: NA | X103: EER | Z103: =IF(H103='Chiller Data'!H182,"2015 & 2021 Same","Not Same") -> 2015 & 2021 Same | AA103: =IF(I103='Chiller Data'!I182,"2015 & 2021 Same","Not Same") -> 2015 & 2021 Same | AB103: =IF(J103='Chiller Data'!J182,"2015 & 2021 Same","Not Same") -> 2015 & 2021 Same | AC103: =IF(K103='Chiller Data'!K182,"2015 & 2021 Same","Not Same") -> 2015 & 2021 Same
B104: UT-Air Cooled-Scroll-B | C104: UT | D104: Air Cooled | E104: Scroll | F104: B | G104: ≥ 150 tons | H104: 1.188118812 | I104: 0.8571428571 | J104: 1.237113402 | K104: 0.7453416149 | L104: kW/ton | M104: 1.26 | N104: 1.008 | O104: 448.9536364 | P104: 39.93525253 | Q104: 15.84732243 | T104: 9.562 | U104: 12.75 | V104: NA | W104: NA | X104: EER | Z104: =IF(H104='Chiller Data'!H183,"2015 & 2021 Same","Not Same") -> 2015 & 2021 Same | AA104: =IF(I104='Chiller Data'!I183,"2015 & 2021 Same","Not Same") -> 2015 & 2021 Same | AB104: =IF(J104='Chiller Data'!J183,"2015 & 2021 Same","Not Same") -> 2015 & 2021 Same | AC104: =IF(K104='Chiller Data'!K183,"2015 & 2021 Same","Not Same") -> 2015 & 2021 Same
B105: UT-Water Cooled-Reciprocating-A | C105: UT | D105: Water Cooled | E105: Reciprocating | F105: A | G105: < 75 tons | H105: 0.75 | I105: 0.6 | J105: 0.78 | K105: 0.5 | L105: kW/ton | M105: 0.837 | N105: 0.672 | O105: 462.5882424 | P105: 16.27434124 | Q105: 9.863237114 | T105: 0.78 | U105: 0.63 | V105: 0.8 | W105: 0.6 | X105: kW/ton | Z105: =IF(H105='Chiller Data'!H184,"2015 & 2021 Same","Not Same") -> 2015 & 2021 Same | AA105: =IF(I105='Chiller Data'!I184,"2015 & 2021 Same","Not Same") -> 2015 & 2021 Same | AB105: =IF(J105='Chiller Data'!J184,"2015 & 2021 Same","Not Same") -> 2015 & 2021 Same | AC105: =IF(K105='Chiller Data'!K184,"2015 & 2021 Same","Not Same") -> 2015 & 2021 Same
B106: UT-Water Cooled-Reciprocating-B | C106: UT | D106: Water Cooled | E106: Reciprocating | F106: B | G106: ≥ 75 tons and < 150 tons | H106: 0.72 | I106: 0.56 | J106: 0.75 | K106: 0.49 | L106: kW/ton | M106: 0.837 | N106: 0.672 | O106: 462.5882424 | P106: 16.27434124 | Q106: 9.863237114 | T106: 0.775 | U106: 0.615 | V106: 0.79 | W106: 0.586 | X106: kW/ton | Z106: =IF(H106='Chiller Data'!H185,"2015 & 2021 Same","Not Same") -> 2015 & 2021 Same | AA106: =IF(I106='Chiller Data'!I185,"2015 & 2021 Same","Not Same") -> 2015 & 2021 Same | AB106: =IF(J106='Chiller Data'!J185,"2015 & 2021 Same","Not Same") -> 2015 & 2021 Same | AC106: =IF(K106='Chiller Data'!K185,"2015 & 2021 Same","Not Same") -> 2015 & 2021 Same
B107: UT-Water Cooled-Reciprocating-C | C107: UT | D107: Water Cooled | E107: Reciprocating | F107: C | G107: ≥ 150 tons and < 300 tons | H107: 0.66 | I107: 0.54 | J107: 0.68 | K107: 0.44 | L107: kW/ton | M107: 0.837 | N107: 0.672 | O107: 462.5882424 | P107: 16.27434124 | Q107: 9.863237114 | T107: 0.68 | U107: 0.58 | V107: 0.718 | W107: 0.54 | X107: kW/ton | Z107: =IF(H107='Chiller Data'!H186,"2015 & 2021 Same","Not Same") -> 2015 & 2021 Same | AA107: =IF(I107='Chiller Data'!I186,"2015 & 2021 Same","Not Same") -> 2015 & 2021 Same | AB107: =IF(J107='Chiller Data'!J186,"2015 & 2021 Same","Not Same") -> 2015 & 2021 Same | AC107: =IF(K107='Chiller Data'!K186,"2015 & 2021 Same","Not Same") -> 2015 & 2021 Same
B108: UT-Water Cooled-Reciprocating-D | C108: UT | D108: Water Cooled | E108: Reciprocating | F108: D | G108: ≥ 300 tons and < 600 tons | H108: 0.61 | I108: 0.52 | J108: 0.625 | K108: 0.41 | L108: kW/ton | M108: 0.837 | N108: 0.672 | O108: 462.5882424 | P108: 16.27434124 | Q108: =P108/((M108-N108)/0.1) -> 9.863237114 | T108: 0.62 | U108: 0.54 | V108: 0.639 | W108: 0.49 | X108: kW/ton | Z108: =IF(H108='Chiller Data'!H187,"2015 & 2021 Same","Not Same") -> 2015 & 2021 Same | AA108: =IF(I108='Chiller Data'!I187,"2015 & 2021 Same","Not Same") -> 2015 & 2021 Same | AB108: =IF(J108='Chiller Data'!J187,"2015 & 2021 Same","Not Same") -> 2015 & 2021 Same | AC108: =IF(K108='Chiller Data'!K187,"2015 & 2021 Same","Not Same") -> 2015 & 2021 Same
B109: UT-Water Cooled-Reciprocating-E | C109: UT | D109: Water Cooled | E109: Reciprocating | F109: E | G109: ≥ 600 tons | H109: 0.56 | I109: 0.5 | J109: 0.585 | K109: 0.38 | L109: kW/ton | Z109: =IF(H109='Chiller Data'!H188,"2015 & 2021 Same","Not Same") -> 2015 & 2021 Same | AA109: =IF(I109='Chiller Data'!I188,"2015 & 2021 Same","Not Same") -> 2015 & 2021 Same | AB109: =IF(J109='Chiller Data'!J188,"2015 & 2021 Same","Not Same") -> 2015 & 2021 Same | AC109: =IF(K109='Chiller Data'!K188,"2015 & 2021 Same","Not Same") -> 2015 & 2021 Same
B110: UT-Water Cooled-Rotary-A | C110: UT | D110: Water Cooled | E110: Rotary | F110: A | G110: < 75 tons | H110: 0.75 | I110: 0.6 | J110: 0.78 | K110: 0.5 | L110: kW/ton | M110: 0.79 | N110: 0.632 | O110: 443.3892493 | P110: 49.05387812 | Q110: =P110/((M110-N110)/0.1) -> 31.04675831 | T110: 0.78 | U110: 0.63 | V110: 0.8 | W110: 0.6 | X110: kW/ton | Z110: =IF(H110='Chiller Data'!H189,"2015 & 2021 Same","Not Same") -> 2015 & 2021 Same | AA110: =IF(I110='Chiller Data'!I189,"2015 & 2021 Same","Not Same") -> 2015 & 2021 Same | AB110: =IF(J110='Chiller Data'!J189,"2015 & 2021 Same","Not Same") -> 2015 & 2021 Same | AC110: =IF(K110='Chiller Data'!K189,"2015 & 2021 Same","Not Same") -> 2015 & 2021 Same
B111: UT-Water Cooled-Rotary-B | C111: UT | D111: Water Cooled | E111: Rotary | F111: B | G111: ≥ 75 tons and < 150 tons | H111: 0.72 | I111: 0.56 | J111: 0.75 | K111: 0.49 | L111: kW/ton | M111: 0.79 | N111: 0.632 | O111: 443.3892493 | P111: 49.05387812 | Q111: =P111/((M111-N111)/0.1) -> 31.04675831 | T111: 0.775 | U111: 0.615 | V111: 0.79 | W111: 0.586 | X111: kW/ton | Z111: =IF(H111='Chiller Data'!H190,"2015 & 2021 Same","Not Same") -> 2015 & 2021 Same | AA111: =IF(I111='Chiller Data'!I190,"2015 & 2021 Same","Not Same") -> 2015 & 2021 Same | AB111: =IF(J111='Chiller Data'!J190,"2015 & 2021 Same","Not Same") -> 2015 & 2021 Same | AC111: =IF(K111='Chiller Data'!K190,"2015 & 2021 Same","Not Same") -> 2015 & 2021 Same
B112: UT-Water Cooled-Rotary-C | C112: UT | D112: Water Cooled | E112: Rotary | F112: C | G112: ≥ 150 tons and < 300 tons | H112: 0.66 | I112: 0.54 | J112: 0.68 | K112: 0.44 | L112: kW/ton | M112: 0.718 | N112: 0.574 | O112: 346.9411963 | P112: 25.47414437 | Q112: =P112/((M112-N112)/0.1) -> 17.69037803 | T112: 0.68 | U112: 0.58 | V112: 0.718 | W112: 0.54 | X112: kW/ton | Z112: =IF(H112='Chiller Data'!H191,"2015 & 2021 Same","Not Same") -> 2015 & 2021 Same | AA112: =IF(I112='Chiller Data'!I191,"2015 & 2021 Same","Not Same") -> 2015 & 2021 Same | AB112: =IF(J112='Chiller Data'!J191,"2015 & 2021 Same","Not Same") -> 2015 & 2021 Same | AC112: =IF(K112='Chiller Data'!K191,"2015 & 2021 Same","Not Same") -> 2015 & 2021 Same
B113: UT-Water Cooled-Rotary-D | C113: UT | D113: Water Cooled | E113: Rotary | F113: D | G113: ≥ 300 tons and < 600 tons | H113: 0.61 | I113: 0.52 | J113: 0.625 | K113: 0.41 | L113: kW/ton | M113: 0.639 | N113: 0.511 | O113: 275.8363082 | P113: 11.39892069 | Q113: =P113/((M113-N113)/0.1) -> 8.905406786 | T113: 0.62 | U113: 0.54 | V113: 0.639 | W113: 0.49 | X113: kW/ton | Z113: =IF(H113='Chiller Data'!H192,"2015 & 2021 Same","Not Same") -> 2015 & 2021 Same | AA113: =IF(I113='Chiller Data'!I192,"2015 & 2021 Same","Not Same") -> 2015 & 2021 Same | AB113: =IF(J113='Chiller Data'!J192,"2015 & 2021 Same","Not Same") -> 2015 & 2021 Same | AC113: =IF(K113='Chiller Data'!K192,"2015 & 2021 Same","Not Same") -> 2015 & 2021 Same
B114: UT-Water Cooled-Rotary-E | C114: UT | D114: Water Cooled | E114: Rotary | F114: E | G114: ≥ 600 tons | H114: 0.56 | I114: 0.5 | J114: 0.585 | K114: 0.38 | L114: kW/ton | Z114: =IF(H114='Chiller Data'!H193,"2015 & 2021 Same","Not Same") -> 2015 & 2021 Same | AA114: =IF(I114='Chiller Data'!I193,"2015 & 2021 Same","Not Same") -> 2015 & 2021 Same | AB114: =IF(J114='Chiller Data'!J193,"2015 & 2021 Same","Not Same") -> 2015 & 2021 Same | AC114: =IF(K114='Chiller Data'!K193,"2015 & 2021 Same","Not Same") -> 2015 & 2021 Same
B115: UT-Water Cooled-Screw-A | C115: UT | D115: Water Cooled | E115: Screw | F115: A | G115: < 75 tons | H115: 0.75 | I115: 0.6 | J115: 0.78 | K115: 0.5 | L115: kW/ton | M115: 0.79 | N115: 0.632 | O115: 443.3892493 | P115: 49.05387812 | Q115: =P115/((M115-N115)/0.1) -> 31.04675831 | T115: 0.78 | U115: 0.63 | V115: 0.8 | W115: 0.6 | X115: kW/ton | Z115: =IF(H115='Chiller Data'!H194,"2015 & 2021 Same","Not Same") -> 2015 & 2021 Same | AA115: =IF(I115='Chiller Data'!I194,"2015 & 2021 Same","Not Same") -> 2015 & 2021 Same | AB115: =IF(J115='Chiller Data'!J194,"2015 & 2021 Same","Not Same") -> 2015 & 2021 Same | AC115: =IF(K115='Chiller Data'!K194,"2015 & 2021 Same","Not Same") -> 2015 & 2021 Same
B116: UT-Water Cooled-Screw-B | C116: UT | D116: Water Cooled | E116: Screw | F116: B | G116: ≥ 75 tons and < 150 tons | H116: 0.72 | I116: 0.56 | J116: 0.75 | K116: 0.49 | L116: kW/ton | M116: 0.79 | N116: 0.632 | O116: 443.3892493 | P116: 49.05387812 | Q116: 31.04675831 | T116: 0.775 | U116: 0.615 | V116: 0.79 | W116: 0.586 | X116: kW/ton | Z116: =IF(H116='Chiller Data'!H195,"2015 & 2021 Same","Not Same") -> 2015 & 2021 Same | AA116: =IF(I116='Chiller Data'!I195,"2015 & 2021 Same","Not Same") -> 2015 & 2021 Same | AB116: =IF(J116='Chiller Data'!J195,"2015 & 2021 Same","Not Same") -> 2015 & 2021 Same | AC116: =IF(K116='Chiller Data'!K195,"2015 & 2021 Same","Not Same") -> 2015 & 2021 Same
B117: UT-Water Cooled-Screw-C | C117: UT | D117: Water Cooled | E117: Screw | F117: C | G117: ≥ 150 tons and < 300 tons | H117: 0.66 | I117: 0.54 | J117: 0.68 | K117: 0.44 | L117: kW/ton | M117: 0.718 | N117: 0.574 | O117: 346.9411963 | P117: 25.47414437 | Q117: 17.69037803 | T117: 0.68 | U117: 0.58 | V117: 0.718 | W117: 0.54 | X117: kW/ton | Z117: =IF(H117='Chiller Data'!H196,"2015 & 2021 Same","Not Same") -> 2015 & 2021 Same | AA117: =IF(I117='Chiller Data'!I196,"2015 & 2021 Same","Not Same") -> 2015 & 2021 Same | AB117: =IF(J117='Chiller Data'!J196,"2015 & 2021 Same","Not Same") -> 2015 & 2021 Same | AC117: =IF(K117='Chiller Data'!K196,"2015 & 2021 Same","Not Same") -> 2015 & 2021 Same
B118: UT-Water Cooled-Screw-D | C118: UT | D118: Water Cooled | E118: Screw | F118: D | G118: ≥ 300 tons and < 600 tons | H118: 0.61 | I118: 0.52 | J118: 0.625 | K118: 0.41 | L118: kW/ton | M118: 0.639 | N118: 0.511 | O118: 275.8363082 | P118: 11.39892069 | Q118: 8.905406786 | T118: 0.62 | U118: 0.54 | V118: 0.639 | W118: 0.49 | X118: kW/ton | Z118: =IF(H118='Chiller Data'!H197,"2015 & 2021 Same","Not Same") -> 2015 & 2021 Same | AA118: =IF(I118='Chiller Data'!I197,"2015 & 2021 Same","Not Same") -> 2015 & 2021 Same | AB118: =IF(J118='Chiller Data'!J197,"2015 & 2021 Same","Not Same") -> 2015 & 2021 Same | AC118: =IF(K118='Chiller Data'!K197,"2015 & 2021 Same","Not Same") -> 2015 & 2021 Same
B119: UT-Water Cooled-Screw-E | C119: UT | D119: Water Cooled | E119: Screw | F119: E | G119: ≥ 600 tons | H119: 0.56 | I119: 0.5 | J119: 0.585 | K119: 0.38 | L119: kW/ton | Z119: =IF(H119='Chiller Data'!H198,"2015 & 2021 Same","Not Same") -> 2015 & 2021 Same | AA119: =IF(I119='Chiller Data'!I198,"2015 & 2021 Same","Not Same") -> 2015 & 2021 Same | AB119: =IF(J119='Chiller Data'!J198,"2015 & 2021 Same","Not Same") -> 2015 & 2021 Same | AC119: =IF(K119='Chiller Data'!K198,"2015 & 2021 Same","Not Same") -> 2015 & 2021 Same
B120: UT-Water Cooled-Scroll-A | C120: UT | D120: Water Cooled | E120: Scroll | F120: A | G120: < 75 tons | H120: 0.75 | I120: 0.6 | J120: 0.78 | K120: 0.5 | L120: kW/ton | M120: 0.79 | N120: 0.632 | O120: 443.3892493 | P120: 49.05387812 | Q120: 31.04675831 | T120: 0.78 | U120: 0.63 | V120: 0.8 | W120: 0.6 | X120: kW/ton | Z120: =IF(H120='Chiller Data'!H199,"2015 & 2021 Same","Not Same") -> 2015 & 2021 Same | AA120: =IF(I120='Chiller Data'!I199,"2015 & 2021 Same","Not Same") -> 2015 & 2021 Same | AB120: =IF(J120='Chiller Data'!J199,"2015 & 2021 Same","Not Same") -> 2015 & 2021 Same | AC120: =IF(K120='Chiller Data'!K199,"2015 & 2021 Same","Not Same") -> 2015 & 2021 Same
B121: UT-Water Cooled-Scroll-B | C121: UT | D121: Water Cooled | E121: Scroll | F121: B | G121: ≥ 75 tons and < 150 tons | H121: 0.72 | I121: 0.56 | J121: 0.75 | K121: 0.49 | L121: kW/ton | M121: 0.79 | N121: 0.632 | O121: 443.3892493 | P121: 49.05387812 | Q121: 31.04675831 | T121: 0.775 | U121: 0.615 | V121: 0.79 | W121: 0.586 | X121: kW/ton | Z121: =IF(H121='Chiller Data'!H200,"2015 & 2021 Same","Not Same") -> 2015 & 2021 Same | AA121: =IF(I121='Chiller Data'!I200,"2015 & 2021 Same","Not Same") -> 2015 & 2021 Same | AB121: =IF(J121='Chiller Data'!J200,"2015 & 2021 Same","Not Same") -> 2015 & 2021 Same | AC121: =IF(K121='Chiller Data'!K200,"2015 & 2021 Same","Not Same") -> 2015 & 2021 Same
B122: UT-Water Cooled-Scroll-C | C122: UT | D122: Water Cooled | E122: Scroll | F122: C | G122: ≥ 150 tons and < 300 tons | H122: 0.66 | I122: 0.54 | J122: 0.68 | K122: 0.44 | L122: kW/ton | M122: 0.718 | N122: 0.574 | O122: 346.9411963 | P122: 25.47414437 | Q122: 17.69037803 | T122: 0.68 | U122: 0.58 | V122: 0.718 | W122: 0.54 | X122: kW/ton | Z122: =IF(H122='Chiller Data'!H201,"2015 & 2021 Same","Not Same") -> 2015 & 2021 Same | AA122: =IF(I122='Chiller Data'!I201,"2015 & 2021 Same","Not Same") -> 2015 & 2021 Same | AB122: =IF(J122='Chiller Data'!J201,"2015 & 2021 Same","Not Same") -> 2015 & 2021 Same | AC122: =IF(K122='Chiller Data'!K201,"2015 & 2021 Same","Not Same") -> 2015 & 2021 Same
B123: UT-Water Cooled-Scroll-D | C123: UT | D123: Water Cooled | E123: Scroll | F123: D | G123: ≥ 300 tons and < 600 tons | H123: 0.61 | I123: 0.52 | J123: 0.625 | K123: 0.41 | L123: kW/ton | M123: 0.639 | N123: 0.511 | O123: 275.8363082 | P123: 11.39892069 | Q123: 8.905406786 | T123: 0.62 | U123: 0.54 | V123: 0.639 | W123: 0.49 | X123: kW/ton | Z123: =IF(H123='Chiller Data'!H202,"2015 & 2021 Same","Not Same") -> 2015 & 2021 Same | AA123: =IF(I123='Chiller Data'!I202,"2015 & 2021 Same","Not Same") -> 2015 & 2021 Same | AB123: =IF(J123='Chiller Data'!J202,"2015 & 2021 Same","Not Same") -> 2015 & 2021 Same | AC123: =IF(K123='Chiller Data'!K202,"2015 & 2021 Same","Not Same") -> 2015 & 2021 Same
B124: UT-Water Cooled-Scroll-E | C124: UT | D124: Water Cooled | E124: Scroll | F124: E | G124: ≥ 600 tons | H124: 0.56 | I124: 0.5 | J124: 0.585 | K124: 0.38 | L124: kW/ton | Z124: =IF(H124='Chiller Data'!H203,"2015 & 2021 Same","Not Same") -> 2015 & 2021 Same | AA124: =IF(I124='Chiller Data'!I203,"2015 & 2021 Same","Not Same") -> 2015 & 2021 Same | AB124: =IF(J124='Chiller Data'!J203,"2015 & 2021 Same","Not Same") -> 2015 & 2021 Same | AC124: =IF(K124='Chiller Data'!K203,"2015 & 2021 Same","Not Same") -> 2015 & 2021 Same
B125: UT-Water Cooled-Centrifugal-A | C125: UT | D125: Water Cooled | E125: Centrifugal | F125: A | G125: < 75 tons | H125: 0.634 | I125: 0.596 | J125: 0.639 | K125: 0.45 | L125: kW/ton | M125: 0.634 | N125: 0.56 | O125: 468.6879276 | P125: 145.5191392 | Q125: 196.6474853 | T125: 0.634 | U125: 0.596 | V125: 0.639 | W125: 0.45 | X125: kW/ton | Z125: =IF(H125='Chiller Data'!H204,"2015 & 2021 Same","Not Same") -> Not Same | AA125: =IF(I125='Chiller Data'!I204,"2015 & 2021 Same","Not Same") -> Not Same | AB125: =IF(J125='Chiller Data'!J204,"2015 & 2021 Same","Not Same") -> Not Same | AC125: =IF(K125='Chiller Data'!K204,"2015 & 2021 Same","Not Same") -> Not Same
B126: =CONCATENATE(C126,"-",D126,"-",E126,"-",F126) -> UT-Water Cooled-Centrifugal-B | C126: UT | D126: Water Cooled | E126: Centrifugal | F126: B | G126: < 150 tons | H126: 0.61 | I126: 0.55 | J126: 0.695 | K126: 0.44 | L126: kW/ton | M126: 0.634 | N126: 0.56 | O126: 468.6879276 | P126: 145.5191392 | Q126: 196.6474853 | T126: 0.634 | U126: 0.596 | V126: 0.639 | W126: 0.45 | X126: kW/ton | Z126: =IF(H126='Chiller Data'!H205,"2015 & 2021 Same","Not Same") -> 2015 & 2021 Same | AA126: =IF(I126='Chiller Data'!I205,"2015 & 2021 Same","Not Same") -> 2015 & 2021 Same | AB126: =IF(J126='Chiller Data'!J205,"2015 & 2021 Same","Not Same") -> 2015 & 2021 Same | AC126: =IF(K126='Chiller Data'!K205,"2015 & 2021 Same","Not Same") -> 2015 & 2021 Same
B127: UT-Water Cooled-Centrifugal-C | C127: UT | D127: Water Cooled | E127: Centrifugal | F127: C | G127: ≥ 150 tons and < 300 tons | H127: 0.61 | I127: 0.55 | J127: 0.635 | K127: 0.4 | L127: kW/ton | M127: 0.634 | N127: 0.507 | O127: 338.7655378 | P127: 93.84177406 | Q127: 73.89116068 | T127: 0.634 | U127: 0.596 | V127: 0.639 | W127: 0.45 | X127: kW/ton | Z127: =IF(H127='Chiller Data'!H206,"2015 & 2021 Same","Not Same") -> 2015 & 2021 Same | AA127: =IF(I127='Chiller Data'!I206,"2015 & 2021 Same","Not Same") -> 2015 & 2021 Same | AB127: =IF(J127='Chiller Data'!J206,"2015 & 2021 Same","Not Same") -> 2015 & 2021 Same | AC127: =IF(K127='Chiller Data'!K206,"2015 & 2021 Same","Not Same") -> 2015 & 2021 Same
B128: UT-Water Cooled-Centrifugal-D | C128: UT | D128: Water Cooled | E128: Centrifugal | F128: D | G128: ≥ 300 tons and < 400 tons | H128: 0.56 | I128: 0.52 | J128: 0.595 | K128: 0.39 | L128: kW/ton | M128: 0.576 | N128: 0.461 | O128: 267.7142309 | P128: 65.58071502 | Q128: 57.02670872 | T128: 0.576 | U128: 0.549 | V128: 0.6 | W128: 0.4 | X128: kW/ton | Z128: =IF(H128='Chiller Data'!H207,"2015 & 2021 Same","Not Same") -> 2015 & 2021 Same | AA128: =IF(I128='Chiller Data'!I207,"2015 & 2021 Same","Not Same") -> 2015 & 2021 Same | AB128: =IF(J128='Chiller Data'!J207,"2015 & 2021 Same","Not Same") -> 2015 & 2021 Same | AC128: =IF(K128='Chiller Data'!K207,"2015 & 2021 Same","Not Same") -> 2015 & 2021 Same
B129: UT-Water Cooled-Centrifugal-E | C129: UT | D129: Water Cooled | E129: Centrifugal | F129: E | G129: ≥ 400 tons | H129: 0.56 | I129: 0.5 | J129: 0.585 | K129: 0.38 | L129: kW/ton | M129: 0.576 | N129: 0.461 | O129: 267.7142309 | P129: 65.58071502 | Q129: 57.02670872 | T129: 0.57 | U129: 0.539 | V129: 0.59 | W129: 0.4 | X129: kW/ton | Z129: =IF(H129='Chiller Data'!H208,"2015 & 2021 Same","Not Same") -> 2015 & 2021 Same | AA129: =IF(I129='Chiller Data'!I208,"2015 & 2021 Same","Not Same") -> 2015 & 2021 Same | AB129: =IF(J129='Chiller Data'!J208,"2015 & 2021 Same","Not Same") -> 2015 & 2021 Same | AC129: =IF(K129='Chiller Data'!K208,"2015 & 2021 Same","Not Same") -> 2015 & 2021 Same
B131: Equipment ID | C131: State | D131: Heat Rejection | E131: Type | F131: Size | G131: Size ID | H131: Minimum COP (kW/ton) | I131: Minimum IPLV (kW/ton) | L131: Unit | M131: DEER Baseline Efficiency | N131: DEER New Efficiency (kW/ton) | O131: DEER Baseline cost | P131: DEER Incremental Cost ($/ton) | Q131: ($/ton/(0.1 kW/ton) increase) | T131: Minimum Full Load (COP) | U131: Minimum IPLV (COP) | X131: Unit
C132: Washington Chiller Data (WSEC 2012) - Effective July 1, 2013
B133: WA-Air Cooled-Reciprocating-1 | C133: WA | D133: Air Cooled | E133: Reciprocating | F133: 1 | G133: < 150 tons | H133: =12/T133 -> 1.25496758 | I133: =12/U133 -> 0.96 | J133: NA | K133: NA | L133: kW/ton | M133: 1.26 | N133: 1.008 | O133: 448.9536364 | P133: 39.93525253 | Q133: 15.84732243 | T133: 9.562 | U133: 12.5 | V133: NA | W133: NA | X133: EER
B134: WA-Air Cooled-Reciprocating-2 | C134: WA | D134: Air Cooled | E134: Reciprocating | F134: 2 | G134: ≥ 150 tons | H134: =12/T134 -> 1.25496758 | I134: 0.9411764706 | J134: NA | K134: NA | L134: kW/ton | M134: 1.26 | N134: 1.008 | O134: 448.9536364 | P134: 39.93525253 | Q134: 15.84732243 | T134: 9.562 | U134: 12.75 | V134: NA | W134: NA | X134: EER
B135: WA-Air Cooled-Rotary-1 | C135: WA | D135: Air Cooled | E135: Rotary | F135: 1 | G135: < 150 tons | H135: 1.25496758 | I135: 0.96 | J135: NA | K135: NA | L135: kW/ton | M135: 1.26 | N135: 1.008 | O135: 448.9536364 | P135: 39.93525253 | Q135: 15.84732243 | T135: 9.562 | U135: 12.5 | V135: NA | W135: NA | X135: EER
B136: WA-Air Cooled-Rotary-2 | C136: WA | D136: Air Cooled | E136: Rotary | F136: 2 | G136: ≥ 150 tons | H136: 1.25496758 | I136: 0.9411764706 | J136: NA | K136: NA | L136: kW/ton | M136: 1.26 | N136: 1.008 | O136: 448.9536364 | P136: 39.93525253 | Q136: 15.84732243 | T136: 9.562 | U136: 12.75 | V136: NA | W136: NA | X136: EER
B137: WA-Air Cooled-Screw-1 | C137: WA | D137: Air Cooled | E137: Screw | F137: 1 | G137: < 150 tons | H137: 1.25496758 | I137: 0.96 | J137: NA | K137: NA | L137: kW/ton | M137: 1.26 | N137: 1.008 | O137: 448.9536364 | P137: 39.93525253 | Q137: 15.84732243 | T137: 9.562 | U137: 12.5 | V137: NA | W137: NA | X137: EER
B138: WA-Air Cooled-Screw-2 | C138: WA | D138: Air Cooled | E138: Screw | F138: 2 | G138: ≥ 150 tons | H138: 1.25496758 | I138: 0.9411764706 | J138: NA | K138: NA | L138: kW/ton | M138: 1.26 | N138: 1.008 | O138: 448.9536364 | P138: 39.93525253 | Q138: 15.84732243 | T138: 9.562 | U138: 12.75 | V138: NA | W138: NA | X138: EER
B139: WA-Air Cooled-Scroll-1 | C139: WA | D139: Air Cooled | E139: Scroll | F139: 1 | G139: < 150 tons | H139: 1.25496758 | I139: 0.96 | J139: NA | K139: NA | L139: kW/ton | M139: 1.26 | N139: 1.008 | O139: 448.9536364 | P139: 39.93525253 | Q139: 15.84732243 | T139: 9.562 | U139: 12.5 | V139: NA | W139: NA | X139: EER
B140: WA-Air Cooled-Scroll-2 | C140: WA | D140: Air Cooled | E140: Scroll | F140: 2 | G140: ≥ 150 tons | H140: 1.25496758 | I140: 0.9411764706 | J140: NA | K140: NA | L140: kW/ton | M140: 1.26 | N140: 1.008 | O140: 448.9536364 | P140: 39.93525253 | Q140: 15.84732243 | T140: 9.562 | U140: 12.75 | V140: NA | W140: NA | X140: EER
B141: WA-Water Cooled-Reciprocating-1 | C141: WA | D141: Water Cooled | E141: Reciprocating | F141: 1 | G141: < 75 tons | H141: 0.78 | I141: 0.63 | J141: 0.8 | K141: 0.6 | L141: kW/ton | M141: 0.837 | N141: 0.672 | O141: 462.5882424 | P141: 16.27434124 | Q141: 9.863237114 | T141: 0.78 | U141: 0.63 | V141: 0.8 | W141: 0.6 | X141: kW/ton
B142: WA-Water Cooled-Reciprocating-2 | C142: WA | D142: Water Cooled | E142: Reciprocating | F142: 2 | G142: ≥ 75 tons and < 150 tons | H142: 0.775 | I142: 0.615 | J142: 0.79 | K142: 0.586 | L142: kW/ton | M142: 0.837 | N142: 0.672 | O142: 462.5882424 | P142: 16.27434124 | Q142: 9.863237114 | T142: 0.775 | U142: 0.615 | V142: 0.79 | W142: 0.586 | X142: kW/ton
B143: WA-Water Cooled-Reciprocating-3 | C143: WA | D143: Water Cooled | E143: Reciprocating | F143: 3 | G143: ≥ 150 tons and < 300 tons | H143: 0.68 | I143: 0.58 | J143: 0.718 | K143: 0.54 | L143: kW/ton | M143: 0.837 | N143: 0.672 | O143: 462.5882424 | P143: 16.27434124 | Q143: 9.863237114 | T143: 0.68 | U143: 0.58 | V143: 0.718 | W143: 0.54 | X143: kW/ton
B144: WA-Water Cooled-Reciprocating-4 | C144: WA | D144: Water Cooled | E144: Reciprocating | F144: 4 | G144: ≥ 300 tons | H144: 0.62 | I144: 0.54 | J144: 0.639 | K144: 0.49 | L144: kW/ton | M144: 0.837 | N144: 0.672 | O144: 462.5882424 | P144: 16.27434124 | Q144: 9.863237114 | T144: 0.62 | U144: 0.54 | V144: 0.639 | W144: 0.49 | X144: kW/ton
B145: WA-Water Cooled-Rotary-1 | C145: WA | D145: Water Cooled | E145: Rotary | F145: 1 | G145: < 75 tons | H145: 0.78 | I145: 0.63 | J145: 0.8 | K145: 0.6 | L145: kW/ton | M145: 0.79 | N145: 0.632 | O145: 443.3892493 | P145: 49.05387812 | Q145: 31.04675831 | T145: 0.78 | U145: 0.63 | V145: 0.8 | W145: 0.6 | X145: kW/ton
B146: WA-Water Cooled-Rotary-2 | C146: WA | D146: Water Cooled | E146: Rotary | F146: 2 | G146: ≥ 75 tons and < 150 tons | H146: 0.775 | I146: 0.615 | J146: 0.79 | K146: 0.586 | L146: kW/ton | M146: 0.79 | N146: 0.632 | O146: 443.3892493 | P146: 49.05387812 | Q146: 31.04675831 | T146: 0.775 | U146: 0.615 | V146: 0.79 | W146: 0.586 | X146: kW/ton
B147: WA-Water Cooled-Rotary-3 | C147: WA | D147: Water Cooled | E147: Rotary | F147: 3 | G147: ≥ 150 tons and < 300 tons | H147: 0.68 | I147: 0.58 | J147: 0.718 | K147: 0.54 | L147: kW/ton | M147: 0.718 | N147: 0.574 | O147: 346.9411963 | P147: 25.47414437 | Q147: 17.69037803 | T147: 0.68 | U147: 0.58 | V147: 0.718 | W147: 0.54 | X147: kW/ton
B148: WA-Water Cooled-Rotary-4 | C148: WA | D148: Water Cooled | E148: Rotary | F148: 4 | G148: ≥ 300 tons | H148: 0.62 | I148: 0.54 | J148: 0.639 | K148: 0.49 | L148: kW/ton | M148: 0.639 | N148: 0.511 | O148: 275.8363082 | P148: 11.39892069 | Q148: 8.905406786 | T148: 0.62 | U148: 0.54 | V148: 0.639 | W148: 0.49 | X148: kW/ton
B149: WA-Water Cooled-Screw-1 | C149: WA | D149: Water Cooled | E149: Screw | F149: 1 | G149: < 75 tons | H149: 0.78 | I149: 0.63 | J149: 0.8 | K149: 0.6 | L149: kW/ton | M149: 0.79 | N149: 0.632 | O149: 443.3892493 | P149: 49.05387812 | Q149: 31.04675831 | T149: 0.78 | U149: 0.63 | V149: 0.8 | W149: 0.6 | X149: kW/ton
B150: WA-Water Cooled-Screw-2 | C150: WA | D150: Water Cooled | E150: Screw | F150: 2 | G150: ≥ 75 tons and < 150 tons | H150: 0.775 | I150: 0.615 | J150: 0.79 | K150: 0.586 | L150: kW/ton | M150: 0.79 | N150: 0.632 | O150: 443.3892493 | P150: 49.05387812 | Q150: 31.04675831 | T150: 0.775 | U150: 0.615 | V150: 0.79 | W150: 0.586 | X150: kW/ton
B151: WA-Water Cooled-Screw-3 | C151: WA | D151: Water Cooled | E151: Screw | F151: 3 | G151: ≥ 150 tons and < 300 tons | H151: 0.68 | I151: 0.58 | J151: 0.718 | K151: 0.54 | L151: kW/ton | M151: 0.718 | N151: 0.574 | O151: 346.9411963 | P151: 25.47414437 | Q151: 17.69037803 | T151: 0.68 | U151: 0.58 | V151: 0.718 | W151: 0.54 | X151: kW/ton
B152: WA-Water Cooled-Screw-4 | C152: WA | D152: Water Cooled | E152: Screw | F152: 4 | G152: ≥ 300 tons | H152: 0.62 | I152: 0.54 | J152: 0.639 | K152: 0.49 | L152: kW/ton | M152: 0.639 | N152: 0.511 | O152: 275.8363082 | P152: 11.39892069 | Q152: 8.905406786 | T152: 0.62 | U152: 0.54 | V152: 0.639 | W152: 0.49 | X152: kW/ton
B153: WA-Water Cooled-Scroll-1 | C153: WA | D153: Water Cooled | E153: Scroll | F153: 1 | G153: < 75 tons | H153: 0.78 | I153: 0.63 | J153: 0.8 | K153: 0.6 | L153: kW/ton | M153: 0.79 | N153: 0.632 | O153: 443.3892493 | P153: 49.05387812 | Q153: 31.04675831 | T153: 0.78 | U153: 0.63 | V153: 0.8 | W153: 0.6 | X153: kW/ton
B154: WA-Water Cooled-Scroll-2 | C154: WA | D154: Water Cooled | E154: Scroll | F154: 2 | G154: ≥ 75 tons and < 150 tons | H154: 0.775 | I154: 0.615 | J154: 0.79 | K154: 0.586 | L154: kW/ton | M154: 0.79 | N154: 0.632 | O154: 443.3892493 | P154: 49.05387812 | Q154: 31.04675831 | T154: 0.775 | U154: 0.615 | V154: 0.79 | W154: 0.586 | X154: kW/ton
B155: =CONCATENATE(C155,"-",D155,"-",E155,"-",F155) -> WA-Water Cooled-Scroll-3 | C155: WA | D155: Water Cooled | E155: Scroll | F155: 3 | G155: ≥ 150 tons and < 300 tons | H155: 0.68 | I155: 0.58 | J155: 0.718 | K155: 0.54 | L155: kW/ton | M155: 0.718 | N155: 0.574 | O155: 346.9411963 | P155: 25.47414437 | Q155: 17.69037803 | T155: 0.68 | U155: 0.58 | V155: 0.718 | W155: 0.54 | X155: kW/ton
B156: WA-Water Cooled-Scroll-4 | C156: WA | D156: Water Cooled | E156: Scroll | F156: 4 | G156: ≥ 300 tons | H156: 0.62 | I156: 0.54 | J156: 0.639 | K156: 0.49 | L156: kW/ton | M156: 0.639 | N156: 0.511 | O156: 275.8363082 | P156: 11.39892069 | Q156: 8.905406786 | T156: 0.62 | U156: 0.54 | V156: 0.639 | W156: 0.49 | X156: kW/ton
B157: WA-Water Cooled-Centrifugal-1 | C157: WA | D157: Water Cooled | E157: Centrifugal | F157: 1 | G157: < 75 tons | H157: 0.634 | I157: 0.596 | J157: 0.639 | K157: 0.45 | L157: kW/ton | M157: 0.634 | N157: 0.56 | O157: 468.6879276 | P157: 145.5191392 | Q157: 196.6474853 | T157: 0.634 | U157: 0.596 | V157: 0.639 | W157: 0.45 | X157: kW/ton
B158: =CONCATENATE(C158,"-",D158,"-",E158,"-",F158) -> WA-Water Cooled-Centrifugal-2 | C158: WA | D158: Water Cooled | E158: Centrifugal | F158: 2 | G158: < 150 tons | H158: 0.634 | I158: 0.596 | J158: 0.639 | K158: 0.45 | L158: kW/ton | M158: 0.634 | N158: 0.56 | O158: 468.6879276 | P158: 145.5191392 | Q158: 196.6474853 | T158: 0.634 | U158: 0.596 | V158: 0.639 | W158: 0.45 | X158: kW/ton
B159: WA-Water Cooled-Centrifugal-3 | C159: WA | D159: Water Cooled | E159: Centrifugal | F159: 3 | G159: ≥ 150 tons and < 300 tons | H159: 0.634 | I159: 0.596 | J159: 0.639 | K159: 0.45 | L159: kW/ton | M159: 0.634 | N159: 0.507 | O159: 338.7655378 | P159: 93.84177406 | Q159: 73.89116068 | T159: 0.634 | U159: 0.596 | V159: 0.639 | W159: 0.45 | X159: kW/ton
B160: WA-Water Cooled-Centrifugal-4 | C160: WA | D160: Water Cooled | E160: Centrifugal | F160: 4 | G160: ≥ 300 tons and < 600 tons | H160: 0.576 | I160: 0.549 | J160: 0.6 | K160: 0.4 | L160: kW/ton | M160: 0.576 | N160: 0.461 | O160: 267.7142309 | P160: 65.58071502 | Q160: 57.02670872 | T160: 0.576 | U160: 0.549 | V160: 0.6 | W160: 0.4 | X160: kW/ton
B161: WA-Water Cooled-Centrifugal-5 | C161: WA | D161: Water Cooled | E161: Centrifugal | F161: 5 | G161: ≥ 600 tons | H161: 0.57 | I161: 0.539 | J161: 0.59 | K161: 0.4 | L161: kW/ton | M161: 0.576 | N161: 0.461 | O161: 267.7142309 | P161: 65.58071502 | Q161: 57.02670872 | T161: 0.57 | U161: 0.539 | V161: 0.59 | W161: 0.4 | X161: kW/ton
B163: Equipment ID | C163: State | D163: Heat Rejection | E163: Type | F163: Size | G163: Size ID | H163: Minimum COP (kW/ton) | I163: Minimum IPLV (kW/ton) | L163: Unit | M163: DEER Baseline Efficiency | N163: DEER New Efficiency (kW/ton) | O163: DEER Baseline cost | P163: DEER Incremental Cost ($/ton) | Q163: ($/ton/(0.1 kW/ton) increase) | T163: Minimum Full Load (COP) | U163: Minimum IPLV (COP) | X163: Unit
C164: IDAHO Chiller Data (IECC 2009) - Effective Jan. 1, 2011
B165: =CONCATENATE(C165,"-",D165,"-",E165,"-",F165) -> ID-Air Cooled-Reciprocating-1 | C165: ID | D165: Air Cooled | E165: Reciprocating | F165: 1 | G165: < 150 tons | H165: =12/T165 -> 1.25496758 | I165: =12/U165 -> 0.96 | J165: NA | K165: NA | L165: kW/ton | M165: 1.26 | N165: 1.008 | O165: 448.9536364 | P165: 39.93525253 | Q165: =P165/((M165-N165)/0.1) -> 15.84732243 | T165: 9.562 | U165: 12.5 | V165: NA | W165: NA | X165: EER
B166: =CONCATENATE(C166,"-",D166,"-",E166,"-",F166) -> ID-Air Cooled-Reciprocating-2 | C166: ID | D166: Air Cooled | E166: Reciprocating | F166: 2 | G166: ≥ 150 tons | H166: =12/T166 -> 1.25496758 | I166: 0.9411764706 | J166: NA | K166: NA | L166: kW/ton | M166: 1.26 | N166: 1.008 | O166: 448.9536364 | P166: 39.93525253 | Q166: 15.84732243 | T166: 9.562 | U166: 12.75 | V166: NA | W166: NA | X166: EER
B167: ID-Air Cooled-Rotary-1 | C167: ID | D167: Air Cooled | E167: Rotary | F167: 1 | G167: < 150 tons | H167: 1.25496758 | I167: 0.96 | J167: NA | K167: NA | L167: kW/ton | M167: 1.26 | N167: 1.008 | O167: 448.9536364 | P167: 39.93525253 | Q167: 15.84732243 | T167: 9.562 | U167: 12.5 | V167: NA | W167: NA | X167: EER
B168: ID-Air Cooled-Rotary-2 | C168: ID | D168: Air Cooled | E168: Rotary | F168: 2 | G168: ≥ 150 tons | H168: 1.25496758 | I168: 0.9411764706 | J168: NA | K168: NA | L168: kW/ton | M168: 1.26 | N168: 1.008 | O168: 448.9536364 | P168: 39.93525253 | Q168: 15.84732243 | T168: 9.562 | U168: 12.75 | V168: NA | W168: NA | X168: EER
B169: ID-Air Cooled-Screw-1 | C169: ID | D169: Air Cooled | E169: Screw | F169: 1 | G169: < 150 tons | H169: 1.25496758 | I169: 0.96 | J169: NA | K169: NA | L169: kW/ton | M169: 1.26 | N169: 1.008 | O169: 448.9536364 | P169: 39.93525253 | Q169: 15.84732243 | T169: 9.562 | U169: 12.5 | V169: NA | W169: NA | X169: EER
B170: ID-Air Cooled-Screw-2 | C170: ID | D170: Air Cooled | E170: Screw | F170: 2 | G170: ≥ 150 tons | H170: 1.25496758 | I170: 0.9411764706 | J170: NA | K170: NA | L170: kW/ton | M170: 1.26 | N170: 1.008 | O170: 448.9536364 | P170: 39.93525253 | Q170: 15.84732243 | T170: 9.562 | U170: 12.75 | V170: NA | W170: NA | X170: EER
B171: ID-Air Cooled-Scroll-1 | C171: ID | D171: Air Cooled | E171: Scroll | F171: 1 | G171: < 150 tons | H171: 1.25496758 | I171: 0.96 | J171: NA | K171: NA | L171: kW/ton | M171: 1.26 | N171: 1.008 | O171: 448.9536364 | P171: 39.93525253 | Q171: 15.84732243 | T171: 9.562 | U171: 12.5 | V171: NA | W171: NA | X171: EER
B172: ID-Air Cooled-Scroll-2 | C172: ID | D172: Air Cooled | E172: Scroll | F172: 2 | G172: ≥ 150 tons | H172: 1.25496758 | I172: 0.9411764706 | J172: NA | K172: NA | L172: kW/ton | M172: 1.26 | N172: 1.008 | O172: 448.9536364 | P172: 39.93525253 | Q172: 15.84732243 | T172: 9.562 | U172: 12.75 | V172: NA | W172: NA | X172: EER
B173: ID-Water Cooled-Reciprocating-1 | C173: ID | D173: Water Cooled | E173: Reciprocating | F173: 1 | G173: < 75 tons | H173: 0.78 | I173: 0.63 | J173: 0.8 | K173: 0.6 | L173: kW/ton | M173: 0.837 | N173: 0.672 | O173: 462.5882424 | P173: 16.27434124 | Q173: 9.863237114 | T173: 0.78 | U173: 0.63 | V173: 0.8 | W173: 0.6 | X173: kW/ton
B174: ID-Water Cooled-Reciprocating-2 | C174: ID | D174: Water Cooled | E174: Reciprocating | F174: 2 | G174: ≥ 75 tons and < 150 tons | H174: 0.775 | I174: 0.615 | J174: 0.79 | K174: 0.586 | L174: kW/ton | M174: 0.837 | N174: 0.672 | O174: 462.5882424 | P174: 16.27434124 | Q174: 9.863237114 | T174: 0.775 | U174: 0.615 | V174: 0.79 | W174: 0.586 | X174: kW/ton
B175: ID-Water Cooled-Reciprocating-3 | C175: ID | D175: Water Cooled | E175: Reciprocating | F175: 3 | G175: ≥ 150 tons and < 300 tons | H175: 0.68 | I175: 0.58 | J175: 0.718 | K175: 0.54 | L175: kW/ton | M175: 0.837 | N175: 0.672 | O175: 462.5882424 | P175: 16.27434124 | Q175: 9.863237114 | T175: 0.68 | U175: 0.58 | V175: 0.718 | W175: 0.54 | X175: kW/ton
B176: ID-Water Cooled-Reciprocating-4 | C176: ID | D176: Water Cooled | E176: Reciprocating | F176: 4 | G176: ≥ 300 tons | H176: 0.62 | I176: 0.54 | J176: 0.639 | K176: 0.49 | L176: kW/ton | M176: 0.837 | N176: 0.672 | O176: 462.5882424 | P176: 16.27434124 | Q176: =P176/((M176-N176)/0.1) -> 9.863237114 | T176: 0.62 | U176: 0.54 | V176: 0.639 | W176: 0.49 | X176: kW/ton
B177: ID-Water Cooled-Rotary-1 | C177: ID | D177: Water Cooled | E177: Rotary | F177: 1 | G177: < 75 tons | H177: 0.78 | I177: 0.63 | J177: 0.8 | K177: 0.6 | L177: kW/ton | M177: 0.79 | N177: 0.632 | O177: 443.3892493 | P177: 49.05387812 | Q177: =P177/((M177-N177)/0.1) -> 31.04675831 | T177: 0.78 | U177: 0.63 | V177: 0.8 | W177: 0.6 | X177: kW/ton
B178: ID-Water Cooled-Rotary-2 | C178: ID | D178: Water Cooled | E178: Rotary | F178: 2 | G178: ≥ 75 tons and < 150 tons | H178: 0.775 | I178: 0.615 | J178: 0.79 | K178: 0.586 | L178: kW/ton | M178: 0.79 | N178: 0.632 | O178: 443.3892493 | P178: 49.05387812 | Q178: =P178/((M178-N178)/0.1) -> 31.04675831 | T178: 0.775 | U178: 0.615 | V178: 0.79 | W178: 0.586 | X178: kW/ton
B179: ID-Water Cooled-Rotary-3 | C179: ID | D179: Water Cooled | E179: Rotary | F179: 3 | G179: ≥ 150 tons and < 300 tons | H179: 0.68 | I179: 0.58 | J179: 0.718 | K179: 0.54 | L179: kW/ton | M179: 0.718 | N179: 0.574 | O179: 346.9411963 | P179: 25.47414437 | Q179: =P179/((M179-N179)/0.1) -> 17.69037803 | T179: 0.68 | U179: 0.58 | V179: 0.718 | W179: 0.54 | X179: kW/ton
B180: ID-Water Cooled-Rotary-4 | C180: ID | D180: Water Cooled | E180: Rotary | F180: 4 | G180: ≥ 300 tons | H180: 0.62 | I180: 0.54 | J180: 0.639 | K180: 0.49 | L180: kW/ton | M180: 0.639 | N180: 0.511 | O180: 275.8363082 | P180: 11.39892069 | Q180: =P180/((M180-N180)/0.1) -> 8.905406786 | T180: 0.62 | U180: 0.54 | V180: 0.639 | W180: 0.49 | X180: kW/ton
B181: ID-Water Cooled-Screw-1 | C181: ID | D181: Water Cooled | E181: Screw | F181: 1 | G181: < 75 tons | H181: 0.78 | I181: 0.63 | J181: 0.8 | K181: 0.6 | L181: kW/ton | M181: 0.79 | N181: 0.632 | O181: 443.3892493 | P181: 49.05387812 | Q181: =P181/((M181-N181)/0.1) -> 31.04675831 | T181: 0.78 | U181: 0.63 | V181: 0.8 | W181: 0.6 | X181: kW/ton
B182: ID-Water Cooled-Screw-2 | C182: ID | D182: Water Cooled | E182: Screw | F182: 2 | G182: ≥ 75 tons and < 150 tons | H182: 0.775 | I182: 0.615 | J182: 0.79 | K182: 0.586 | L182: kW/ton | M182: 0.79 | N182: 0.632 | O182: 443.3892493 | P182: 49.05387812 | Q182: 31.04675831 | T182: 0.775 | U182: 0.615 | V182: 0.79 | W182: 0.586 | X182: kW/ton
B183: ID-Water Cooled-Screw-3 | C183: ID | D183: Water Cooled | E183: Screw | F183: 3 | G183: ≥ 150 tons and < 300 tons | H183: 0.68 | I183: 0.58 | J183: 0.718 | K183: 0.54 | L183: kW/ton | M183: 0.718 | N183: 0.574 | O183: 346.9411963 | P183: 25.47414437 | Q183: 17.69037803 | T183: 0.68 | U183: 0.58 | V183: 0.718 | W183: 0.54 | X183: kW/ton
B184: ID-Water Cooled-Screw-4 | C184: ID | D184: Water Cooled | E184: Screw | F184: 4 | G184: ≥ 300 tons | H184: 0.62 | I184: 0.54 | J184: 0.639 | K184: 0.49 | L184: kW/ton | M184: 0.639 | N184: 0.511 | O184: 275.8363082 | P184: 11.39892069 | Q184: 8.905406786 | T184: 0.62 | U184: 0.54 | V184: 0.639 | W184: 0.49 | X184: kW/ton
B185: ID-Water Cooled-Scroll-1 | C185: ID | D185: Water Cooled | E185: Scroll | F185: 1 | G185: < 75 tons | H185: 0.78 | I185: 0.63 | J185: 0.8 | K185: 0.6 | L185: kW/ton | M185: 0.79 | N185: 0.632 | O185: 443.3892493 | P185: 49.05387812 | Q185: 31.04675831 | T185: 0.78 | U185: 0.63 | V185: 0.8 | W185: 0.6 | X185: kW/ton
B186: ID-Water Cooled-Scroll-2 | C186: ID | D186: Water Cooled | E186: Scroll | F186: 2 | G186: ≥ 75 tons and < 150 tons | H186: 0.775 | I186: 0.615 | J186: 0.79 | K186: 0.586 | L186: kW/ton | M186: 0.79 | N186: 0.632 | O186: 443.3892493 | P186: 49.05387812 | Q186: 31.04675831 | T186: 0.775 | U186: 0.615 | V186: 0.79 | W186: 0.586 | X186: kW/ton
B187: ID-Water Cooled-Scroll-3 | C187: ID | D187: Water Cooled | E187: Scroll | F187: 3 | G187: ≥ 150 tons and < 300 tons | H187: 0.68 | I187: 0.58 | J187: 0.718 | K187: 0.54 | L187: kW/ton | M187: 0.718 | N187: 0.574 | O187: 346.9411963 | P187: 25.47414437 | Q187: 17.69037803 | T187: 0.68 | U187: 0.58 | V187: 0.718 | W187: 0.54 | X187: kW/ton
B188: ID-Water Cooled-Scroll-4 | C188: ID | D188: Water Cooled | E188: Scroll | F188: 4 | G188: ≥ 300 tons | H188: 0.62 | I188: 0.54 | J188: 0.639 | K188: 0.49 | L188: kW/ton | M188: 0.639 | N188: 0.511 | O188: 275.8363082 | P188: 11.39892069 | Q188: 8.905406786 | T188: 0.62 | U188: 0.54 | V188: 0.639 | W188: 0.49 | X188: kW/ton
B189: ID-Water Cooled-Centrifugal-1 | C189: ID | D189: Water Cooled | E189: Centrifugal | F189: 1 | G189: < 75 tons | H189: 0.634 | I189: 0.596 | J189: 0.639 | K189: 0.45 | L189: kW/ton | M189: 0.634 | N189: 0.56 | O189: 468.6879276 | P189: 145.5191392 | Q189: 196.6474853 | T189: 0.634 | U189: 0.596 | V189: 0.639 | W189: 0.45 | X189: kW/ton
B190: =CONCATENATE(C190,"-",D190,"-",E190,"-",F190) -> ID-Water Cooled-Centrifugal-2 | C190: ID | D190: Water Cooled | E190: Centrifugal | F190: 2 | G190: < 150 tons | H190: 0.634 | I190: 0.596 | J190: 0.639 | K190: 0.45 | L190: kW/ton | M190: 0.634 | N190: 0.56 | O190: 468.6879276 | P190: 145.5191392 | Q190: 196.6474853 | T190: 0.634 | U190: 0.596 | V190: 0.639 | W190: 0.45 | X190: kW/ton
B191: =CONCATENATE(C191,"-",D191,"-",E191,"-",F191) -> ID-Water Cooled-Centrifugal-3 | C191: ID | D191: Water Cooled | E191: Centrifugal | F191: 3 | G191: ≥ 150 tons and < 300 tons | H191: 0.634 | I191: 0.596 | J191: 0.639 | K191: 0.45 | L191: kW/ton | M191: 0.634 | N191: 0.507 | O191: 338.7655378 | P191: 93.84177406 | Q191: 73.89116068 | T191: 0.634 | U191: 0.596 | V191: 0.639 | W191: 0.45 | X191: kW/ton
B192: =CONCATENATE(C192,"-",D192,"-",E192,"-",F192) -> ID-Water Cooled-Centrifugal-4 | C192: ID | D192: Water Cooled | E192: Centrifugal | F192: 4 | G192: ≥ 300 tons and < 600 tons | H192: 0.576 | I192: 0.549 | J192: 0.6 | K192: 0.4 | L192: kW/ton | M192: 0.576 | N192: 0.461 | O192: 267.7142309 | P192: 65.58071502 | Q192: 57.02670872 | T192: 0.576 | U192: 0.549 | V192: 0.6 | W192: 0.4 | X192: kW/ton
B193: =CONCATENATE(C193,"-",D193,"-",E193,"-",F193) -> ID-Water Cooled-Centrifugal-E | C193: ID | D193: Water Cooled | E193: Centrifugal | F193: E | G193: ≥ 600 tons | H193: 0.57 | I193: 0.539 | J193: 0.59 | K193: 0.4 | L193: kW/ton | M193: 0.576 | N193: 0.461 | O193: 267.7142309 | P193: 65.58071502 | Q193: 57.02670872 | T193: 0.57 | U193: 0.539 | V193: 0.59 | W193: 0.4 | X193: kW/ton
B195: Equipment ID | C195: State | D195: Heat Rejection | E195: Type | F195: Size | G195: Size ID | H195: Minimum COP (kW/ton) | I195: Minimum IPLV (kW/ton) | L195: Unit | M195: DEER Baseline Efficiency | N195: DEER New Efficiency (kW/ton) | O195: DEER Baseline cost | P195: DEER Incremental Cost ($/ton) | Q195: ($/ton/(0.1 kW/ton) increase) | T195: Minimum Full Load (COP) | U195: Minimum IPLV (COP) | X195: Unit
C196: California Chiller Data (Title 24 - 2013)
B197: =CONCATENATE(C197,"-",D197,"-",E197,"-",F197) -> CA-Air Cooled-Reciprocating-A | C197: CA | D197: Air Cooled | E197: Reciprocating | F197: A | G197: < 150 tons | H197: =12/T197 -> 1.25496758 | I197: =12/U197 -> 0.96 | J197: NA | K197: NA | L197: kW/ton | T197: 9.562 | U197: 12.5 | V197: NA | W197: NA | X197: EER
B198: =CONCATENATE(C198,"-",D198,"-",E198,"-",F198) -> CA-Air Cooled-Reciprocating-B | C198: CA | D198: Air Cooled | E198: Reciprocating | F198: B | G198: ≥ 150 tons | H198: =12/T198 -> 1.25496758 | I198: 0.9411764706 | J198: NA | K198: NA | L198: kW/ton | T198: 9.562 | U198: 12.75 | V198: NA | W198: NA | X198: EER
B199: CA-Air Cooled-Rotary-A | C199: CA | D199: Air Cooled | E199: Rotary | F199: A | G199: < 150 tons | H199: 1.25496758 | I199: 0.96 | J199: NA | K199: NA | L199: kW/ton | T199: 9.562 | U199: 12.5 | V199: NA | W199: NA | X199: EER
B200: CA-Air Cooled-Rotary-B | C200: CA | D200: Air Cooled | E200: Rotary | F200: B | G200: ≥ 150 tons | H200: 1.25496758 | I200: 0.9411764706 | J200: NA | K200: NA | L200: kW/ton | T200: 9.562 | U200: 12.75 | V200: NA | W200: NA | X200: EER
B201: CA-Air Cooled-Screw-A | C201: CA | D201: Air Cooled | E201: Screw | F201: A | G201: < 150 tons | H201: 1.25496758 | I201: 0.96 | J201: NA | K201: NA | L201: kW/ton | T201: 9.562 | U201: 12.5 | V201: NA | W201: NA | X201: EER
B202: CA-Air Cooled-Screw-B | C202: CA | D202: Air Cooled | E202: Screw | F202: B | G202: ≥ 150 tons | H202: 1.25496758 | I202: 0.9411764706 | J202: NA | K202: NA | L202: kW/ton | T202: 9.562 | U202: 12.75 | V202: NA | W202: NA | X202: EER
B203: CA-Air Cooled-Scroll-A | C203: CA | D203: Air Cooled | E203: Scroll | F203: A | G203: < 150 tons | H203: 1.25496758 | I203: 0.96 | J203: NA | K203: NA | L203: kW/ton | T203: 9.562 | U203: 12.5 | V203: NA | W203: NA | X203: EER
B204: CA-Air Cooled-Scroll-B | C204: CA | D204: Air Cooled | E204: Scroll | F204: B | G204: ≥ 150 tons | H204: 1.25496758 | I204: 0.9411764706 | J204: NA | K204: NA | L204: kW/ton | T204: 9.562 | U204: 12.75 | V204: NA | W204: NA | X204: EER
B205: CA-Water Cooled-Reciprocating-A | C205: CA | D205: Water Cooled | E205: Reciprocating | F205: A | G205: < 75 tons | H205: 0.78 | I205: 0.63 | J205: 0.8 | K205: 0.6 | L205: kW/ton | T205: 0.78 | U205: 0.63 | V205: 0.8 | W205: 0.6 | X205: kW/ton
B206: CA-Water Cooled-Reciprocating-B | C206: CA | D206: Water Cooled | E206: Reciprocating | F206: B | G206: ≥ 75 tons and < 150 tons | H206: 0.775 | I206: 0.615 | J206: 0.79 | K206: 0.586 | L206: kW/ton | T206: 0.775 | U206: 0.615 | V206: 0.79 | W206: 0.586 | X206: kW/ton
B207: CA-Water Cooled-Reciprocating-C | C207: CA | D207: Water Cooled | E207: Reciprocating | F207: C | G207: ≥ 150 tons and < 300 tons | H207: 0.68 | I207: 0.58 | J207: 0.718 | K207: 0.54 | L207: kW/ton | T207: 0.68 | U207: 0.58 | V207: 0.718 | W207: 0.54 | X207: kW/ton
B208: CA-Water Cooled-Reciprocating-D | C208: CA | D208: Water Cooled | E208: Reciprocating | F208: D | G208: ≥ 300 tons | H208: 0.62 | I208: 0.54 | J208: 0.639 | K208: 0.49 | L208: kW/ton | T208: 0.62 | U208: 0.54 | V208: 0.639 | W208: 0.49 | X208: kW/ton
... 114 more rows

Sheet EFLH Lookup (hidden)
B2: Building Type | C2: A | D2: b | E2: CDD | F2: Default if < 75 | G2: EFLH
B3: Education - Community College | C3: 327.83 | D3: -0.8835 | E3: ='Chiller Calculator'!C31 ->  | F3: 300 | G3: =IF(E3>=75,C3*(E3^D3)*E3,F3) -> 
B4: Education - Secondary School | C4: 240.98 | D4: -0.9174 | E4: =E3 ->  | F4: 183 | G4: =IF(E4>=75,C4*(E4^D4)*E4,F4) -> 
B5: Education - University | C5: 512.11 | D5: -0.9148 | E5: =E4 ->  | F5: 464 | G5: =IF(E5>=75,C5*(E5^D5)*E5,F5) -> 
B6: Health/Medical - Clinic | C6: 313.54 | D6: -0.8437 | F6: 480
B7: Health/Medical - Hospital | C7: 730.76 | D7: -0.8836 | F7: 857
B8: Lodging | C8: 589.61 | D8: -0.875 | F8: 782
B9: Office | C9: 657.91 | D9: -0.9437 | F9: 493
B10: Retail | C10: 404 | D10: -0.8645 | F10: 493

Sheet Rates (hidden)
A1: Rate Lookups | D1: Simplified Rate Table For FinAnswer Express
D5: Average Secondary except where noted
D7: State | E7: Cost
A8: Selected | E8: =IF(OR($B$9=0,$C$9=0),"Enter State and Rate Schedule Into Yellow Cells Above",VLOOKUP($B$9&" "&$C$9,$D$10:$F$46,2,0)) -> Enter State and Rate Schedule Into Yellow Cells Above | F8: =IF(OR($B$9=0,$C$9=0),"Enter State and Rate Schedule Into Yellow Cells Above",VLOOKUP($B$9&" "&$C$9,$D$10:$F$46,3,0)) -> Enter State and Rate Schedule Into Yellow Cells Above | H8: Updated 4/1/2025
B9: ='Chiller Calculator'!$C$7 -> 0 | C9: ='Chiller Calculator'!C8 -> 0 | E9: kWh | F9: Demand | H9: Rates Effective as of:
A10: 1 | B10: =IF(ISERROR(MID(VLOOKUP(LARGE($C$10:$C$46,A10),$C$10:$D$46,2,),4,5)),"",MID(VLOOKUP(LARGE($C$10:$C$46,A10),$C$10:$D$46,2,),4,5)) ->  | C10: =IF(LEFT(D10,2)=$B$9,A10,"") ->  | D10: WY 212 | G10: Update Rates Here | H10: CA | I10: 2015-08-26
A11: 2 | C11: =IF(LEFT(D11,2)=$B$9,A11,"") ->  | D11: WY 210 | H11: ID | I11: 2025-02-06
A12: 3 | D12: WY 58 | E12: 0.06532 | F12: 0 | H12: UT | I12: 2025-02-06
A13: 4 | D13: WY 54 | E13: 0.06494 | F13: 0 | H13: WA | I13: 2018-11-01
A14: 5 | D14: WY 48T | E14: 0 | F14: 0 | H14: WY | I14: 2025-02-06
A15: 6 | D15: WY 46 | E15: 0.04919 | F15: 21.109 | H15: Rates for Software 11.19.2018.2
A16: 7 | D16: WY 40 | E16: 0.06641 | F16: 9.838 | H16: ID/WY/UT updated per Rates of Software 2-6-2025
A17: 8 | D17: WY 33 | E17: 0.4828 | F17: 21.473
A18: 9 | D18: WY 28 | E18: 0.0478 | F18: 21.651
A19: 10 | D19: WY 25 | E19: 0.1051 | F19: 0
A20: 11 | D20: WA 48T | E20: 0.04709 | F20: 9.25
A21: 12 | D21: WA 40 | E21: 0.07457 | F21: 2.219
A22: 13 | C22: =IF(LEFT(D22,2)=$B$9,A22,"") ->  | D22: WA 36 | E22: 0.05283 | F22: 7.1
A23: 14 | D23: WA 24 | E23: 0.06357 | F23: 0
A24: 15 | D24: UT 23 | E24: 0.07789 | F24: 10.563
A25: 16 | D25: UT 10 | E25: 0.06819 | F25: 9.261
A26: 17 | D26: UT 9 | E26: 0.06896 | F26: 21.475
A27: 18 | D27: UT 9A | E27: 0.07074
A28: 19 | D28: UT 8 | E28: 0.07386 | F28: 23.613
A29: 20 | D29: UT 6 | E29: 0.04802 | F29: 16.388
A30: 21 | D30: ID 35 | E30: 0.07862 | F30: 20.459
A31: 22 | D31: ID 23 | E31: 0.11264 | F31: 0
A32: 23 | D32: ID 10 | E32: 0.07343 | F32: 7.226
A33: 24 | D33: ID 9 | E33: 0.07259 | F33: 11.7
A34: 25 | D34: ID 6 | E34: 0.06414 | F34: 15.585
A35: 26 | D35: ID 6A | E35: 0.06397 | F35: 15.585
A36: 27 | D36: CA 48 | E36: 0.09819 | F36: 7.15
A37: 28 | D37: CA 36 | E37: 0.11493 | F37: 8.51
A38: 29 | D38: CA 32 | E38: 0.14724 | F38: 3.8
A39: 30 | D39: CA 25 | E39: 0.16465
A40: 31 | D40: CA PA20 | E40: 0.1349 | F40: 3.946
A41: 32
A42: 33
A43: 34
A44: 35
A45: 36
A46: 37

Sheet CA Title 24-2008 (hidden)

Sheet IECC 2003 (hidden)

Sheet IECC 2006 (hidden)

Sheet IECC 2009 (hidden)

Sheet WSEC 2009 (hidden)

Sheet WSEC 2006 (hidden)

Sheet IECC & WSEC 2012 (hidden)

Sheet IECC 2015 (hidden)

Sheet IECC 2018 (hidden)

Sheet IECC 2021 (hidden)

Sheet WSEC 2018 (hidden)

Sheet WSEC 2021 (hidden)

Sheet CA Title 24-2013 (hidden)

Sheet Change Log (hidden)
A1: Date | B1: Change Description | C1: Name | D1: Previous Revision # | E1: New Revision # | F1: Current Revision (click to check)
A2: 2012-08-16 | B2: updated RMP rates (ID, UT, WY) | C2: Troy Williams | D2: 071412 | E2: 071412.2
A3: 2013-05-16 | B3: Revisions/updates to user interface including: Layout, addition of application print out option, additional help buttons, links to AHRI standards and weather station information. Increased functionality to allow cross tarrif (not applied retro actively/ Currently UT only) and cross state energy code changes for current and previous codes. Updates for new UT tariff incentive rate ($0.15/kWh for new tariff, $0.12/kWh + $50.00/kW for the previous tariff) Updates to rate schedules | C3: Troy Williams, Jake Demann | D3: 071412.2 | E3: 070113.1
A4: 2013-07-02 | B4: Updates to rate schedules | C4: Jake DeMann | D4: 70113.1 | E4: 70113.2
A5: 2013-12-27 | B5: Updated for new WA tariff incentive rate ($0.15/kWh for new tariff, $0.12/kWh + $50.00/kW for the previous tariff) Included WA in cross tariff functionality, (CA,ID,WY remain single tariff only) WA now exports to wattsmart Business application. Note: General application has not yet been updated | C5: Jake DeMann | D5: 70113.1 | E5: 010114.1
A6: 2014-01-07 | B6: Updated rates, using Rates for Software 1-1-2014 | C6: Jake DeMann | D6: 010114.1 | E6: 010114.2
A7: 2014-06-15 | B7: UT Code and Tariff Labels Update CA code efficiency revisions. Functionality across codes (Title 24-2008 & Title 24-2013) No changes to incentive rates. | C7: Jake DeMann | D7: 010114.2 | E7: 010714.1
A8: 2014-07-10 | B8: Updates to print-out to reduce user preferences from creating excessive pages | C8: Jake DeMann | D8: 010714.1 | E8: 010714.2
A9: 2014-10-27 | B9: Idaho changes: - Updated tariff number and effective date - Program name updated to wattsmart Business - Application printout updated to general application/wattsmart business format - Incentive rate revised to $0.15/kWh for projects completed after November 1, 2014 | C9: Jake DeMann | D9: '010714.2 | E9: 110114.1
A10: 2014-11-18 | B10: Added referenced tables for code baseline, updated version and ID tariff effective date | C10: Jake DeMann | D10: 110114.1 | E10: 111314.1
A11: 2014-11-24 | B11: - WY tariff schedule revised to 140 - WY tariff effective date revised to December 1, 2014 - WY messaging/application revised to wattsmart Business - WY incentive rate revised to $0.15/kWh + $50/kW for projects completed on or after December 1, 2014 (Previous projects paid at $0.12/kWh + $50/kW) - Added IECC 2009 baseline for WY projects completed on or after December 1, 2014 (Previous projects use IECC 2003 baseline) - Version # revised, beta version for testing, release version to be 120114.1 | C11: Jake DeMann | D11: 111314.1 | E11: beta 120114
A12: 2014-12-05 | B12: Added IECC 2012 baseline to Chiller Data table for ID projects completed on or after January 1, 2015 (Previous projects use IECC 2009 baseline) Removed IECC 2006 baseline from Chiller Data table Baseline messaging revised to reflect code changes | C12: Jake DeMann | D12: beta 120114 | E12: beta 010115
A13: 2014-12-09 | B13: QC report revisions: - Cell I51 of the “Chiller Calculator” tab, date validation has been added to the formula to correctly apply the incentive rate. - Application page formating adjusted to prevent print-out errors. - Updated rate schedules to match Rates for Software 1-1-2015 (updated on 1/5/2015) | C13: Jake DeMann | D13: beta 010115 | E13: 010115.1
A14: 2015-04-15 | B14: - CA tariff schedule revised to 140 - CA tariff effective date revised to May 1, 2015 - CA messaging/application revised to wattsmart Business - CA incentive rate revised to $0.15/kWh for projects completed on or after May 1, 2015 (Previous projects paid at $0.12/kWh + $50/kW) - Version # revised, beta version for testing, release version to be 050115.1 | C14: Jake DeMann | D14: 010115.1 | E14: beta 050115
A15: 2015-05-21 | B15: Finalize following QC comments - No comments required changes | C15: Joe Larsen | D15: beta 050115 | E15: 050115.1
A16: 2015-09-22 | B16: Corrected rate schedule data validation | C16: Jake DeMann | D16: 050115.1 | E16: 050115.2
A17: 2016-07-07 | B17: Updated rates, using Rates for Software 6-17-2016 | C17: Jake DeMann | D17: 050115.2 | E17: 071115.1
A18: 2018-03-15 | B18: Functional corrections | C18: Jake DeMann | D18: 071115.1 | E18: 071116.2
A19: 2018-12-26 | B19: Update rates for WA, UT, WY | C19: Van Le | D19: 71116.2 | E19: 122618
A20: 2019-02-07 | B20: Revise rates for WA and UT | C20: Van Le | D20: 122618 | E20: 122618.1
A21: 2020-08-20 | B21: Updated incentives for WA. Updated how incentives and tariff dates are recorded in new table on "Chiller Calculations" tab | C21: Drew Petersen | D21: 122618.1 | E21: 80120.1
A22: 2024-07-31 | B22: Updated Code making current code for UT IECC 2021, current code for WA WSEC 2021, and Idaho IECC 2018. Removed CA from the state selection as it no longer uses calculator for chiller measures | C22: Joe Larsen | D22: 80120.1 | E22: 073124.1 | F22: a
